Workbook

Sheet Legend
B1: METRIC | C1: DEFINITION | D1: Line | E1: COMMENT
B2: 010 Series | C2: Initial entitlement for service-connected disability (=>8 issues) | D2: Comp | E2: Rating Bundle: Claims for disability compensation, dependency and indemnity compensation, and Veterans’ pension benefits, including both original and supplemental claims. Rating Bundle claims normally require a rating decision during processing. The Rating Bundle Group is made up of 7 series and 1 group of End Products, plus 4 Agent Orange End Products, which are used to define VA Priority goals for Accuracy and reduction of claims over 125 days old
B3: 110 Series | C3: Initial entitlement for service-connected disability (<=7 issues) | D3: Comp
B4: 020 Series | C4: Increased evaluation and/or additional claimed conditions | D4: Comp
B5: 140 Series | C5: Initial claims from surviving spouses, children or parents | D5: Comp
B6: 180 Series | C6: Initial entitlement for Pension - Veteran | D6: Pension
B7: 120 Series | C7: Increased entitlement and/or reconsideration for Pension | D7: Pension
B8: 310 Group | C8: Future examination for disabilities (excludes EP 314) | D8: Comp
B9: 320 Series | C9: Increased entitlement due to hospitalization or surgery | D9: Comp
B10: EP 405 | C10: Reopened or new Agent Orange claims between 9/01/10 and 10/24/2011 | D10: Comp
B11: EP 409 | C11: Agent Orange claims where an interim decision was provided; No longer used as of 10/24/2011 | D11: Comp
B12: EP 681 | C12: Used to control claims under the Nehmer Agent Orange stipulation | D12: Comp
B13: EP 687 | C13: Previously used for Nehmer Agent Orange presumptive issues | D13: Comp
B14: EP 040 | C14: Decision Review Request - AMA Supplemental Claims | D14: Comp
B15: EP 335 | C15: Blue Water Navy Agent Orange (effective 1/1/2010) | D15: Comp | E15: Not-Rating: Claims for disability compensation, dependency and indemnity compensation, and Veterans’ pension benefits, which can but normally do not require a rating decision (i.e. claim to add dependent to award).
B18: ADP | C18: Average Days Pending, or total number of days pending divided by total number of claims pending
B19: ADC | C19: Average Days to Complete or total number of days to complete divided by total number of claims completed
B21: MTD | C21: Month to Date. Captures claim activity from the first day of the reporting month through the report date
B22: FYTD | C22: Fiscal Year to Date. Captures claim activity from the first day of the current fiscal year through the report date
B24: SOJ | C24: Station of Jurisdiction, or the Regional Office assigned to work the claim
B25: SOO | C25: Station of Origin, or the Regional Office with geographic oversight of the claim
B27: Pending Development | C27: Claims that are awaiting development initiation, which may involve gathering supporting evidence, medical exams, and military documentation.
B29: Pending Evidence | C29: Claims that are in the process of gathering supporting evidence and possibly medical exams.
B31: Pending Decision | C31: Claims that are awaiting an evidence review and decision by a rating specialist
B33: Pending Award | C33: Claims that are awaiting a first-level review of the evidence gathered and the decision.
B35: Pending Authorization | C35: Claims that are awaiting a final review of all aspects of the claim, which results in a notification to the claimant on the outcome of their claim.

Sheet Transformation
B2: Compensation and Pension Rating Bundle Metrics
B3: National View | H3: # Pending | I3: # Pending > 125 | J3: % Pending > 125 days
B4: ="Reporting through "&TEXT(D_DT[],"MMMM DD, YYYY") -> Reporting through May 28, 2022
B5: Compensation and Pension Rating Bundle | G5: Total | H5: =SUM(H6,H11,H22) -> 592345 | I5: =SUM(I6,I11,I22) -> 196852 | J5: =IF(H5=0, 0,I5/H5) -> 0.3323266002
B6: Original Entitlement | G6: Total | H6: =SUM(H7:H10) -> 158650 | I6: =SUM(I7:I10) -> 55530 | J6: =IF(H6=0, 0,I6/H6) -> 0.350015758
A7: 010 | B7: Initial entitlement for service-connected disability (>=8 issues) | G7: EP 010 | H7: =IFERROR(SUMIFS(D_D[INV],D_D[MT],3,D_D[EP],$A7),0) -> 48734 | I7: =IFERROR(SUMIFS(D_D[BL],D_D[MT],3,D_D[EP],$A7),0) -> 19548 | J7: 0.4011162638
A8: 110 | B8: Initial entitlement for service-connected disability (<=7 issues) | G8: EP 110 | H8: =IFERROR(SUMIFS(D_D[INV],D_D[MT],3,D_D[EP],$A8),0) -> 88719 | I8: =IFERROR(SUMIFS(D_D[BL],D_D[MT],3,D_D[EP],$A8),0) -> 31584 | J8: 0.3560004058
A9: 180 | B9: Initial entitlement - Veteran's Pension | G9: EP 180 | H9: =IFERROR(SUMIFS(D_D[INV],D_D[MT],3,D_D[EP],$A9),0) -> 7107 | I9: =IFERROR(SUMIFS(D_D[BL],D_D[MT],3,D_D[EP],$A9),0) -> 567 | J9: 0.0797804981
A10: 140 | B10: Initial claims from surviving spouses, children or parents | G10: EP 140 | H10: =IFERROR(SUMIFS(D_D[INV],D_D[MT],3,D_D[EP],$A10),0) -> 14090 | I10: =IFERROR(SUMIFS(D_D[BL],D_D[MT],3,D_D[EP],$A10),0) -> 3831 | J10: 0.271894961
B11: Supplemental Entitlement | G11: Total | H11: =SUM(H12:H21) -> 419340 | I11: =SUM(I12:I21) -> 128328 | J11: 0.3060237516
A12: 120 | B12: Increased entitlement and/or reconsideration for Pension | G12: EP 120 | H12: =IFERROR(SUMIFS(D_D[INV],D_D[MT],3,D_D[EP],$A12),0) -> 4232 | I12: =IFERROR(SUMIFS(D_D[BL],D_D[MT],3,D_D[EP],$A12),0) -> 309 | J12: 0.07301512287
A13: 020 | B13: Increased evaluation and/or additional claimed conditions | G13: EP 020 | H13: =IFERROR(SUMIFS(D_D[INV],D_D[MT],3,D_D[EP],$A13),0) -> 264970 | I13: =IFERROR(SUMIFS(D_D[BL],D_D[MT],3,D_D[EP],$A13),0) -> 69910 | J13: 0.2638411896
A14: 310G | B14: Future examination for disabilities | G14: EP 310 | H14: =IFERROR(SUMIFS(D_D[INV],D_D[MT],3,D_D[EP],$A14),0) -> 7278 | I14: =IFERROR(SUMIFS(D_D[BL],D_D[MT],3,D_D[EP],$A14),0) -> 1913 | J14: 0.262846936
A15: 320 | B15: Increased entitlement due to hospitalization or surgery | G15: EP 320 | H15: =IFERROR(SUMIFS(D_D[INV],D_D[MT],3,D_D[EP],$A15),0) -> 1582 | I15: =IFERROR(SUMIFS(D_D[BL],D_D[MT],3,D_D[EP],$A15),0) -> 51 | J15: 0.03223767383
A16: 681 | B16: Used to control claims under the Nehmer Agent Orange stipulation | G16: EP 681 | H16: =IFERROR(SUMIFS(D_D[INV],D_D[MT],3,D_D[EP],$A16),0) -> 1204 | I16: =IFERROR(SUMIFS(D_D[BL],D_D[MT],3,D_D[EP],$A16),0) -> 928 | J16: 0.7707641196
A17: 687 | B17: Blue Water Navy Agent Orange Nehmer Reviews | G17: EP 687 | H17: =IFERROR(SUMIFS(D_D[INV],D_D[MT],3,D_D[EP],$A17),0) -> 1885 | I17: =IFERROR(SUMIFS(D_D[BL],D_D[MT],3,D_D[EP],$A17),0) -> 1881 | J17: =IF(H17=0, 0,I17/H17) -> 0.9978779841
A18: 688 | B18: NDAA Agent Orange Nehmer Reviews (3 new authorized disabilities) | G18: EP 688 | H18: =IFERROR(SUMIFS(D_D[INV],D_D[MT],3,D_D[EP],$A18),0) -> 26436 | I18: =IFERROR(SUMIFS(D_D[BL],D_D[MT],3,D_D[EP],$A18),0) -> 25946 | J18: =IF(H18=0, 0,I18/H18) -> 0.9814646694
A19: 405 | B19: Reopened or new Agent Orange claims between 9/01/10 and 10/24/2011 | G19: EP 405 | H19: =IFERROR(SUMIFS(D_D[INV],D_D[MT],3,D_D[EP],$A19),0) -> 0 | I19: =IFERROR(SUMIFS(D_D[BL],D_D[MT],3,D_D[EP],$A19),0) -> 0 | J19: =IF(H19=0, 0,I19/H19) -> 0
A20: 040 | B20: Decision Review Request - AMA Supplemental Claims | G20: EP 040 | H20: =IFERROR(SUMIFS(D_D[INV],D_D[MT],3.1,D_D[EP],$A20),0) -> 111731 | I20: =IFERROR(SUMIFS(D_D[BL],D_D[MT],3.1,D_D[EP],$A20),0) -> 27390 | J20: =IF(H20=0, 0,I20/H20) -> 0.2451423508
A21: 409 | B21: Agent Orange claims where an interim decision was provided; No longer used as of 10/24/2011 | G21: EP 409 | H21: =IFERROR(SUMIFS(D_D[INV],D_D[MT],3,D_D[EP],$A21),0) -> 22 | I21: =IFERROR(SUMIFS(D_D[BL],D_D[MT],3,D_D[EP],$A21),0) -> 0 | J21: =IF(H21=0, 0,I21/H21) -> 0
B22: Compensation Other – Diary – Becomes Part of Rating Bundle on 1/1/2020 | G22: Total | H22: =SUM(H23) -> 14355 | I22: =SUM(I23) -> 12994 | J22: =IF(H22=0, 0,I22/H22) -> 0.9051898293
A23: 335 | B23: Blue Water Navy - Agent Orange | G23: EP 335 | H23: =IFERROR(SUMIFS(D_D[INV],D_D[MT],3,D_D[EP],$A23),0) -> 14355 | I23: =IFERROR(SUMIFS(D_D[BL],D_D[MT],3,D_D[EP],$A23),0) -> 12994 | J23: 0.9051898293
B25: Education Metrics | G25: ="Pending on " &TEXT(D_DT[]-0,"MM/DD/YY") -> Pending on 05/28/22 | H25: ="Pending on " &TEXT(D_DT[]-7,"MM/DD/YY") -> Pending on 05/21/22 | I25: # Change | J25: % Change
A26: 1 | B26: Total Chapter 33 Original Claims * | G26: =IFERROR(SUMIFS(D_D[INV],D_D[MT],9,D_D[CAT],1,D_D[LOC],$A26),0) -> 5328 | H26: =IFERROR(SUMIFS(D_D[BL],D_D[MT],9,D_D[CAT],1,D_D[LOC],$A26),0) -> 5917 | I26: =IFERROR(SUMIFS(D_D[ADP],D_D[MT],9,D_D[CAT],1,D_D[LOC],$A26),0) -> -589 | J26: =IFERROR(I26/H26,0) -> -0.09954368768
A27: 307 | B27: Buffalo | G27: =IFERROR(SUMIFS(D_D[INV],D_D[MT],9,D_D[CAT],1,D_D[LOC],$A27),0) -> 3392 | H27: =IFERROR(SUMIFS(D_D[BL],D_D[MT],9,D_D[CAT],1,D_D[LOC],$A27),0) -> 3486 | I27: =IFERROR(SUMIFS(D_D[ADP],D_D[MT],9,D_D[CAT],1,D_D[LOC],$A27),0) -> -94 | J27: =IFERROR(I27/H27,0) -> -0.02696500287
A28: 316 | B28: Atlanta | G28: =IFERROR(SUMIFS(D_D[INV],D_D[MT],9,D_D[CAT],1,D_D[LOC],$A28),0) -> 0 | H28: =IFERROR(SUMIFS(D_D[BL],D_D[MT],9,D_D[CAT],1,D_D[LOC],$A28),0) -> 0 | I28: =IFERROR(SUMIFS(D_D[ADP],D_D[MT],9,D_D[CAT],1,D_D[LOC],$A28),0) -> 0 | J28: =IF(H28=0, 0,I28/H28) -> 0
A29: 331 | B29: St Louis | G29: =IFERROR(SUMIFS(D_D[INV],D_D[MT],9,D_D[CAT],1,D_D[LOC],$A29),0) -> 0 | H29: =IFERROR(SUMIFS(D_D[BL],D_D[MT],9,D_D[CAT],1,D_D[LOC],$A29),0) -> 0 | I29: =IFERROR(SUMIFS(D_D[ADP],D_D[MT],9,D_D[CAT],1,D_D[LOC],$A29),0) -> 0 | J29: =IFERROR(I29/H29,0) -> 0
A30: 351 | B30: Muskogee | G30: =IFERROR(SUMIFS(D_D[INV],D_D[MT],9,D_D[CAT],1,D_D[LOC],$A30),0) -> 1936 | H30: =IFERROR(SUMIFS(D_D[BL],D_D[MT],9,D_D[CAT],1,D_D[LOC],$A30),0) -> 2431 | I30: =IFERROR(SUMIFS(D_D[ADP],D_D[MT],9,D_D[CAT],1,D_D[LOC],$A30),0) -> -495 | J30: =IFERROR(I30/H30,0) -> -0.2036199095
A31: 1 | B31: Total Education Claims - All Education Programs ** | G31: =IFERROR(SUMIFS(D_D[INV],D_D[MT],9,D_D[CAT],2,D_D[LOC],$A31),0) -> 45327 | H31: =IFERROR(SUMIFS(D_D[BL],D_D[MT],9,D_D[CAT],2,D_D[LOC],$A31),0) -> 49838 | I31: =IFERROR(SUMIFS(D_D[ADP],D_D[MT],9,D_D[CAT],2,D_D[LOC],$A31),0) -> -4511 | J31: =IFERROR(I31/H31,0) -> -0.09051326297
A32: 307 | B32: Buffalo | G32: =IFERROR(SUMIFS(D_D[INV],D_D[MT],9,D_D[CAT],2,D_D[LOC],$A32),0) -> 20031 | H32: =IFERROR(SUMIFS(D_D[BL],D_D[MT],9,D_D[CAT],2,D_D[LOC],$A32),0) -> 22015 | I32: =IFERROR(SUMIFS(D_D[ADP],D_D[MT],9,D_D[CAT],2,D_D[LOC],$A32),0) -> -1984 | J32: =IFERROR(I32/H32,0) -> -0.09012037247
A33: 316 | B33: Atlanta | G33: =IFERROR(SUMIFS(D_D[INV],D_D[MT],9,D_D[CAT],2,D_D[LOC],$A33),0) -> 0 | H33: =IFERROR(SUMIFS(D_D[BL],D_D[MT],9,D_D[CAT],2,D_D[LOC],$A33),0) -> 0 | I33: =IFERROR(SUMIFS(D_D[ADP],D_D[MT],9,D_D[CAT],2,D_D[LOC],$A33),0) -> 0 | J33: =IF(H33=0, 0,I33/H33) -> 0
A34: 331 | B34: St Louis | G34: =IFERROR(SUMIFS(D_D[INV],D_D[MT],9,D_D[CAT],2,D_D[LOC],$A34),0) -> 0 | H34: =IFERROR(SUMIFS(D_D[BL],D_D[MT],9,D_D[CAT],2,D_D[LOC],$A34),0) -> 0 | I34: =IFERROR(SUMIFS(D_D[ADP],D_D[MT],9,D_D[CAT],2,D_D[LOC],$A34),0) -> 0 | J34: =IFERROR(I34/H34,0) -> 0
A35: 351 | B35: Muskogee | G35: =IFERROR(SUMIFS(D_D[INV],D_D[MT],9,D_D[CAT],2,D_D[LOC],$A35),0) -> 25296 | H35: =IFERROR(SUMIFS(D_D[BL],D_D[MT],9,D_D[CAT],2,D_D[LOC],$A35),0) -> 27823 | I35: =IFERROR(SUMIFS(D_D[ADP],D_D[MT],9,D_D[CAT],2,D_D[LOC],$A35),0) -> -2527 | J35: =IFERROR(I35/H35,0) -> -0.0908241383
B37: *Chapter 33 is the Post-9/11GI Bill.
B38: **Represents all Education Benefit Programs, including Chapter 33 claims.

Sheet Rating Bundle - SOJ
C2: DISTRICT SELECTOR | D2: Compensation and Pension Rating Bundle Metrics | L2: Report through
D3: Station of Jurisdiction View | L3: =D_DT[] -> 2022-05-28
D4: The Station of Jurisdiction (SOJ) is the regional office assigned to work the claim | L4: ADP = Average Days Pending | O4: MTD = Month to Date
D5: Each Special Mission has distinct claim counts | L5: ADC = Average Days to Complete | O5: FYTD = Fiscal Year to Date
D6: When Special Mission is set to Pension, BDD, or Quickstart, the District Selector has no impact
L7: Accuracy is available in Compensation and Pension Special Missions
D8: CLAIM METRICS | L8: ACCURACY METRICS
C9: SPECIAL MISSION SELECTOR | D9: # Pending | E9: # Pending > 125 Days | F9: % Pending > 125 Days | G9: ADP | H9: # Completed MTD | I9: ADC MTD | J9: # Completed FYTD | K9: ADC FYTD | L9: Rating 3 Month Issue | M9: Rating 3 Month Claim | N9: Rating 12 Month | P9: Authorization 12 Month
N10: % | O10: Margin of Error +/- | P10: % | Q10: Margin of Error +/-
N11: Correct | P11: Correct
A12: 100 | C12: =Driver!$C$20& " Total" -> USA - All Missions Total | D12: =IF(ISNA($A12),"",IFERROR(SUMIFS(D_D[INV],D_D[MT],5,D_D[CAT],SMS, D_D[EP],-1,D_D[LOC],$A12),0)) -> 592345 | E12: =IF(ISNA($A12),"",IFERROR(SUMIFS(D_D[BL],D_D[MT],5,D_D[CAT],SMS, D_D[EP],-1,D_D[LOC],$A12),0)) -> 196852 | F12: =IF(ISNA($A12),"",IFERROR(E12/D12,0)) -> 0.3323266002 | G12: =IF(ISNA($A12),"",IFERROR(SUMIFS(D_D[ADP],D_D[MT],5,D_D[CAT],SMS, D_D[EP],-1,D_D[LOC],$A12),0)) -> 143.19 | H12: =IF(ISNA($A12),"",IFERROR(SUMIFS(D_D[PROD_MTD],D_D[MT],5,D_D[CAT],SMS, D_D[EP],-1,D_D[LOC],$A12),0)) -> 142986 | I12: =IF(ISNA($A12),"",IFERROR(SUMIFS(D_D[ADCM],D_D[MT],5,D_D[CAT],SMS, D_D[EP],-1,D_D[LOC],$A12),0)) -> 166.97 | J12: =IF(ISNA($A12),"",IFERROR(SUMIFS(D_D[PROD_FYTD],D_D[MT],5,D_D[CAT],SMS, D_D[EP],-1,D_D[LOC],$A12),0)) -> 1105676 | K12: =IF(ISNA($A12),"",IFERROR(SUMIFS(D_D[ADCF],D_D[MT],5,D_D[CAT],SMS, D_D[EP],-1,D_D[LOC],$A12),0)) -> 138.44 | L12: =IF(ISNA($A12-99),"",IFERROR(SUMIFS(D_D[INV],D_D[MT],8,D_D[CAT],SMS,D_D[LOC],$A12-99),0)) -> 0 | M12: =IF(ISNA($A12-99),"",IFERROR(SUMIFS(D_D[BL],D_D[MT],8,D_D[CAT],SMS,D_D[LOC],$A12-99),0)) -> 0 | N12: =IF(ISNA($A12-99),"",IFERROR(SUMIFS(D_D[ADP],D_D[MT],8,D_D[CAT],SMS,D_D[LOC],$A12-99),0)) -> 0 | O12: =IF(ISNA($A12-99),"",IFERROR(SUMIFS(D_D[PROD_MTD],D_D[MT],8,D_D[CAT],SMS,D_D[LOC],$A12-99),0)) -> 0 | P12: =IF(ISNA($A12-99),"",IFERROR(SUMIFS(D_D[PROD_FYTD],D_D[MT],8,D_D[CAT],SMS,D_D[LOC],$A12-99),0)) -> 0 | Q12: =IF(ISNA($A12-99),"",IFERROR(SUMIFS(D_D[ADCM],D_D[MT],8,D_D[CAT],SMS,D_D[LOC],$A12-99),0)) -> 0
A13: =INDEX(RO,(MATCH($C13,RO_D,0))) -> 395 | B13: 1 | C13: =IFERROR(INDEX(INDIRECT(DS_RO_N),B13),"") -> Pacific District | D13: =IF(ISNA($A13),"",IFERROR(SUMIFS(D_D[INV],D_D[MT],5,D_D[CAT],SMS, D_D[EP],-1,D_D[LOC],$A13),0)) -> 17054 | E13: =IF(ISNA($A13),"",IFERROR(SUMIFS(D_D[BL],D_D[MT],5,D_D[CAT],SMS, D_D[EP],-1,D_D[LOC],$A13),0)) -> 6017 | F13: =IF(ISNA($A13),"",IFERROR(E13/D13,0)) -> 0.3528204527 | G13: =IF(ISNA($A13),"",IFERROR(SUMIFS(D_D[ADP],D_D[MT],5,D_D[CAT],SMS, D_D[EP],-1,D_D[LOC],$A13),0)) -> 144.81 | H13: =IF(ISNA($A13),"",IFERROR(SUMIFS(D_D[PROD_MTD],D_D[MT],5,D_D[CAT],SMS, D_D[EP],-1,D_D[LOC],$A13),0)) -> 29252 | I13: =IF(ISNA($A13),"",IFERROR(SUMIFS(D_D[ADCM],D_D[MT],5,D_D[CAT],SMS, D_D[EP],-1,D_D[LOC],$A13),0)) -> 166.45 | J13: =IF(ISNA($A13),"",IFERROR(SUMIFS(D_D[PROD_FYTD],D_D[MT],5,D_D[CAT],SMS, D_D[EP],-1,D_D[LOC],$A13),0)) -> 229184 | K13: =IF(ISNA($A13),"",IFERROR(SUMIFS(D_D[ADCF],D_D[MT],5,D_D[CAT],SMS, D_D[EP],-1,D_D[LOC],$A13),0)) -> 136.08 | L13: =IF(ISNA($A13),"",IFERROR(SUMIFS(D_D[INV],D_D[MT],8,D_D[CAT],SMS,D_D[LOC],$A13),0)) -> 0 | M13: =IF(ISNA($A13),"",IFERROR(SUMIFS(D_D[BL],D_D[MT],8,D_D[CAT],SMS,D_D[LOC],$A13),0)) -> 0 | N13: =IF(ISNA($A13),"",IFERROR(SUMIFS(D_D[ADP],D_D[MT],8,D_D[CAT],SMS,D_D[LOC],$A13),0)) -> 0 | O13: =IF(ISNA($A13),"",IFERROR(SUMIFS(D_D[PROD_MTD],D_D[MT],8,D_D[CAT],SMS,D_D[LOC],$A13),0)) -> 0 | P13: =IF(ISNA($A13),"",IFERROR(SUMIFS(D_D[PROD_FYTD],D_D[MT],8,D_D[CAT],SMS,D_D[LOC],$A13),0)) -> 0 | Q13: =IF(ISNA($A13),"",IFERROR(SUMIFS(D_D[ADCM],D_D[MT],8,D_D[CAT],SMS,D_D[LOC],$A13),0)) -> 0
A14: 340 | B14: 2 | C14: =IFERROR(INDEX(INDIRECT(DS_RO_N),B14),"") -> Albuquerque | D14: =IF(ISNA($A14),"",IFERROR(SUMIFS(D_D[INV],D_D[MT],5,D_D[CAT],SMS, D_D[EP],-1,D_D[LOC],$A14),0)) -> 525 | E14: =IF(ISNA($A14),"",IFERROR(SUMIFS(D_D[BL],D_D[MT],5,D_D[CAT],SMS, D_D[EP],-1,D_D[LOC],$A14),0)) -> 170 | F14: =IF(ISNA($A14),"",IFERROR(E14/D14,0)) -> 0.3238095238 | G14: =IF(ISNA($A14),"",IFERROR(SUMIFS(D_D[ADP],D_D[MT],5,D_D[CAT],SMS, D_D[EP],-1,D_D[LOC],$A14),0)) -> 118.42 | H14: =IF(ISNA($A14),"",IFERROR(SUMIFS(D_D[PROD_MTD],D_D[MT],5,D_D[CAT],SMS, D_D[EP],-1,D_D[LOC],$A14),0)) -> 802 | I14: =IF(ISNA($A14),"",IFERROR(SUMIFS(D_D[ADCM],D_D[MT],5,D_D[CAT],SMS, D_D[EP],-1,D_D[LOC],$A14),0)) -> 193.46 | J14: =IF(ISNA($A14),"",IFERROR(SUMIFS(D_D[PROD_FYTD],D_D[MT],5,D_D[CAT],SMS, D_D[EP],-1,D_D[LOC],$A14),0)) -> 6667 | K14: =IF(ISNA($A14),"",IFERROR(SUMIFS(D_D[ADCF],D_D[MT],5,D_D[CAT],SMS, D_D[EP],-1,D_D[LOC],$A14),0)) -> 165.14 | L14: =IF(ISNA($A14),"",IFERROR(SUMIFS(D_D[INV],D_D[MT],8,D_D[CAT],SMS,D_D[LOC],$A14),0)) -> 0 | M14: =IF(ISNA($A14),"",IFERROR(SUMIFS(D_D[BL],D_D[MT],8,D_D[CAT],SMS,D_D[LOC],$A14),0)) -> 0 | N14: =IF(ISNA($A14),"",IFERROR(SUMIFS(D_D[ADP],D_D[MT],8,D_D[CAT],SMS,D_D[LOC],$A14),0)) -> 0 | O14: =IF(ISNA($A14),"",IFERROR(SUMIFS(D_D[PROD_MTD],D_D[MT],8,D_D[CAT],SMS,D_D[LOC],$A14),0)) -> 0 | P14: =IF(ISNA($A14),"",IFERROR(SUMIFS(D_D[PROD_FYTD],D_D[MT],8,D_D[CAT],SMS,D_D[LOC],$A14),0)) -> 0 | Q14: =IF(ISNA($A14),"",IFERROR(SUMIFS(D_D[ADCM],D_D[MT],8,D_D[CAT],SMS,D_D[LOC],$A14),0)) -> 0
A15: 463 | B15: 3 | C15: Anchorage | D15: =IF(ISNA($A15),"",IFERROR(SUMIFS(D_D[INV],D_D[MT],5,D_D[CAT],SMS, D_D[EP],-1,D_D[LOC],$A15),0)) -> 231 | E15: =IF(ISNA($A15),"",IFERROR(SUMIFS(D_D[BL],D_D[MT],5,D_D[CAT],SMS, D_D[EP],-1,D_D[LOC],$A15),0)) -> 103 | F15: 0.4458874459 | G15: =IF(ISNA($A15),"",IFERROR(SUMIFS(D_D[ADP],D_D[MT],5,D_D[CAT],SMS, D_D[EP],-1,D_D[LOC],$A15),0)) -> 153.07 | H15: =IF(ISNA($A15),"",IFERROR(SUMIFS(D_D[PROD_MTD],D_D[MT],5,D_D[CAT],SMS, D_D[EP],-1,D_D[LOC],$A15),0)) -> 369 | I15: =IF(ISNA($A15),"",IFERROR(SUMIFS(D_D[ADCM],D_D[MT],5,D_D[CAT],SMS, D_D[EP],-1,D_D[LOC],$A15),0)) -> 228.62 | J15: =IF(ISNA($A15),"",IFERROR(SUMIFS(D_D[PROD_FYTD],D_D[MT],5,D_D[CAT],SMS, D_D[EP],-1,D_D[LOC],$A15),0)) -> 2205 | K15: =IF(ISNA($A15),"",IFERROR(SUMIFS(D_D[ADCF],D_D[MT],5,D_D[CAT],SMS, D_D[EP],-1,D_D[LOC],$A15),0)) -> 176.33 | L15: =IF(ISNA($A15),"",IFERROR(SUMIFS(D_D[INV],D_D[MT],8,D_D[CAT],SMS,D_D[LOC],$A15),0)) -> 0 | M15: =IF(ISNA($A15),"",IFERROR(SUMIFS(D_D[BL],D_D[MT],8,D_D[CAT],SMS,D_D[LOC],$A15),0)) -> 0 | N15: =IF(ISNA($A15),"",IFERROR(SUMIFS(D_D[ADP],D_D[MT],8,D_D[CAT],SMS,D_D[LOC],$A15),0)) -> 0 | O15: =IF(ISNA($A15),"",IFERROR(SUMIFS(D_D[PROD_MTD],D_D[MT],8,D_D[CAT],SMS,D_D[LOC],$A15),0)) -> 0 | P15: =IF(ISNA($A15),"",IFERROR(SUMIFS(D_D[PROD_FYTD],D_D[MT],8,D_D[CAT],SMS,D_D[LOC],$A15),0)) -> 0 | Q15: =IF(ISNA($A15),"",IFERROR(SUMIFS(D_D[ADCM],D_D[MT],8,D_D[CAT],SMS,D_D[LOC],$A15),0)) -> 0
A16: 347 | B16: 4 | C16: Boise | D16: =IF(ISNA($A16),"",IFERROR(SUMIFS(D_D[INV],D_D[MT],5,D_D[CAT],SMS, D_D[EP],-1,D_D[LOC],$A16),0)) -> 595 | E16: =IF(ISNA($A16),"",IFERROR(SUMIFS(D_D[BL],D_D[MT],5,D_D[CAT],SMS, D_D[EP],-1,D_D[LOC],$A16),0)) -> 107 | F16: 0.1798319328 | G16: =IF(ISNA($A16),"",IFERROR(SUMIFS(D_D[ADP],D_D[MT],5,D_D[CAT],SMS, D_D[EP],-1,D_D[LOC],$A16),0)) -> 91.82 | H16: =IF(ISNA($A16),"",IFERROR(SUMIFS(D_D[PROD_MTD],D_D[MT],5,D_D[CAT],SMS, D_D[EP],-1,D_D[LOC],$A16),0)) -> 1216 | I16: =IF(ISNA($A16),"",IFERROR(SUMIFS(D_D[ADCM],D_D[MT],5,D_D[CAT],SMS, D_D[EP],-1,D_D[LOC],$A16),0)) -> 130.9 | J16: =IF(ISNA($A16),"",IFERROR(SUMIFS(D_D[PROD_FYTD],D_D[MT],5,D_D[CAT],SMS, D_D[EP],-1,D_D[LOC],$A16),0)) -> 9545 | K16: =IF(ISNA($A16),"",IFERROR(SUMIFS(D_D[ADCF],D_D[MT],5,D_D[CAT],SMS, D_D[EP],-1,D_D[LOC],$A16),0)) -> 122.99 | L16: =IF(ISNA($A16),"",IFERROR(SUMIFS(D_D[INV],D_D[MT],8,D_D[CAT],SMS,D_D[LOC],$A16),0)) -> 0 | M16: =IF(ISNA($A16),"",IFERROR(SUMIFS(D_D[BL],D_D[MT],8,D_D[CAT],SMS,D_D[LOC],$A16),0)) -> 0 | N16: =IF(ISNA($A16),"",IFERROR(SUMIFS(D_D[ADP],D_D[MT],8,D_D[CAT],SMS,D_D[LOC],$A16),0)) -> 0 | O16: =IF(ISNA($A16),"",IFERROR(SUMIFS(D_D[PROD_MTD],D_D[MT],8,D_D[CAT],SMS,D_D[LOC],$A16),0)) -> 0 | P16: =IF(ISNA($A16),"",IFERROR(SUMIFS(D_D[PROD_FYTD],D_D[MT],8,D_D[CAT],SMS,D_D[LOC],$A16),0)) -> 0 | Q16: =IF(ISNA($A16),"",IFERROR(SUMIFS(D_D[ADCM],D_D[MT],8,D_D[CAT],SMS,D_D[LOC],$A16),0)) -> 0
A17: 459 | B17: 5 | C17: Honolulu | D17: =IF(ISNA($A17),"",IFERROR(SUMIFS(D_D[INV],D_D[MT],5,D_D[CAT],SMS, D_D[EP],-1,D_D[LOC],$A17),0)) -> 329 | E17: =IF(ISNA($A17),"",IFERROR(SUMIFS(D_D[BL],D_D[MT],5,D_D[CAT],SMS, D_D[EP],-1,D_D[LOC],$A17),0)) -> 100 | F17: 0.3039513678 | G17: =IF(ISNA($A17),"",IFERROR(SUMIFS(D_D[ADP],D_D[MT],5,D_D[CAT],SMS, D_D[EP],-1,D_D[LOC],$A17),0)) -> 113.45 | H17: =IF(ISNA($A17),"",IFERROR(SUMIFS(D_D[PROD_MTD],D_D[MT],5,D_D[CAT],SMS, D_D[EP],-1,D_D[LOC],$A17),0)) -> 806 | I17: =IF(ISNA($A17),"",IFERROR(SUMIFS(D_D[ADCM],D_D[MT],5,D_D[CAT],SMS, D_D[EP],-1,D_D[LOC],$A17),0)) -> 163.04 | J17: =IF(ISNA($A17),"",IFERROR(SUMIFS(D_D[PROD_FYTD],D_D[MT],5,D_D[CAT],SMS, D_D[EP],-1,D_D[LOC],$A17),0)) -> 6462 | K17: =IF(ISNA($A17),"",IFERROR(SUMIFS(D_D[ADCF],D_D[MT],5,D_D[CAT],SMS, D_D[EP],-1,D_D[LOC],$A17),0)) -> 142.74 | L17: =IF(ISNA($A17),"",IFERROR(SUMIFS(D_D[INV],D_D[MT],8,D_D[CAT],SMS,D_D[LOC],$A17),0)) -> 0 | M17: =IF(ISNA($A17),"",IFERROR(SUMIFS(D_D[BL],D_D[MT],8,D_D[CAT],SMS,D_D[LOC],$A17),0)) -> 0 | N17: =IF(ISNA($A17),"",IFERROR(SUMIFS(D_D[ADP],D_D[MT],8,D_D[CAT],SMS,D_D[LOC],$A17),0)) -> 0 | O17: =IF(ISNA($A17),"",IFERROR(SUMIFS(D_D[PROD_MTD],D_D[MT],8,D_D[CAT],SMS,D_D[LOC],$A17),0)) -> 0 | P17: =IF(ISNA($A17),"",IFERROR(SUMIFS(D_D[PROD_FYTD],D_D[MT],8,D_D[CAT],SMS,D_D[LOC],$A17),0)) -> 0 | Q17: =IF(ISNA($A17),"",IFERROR(SUMIFS(D_D[ADCM],D_D[MT],8,D_D[CAT],SMS,D_D[LOC],$A17),0)) -> 0
A18: 344 | B18: 6 | C18: Los Angeles | D18: =IF(ISNA($A18),"",IFERROR(SUMIFS(D_D[INV],D_D[MT],5,D_D[CAT],SMS, D_D[EP],-1,D_D[LOC],$A18),0)) -> 1524 | E18: =IF(ISNA($A18),"",IFERROR(SUMIFS(D_D[BL],D_D[MT],5,D_D[CAT],SMS, D_D[EP],-1,D_D[LOC],$A18),0)) -> 505 | F18: 0.3313648294 | G18: =IF(ISNA($A18),"",IFERROR(SUMIFS(D_D[ADP],D_D[MT],5,D_D[CAT],SMS, D_D[EP],-1,D_D[LOC],$A18),0)) -> 132.23 | H18: =IF(ISNA($A18),"",IFERROR(SUMIFS(D_D[PROD_MTD],D_D[MT],5,D_D[CAT],SMS, D_D[EP],-1,D_D[LOC],$A18),0)) -> 2194 | I18: =IF(ISNA($A18),"",IFERROR(SUMIFS(D_D[ADCM],D_D[MT],5,D_D[CAT],SMS, D_D[EP],-1,D_D[LOC],$A18),0)) -> 175.89 | J18: =IF(ISNA($A18),"",IFERROR(SUMIFS(D_D[PROD_FYTD],D_D[MT],5,D_D[CAT],SMS, D_D[EP],-1,D_D[LOC],$A18),0)) -> 18005 | K18: =IF(ISNA($A18),"",IFERROR(SUMIFS(D_D[ADCF],D_D[MT],5,D_D[CAT],SMS, D_D[EP],-1,D_D[LOC],$A18),0)) -> 140.41 | L18: =IF(ISNA($A18),"",IFERROR(SUMIFS(D_D[INV],D_D[MT],8,D_D[CAT],SMS,D_D[LOC],$A18),0)) -> 0 | M18: =IF(ISNA($A18),"",IFERROR(SUMIFS(D_D[BL],D_D[MT],8,D_D[CAT],SMS,D_D[LOC],$A18),0)) -> 0 | N18: =IF(ISNA($A18),"",IFERROR(SUMIFS(D_D[ADP],D_D[MT],8,D_D[CAT],SMS,D_D[LOC],$A18),0)) -> 0 | O18: =IF(ISNA($A18),"",IFERROR(SUMIFS(D_D[PROD_MTD],D_D[MT],8,D_D[CAT],SMS,D_D[LOC],$A18),0)) -> 0 | P18: =IF(ISNA($A18),"",IFERROR(SUMIFS(D_D[PROD_FYTD],D_D[MT],8,D_D[CAT],SMS,D_D[LOC],$A18),0)) -> 0 | Q18: =IF(ISNA($A18),"",IFERROR(SUMIFS(D_D[ADCM],D_D[MT],8,D_D[CAT],SMS,D_D[LOC],$A18),0)) -> 0
A19: 358 | B19: 7 | C19: Manila | D19: =IF(ISNA($A19),"",IFERROR(SUMIFS(D_D[INV],D_D[MT],5,D_D[CAT],SMS, D_D[EP],-1,D_D[LOC],$A19),0)) -> 253 | E19: =IF(ISNA($A19),"",IFERROR(SUMIFS(D_D[BL],D_D[MT],5,D_D[CAT],SMS, D_D[EP],-1,D_D[LOC],$A19),0)) -> 114 | F19: 0.4505928854 | G19: =IF(ISNA($A19),"",IFERROR(SUMIFS(D_D[ADP],D_D[MT],5,D_D[CAT],SMS, D_D[EP],-1,D_D[LOC],$A19),0)) -> 166.9 | H19: =IF(ISNA($A19),"",IFERROR(SUMIFS(D_D[PROD_MTD],D_D[MT],5,D_D[CAT],SMS, D_D[EP],-1,D_D[LOC],$A19),0)) -> 916 | I19: =IF(ISNA($A19),"",IFERROR(SUMIFS(D_D[ADCM],D_D[MT],5,D_D[CAT],SMS, D_D[EP],-1,D_D[LOC],$A19),0)) -> 143.22 | J19: =IF(ISNA($A19),"",IFERROR(SUMIFS(D_D[PROD_FYTD],D_D[MT],5,D_D[CAT],SMS, D_D[EP],-1,D_D[LOC],$A19),0)) -> 6637 | K19: =IF(ISNA($A19),"",IFERROR(SUMIFS(D_D[ADCF],D_D[MT],5,D_D[CAT],SMS, D_D[EP],-1,D_D[LOC],$A19),0)) -> 139.3 | L19: =IF(ISNA($A19),"",IFERROR(SUMIFS(D_D[INV],D_D[MT],8,D_D[CAT],SMS,D_D[LOC],$A19),0)) -> 0 | M19: =IF(ISNA($A19),"",IFERROR(SUMIFS(D_D[BL],D_D[MT],8,D_D[CAT],SMS,D_D[LOC],$A19),0)) -> 0 | N19: =IF(ISNA($A19),"",IFERROR(SUMIFS(D_D[ADP],D_D[MT],8,D_D[CAT],SMS,D_D[LOC],$A19),0)) -> 0 | O19: =IF(ISNA($A19),"",IFERROR(SUMIFS(D_D[PROD_MTD],D_D[MT],8,D_D[CAT],SMS,D_D[LOC],$A19),0)) -> 0 | P19: =IF(ISNA($A19),"",IFERROR(SUMIFS(D_D[PROD_FYTD],D_D[MT],8,D_D[CAT],SMS,D_D[LOC],$A19),0)) -> 0 | Q19: =IF(ISNA($A19),"",IFERROR(SUMIFS(D_D[ADCM],D_D[MT],8,D_D[CAT],SMS,D_D[LOC],$A19),0)) -> 0
A20: 343 | B20: 8 | C20: Oakland | D20: =IF(ISNA($A20),"",IFERROR(SUMIFS(D_D[INV],D_D[MT],5,D_D[CAT],SMS, D_D[EP],-1,D_D[LOC],$A20),0)) -> 1060 | E20: =IF(ISNA($A20),"",IFERROR(SUMIFS(D_D[BL],D_D[MT],5,D_D[CAT],SMS, D_D[EP],-1,D_D[LOC],$A20),0)) -> 483 | F20: 0.4556603774 | G20: =IF(ISNA($A20),"",IFERROR(SUMIFS(D_D[ADP],D_D[MT],5,D_D[CAT],SMS, D_D[EP],-1,D_D[LOC],$A20),0)) -> 191.69 | H20: =IF(ISNA($A20),"",IFERROR(SUMIFS(D_D[PROD_MTD],D_D[MT],5,D_D[CAT],SMS, D_D[EP],-1,D_D[LOC],$A20),0)) -> 1274 | I20: =IF(ISNA($A20),"",IFERROR(SUMIFS(D_D[ADCM],D_D[MT],5,D_D[CAT],SMS, D_D[EP],-1,D_D[LOC],$A20),0)) -> 291.42 | J20: =IF(ISNA($A20),"",IFERROR(SUMIFS(D_D[PROD_FYTD],D_D[MT],5,D_D[CAT],SMS, D_D[EP],-1,D_D[LOC],$A20),0)) -> 8812 | K20: =IF(ISNA($A20),"",IFERROR(SUMIFS(D_D[ADCF],D_D[MT],5,D_D[CAT],SMS, D_D[EP],-1,D_D[LOC],$A20),0)) -> 218.21 | L20: =IF(ISNA($A20),"",IFERROR(SUMIFS(D_D[INV],D_D[MT],8,D_D[CAT],SMS,D_D[LOC],$A20),0)) -> 0 | M20: =IF(ISNA($A20),"",IFERROR(SUMIFS(D_D[BL],D_D[MT],8,D_D[CAT],SMS,D_D[LOC],$A20),0)) -> 0 | N20: =IF(ISNA($A20),"",IFERROR(SUMIFS(D_D[ADP],D_D[MT],8,D_D[CAT],SMS,D_D[LOC],$A20),0)) -> 0 | O20: =IF(ISNA($A20),"",IFERROR(SUMIFS(D_D[PROD_MTD],D_D[MT],8,D_D[CAT],SMS,D_D[LOC],$A20),0)) -> 0 | P20: =IF(ISNA($A20),"",IFERROR(SUMIFS(D_D[PROD_FYTD],D_D[MT],8,D_D[CAT],SMS,D_D[LOC],$A20),0)) -> 0 | Q20: =IF(ISNA($A20),"",IFERROR(SUMIFS(D_D[ADCM],D_D[MT],8,D_D[CAT],SMS,D_D[LOC],$A20),0)) -> 0
A21: 345 | B21: 9 | C21: Phoenix | D21: =IF(ISNA($A21),"",IFERROR(SUMIFS(D_D[INV],D_D[MT],5,D_D[CAT],SMS, D_D[EP],-1,D_D[LOC],$A21),0)) -> 2276 | E21: =IF(ISNA($A21),"",IFERROR(SUMIFS(D_D[BL],D_D[MT],5,D_D[CAT],SMS, D_D[EP],-1,D_D[LOC],$A21),0)) -> 996 | F21: 0.4376098418 | G21: =IF(ISNA($A21),"",IFERROR(SUMIFS(D_D[ADP],D_D[MT],5,D_D[CAT],SMS, D_D[EP],-1,D_D[LOC],$A21),0)) -> 188.52 | H21: =IF(ISNA($A21),"",IFERROR(SUMIFS(D_D[PROD_MTD],D_D[MT],5,D_D[CAT],SMS, D_D[EP],-1,D_D[LOC],$A21),0)) -> 3424 | I21: =IF(ISNA($A21),"",IFERROR(SUMIFS(D_D[ADCM],D_D[MT],5,D_D[CAT],SMS, D_D[EP],-1,D_D[LOC],$A21),0)) -> 190.78 | J21: =IF(ISNA($A21),"",IFERROR(SUMIFS(D_D[PROD_FYTD],D_D[MT],5,D_D[CAT],SMS, D_D[EP],-1,D_D[LOC],$A21),0)) -> 21809 | K21: =IF(ISNA($A21),"",IFERROR(SUMIFS(D_D[ADCF],D_D[MT],5,D_D[CAT],SMS, D_D[EP],-1,D_D[LOC],$A21),0)) -> 172.75 | L21: =IF(ISNA($A21),"",IFERROR(SUMIFS(D_D[INV],D_D[MT],8,D_D[CAT],SMS,D_D[LOC],$A21),0)) -> 0 | M21: =IF(ISNA($A21),"",IFERROR(SUMIFS(D_D[BL],D_D[MT],8,D_D[CAT],SMS,D_D[LOC],$A21),0)) -> 0 | N21: =IF(ISNA($A21),"",IFERROR(SUMIFS(D_D[ADP],D_D[MT],8,D_D[CAT],SMS,D_D[LOC],$A21),0)) -> 0 | O21: =IF(ISNA($A21),"",IFERROR(SUMIFS(D_D[PROD_MTD],D_D[MT],8,D_D[CAT],SMS,D_D[LOC],$A21),0)) -> 0 | P21: =IF(ISNA($A21),"",IFERROR(SUMIFS(D_D[PROD_FYTD],D_D[MT],8,D_D[CAT],SMS,D_D[LOC],$A21),0)) -> 0 | Q21: =IF(ISNA($A21),"",IFERROR(SUMIFS(D_D[ADCM],D_D[MT],8,D_D[CAT],SMS,D_D[LOC],$A21),0)) -> 0
A22: 348 | B22: 10 | C22: Portland | D22: =IF(ISNA($A22),"",IFERROR(SUMIFS(D_D[INV],D_D[MT],5,D_D[CAT],SMS, D_D[EP],-1,D_D[LOC],$A22),0)) -> 1565 | E22: =IF(ISNA($A22),"",IFERROR(SUMIFS(D_D[BL],D_D[MT],5,D_D[CAT],SMS, D_D[EP],-1,D_D[LOC],$A22),0)) -> 672 | F22: 0.4293929712 | G22: =IF(ISNA($A22),"",IFERROR(SUMIFS(D_D[ADP],D_D[MT],5,D_D[CAT],SMS, D_D[EP],-1,D_D[LOC],$A22),0)) -> 158.01 | H22: =IF(ISNA($A22),"",IFERROR(SUMIFS(D_D[PROD_MTD],D_D[MT],5,D_D[CAT],SMS, D_D[EP],-1,D_D[LOC],$A22),0)) -> 1472 | I22: =IF(ISNA($A22),"",IFERROR(SUMIFS(D_D[ADCM],D_D[MT],5,D_D[CAT],SMS, D_D[EP],-1,D_D[LOC],$A22),0)) -> 221.43 | J22: =IF(ISNA($A22),"",IFERROR(SUMIFS(D_D[PROD_FYTD],D_D[MT],5,D_D[CAT],SMS, D_D[EP],-1,D_D[LOC],$A22),0)) -> 13447 | K22: =IF(ISNA($A22),"",IFERROR(SUMIFS(D_D[ADCF],D_D[MT],5,D_D[CAT],SMS, D_D[EP],-1,D_D[LOC],$A22),0)) -> 178.21 | L22: =IF(ISNA($A22),"",IFERROR(SUMIFS(D_D[INV],D_D[MT],8,D_D[CAT],SMS,D_D[LOC],$A22),0)) -> 0 | M22: =IF(ISNA($A22),"",IFERROR(SUMIFS(D_D[BL],D_D[MT],8,D_D[CAT],SMS,D_D[LOC],$A22),0)) -> 0 | N22: =IF(ISNA($A22),"",IFERROR(SUMIFS(D_D[ADP],D_D[MT],8,D_D[CAT],SMS,D_D[LOC],$A22),0)) -> 0 | O22: =IF(ISNA($A22),"",IFERROR(SUMIFS(D_D[PROD_MTD],D_D[MT],8,D_D[CAT],SMS,D_D[LOC],$A22),0)) -> 0 | P22: =IF(ISNA($A22),"",IFERROR(SUMIFS(D_D[PROD_FYTD],D_D[MT],8,D_D[CAT],SMS,D_D[LOC],$A22),0)) -> 0 | Q22: =IF(ISNA($A22),"",IFERROR(SUMIFS(D_D[ADCM],D_D[MT],8,D_D[CAT],SMS,D_D[LOC],$A22),0)) -> 0
A23: 354 | B23: 11 | C23: Reno | D23: =IF(ISNA($A23),"",IFERROR(SUMIFS(D_D[INV],D_D[MT],5,D_D[CAT],SMS, D_D[EP],-1,D_D[LOC],$A23),0)) -> 509 | E23: =IF(ISNA($A23),"",IFERROR(SUMIFS(D_D[BL],D_D[MT],5,D_D[CAT],SMS, D_D[EP],-1,D_D[LOC],$A23),0)) -> 165 | F23: 0.3241650295 | G23: =IF(ISNA($A23),"",IFERROR(SUMIFS(D_D[ADP],D_D[MT],5,D_D[CAT],SMS, D_D[EP],-1,D_D[LOC],$A23),0)) -> 135.78 | H23: =IF(ISNA($A23),"",IFERROR(SUMIFS(D_D[PROD_MTD],D_D[MT],5,D_D[CAT],SMS, D_D[EP],-1,D_D[LOC],$A23),0)) -> 834 | I23: =IF(ISNA($A23),"",IFERROR(SUMIFS(D_D[ADCM],D_D[MT],5,D_D[CAT],SMS, D_D[EP],-1,D_D[LOC],$A23),0)) -> 318.23 | J23: =IF(ISNA($A23),"",IFERROR(SUMIFS(D_D[PROD_FYTD],D_D[MT],5,D_D[CAT],SMS, D_D[EP],-1,D_D[LOC],$A23),0)) -> 5563 | K23: =IF(ISNA($A23),"",IFERROR(SUMIFS(D_D[ADCF],D_D[MT],5,D_D[CAT],SMS, D_D[EP],-1,D_D[LOC],$A23),0)) -> 210.75 | L23: =IF(ISNA($A23),"",IFERROR(SUMIFS(D_D[INV],D_D[MT],8,D_D[CAT],SMS,D_D[LOC],$A23),0)) -> 0 | M23: =IF(ISNA($A23),"",IFERROR(SUMIFS(D_D[BL],D_D[MT],8,D_D[CAT],SMS,D_D[LOC],$A23),0)) -> 0 | N23: =IF(ISNA($A23),"",IFERROR(SUMIFS(D_D[ADP],D_D[MT],8,D_D[CAT],SMS,D_D[LOC],$A23),0)) -> 0 | O23: =IF(ISNA($A23),"",IFERROR(SUMIFS(D_D[PROD_MTD],D_D[MT],8,D_D[CAT],SMS,D_D[LOC],$A23),0)) -> 0 | P23: =IF(ISNA($A23),"",IFERROR(SUMIFS(D_D[PROD_FYTD],D_D[MT],8,D_D[CAT],SMS,D_D[LOC],$A23),0)) -> 0 | Q23: =IF(ISNA($A23),"",IFERROR(SUMIFS(D_D[ADCM],D_D[MT],8,D_D[CAT],SMS,D_D[LOC],$A23),0)) -> 0
A24: 341 | B24: 12 | C24: Salt Lake City | D24: =IF(ISNA($A24),"",IFERROR(SUMIFS(D_D[INV],D_D[MT],5,D_D[CAT],SMS, D_D[EP],-1,D_D[LOC],$A24),0)) -> 1967 | E24: =IF(ISNA($A24),"",IFERROR(SUMIFS(D_D[BL],D_D[MT],5,D_D[CAT],SMS, D_D[EP],-1,D_D[LOC],$A24),0)) -> 1002 | F24: 0.5094051856 | G24: =IF(ISNA($A24),"",IFERROR(SUMIFS(D_D[ADP],D_D[MT],5,D_D[CAT],SMS, D_D[EP],-1,D_D[LOC],$A24),0)) -> 210.33 | H24: =IF(ISNA($A24),"",IFERROR(SUMIFS(D_D[PROD_MTD],D_D[MT],5,D_D[CAT],SMS, D_D[EP],-1,D_D[LOC],$A24),0)) -> 1924 | I24: =IF(ISNA($A24),"",IFERROR(SUMIFS(D_D[ADCM],D_D[MT],5,D_D[CAT],SMS, D_D[EP],-1,D_D[LOC],$A24),0)) -> 312.79 | J24: =IF(ISNA($A24),"",IFERROR(SUMIFS(D_D[PROD_FYTD],D_D[MT],5,D_D[CAT],SMS, D_D[EP],-1,D_D[LOC],$A24),0)) -> 12690 | K24: =IF(ISNA($A24),"",IFERROR(SUMIFS(D_D[ADCF],D_D[MT],5,D_D[CAT],SMS, D_D[EP],-1,D_D[LOC],$A24),0)) -> 277.17 | L24: =IF(ISNA($A24),"",IFERROR(SUMIFS(D_D[INV],D_D[MT],8,D_D[CAT],SMS,D_D[LOC],$A24),0)) -> 0 | M24: =IF(ISNA($A24),"",IFERROR(SUMIFS(D_D[BL],D_D[MT],8,D_D[CAT],SMS,D_D[LOC],$A24),0)) -> 0 | N24: =IF(ISNA($A24),"",IFERROR(SUMIFS(D_D[ADP],D_D[MT],8,D_D[CAT],SMS,D_D[LOC],$A24),0)) -> 0 | O24: =IF(ISNA($A24),"",IFERROR(SUMIFS(D_D[PROD_MTD],D_D[MT],8,D_D[CAT],SMS,D_D[LOC],$A24),0)) -> 0 | P24: =IF(ISNA($A24),"",IFERROR(SUMIFS(D_D[PROD_FYTD],D_D[MT],8,D_D[CAT],SMS,D_D[LOC],$A24),0)) -> 0 | Q24: =IF(ISNA($A24),"",IFERROR(SUMIFS(D_D[ADCM],D_D[MT],8,D_D[CAT],SMS,D_D[LOC],$A24),0)) -> 0
A25: 377 | B25: 13 | C25: San Diego | D25: =IF(ISNA($A25),"",IFERROR(SUMIFS(D_D[INV],D_D[MT],5,D_D[CAT],SMS, D_D[EP],-1,D_D[LOC],$A25),0)) -> 2940 | E25: =IF(ISNA($A25),"",IFERROR(SUMIFS(D_D[BL],D_D[MT],5,D_D[CAT],SMS, D_D[EP],-1,D_D[LOC],$A25),0)) -> 875 | F25: 0.2976190476 | G25: =IF(ISNA($A25),"",IFERROR(SUMIFS(D_D[ADP],D_D[MT],5,D_D[CAT],SMS, D_D[EP],-1,D_D[LOC],$A25),0)) -> 123.81 | H25: =IF(ISNA($A25),"",IFERROR(SUMIFS(D_D[PROD_MTD],D_D[MT],5,D_D[CAT],SMS, D_D[EP],-1,D_D[LOC],$A25),0)) -> 5756 | I25: =IF(ISNA($A25),"",IFERROR(SUMIFS(D_D[ADCM],D_D[MT],5,D_D[CAT],SMS, D_D[EP],-1,D_D[LOC],$A25),0)) -> 137.98 | J25: =IF(ISNA($A25),"",IFERROR(SUMIFS(D_D[PROD_FYTD],D_D[MT],5,D_D[CAT],SMS, D_D[EP],-1,D_D[LOC],$A25),0)) -> 51029 | K25: =IF(ISNA($A25),"",IFERROR(SUMIFS(D_D[ADCF],D_D[MT],5,D_D[CAT],SMS, D_D[EP],-1,D_D[LOC],$A25),0)) -> 108.94 | L25: =IF(ISNA($A25),"",IFERROR(SUMIFS(D_D[INV],D_D[MT],8,D_D[CAT],SMS,D_D[LOC],$A25),0)) -> 0 | M25: =IF(ISNA($A25),"",IFERROR(SUMIFS(D_D[BL],D_D[MT],8,D_D[CAT],SMS,D_D[LOC],$A25),0)) -> 0 | N25: =IF(ISNA($A25),"",IFERROR(SUMIFS(D_D[ADP],D_D[MT],8,D_D[CAT],SMS,D_D[LOC],$A25),0)) -> 0 | O25: =IF(ISNA($A25),"",IFERROR(SUMIFS(D_D[PROD_MTD],D_D[MT],8,D_D[CAT],SMS,D_D[LOC],$A25),0)) -> 0 | P25: =IF(ISNA($A25),"",IFERROR(SUMIFS(D_D[PROD_FYTD],D_D[MT],8,D_D[CAT],SMS,D_D[LOC],$A25),0)) -> 0 | Q25: =IF(ISNA($A25),"",IFERROR(SUMIFS(D_D[ADCM],D_D[MT],8,D_D[CAT],SMS,D_D[LOC],$A25),0)) -> 0
A26: 346 | B26: 14 | C26: Seattle | D26: =IF(ISNA($A26),"",IFERROR(SUMIFS(D_D[INV],D_D[MT],5,D_D[CAT],SMS, D_D[EP],-1,D_D[LOC],$A26),0)) -> 3280 | E26: =IF(ISNA($A26),"",IFERROR(SUMIFS(D_D[BL],D_D[MT],5,D_D[CAT],SMS, D_D[EP],-1,D_D[LOC],$A26),0)) -> 725 | F26: 0.2210365854 | G26: =IF(ISNA($A26),"",IFERROR(SUMIFS(D_D[ADP],D_D[MT],5,D_D[CAT],SMS, D_D[EP],-1,D_D[LOC],$A26),0)) -> 94.49 | H26: =IF(ISNA($A26),"",IFERROR(SUMIFS(D_D[PROD_MTD],D_D[MT],5,D_D[CAT],SMS, D_D[EP],-1,D_D[LOC],$A26),0)) -> 8265 | I26: =IF(ISNA($A26),"",IFERROR(SUMIFS(D_D[ADCM],D_D[MT],5,D_D[CAT],SMS, D_D[EP],-1,D_D[LOC],$A26),0)) -> 98 | J26: =IF(ISNA($A26),"",IFERROR(SUMIFS(D_D[PROD_FYTD],D_D[MT],5,D_D[CAT],SMS, D_D[EP],-1,D_D[LOC],$A26),0)) -> 66313 | K26: =IF(ISNA($A26),"",IFERROR(SUMIFS(D_D[ADCF],D_D[MT],5,D_D[CAT],SMS, D_D[EP],-1,D_D[LOC],$A26),0)) -> 87.65 | L26: =IF(ISNA($A26),"",IFERROR(SUMIFS(D_D[INV],D_D[MT],8,D_D[CAT],SMS,D_D[LOC],$A26),0)) -> 0 | M26: =IF(ISNA($A26),"",IFERROR(SUMIFS(D_D[BL],D_D[MT],8,D_D[CAT],SMS,D_D[LOC],$A26),0)) -> 0 | N26: =IF(ISNA($A26),"",IFERROR(SUMIFS(D_D[ADP],D_D[MT],8,D_D[CAT],SMS,D_D[LOC],$A26),0)) -> 0 | O26: =IF(ISNA($A26),"",IFERROR(SUMIFS(D_D[PROD_MTD],D_D[MT],8,D_D[CAT],SMS,D_D[LOC],$A26),0)) -> 0 | P26: =IF(ISNA($A26),"",IFERROR(SUMIFS(D_D[PROD_FYTD],D_D[MT],8,D_D[CAT],SMS,D_D[LOC],$A26),0)) -> 0 | Q26: =IF(ISNA($A26),"",IFERROR(SUMIFS(D_D[ADCM],D_D[MT],8,D_D[CAT],SMS,D_D[LOC],$A26),0)) -> 0
B27: 15 | D27: =IF(ISNA($A27),"",IFERROR(SUMIFS(D_D[INV],D_D[MT],5,D_D[CAT],SMS, D_D[EP],-1,D_D[LOC],$A27),0)) ->  | E27: =IF(ISNA($A27),"",IFERROR(SUMIFS(D_D[BL],D_D[MT],5,D_D[CAT],SMS, D_D[EP],-1,D_D[LOC],$A27),0)) ->  | G27: =IF(ISNA($A27),"",IFERROR(SUMIFS(D_D[ADP],D_D[MT],5,D_D[CAT],SMS, D_D[EP],-1,D_D[LOC],$A27),0)) ->  | H27: =IF(ISNA($A27),"",IFERROR(SUMIFS(D_D[PROD_MTD],D_D[MT],5,D_D[CAT],SMS, D_D[EP],-1,D_D[LOC],$A27),0)) ->  | I27: =IF(ISNA($A27),"",IFERROR(SUMIFS(D_D[ADCM],D_D[MT],5,D_D[CAT],SMS, D_D[EP],-1,D_D[LOC],$A27),0)) ->  | J27: =IF(ISNA($A27),"",IFERROR(SUMIFS(D_D[PROD_FYTD],D_D[MT],5,D_D[CAT],SMS, D_D[EP],-1,D_D[LOC],$A27),0)) ->  | K27: =IF(ISNA($A27),"",IFERROR(SUMIFS(D_D[ADCF],D_D[MT],5,D_D[CAT],SMS, D_D[EP],-1,D_D[LOC],$A27),0)) ->  | L27: =IF(ISNA($A27),"",IFERROR(SUMIFS(D_D[INV],D_D[MT],8,D_D[CAT],SMS,D_D[LOC],$A27),0)) ->  | M27: =IF(ISNA($A27),"",IFERROR(SUMIFS(D_D[BL],D_D[MT],8,D_D[CAT],SMS,D_D[LOC],$A27),0)) ->  | N27: =IF(ISNA($A27),"",IFERROR(SUMIFS(D_D[ADP],D_D[MT],8,D_D[CAT],SMS,D_D[LOC],$A27),0)) ->  | O27: =IF(ISNA($A27),"",IFERROR(SUMIFS(D_D[PROD_MTD],D_D[MT],8,D_D[CAT],SMS,D_D[LOC],$A27),0)) ->  | P27: =IF(ISNA($A27),"",IFERROR(SUMIFS(D_D[PROD_FYTD],D_D[MT],8,D_D[CAT],SMS,D_D[LOC],$A27),0)) ->  | Q27: =IF(ISNA($A27),"",IFERROR(SUMIFS(D_D[ADCM],D_D[MT],8,D_D[CAT],SMS,D_D[LOC],$A27),0)) -> 
B28: 16 | D28: =IF(ISNA($A28),"",IFERROR(SUMIFS(D_D[INV],D_D[MT],5,D_D[CAT],SMS, D_D[EP],-1,D_D[LOC],$A28),0)) ->  | E28: =IF(ISNA($A28),"",IFERROR(SUMIFS(D_D[BL],D_D[MT],5,D_D[CAT],SMS, D_D[EP],-1,D_D[LOC],$A28),0)) ->  | G28: =IF(ISNA($A28),"",IFERROR(SUMIFS(D_D[ADP],D_D[MT],5,D_D[CAT],SMS, D_D[EP],-1,D_D[LOC],$A28),0)) ->  | H28: =IF(ISNA($A28),"",IFERROR(SUMIFS(D_D[PROD_MTD],D_D[MT],5,D_D[CAT],SMS, D_D[EP],-1,D_D[LOC],$A28),0)) ->  | I28: =IF(ISNA($A28),"",IFERROR(SUMIFS(D_D[ADCM],D_D[MT],5,D_D[CAT],SMS, D_D[EP],-1,D_D[LOC],$A28),0)) ->  | J28: =IF(ISNA($A28),"",IFERROR(SUMIFS(D_D[PROD_FYTD],D_D[MT],5,D_D[CAT],SMS, D_D[EP],-1,D_D[LOC],$A28),0)) ->  | K28: =IF(ISNA($A28),"",IFERROR(SUMIFS(D_D[ADCF],D_D[MT],5,D_D[CAT],SMS, D_D[EP],-1,D_D[LOC],$A28),0)) ->  | L28: =IF(ISNA($A28),"",IFERROR(SUMIFS(D_D[INV],D_D[MT],8,D_D[CAT],SMS,D_D[LOC],$A28),0)) ->  | M28: =IF(ISNA($A28),"",IFERROR(SUMIFS(D_D[BL],D_D[MT],8,D_D[CAT],SMS,D_D[LOC],$A28),0)) ->  | N28: =IF(ISNA($A28),"",IFERROR(SUMIFS(D_D[ADP],D_D[MT],8,D_D[CAT],SMS,D_D[LOC],$A28),0)) ->  | O28: =IF(ISNA($A28),"",IFERROR(SUMIFS(D_D[PROD_MTD],D_D[MT],8,D_D[CAT],SMS,D_D[LOC],$A28),0)) ->  | P28: =IF(ISNA($A28),"",IFERROR(SUMIFS(D_D[PROD_FYTD],D_D[MT],8,D_D[CAT],SMS,D_D[LOC],$A28),0)) ->  | Q28: =IF(ISNA($A28),"",IFERROR(SUMIFS(D_D[ADCM],D_D[MT],8,D_D[CAT],SMS,D_D[LOC],$A28),0)) -> 
B29: 17 | D29: =IF(ISNA($A29),"",IFERROR(SUMIFS(D_D[INV],D_D[MT],5,D_D[CAT],SMS, D_D[EP],-1,D_D[LOC],$A29),0)) ->  | E29: =IF(ISNA($A29),"",IFERROR(SUMIFS(D_D[BL],D_D[MT],5,D_D[CAT],SMS, D_D[EP],-1,D_D[LOC],$A29),0)) ->  | G29: =IF(ISNA($A29),"",IFERROR(SUMIFS(D_D[ADP],D_D[MT],5,D_D[CAT],SMS, D_D[EP],-1,D_D[LOC],$A29),0)) ->  | H29: =IF(ISNA($A29),"",IFERROR(SUMIFS(D_D[PROD_MTD],D_D[MT],5,D_D[CAT],SMS, D_D[EP],-1,D_D[LOC],$A29),0)) ->  | I29: =IF(ISNA($A29),"",IFERROR(SUMIFS(D_D[ADCM],D_D[MT],5,D_D[CAT],SMS, D_D[EP],-1,D_D[LOC],$A29),0)) ->  | J29: =IF(ISNA($A29),"",IFERROR(SUMIFS(D_D[PROD_FYTD],D_D[MT],5,D_D[CAT],SMS, D_D[EP],-1,D_D[LOC],$A29),0)) ->  | K29: =IF(ISNA($A29),"",IFERROR(SUMIFS(D_D[ADCF],D_D[MT],5,D_D[CAT],SMS, D_D[EP],-1,D_D[LOC],$A29),0)) ->  | L29: =IF(ISNA($A29),"",IFERROR(SUMIFS(D_D[INV],D_D[MT],8,D_D[CAT],SMS,D_D[LOC],$A29),0)) ->  | M29: =IF(ISNA($A29),"",IFERROR(SUMIFS(D_D[BL],D_D[MT],8,D_D[CAT],SMS,D_D[LOC],$A29),0)) ->  | N29: =IF(ISNA($A29),"",IFERROR(SUMIFS(D_D[ADP],D_D[MT],8,D_D[CAT],SMS,D_D[LOC],$A29),0)) ->  | O29: =IF(ISNA($A29),"",IFERROR(SUMIFS(D_D[PROD_MTD],D_D[MT],8,D_D[CAT],SMS,D_D[LOC],$A29),0)) ->  | P29: =IF(ISNA($A29),"",IFERROR(SUMIFS(D_D[PROD_FYTD],D_D[MT],8,D_D[CAT],SMS,D_D[LOC],$A29),0)) ->  | Q29: =IF(ISNA($A29),"",IFERROR(SUMIFS(D_D[ADCM],D_D[MT],8,D_D[CAT],SMS,D_D[LOC],$A29),0)) -> 
B30: 18 | D30: =IF(ISNA($A30),"",IFERROR(SUMIFS(D_D[INV],D_D[MT],5,D_D[CAT],SMS, D_D[EP],-1,D_D[LOC],$A30),0)) ->  | E30: =IF(ISNA($A30),"",IFERROR(SUMIFS(D_D[BL],D_D[MT],5,D_D[CAT],SMS, D_D[EP],-1,D_D[LOC],$A30),0)) ->  | G30: =IF(ISNA($A30),"",IFERROR(SUMIFS(D_D[ADP],D_D[MT],5,D_D[CAT],SMS, D_D[EP],-1,D_D[LOC],$A30),0)) ->  | H30: =IF(ISNA($A30),"",IFERROR(SUMIFS(D_D[PROD_MTD],D_D[MT],5,D_D[CAT],SMS, D_D[EP],-1,D_D[LOC],$A30),0)) ->  | I30: =IF(ISNA($A30),"",IFERROR(SUMIFS(D_D[ADCM],D_D[MT],5,D_D[CAT],SMS, D_D[EP],-1,D_D[LOC],$A30),0)) ->  | J30: =IF(ISNA($A30),"",IFERROR(SUMIFS(D_D[PROD_FYTD],D_D[MT],5,D_D[CAT],SMS, D_D[EP],-1,D_D[LOC],$A30),0)) ->  | K30: =IF(ISNA($A30),"",IFERROR(SUMIFS(D_D[ADCF],D_D[MT],5,D_D[CAT],SMS, D_D[EP],-1,D_D[LOC],$A30),0)) ->  | L30: =IF(ISNA($A30),"",IFERROR(SUMIFS(D_D[INV],D_D[MT],8,D_D[CAT],SMS,D_D[LOC],$A30),0)) ->  | M30: =IF(ISNA($A30),"",IFERROR(SUMIFS(D_D[BL],D_D[MT],8,D_D[CAT],SMS,D_D[LOC],$A30),0)) ->  | N30: =IF(ISNA($A30),"",IFERROR(SUMIFS(D_D[ADP],D_D[MT],8,D_D[CAT],SMS,D_D[LOC],$A30),0)) ->  | O30: =IF(ISNA($A30),"",IFERROR(SUMIFS(D_D[PROD_MTD],D_D[MT],8,D_D[CAT],SMS,D_D[LOC],$A30),0)) ->  | P30: =IF(ISNA($A30),"",IFERROR(SUMIFS(D_D[PROD_FYTD],D_D[MT],8,D_D[CAT],SMS,D_D[LOC],$A30),0)) ->  | Q30: =IF(ISNA($A30),"",IFERROR(SUMIFS(D_D[ADCM],D_D[MT],8,D_D[CAT],SMS,D_D[LOC],$A30),0)) -> 
B31: 19 | D31: =IF(ISNA($A31),"",IFERROR(SUMIFS(D_D[INV],D_D[MT],5,D_D[CAT],SMS, D_D[EP],-1,D_D[LOC],$A31),0)) ->  | E31: =IF(ISNA($A31),"",IFERROR(SUMIFS(D_D[BL],D_D[MT],5,D_D[CAT],SMS, D_D[EP],-1,D_D[LOC],$A31),0)) ->  | G31: =IF(ISNA($A31),"",IFERROR(SUMIFS(D_D[ADP],D_D[MT],5,D_D[CAT],SMS, D_D[EP],-1,D_D[LOC],$A31),0)) ->  | H31: =IF(ISNA($A31),"",IFERROR(SUMIFS(D_D[PROD_MTD],D_D[MT],5,D_D[CAT],SMS, D_D[EP],-1,D_D[LOC],$A31),0)) ->  | I31: =IF(ISNA($A31),"",IFERROR(SUMIFS(D_D[ADCM],D_D[MT],5,D_D[CAT],SMS, D_D[EP],-1,D_D[LOC],$A31),0)) ->  | J31: =IF(ISNA($A31),"",IFERROR(SUMIFS(D_D[PROD_FYTD],D_D[MT],5,D_D[CAT],SMS, D_D[EP],-1,D_D[LOC],$A31),0)) ->  | K31: =IF(ISNA($A31),"",IFERROR(SUMIFS(D_D[ADCF],D_D[MT],5,D_D[CAT],SMS, D_D[EP],-1,D_D[LOC],$A31),0)) ->  | L31: =IF(ISNA($A31),"",IFERROR(SUMIFS(D_D[INV],D_D[MT],8,D_D[CAT],SMS,D_D[LOC],$A31),0)) ->  | M31: =IF(ISNA($A31),"",IFERROR(SUMIFS(D_D[BL],D_D[MT],8,D_D[CAT],SMS,D_D[LOC],$A31),0)) ->  | N31: =IF(ISNA($A31),"",IFERROR(SUMIFS(D_D[ADP],D_D[MT],8,D_D[CAT],SMS,D_D[LOC],$A31),0)) ->  | O31: =IF(ISNA($A31),"",IFERROR(SUMIFS(D_D[PROD_MTD],D_D[MT],8,D_D[CAT],SMS,D_D[LOC],$A31),0)) ->  | P31: =IF(ISNA($A31),"",IFERROR(SUMIFS(D_D[PROD_FYTD],D_D[MT],8,D_D[CAT],SMS,D_D[LOC],$A31),0)) ->  | Q31: =IF(ISNA($A31),"",IFERROR(SUMIFS(D_D[ADCM],D_D[MT],8,D_D[CAT],SMS,D_D[LOC],$A31),0)) -> 
B32: 20 | D32: =IF(ISNA($A32),"",IFERROR(SUMIFS(D_D[INV],D_D[MT],5,D_D[CAT],SMS, D_D[EP],-1,D_D[LOC],$A32),0)) ->  | E32: =IF(ISNA($A32),"",IFERROR(SUMIFS(D_D[BL],D_D[MT],5,D_D[CAT],SMS, D_D[EP],-1,D_D[LOC],$A32),0)) ->  | G32: =IF(ISNA($A32),"",IFERROR(SUMIFS(D_D[ADP],D_D[MT],5,D_D[CAT],SMS, D_D[EP],-1,D_D[LOC],$A32),0)) ->  | H32: =IF(ISNA($A32),"",IFERROR(SUMIFS(D_D[PROD_MTD],D_D[MT],5,D_D[CAT],SMS, D_D[EP],-1,D_D[LOC],$A32),0)) ->  | I32: =IF(ISNA($A32),"",IFERROR(SUMIFS(D_D[ADCM],D_D[MT],5,D_D[CAT],SMS, D_D[EP],-1,D_D[LOC],$A32),0)) ->  | J32: =IF(ISNA($A32),"",IFERROR(SUMIFS(D_D[PROD_FYTD],D_D[MT],5,D_D[CAT],SMS, D_D[EP],-1,D_D[LOC],$A32),0)) ->  | K32: =IF(ISNA($A32),"",IFERROR(SUMIFS(D_D[ADCF],D_D[MT],5,D_D[CAT],SMS, D_D[EP],-1,D_D[LOC],$A32),0)) ->  | L32: =IF(ISNA($A32),"",IFERROR(SUMIFS(D_D[INV],D_D[MT],8,D_D[CAT],SMS,D_D[LOC],$A32),0)) ->  | M32: =IF(ISNA($A32),"",IFERROR(SUMIFS(D_D[BL],D_D[MT],8,D_D[CAT],SMS,D_D[LOC],$A32),0)) ->  | N32: =IF(ISNA($A32),"",IFERROR(SUMIFS(D_D[ADP],D_D[MT],8,D_D[CAT],SMS,D_D[LOC],$A32),0)) ->  | O32: =IF(ISNA($A32),"",IFERROR(SUMIFS(D_D[PROD_MTD],D_D[MT],8,D_D[CAT],SMS,D_D[LOC],$A32),0)) ->  | P32: =IF(ISNA($A32),"",IFERROR(SUMIFS(D_D[PROD_FYTD],D_D[MT],8,D_D[CAT],SMS,D_D[LOC],$A32),0)) ->  | Q32: =IF(ISNA($A32),"",IFERROR(SUMIFS(D_D[ADCM],D_D[MT],8,D_D[CAT],SMS,D_D[LOC],$A32),0)) -> 
B33: 21 | D33: =IF(ISNA($A33),"",IFERROR(SUMIFS(D_D[INV],D_D[MT],5,D_D[CAT],SMS, D_D[EP],-1,D_D[LOC],$A33),0)) ->  | E33: =IF(ISNA($A33),"",IFERROR(SUMIFS(D_D[BL],D_D[MT],5,D_D[CAT],SMS, D_D[EP],-1,D_D[LOC],$A33),0)) ->  | G33: =IF(ISNA($A33),"",IFERROR(SUMIFS(D_D[ADP],D_D[MT],5,D_D[CAT],SMS, D_D[EP],-1,D_D[LOC],$A33),0)) ->  | H33: =IF(ISNA($A33),"",IFERROR(SUMIFS(D_D[PROD_MTD],D_D[MT],5,D_D[CAT],SMS, D_D[EP],-1,D_D[LOC],$A33),0)) ->  | I33: =IF(ISNA($A33),"",IFERROR(SUMIFS(D_D[ADCM],D_D[MT],5,D_D[CAT],SMS, D_D[EP],-1,D_D[LOC],$A33),0)) ->  | J33: =IF(ISNA($A33),"",IFERROR(SUMIFS(D_D[PROD_FYTD],D_D[MT],5,D_D[CAT],SMS, D_D[EP],-1,D_D[LOC],$A33),0)) ->  | K33: =IF(ISNA($A33),"",IFERROR(SUMIFS(D_D[ADCF],D_D[MT],5,D_D[CAT],SMS, D_D[EP],-1,D_D[LOC],$A33),0)) ->  | L33: =IF(ISNA($A33),"",IFERROR(SUMIFS(D_D[INV],D_D[MT],8,D_D[CAT],SMS,D_D[LOC],$A33),0)) ->  | M33: =IF(ISNA($A33),"",IFERROR(SUMIFS(D_D[BL],D_D[MT],8,D_D[CAT],SMS,D_D[LOC],$A33),0)) ->  | N33: =IF(ISNA($A33),"",IFERROR(SUMIFS(D_D[ADP],D_D[MT],8,D_D[CAT],SMS,D_D[LOC],$A33),0)) ->  | O33: =IF(ISNA($A33),"",IFERROR(SUMIFS(D_D[PROD_MTD],D_D[MT],8,D_D[CAT],SMS,D_D[LOC],$A33),0)) ->  | P33: =IF(ISNA($A33),"",IFERROR(SUMIFS(D_D[PROD_FYTD],D_D[MT],8,D_D[CAT],SMS,D_D[LOC],$A33),0)) ->  | Q33: =IF(ISNA($A33),"",IFERROR(SUMIFS(D_D[ADCM],D_D[MT],8,D_D[CAT],SMS,D_D[LOC],$A33),0)) -> 
B34: 22 | D34: =IF(ISNA($A34),"",IFERROR(SUMIFS(D_D[INV],D_D[MT],5,D_D[CAT],SMS, D_D[EP],-1,D_D[LOC],$A34),0)) ->  | E34: =IF(ISNA($A34),"",IFERROR(SUMIFS(D_D[BL],D_D[MT],5,D_D[CAT],SMS, D_D[EP],-1,D_D[LOC],$A34),0)) ->  | G34: =IF(ISNA($A34),"",IFERROR(SUMIFS(D_D[ADP],D_D[MT],5,D_D[CAT],SMS, D_D[EP],-1,D_D[LOC],$A34),0)) ->  | H34: =IF(ISNA($A34),"",IFERROR(SUMIFS(D_D[PROD_MTD],D_D[MT],5,D_D[CAT],SMS, D_D[EP],-1,D_D[LOC],$A34),0)) ->  | I34: =IF(ISNA($A34),"",IFERROR(SUMIFS(D_D[ADCM],D_D[MT],5,D_D[CAT],SMS, D_D[EP],-1,D_D[LOC],$A34),0)) ->  | J34: =IF(ISNA($A34),"",IFERROR(SUMIFS(D_D[PROD_FYTD],D_D[MT],5,D_D[CAT],SMS, D_D[EP],-1,D_D[LOC],$A34),0)) ->  | K34: =IF(ISNA($A34),"",IFERROR(SUMIFS(D_D[ADCF],D_D[MT],5,D_D[CAT],SMS, D_D[EP],-1,D_D[LOC],$A34),0)) ->  | L34: =IF(ISNA($A34),"",IFERROR(SUMIFS(D_D[INV],D_D[MT],8,D_D[CAT],SMS,D_D[LOC],$A34),0)) ->  | M34: =IF(ISNA($A34),"",IFERROR(SUMIFS(D_D[BL],D_D[MT],8,D_D[CAT],SMS,D_D[LOC],$A34),0)) ->  | N34: =IF(ISNA($A34),"",IFERROR(SUMIFS(D_D[ADP],D_D[MT],8,D_D[CAT],SMS,D_D[LOC],$A34),0)) ->  | O34: =IF(ISNA($A34),"",IFERROR(SUMIFS(D_D[PROD_MTD],D_D[MT],8,D_D[CAT],SMS,D_D[LOC],$A34),0)) ->  | P34: =IF(ISNA($A34),"",IFERROR(SUMIFS(D_D[PROD_FYTD],D_D[MT],8,D_D[CAT],SMS,D_D[LOC],$A34),0)) ->  | Q34: =IF(ISNA($A34),"",IFERROR(SUMIFS(D_D[ADCM],D_D[MT],8,D_D[CAT],SMS,D_D[LOC],$A34),0)) -> 
B35: 23 | D35: =IF(ISNA($A35),"",IFERROR(SUMIFS(D_D[INV],D_D[MT],5,D_D[CAT],SMS, D_D[EP],-1,D_D[LOC],$A35),0)) ->  | E35: =IF(ISNA($A35),"",IFERROR(SUMIFS(D_D[BL],D_D[MT],5,D_D[CAT],SMS, D_D[EP],-1,D_D[LOC],$A35),0)) ->  | G35: =IF(ISNA($A35),"",IFERROR(SUMIFS(D_D[ADP],D_D[MT],5,D_D[CAT],SMS, D_D[EP],-1,D_D[LOC],$A35),0)) ->  | H35: =IF(ISNA($A35),"",IFERROR(SUMIFS(D_D[PROD_MTD],D_D[MT],5,D_D[CAT],SMS, D_D[EP],-1,D_D[LOC],$A35),0)) ->  | I35: =IF(ISNA($A35),"",IFERROR(SUMIFS(D_D[ADCM],D_D[MT],5,D_D[CAT],SMS, D_D[EP],-1,D_D[LOC],$A35),0)) ->  | J35: =IF(ISNA($A35),"",IFERROR(SUMIFS(D_D[PROD_FYTD],D_D[MT],5,D_D[CAT],SMS, D_D[EP],-1,D_D[LOC],$A35),0)) ->  | K35: =IF(ISNA($A35),"",IFERROR(SUMIFS(D_D[ADCF],D_D[MT],5,D_D[CAT],SMS, D_D[EP],-1,D_D[LOC],$A35),0)) ->  | L35: =IF(ISNA($A35),"",IFERROR(SUMIFS(D_D[INV],D_D[MT],8,D_D[CAT],SMS,D_D[LOC],$A35),0)) ->  | M35: =IF(ISNA($A35),"",IFERROR(SUMIFS(D_D[BL],D_D[MT],8,D_D[CAT],SMS,D_D[LOC],$A35),0)) ->  | N35: =IF(ISNA($A35),"",IFERROR(SUMIFS(D_D[ADP],D_D[MT],8,D_D[CAT],SMS,D_D[LOC],$A35),0)) ->  | O35: =IF(ISNA($A35),"",IFERROR(SUMIFS(D_D[PROD_MTD],D_D[MT],8,D_D[CAT],SMS,D_D[LOC],$A35),0)) ->  | P35: =IF(ISNA($A35),"",IFERROR(SUMIFS(D_D[PROD_FYTD],D_D[MT],8,D_D[CAT],SMS,D_D[LOC],$A35),0)) ->  | Q35: =IF(ISNA($A35),"",IFERROR(SUMIFS(D_D[ADCM],D_D[MT],8,D_D[CAT],SMS,D_D[LOC],$A35),0)) -> 

Sheet Driver (hidden)
A1: DIST_ID | B1: DIST_DEF | F1: ROO | G1: RO | H1: ROI | I1: ROD | J1: RODS | L1: STO | M1: ST | N1: STI | O1: STD | P1: STDS | R1: ROO | S1: RO | T1: ROI | U1: ROD
A2: 1 | B2: DIST_NE | F2: 1 | G2: 0 | H2: 100 | I2: USA | J2: 1 | L2: 1 | M2: 0 | N2: 100 | O2: USA | P2: 100 | R2: 1 | S2: 0 | T2: 100 | U2: USA | AA2: -Total
A3: 2 | B3: DIST_SE | F3: 2 | G3: 1 | H3: 394 | I3: Northeast District | J3: 394 | L3: 2 | M3: 1 | N3: 394 | O3: Northeast District | P3: 394 | R3: 2 | S3: 1 | T3: 310 | U3: Philadelphia | X3: Northeast District
A4: 3 | B4: DIST_CN | F4: 3 | G4: 1 | H4: 313 | I4: Baltimore | J4: 394 | L4: 3 | M4: 1 | N4: CT | O4: Connecticut | P4: 394 | R4: 3 | S4: 1 | T4: 330 | U4: Milwaukee | X4: Connecticut | Y4: CT100 | Z4: =X4&$AA$2 -> Connecticut-Total | AA4: -Other RO
A5: 4 | B5: DIST_PC | F5: 4 | G5: 1 | H5: 301 | I5: Boston | J5: 394 | L5: 4 | M5: 1 | N5: DE | O5: Delaware | P5: 394 | R5: 4 | S5: 1 | T5: 335 | U5: St. Paul | Y5: CT308 | Z5: Hartford RO | AA5: -NWQ
A6: 5 | B6: DIST_OT | F6: 5 | G6: 1 | H6: 307 | I6: Buffalo | J6: 394 | L6: 5 | M6: 1 | N6: DC | O6: District of Columbia | P6: 394 | R6: 5 | S6: 1 | T6: -1 | U6: Other | Y6: CT-1 | Z6: =X4&$AA$4 -> Connecticut-Other RO
F7: 6 | G7: 1 | H7: 328 | I7: Chicago | J7: 394 | L7: 6 | M7: 1 | N7: IL | O7: Illinois | P7: 394 | R7: 6 | S7: 2 | T7: 318 | U7: Winston-Salem | Y7: CT499 | Z7: =X4&$AA$5 -> Connecticut-NWQ
F8: 7 | G8: 1 | H8: 325 | I8: Cleveland | J8: 394 | L8: 7 | M8: 1 | N8: IN | O8: Indiana | P8: 394 | R8: 7 | S8: 2 | T8: 341 | U8: Salt Lake City | X8: Delaware | Y8: DE100 | Z8: =X8&$AA$2 -> Delaware-Total
B9: CONTROLLER for SOJ District Selection | F9: 8 | G9: 1 | H9: 329 | I9: Detroit | J9: 394 | L9: 8 | M9: 1 | N9: ME | O9: Maine | P9: 394 | R9: 8 | S9: 2 | T9: -1 | U9: Other | Y9: DE460 | Z9: Wilmington RO
B10: ACTIVE SELECTION | D10: 4 | F10: 9 | G10: 1 | H10: 308 | I10: Hartford | J10: 394 | L10: 9 | M10: 1 | N10: MD | O10: Maryland | P10: 394 | R10: 9 | S10: 3 | T10: 318 | U10: Winston-Salem | Y10: DE-1 | Z10: =X8&$AA$4 -> Delaware-Other RO
B11: MODIFIED SELECTION | C11: =IF(D20=12,"DIST_P",IF(D20=14,"DIST_Q",DS_RO_STG)) -> DIST_PC | F11: 10 | G11: 1 | H11: 326 | I11: Indianapolis | J11: 394 | L11: 10 | M11: 1 | N11: MA | O11: Massachusetts | P11: 394 | R11: 10 | S11: 3 | T11: 377 | U11: San Diego | Y11: DE499 | Z11: =X8&$AA$5 -> Delaware-NWQ
F12: 11 | G12: 1 | H12: 373 | I12: Manchester | J12: 394 | L12: 11 | M12: 1 | N12: MI | O12: Michigan | P12: 394 | R12: 11 | S12: 3 | T12: -1 | U12: Other | X12: DC | Y12: DC100 | Z12: =X12&$AA$2 -> DC-Total
B13: DISTRICT-RO | C13: =INDEX(DIST_DEF,(MATCH($D$10,DIST_ID,0))) -> DIST_PC | F13: 12 | G13: 1 | H13: 330 | I13: Milwaukee | J13: 394 | L13: 12 | M13: 1 | N13: MO | O13: Missouri | P13: 394 | Y13: DC372 | Z13: Washington DC RO
B14: DISTRICT-STATE | C14: =INDEX(DIST_DEF,(MATCH($D$10,DIST_ID,0)))&"_ST" -> DIST_PC_ST | F14: 13 | G14: 1 | H14: 306 | I14: New York | J14: 394 | L14: 13 | M14: 1 | N14: NH | O14: New Hampshire | P14: 394 | Y14: DC-1 | Z14: =X12&$AA$4 -> DC-Other RO
B15: DISTRICT-NWQ | C15: =INDEX(DIST_DEF,(MATCH($D$10,DIST_ID,0)))&"_NWQ" -> DIST_PC_NWQ | D15: =INDEX(DIST_DEF,(MATCH($D$10,DIST_ID,0)))&"_NWQD" -> DIST_PC_NWQD | F15: 14 | G15: 1 | H15: 309 | I15: Newark | J15: 394 | L15: 14 | M15: 1 | N15: NJ | O15: New Jersey | P15: 394 | T15: ROI | U15: ROD | Y15: DC499 | Z15: =X12&$AA$5 -> DC-NWQ
C16: =INDEX(DIST_DEF,(MATCH($D$10,DIST_ID,0)))&"_NWQI" -> DIST_PC_NWQI | F16: 15 | G16: 1 | H16: 310 | I16: Philadelphia | J16: 394 | L16: 15 | M16: 1 | N16: NY | O16: New York | P16: 394 | T16: 100 | U16: USA | X16: Illinois | Y16: IL100 | Z16: =X16&$AA$2 -> Illinois-Total
F17: 16 | G17: 1 | H17: 311 | I17: Pittsburgh | J17: 394 | L17: 16 | M17: 1 | N17: OH | O17: Ohio | P17: 394 | T17: 310 | U17: Philadelphia | Y17: IL328 | Z17: Chicago RO
B18: CONTROLLER for Mission Selection | F18: 17 | G18: 1 | H18: 304 | I18: Providence | J18: 394 | L18: 17 | M18: 1 | N18: PA | O18: Pennsylvania | P18: 394 | T18: 330 | U18: Milwaukee | Y18: IL-1 | Z18: =X16&$AA$4 -> Illinois-Other RO
B19: ACTIVE SELECTION | D19: 1 | F19: 18 | G19: 1 | H19: 376 | I19: St. Louis RMC | J19: 394 | L19: 18 | M19: 1 | N19: RI | O19: Rhode Island | P19: 394 | T19: 335 | U19: St. Paul | Y19: IL499 | Z19: =X16&$AA$5 -> Illinois-NWQ
B20: MODIFIED SELECTION | C20: =INDEX(SMD,(MATCH($D$19,DIST_ID,0))) -> USA - All Missions | D20: =IF(SMSA=1,0,SMSA+9) -> 0 | F20: 19 | G20: 1 | H20: 331 | I20: St. Louis | J20: 394 | L20: 19 | M20: 1 | N20: VT | O20: Vermont | P20: 394 | T20: 499 | U20: NWQ | X20: Indiana | Y20: IN100 | Z20: =X20&$AA$2 -> Indiana-Total
B21: USA - All Missions | D21: 1 | F21: 20 | G21: 1 | H21: 402 | I21: Togus | J21: 394 | L21: 20 | M21: 1 | N21: WI | O21: Wisconsin | P21: 394 | T21: -1 | U21: Other | Y21: IN326 | Z21: Indianapolis RO
B22: Compensation | D22: 11 | F22: 21 | G22: 1 | H22: 372 | I22: Washington | J22: 394 | L22: 21 | M22: 2 | N22: 393 | O22: Southeast District | P22: 393 | T22: 318 | U22: Winston-Salem | Y22: IN-1 | Z22: =X20&$AA$4 -> Indiana-Other RO
B23: Pension | D23: 12 | F23: 22 | G23: 1 | H23: 405 | I23: White River Junction | J23: 394 | L23: 22 | M23: 2 | N23: AL | O23: Alabama | P23: 393 | T23: 341 | U23: Salt Lake City | Y23: IN499 | Z23: =X20&$AA$5 -> Indiana-NWQ
B24: BDD | D24: 13 | F24: 23 | G24: 1 | H24: 460 | I24: Wilmington | J24: 394 | L24: 23 | M24: 2 | N24: AR | O24: Arkansas | P24: 393 | T24: 499 | U24: NWQ | X24: Maine | Y24: ME100 | Z24: =X24&$AA$2 -> Maine-Total
B25: Quickstart | D25: 14 | F25: 24 | G25: 2 | H25: 393 | I25: Southeast District | J25: 393 | L25: 24 | M25: 2 | N25: FL | O25: Florida | P25: 393 | T25: -1 | U25: Other | Y25: ME402 | Z25: Togus RO
F26: 25 | G26: 2 | H26: 316 | I26: Atlanta | J26: 393 | L26: 25 | M26: 2 | N26: GA | O26: Georgia | P26: 393 | T26: 318 | U26: Winston-Salem | Y26: ME-1 | Z26: =X24&$AA$4 -> Maine-Other RO
B27: TRADITIONAL AGGREGATE CODES | F27: 26 | G27: 2 | H27: 319 | I27: Columbia | J27: 393 | L27: 26 | M27: 2 | N27: KY | O27: Kentucky | P27: 393 | T27: 377 | U27: San Diego | Y27: ME499 | Z27: =X24&$AA$5 -> Maine-NWQ
B28: ALL | C28: 1000 | F28: 27 | G28: 2 | H28: 315 | I28: Huntington | J28: 393 | L28: 27 | M28: 2 | N28: LA | O28: Louisiana | P28: 393 | T28: 499 | U28: NWQ | X28: Maryland | Y28: MD100 | Z28: =X28&$AA$2 -> Maryland-Total
B29: Non-Rating/Appeals Compensation | C29: 2000 | F29: 28 | G29: 2 | H29: 323 | I29: Jackson | J29: 393 | L29: 28 | M29: 2 | N29: MS | O29: Mississippi | P29: 393 | T29: -1 | U29: Other | Y29: MD313 | Z29: Baltimore RO
B30: Non-Rating/Appeals Pension | C30: 3000 | F30: 29 | G30: 2 | H30: 350 | I30: Little Rock | J30: 393 | L30: 29 | M30: 2 | N30: NC | O30: North Carolina | P30: 393 | Y30: MD-1 | Z30: =X28&$AA$4 -> Maryland-Other RO
B31: Compensation Entitlement | C31: 2100 | F31: 30 | G31: 2 | H31: 327 | I31: Louisville | J31: 393 | L31: 30 | M31: 2 | N31: PR | O31: Puerto Rico | P31: 393 | Y31: MD499 | Z31: =X28&$AA$5 -> Maryland-NWQ
B32: Compensation Award Adjustment | C32: 2200 | F32: 31 | G32: 2 | H32: 322 | I32: Montgomery | J32: 393 | L32: 31 | M32: 2 | N32: SC | O32: South Carolina | P32: 393 | X32: Massachusetts | Y32: MA100 | Z32: =X32&$AA$2 -> Massachusetts-Total
B33: Compensation Program Review | C33: 2300 | F33: 32 | G33: 2 | H33: 320 | I33: Nashville | J33: 393 | L33: 32 | M33: 2 | N33: TN | O33: Tennessee | P33: 393 | Y33: MA301 | Z33: Boston RO
B34: Compensation Other | C34: 2400 | F34: 33 | G34: 2 | H34: 321 | I34: New Orleans | J34: 393 | L34: 33 | M34: 2 | N34: VA | O34: Virginia | P34: 393 | Y34: MA-1 | Z34: =X32&$AA$4 -> Massachusetts-Other RO
B35: Compensation Burial | C35: 2500 | F35: 34 | G35: 2 | H35: 314 | I35: Roanoke | J35: 393 | L35: 34 | M35: 2 | N35: WV | O35: West Virginia | P35: 393 | Y35: MA499 | Z35: =X32&$AA$5 -> Massachusetts-NWQ
B36: Compensation Accrued | C36: 2600 | F36: 35 | G36: 2 | H36: 355 | I36: San Juan | J36: 393 | L36: 35 | M36: 3 | N36: 384 | O36: Continental District | P36: 384 | X36: Michigan | Y36: MI100 | Z36: =X36&$AA$2 -> Michigan-Total
B37: Pension Entitlement | C37: 3100 | F37: 36 | G37: 2 | H37: 317 | I37: St. Petersburg | J37: 393 | L37: 36 | M37: 3 | N37: CO | O37: Colorado | P37: 384 | Y37: MI329 | Z37: Detroit RO
B38: Pension Award Adjustment | C38: 3200 | F38: 37 | G38: 2 | H38: 318 | I38: Winston-Salem | J38: 393 | L38: 37 | M38: 3 | N38: IA | O38: Iowa | P38: 384 | Y38: MI-1 | Z38: =X36&$AA$4 -> Michigan-Other RO
B39: Pension Program Review | C39: 3300 | F39: 38 | G39: 3 | H39: 384 | I39: Continental District | J39: 384 | L39: 38 | M39: 3 | N39: KS | O39: Kansas | P39: 384 | Y39: MI499 | Z39: =X36&$AA$5 -> Michigan-NWQ
B40: Pension Other | C40: 3400 | F40: 39 | G40: 3 | H40: 442 | I40: Cheyenne | J40: 384 | L40: 39 | M40: 3 | N40: MN | O40: Minnesota | P40: 384 | X40: Missouri | Y40: MO100 | Z40: =X40&$AA$2 -> Missouri-Total
B41: Pension Burial | C41: 3500 | F41: 40 | G41: 3 | H41: 339 | I41: Denver | J41: 384 | L41: 40 | M41: 3 | N41: MT | O41: Montana | P41: 384 | Y41: MO331 | Z41: St. Louis RO
B42: Pension Accrued | C42: 3600 | F42: 41 | G42: 3 | H42: 333 | I42: Des Moines | J42: 384 | L42: 41 | M42: 3 | N42: NE | O42: Nebraska | P42: 384 | Y42: MO-1 | Z42: =X40&$AA$4 -> Missouri-Other RO
F43: 42 | G43: 3 | H43: 437 | I43: Fargo | J43: 384 | L43: 42 | M43: 3 | N43: ND | O43: North Dakota | P43: 384 | Y43: MO499 | Z43: =X40&$AA$5 -> Missouri-NWQ
B44: CONTROLLER for SOJ District Selection | F44: 43 | G44: 3 | H44: 436 | I44: Fort Harrison | J44: 384 | L44: 43 | M44: 3 | N44: OK | O44: Oklahoma | P44: 384 | X44: New Hampshire | Y44: NH100 | Z44: =X44&$AA$2 -> New Hampshire-Total
B45: ACTIVE SELECTION | D45: 6 | F45: 44 | G45: 3 | H45: 362 | I45: Houston | J45: 384 | L45: 44 | M45: 3 | N45: SD | O45: South Dakota | P45: 384 | Y45: NH373 | Z45: Manchester RO
B46: MODIFIED SELECTION | C46: =IF(D10=6,DS_RO&"_N",IF(D20=13,DS_RO,IF(D20>11,DS_RO&"_N",DS_RO))) -> DIST_PC | F46: 45 | G46: 3 | H46: 334 | I46: Lincoln | J46: 384 | L46: 45 | M46: 3 | N46: TX | O46: Texas | P46: 384 | Y46: NH-1 | Z46: =X44&$AA$4 -> New Hampshire-Other RO
F47: 46 | G47: 3 | H47: 351 | I47: Muskogee | J47: 384 | L47: 46 | M47: 3 | N47: WY | O47: Wyoming | P47: 384 | Y47: NH499 | Z47: =X44&$AA$5 -> New Hampshire-NWQ
F48: 47 | G48: 3 | H48: 438 | I48: Sioux Falls | J48: 384 | L48: 47 | M48: 4 | N48: 395 | O48: Pacific District | P48: 395 | X48: New Jersey | Y48: NJ100 | Z48: =X48&$AA$2 -> New Jersey-Total
F49: 48 | G49: 3 | H49: 335 | I49: St. Paul | J49: 384 | L49: 48 | M49: 4 | N49: AK | O49: Alaska | P49: 395 | Y49: NJ309 | Z49: Newark RO
F50: 49 | G50: 3 | H50: 349 | I50: Waco | J50: 384 | L50: 49 | M50: 4 | N50: AZ | O50: Arizona | P50: 395 | Y50: NJ-1 | Z50: =X48&$AA$4 -> New Jersey-Other RO
F51: 50 | G51: 3 | H51: 452 | I51: Wichita | J51: 384 | L51: 50 | M51: 4 | N51: CA | O51: California | P51: 395 | Y51: NJ499 | Z51: =X48&$AA$5 -> New Jersey-NWQ
F52: 51 | G52: 4 | H52: 395 | I52: Pacific District | J52: 395 | L52: 51 | M52: 4 | N52: HI | O52: Hawaii | P52: 395 | X52: New York | Y52: NY100 | Z52: =X52&$AA$2 -> New York-Total
F53: 52 | G53: 4 | H53: 340 | I53: Albuquerque | J53: 395 | L53: 52 | M53: 4 | N53: ID | O53: Idaho | P53: 395 | Y53: NY307 | Z53: Buffalo RO
F54: 53 | G54: 4 | H54: 463 | I54: Anchorage | J54: 395 | L54: 53 | M54: 4 | N54: NV | O54: Nevada | P54: 395 | Y54: NY306 | Z54: New York RO
F55: 54 | G55: 4 | H55: 347 | I55: Boise | J55: 395 | L55: 54 | M55: 4 | N55: NM | O55: New Mexico | P55: 395 | Y55: NY-1 | Z55: =X52&$AA$4 -> New York-Other RO
F56: 55 | G56: 4 | H56: 459 | I56: Honolulu | J56: 395 | L56: 55 | M56: 4 | N56: OR | O56: Oregon | P56: 395 | Y56: NY499 | Z56: =X52&$AA$5 -> New York-NWQ
F57: 56 | G57: 4 | H57: 344 | I57: Los Angeles | J57: 395 | L57: 56 | M57: 4 | N57: PI | O57: Philippines | P57: 395 | X57: Ohio | Y57: OH100 | Z57: =X57&$AA$2 -> Ohio-Total
F58: 57 | G58: 4 | H58: 358 | I58: Manila | J58: 395 | L58: 57 | M58: 4 | N58: UT | O58: Utah | P58: 395 | Y58: OH325 | Z58: Cleveland RO
F59: 58 | G59: 4 | H59: 343 | I59: Oakland | J59: 395 | L59: 58 | M59: 4 | N59: WA | O59: Washington | P59: 395 | Y59: OH-1 | Z59: =X57&$AA$4 -> Ohio-Other RO
F60: 59 | G60: 4 | H60: 345 | I60: Phoenix | J60: 395 | L60: 59 | M60: 5 | N60: 35 | O60: Other District | P60: 35 | Y60: OH499 | Z60: =X57&$AA$5 -> Ohio-NWQ
F61: 60 | G61: 4 | H61: 348 | I61: Portland | J61: 395 | L61: 60 | M61: 5 | N61: 35 | O61: Outside US | P61: 35 | X61: Pennsylvania | Y61: PA100 | Z61: =X61&$AA$2 -> Pennsylvania-Total
F62: 61 | G62: 4 | H62: 354 | I62: Reno | J62: 395 | Y62: PA310 | Z62: Philadelphia RO
F63: 62 | G63: 4 | H63: 341 | I63: Salt Lake City | J63: 395 | Y63: PA311 | Z63: Pittsburgh RO
F64: 63 | G64: 4 | H64: 377 | I64: San Diego | J64: 395 | Y64: PA-1 | Z64: =X61&$AA$4 -> Pennsylvania-Other RO
F65: 64 | G65: 4 | H65: 346 | I65: Seattle | J65: 395 | Y65: PA499 | Z65: =X61&$AA$5 -> Pennsylvania-NWQ
F66: 65 | G66: 5 | H66: 35 | I66: Other District | J66: 35 | X66: Rhode Island | Y66: RI100 | Z66: =X66&$AA$2 -> Rhode Island-Total
F67: 66 | G67: 5 | H67: 499 | I67: NWQ | J67: 35 | Y67: RI304 | Z67: Providence RO
F68: 67 | G68: 5 | H68: -1 | I68: Other | J68: 35 | Y68: RI-1 | Z68: =X66&$AA$4 -> Rhode Island-Other RO
Y69: RI499 | Z69: =X66&$AA$5 -> Rhode Island-NWQ
X70: Vermont | Y70: VT100 | Z70: =X70&$AA$2 -> Vermont-Total
Y71: VT405 | Z71: White River RO
Y72: VT-1 | Z72: =X70&$AA$4 -> Vermont-Other RO
Y73: VT499 | Z73: =X70&$AA$5 -> Vermont-NWQ
X74: Wisconsin | Y74: WI100 | Z74: =X74&$AA$2 -> Wisconsin-Total
Y75: WI330 | Z75: Milwaukee RO
Y76: WI-1 | Z76: =X74&$AA$4 -> Wisconsin-Other RO
Y77: WI499 | Z77: =X74&$AA$5 -> Wisconsin-NWQ
X78: Southeast District
X79: Alabama | Y79: AL100 | Z79: =X79&$AA$2 -> Alabama-Total
Y80: AL322 | Z80: Montgomery RO
Y81: AL-1 | Z81: =X79&$AA$4 -> Alabama-Other RO
Y82: AL499 | Z82: =X79&$AA$5 -> Alabama-NWQ
X83: Arkansas | Y83: AR100 | Z83: =X83&$AA$2 -> Arkansas-Total
Y84: AR350 | Z84: Little Rock RO
Y85: AR-1 | Z85: =X83&$AA$4 -> Arkansas-Other RO
Y86: AR499 | Z86: =X83&$AA$5 -> Arkansas-NWQ
X87: Florida | Y87: FL100 | Z87: =X87&$AA$2 -> Florida-Total
Y88: FL317 | Z88: St. Petersburg RO
Y89: FL-1 | Z89: =X87&$AA$4 -> Florida-Other RO
Y90: FL499 | Z90: =X87&$AA$5 -> Florida-NWQ
X91: Georgia | Y91: GA100 | Z91: =X91&$AA$2 -> Georgia-Total
Y92: GA316 | Z92: Atlanta RO
Y93: GA-1 | Z93: =X91&$AA$4 -> Georgia-Other RO
Y94: GA499 | Z94: =X91&$AA$5 -> Georgia-NWQ
X95: Kentucky | Y95: KY100 | Z95: =X95&$AA$2 -> Kentucky-Total
Y96: KY327 | Z96: Louisville RO
Y97: KY-1 | Z97: =X95&$AA$4 -> Kentucky-Other RO
Y98: KY499 | Z98: =X95&$AA$5 -> Kentucky-NWQ
X99: Louisiana | Y99: LA100 | Z99: =X99&$AA$2 -> Louisiana-Total
Y100: LA321 | Z100: New Orleans RO
Y101: LA-1 | Z101: =X99&$AA$4 -> Louisiana-Other RO
Y102: LA499 | Z102: =X99&$AA$5 -> Louisiana-NWQ
X103: Mississippi | Y103: MS100 | Z103: =X103&$AA$2 -> Mississippi-Total
Y104: MS323 | Z104: Jackson RO
Y105: MS-1 | Z105: =X103&$AA$4 -> Mississippi-Other RO
Y106: MS499 | Z106: =X103&$AA$5 -> Mississippi-NWQ
X107: North Carolina | Y107: NC100 | Z107: =X107&$AA$2 -> North Carolina-Total
Y108: NC318 | Z108: Winston-Salem RO
Y109: NC-1 | Z109: =X107&$AA$4 -> North Carolina-Other RO
Y110: NC499 | Z110: =X107&$AA$5 -> North Carolina-NWQ
X111: Puerto Rico | Y111: PR100 | Z111: =X111&$AA$2 -> Puerto Rico-Total
Y112: PR355 | Z112: San Juan RO
Y113: PR-1 | Z113: =X111&$AA$4 -> Puerto Rico-Other RO
Y114: PR499 | Z114: =X111&$AA$5 -> Puerto Rico-NWQ
X115: South Carolina | Y115: SC100 | Z115: =X115&$AA$2 -> South Carolina-Total
Y116: SC319 | Z116: Columbia RO
Y117: SC-1 | Z117: =X115&$AA$4 -> South Carolina-Other RO
Y118: SC499 | Z118: =X115&$AA$5 -> South Carolina-NWQ
X119: Tennessee | Y119: TN100 | Z119: =X119&$AA$2 -> Tennessee-Total
Y120: TN320 | Z120: Nashville RO
Y121: TN-1 | Z121: =X119&$AA$4 -> Tennessee-Other RO
Y122: TN499 | Z122: =X119&$AA$5 -> Tennessee-NWQ
X123: Virginia | Y123: VA100 | Z123: =X123&$AA$2 -> Virginia-Total
Y124: VA314 | Z124: Roanoke RO
Y125: VA-1 | Z125: =X123&$AA$4 -> Virginia-Other RO
Y126: VA499 | Z126: =X123&$AA$5 -> Virginia-NWQ
X127: West Virginia | Y127: WV100 | Z127: =X127&$AA$2 -> West Virginia-Total
Y128: WV315 | Z128: Huntington RO
Y129: WV-1 | Z129: =X127&$AA$4 -> West Virginia-Other RO
Y130: WV499 | Z130: =X127&$AA$5 -> West Virginia-NWQ
X131: Continental District
X132: Colorado | Y132: CO100 | Z132: =X132&$AA$2 -> Colorado-Total
Y133: CO339 | Z133: Denver RO
Y134: CO-1 | Z134: =X132&$AA$4 -> Colorado-Other RO
Y135: CO499 | Z135: =X132&$AA$5 -> Colorado-NWQ
X136: Iowa | Y136: IA100 | Z136: =X136&$AA$2 -> Iowa-Total
Y137: IA333 | Z137: Des Moines RO
Y138: IA-1 | Z138: =X136&$AA$4 -> Iowa-Other RO
Y139: IA499 | Z139: =X136&$AA$5 -> Iowa-NWQ
X140: Kansas | Y140: KS100 | Z140: =X140&$AA$2 -> Kansas-Total
Y141: KS452 | Z141: Wichita RO
Y142: KS-1 | Z142: =X140&$AA$4 -> Kansas-Other RO
Y143: KS499 | Z143: =X140&$AA$5 -> Kansas-NWQ
X144: Minnesota | Y144: MN100 | Z144: =X144&$AA$2 -> Minnesota-Total
Y145: MN335 | Z145: St. Paul RO
Y146: MN-1 | Z146: =X144&$AA$4 -> Minnesota-Other RO
Y147: MN499 | Z147: =X144&$AA$5 -> Minnesota-NWQ
X148: Montana | Y148: MT100 | Z148: =X148&$AA$2 -> Montana-Total
Y149: MT436 | Z149: Fort Harrison RO
Y150: MT-1 | Z150: =X148&$AA$4 -> Montana-Other RO
Y151: MT499 | Z151: =X148&$AA$5 -> Montana-NWQ
X152: Nebraska | Y152: NE100 | Z152: =X152&$AA$2 -> Nebraska-Total
Y153: NE334 | Z153: Lincoln RO
Y154: NE-1 | Z154: =X152&$AA$4 -> Nebraska-Other RO
Y155: NE499 | Z155: =X152&$AA$5 -> Nebraska-NWQ
X156: North Dakota | Y156: ND100 | Z156: =X156&$AA$2 -> North Dakota-Total
Y157: ND437 | Z157: Fargo RO
Y158: ND-1 | Z158: =X156&$AA$4 -> North Dakota-Other RO
Y159: ND499 | Z159: =X156&$AA$5 -> North Dakota-NWQ
X160: Oklahoma | Y160: OK100 | Z160: =X160&$AA$2 -> Oklahoma-Total
Y161: OK351 | Z161: Muskogee RO
Y162: OK-1 | Z162: =X160&$AA$4 -> Oklahoma-Other RO
Y163: OK499 | Z163: =X160&$AA$5 -> Oklahoma-NWQ
X164: South Dakota | Y164: SD100 | Z164: =X164&$AA$2 -> South Dakota-Total
Y165: SD438 | Z165: Sioux Falls RO
Y166: SD-1 | Z166: =X164&$AA$4 -> South Dakota-Other RO
Y167: SD499 | Z167: =X164&$AA$5 -> South Dakota-NWQ
X168: Texas | Y168: TX100 | Z168: =X168&$AA$2 -> Texas-Total
Y169: TX362 | Z169: Houston RO
Y170: TX349 | Z170: Waco RO
Y171: TX-1 | Z171: =X168&$AA$4 -> Texas-Other RO
Y172: TX499 | Z172: =X168&$AA$5 -> Texas-NWQ
X173: Wyoming | Y173: WY100 | Z173: =X173&$AA$2 -> Wyoming-Total
Y174: WY442 | Z174: Cheyenne RO
Y175: WY-1 | Z175: =X173&$AA$4 -> Wyoming-Other RO
Y176: WY499 | Z176: =X173&$AA$5 -> Wyoming-NWQ
X177: Pacific District
X178: Alaska | Y178: AK100 | Z178: =X178&$AA$2 -> Alaska-Total
Y179: AK463 | Z179: Anchorage RO
Y180: AK-1 | Z180: =X178&$AA$4 -> Alaska-Other RO
Y181: AK499 | Z181: =X178&$AA$5 -> Alaska-NWQ
X182: Arizona | Y182: AZ100 | Z182: =X182&$AA$2 -> Arizona-Total
Y183: AZ345 | Z183: Phoenix RO
Y184: AZ-1 | Z184: =X182&$AA$4 -> Arizona-Other RO
Y185: AZ499 | Z185: =X182&$AA$5 -> Arizona-NWQ
X186: California | Y186: CA100 | Z186: =X186&$AA$2 -> California-Total
Y187: CA344 | Z187: Los Angeles RO
Y188: CA343 | Z188: Oakland RO
Y189: CA377 | Z189: San Diego RO
Y190: CA-1 | Z190: =X186&$AA$4 -> California-Other RO
Y191: CA499 | Z191: =X186&$AA$5 -> California-NWQ
X192: Hawaii | Y192: HI100 | Z192: =X192&$AA$2 -> Hawaii-Total
Y193: HI459 | Z193: Honolulu RO
Y194: HI-1 | Z194: =X192&$AA$4 -> Hawaii-Other RO
Y195: HI499 | Z195: =X192&$AA$5 -> Hawaii-NWQ
X196: Idaho | Y196: ID100 | Z196: =X196&$AA$2 -> Idaho-Total
Y197: ID347 | Z197: Boise RO
Y198: ID-1 | Z198: =X196&$AA$4 -> Idaho-Other RO
Y199: ID499 | Z199: =X196&$AA$5 -> Idaho-NWQ
X200: Nevada | Y200: NV100 | Z200: =X200&$AA$2 -> Nevada-Total
... 26 more rows

Sheet Data (hidden)
A1: MT | B1: CAT | C1: LOC | D1: EP | E1: INV | F1: BL | G1: ADP | H1: PROD_MTD | I1: PROD_FYTD | J1: ADCM | K1: ADCF | L1: DEV | M1: EVD | N1: DEC | O1: AWD | P1: AUT
A2: 5 | B2: 0 | C2: 327 | D2: -1 | E2: 1129 | F2: 362 | G2: 124.86 | H2: 3112 | I2: 24197 | J2: 149.33 | K2: 128.63 | L2: 113 | M2: 595 | N2: 328 | O2: 57 | P2: 36
A3: 5 | B3: 0 | C3: 328 | D3: -1 | E3: 924 | F3: 225 | G3: 109.5 | H3: 1600 | I3: 10982 | J3: 124.44 | K3: 118.25 | L3: 180 | M3: 304 | N3: 377 | O3: 54 | P3: 9
A4: 5 | B4: 0 | C4: 329 | D4: -1 | E4: 1167 | F4: 224 | G4: 86.59 | H4: 2875 | I4: 23497 | J4: 119.7 | K4: 103.5 | L4: 204 | M4: 438 | N4: 463 | O4: 54 | P4: 8
A5: 5 | B5: 0 | C5: 330 | D5: -1 | E5: 2111 | F5: 464 | G5: 97.61 | H5: 3974 | I5: 30647 | J5: 129.05 | K5: 97.46 | L5: 362 | M5: 729 | N5: 605 | O5: 292 | P5: 123
A6: 5 | B6: 0 | C6: 331 | D6: -1 | E6: 2254 | F6: 920 | G6: 163.03 | H6: 2555 | I6: 17436 | J6: 268.13 | K6: 221.72 | L6: 153 | M6: 1385 | N6: 629 | O6: 59 | P6: 28
A7: 5 | B7: 0 | C7: 333 | D7: -1 | E7: 864 | F7: 212 | G7: 110.9 | H7: 1820 | I7: 14317 | J7: 137.58 | K7: 122.14 | L7: 131 | M7: 285 | N7: 359 | O7: 71 | P7: 18
A8: 5 | B8: 0 | C8: 334 | D8: -1 | E8: 1089 | F8: 418 | G8: 162.13 | H8: 1649 | I8: 12051 | J8: 277.3 | K8: 205.6 | L8: 123 | M8: 579 | N8: 340 | O8: 34 | P8: 13
A9: 5 | B9: 0 | C9: 335 | D9: -1 | E9: 2810 | F9: 913 | G9: 142.33 | H9: 4676 | I9: 38280 | J9: 151.99 | K9: 128.49 | L9: 425 | M9: 1060 | N9: 861 | O9: 402 | P9: 62
A10: 5 | B10: 0 | C10: 339 | D10: -1 | E10: 1276 | F10: 339 | G10: 109.97 | H10: 2767 | I10: 23125 | J10: 137.14 | K10: 118.76 | L10: 205 | M10: 562 | N10: 430 | O10: 74 | P10: 5
A11: 5 | B11: 0 | C11: 340 | D11: -1 | E11: 525 | F11: 170 | G11: 118.42 | H11: 802 | I11: 6667 | J11: 193.46 | K11: 165.14 | L11: 85 | M11: 205 | N11: 192 | O11: 36 | P11: 7
A12: 5 | B12: 0 | C12: 341 | D12: -1 | E12: 1967 | F12: 1002 | G12: 210.33 | H12: 1924 | I12: 12690 | J12: 312.79 | K12: 277.17 | L12: 157 | M12: 859 | N12: 530 | O12: 408 | P12: 13
A13: 5 | B13: 0 | C13: 343 | D13: -1 | E13: 1060 | F13: 483 | G13: 191.69 | H13: 1274 | I13: 8812 | J13: 291.42 | K13: 218.21 | L13: 153 | M13: 416 | N13: 430 | O13: 49 | P13: 12
A14: 5 | B14: 0 | C14: 344 | D14: -1 | E14: 1524 | F14: 505 | G14: 132.23 | H14: 2194 | I14: 18005 | J14: 175.89 | K14: 140.41 | L14: 217 | M14: 714 | N14: 563 | O14: 14 | P14: 16
A15: 5 | B15: 0 | C15: 345 | D15: -1 | E15: 2276 | F15: 996 | G15: 188.52 | H15: 3424 | I15: 21809 | J15: 190.78 | K15: 172.75 | L15: 241 | M15: 1144 | N15: 682 | O15: 195 | P15: 14
A16: 5 | B16: 0 | C16: 346 | D16: -1 | E16: 3280 | F16: 725 | G16: 94.49 | H16: 8265 | I16: 66313 | J16: 98 | K16: 87.65 | L16: 260 | M16: 1008 | N16: 1537 | O16: 278 | P16: 197
A17: 5 | B17: 0 | C17: 347 | D17: -1 | E17: 595 | F17: 107 | G17: 91.82 | H17: 1216 | I17: 9545 | J17: 130.9 | K17: 122.99 | L17: 76 | M17: 143 | N17: 249 | O17: 99 | P17: 28
A18: 5 | B18: 0 | C18: 348 | D18: -1 | E18: 1565 | F18: 672 | G18: 158.01 | H18: 1472 | I18: 13447 | J18: 221.43 | K18: 178.21 | L18: 168 | M18: 951 | N18: 399 | O18: 30 | P18: 17
A19: 5 | B19: 0 | C19: 349 | D19: -1 | E19: 4494 | F19: 2029 | G19: 188.35 | H19: 6531 | I19: 40152 | J19: 192.57 | K19: 197.57 | L19: 366 | M19: 2149 | N19: 1622 | O19: 293 | P19: 64
A20: 5 | B20: 0 | C20: 350 | D20: -1 | E20: 754 | F20: 193 | G20: 99.98 | H20: 1696 | I20: 13862 | J20: 144.71 | K20: 119.62 | L20: 135 | M20: 302 | N20: 265 | O20: 44 | P20: 8
A21: 5 | B21: 0 | C21: 351 | D21: -1 | E21: 2111 | F21: 750 | G21: 144.43 | H21: 4558 | I21: 34187 | J21: 157.62 | K21: 124.19 | L21: 115 | M21: 915 | N21: 986 | O21: 78 | P21: 17
A22: 5 | B22: 0 | C22: 354 | D22: -1 | E22: 509 | F22: 165 | G22: 135.78 | H22: 834 | I22: 5563 | J22: 318.23 | K22: 210.75 | L22: 149 | M22: 183 | N22: 159 | O22: 14 | P22: 4
A23: 5 | B23: 0 | C23: 355 | D23: -1 | E23: 651 | F23: 157 | G23: 110.79 | H23: 1167 | I23: 9952 | J23: 116.35 | K23: 128.92 | L23: 117 | M23: 295 | N23: 188 | O23: 46 | P23: 5
A24: 5 | B24: 0 | C24: 358 | D24: -1 | E24: 253 | F24: 114 | G24: 166.9 | H24: 916 | I24: 6637 | J24: 143.22 | K24: 139.3 | L24: 17 | M24: 150 | N24: 68 | O24: 16 | P24: 2
A25: 5 | B25: 0 | C25: 362 | D25: -1 | E25: 2708 | F25: 700 | G25: 102.49 | H25: 5770 | I25: 42216 | J25: 124.54 | K25: 108.75 | L25: 330 | M25: 1026 | N25: 1137 | O25: 105 | P25: 110
A26: 5 | B26: 0 | C26: 372 | D26: -1 | E26: 3 | G26: 1.67 | H26: 1 | I26: 1 | J26: 399 | K26: 399 | L26: 2 | M26: 1
A27: 5 | B27: 0 | C27: 373 | D27: -1 | E27: 283 | F27: 95 | G27: 134.28 | H27: 525 | I27: 4377 | J27: 213.28 | K27: 172.72 | L27: 40 | M27: 85 | N27: 148 | O27: 10
A28: 5 | B28: 0 | C28: 377 | D28: -1 | E28: 2940 | F28: 875 | G28: 123.81 | H28: 5756 | I28: 51029 | J28: 137.98 | K28: 108.94 | L28: 208 | M28: 1387 | N28: 1191 | O28: 128 | P28: 26
A29: 5 | B29: 0 | C29: 387 | D29: -1 | I29: 3 | K29: 31.67
A30: 5 | B30: 0 | C30: 392 | D30: -1 | E30: 7750 | F30: 7429 | G30: 505.35 | H30: 4 | I30: 26 | J30: 388.25 | K30: 457.04 | M30: 7749 | N30: 1
A31: 5 | B31: 0 | C31: 397 | D31: -1 | H31: 22 | I31: 182 | J31: 564.59 | K31: 496.63
A32: 5 | B32: 0 | C32: 402 | D32: -1 | E32: 842 | F32: 471 | G32: 204.17 | H32: 1357 | I32: 9269 | J32: 297.23 | K32: 218.13 | L32: 79 | M32: 419 | N32: 297 | O32: 39 | P32: 8
A33: 5 | B33: 0 | C33: 405 | D33: -1 | E33: 172 | F33: 72 | G33: 142.36 | H33: 258 | I33: 2205 | J33: 195.21 | K33: 136.54 | L33: 15 | M33: 65 | N33: 85 | O33: 7
A34: 5 | B34: 0 | C34: 436 | D34: -1 | E34: 582 | F34: 193 | G34: 120.1 | H34: 780 | I34: 6478 | J34: 219.75 | K34: 169.8 | L34: 82 | M34: 231 | N34: 251 | O34: 17 | P34: 1
A35: 5 | B35: 0 | C35: 437 | D35: -1 | E35: 213 | F35: 69 | G35: 140.76 | H35: 622 | I35: 5235 | J35: 189.01 | K35: 149.7 | L35: 31 | M35: 71 | N35: 97 | O35: 10 | P35: 4
A36: 5 | B36: 0 | C36: 438 | D36: -1 | E36: 461 | F36: 163 | G36: 129.14 | H36: 894 | I36: 9305 | J36: 193.99 | K36: 113.56 | L36: 33 | M36: 192 | N36: 227 | O36: 9
A37: 5 | B37: 0 | C37: 442 | D37: -1 | E37: 189 | F37: 68 | G37: 164.61 | H37: 269 | I37: 2166 | J37: 269.1 | K37: 150.92 | L37: 36 | M37: 76 | N37: 56 | O37: 18 | P37: 3
A38: 5 | B38: 0 | C38: 452 | D38: -1 | E38: 387 | F38: 116 | G38: 118.26 | H38: 830 | I38: 6553 | J38: 182.17 | K38: 155.93 | L38: 77 | M38: 157 | N38: 106 | O38: 42 | P38: 5
A39: 5 | B39: 0 | C39: 459 | D39: -1 | E39: 329 | F39: 100 | G39: 113.45 | H39: 806 | I39: 6462 | J39: 163.04 | K39: 142.74 | L39: 41 | M39: 134 | N39: 152 | O39: 2
A40: 5 | B40: 0 | C40: 460 | D40: -1 | E40: 82 | F40: 28 | G40: 112.18 | H40: 244 | I40: 1986 | J40: 208.31 | K40: 170.93 | L40: 17 | M40: 35 | N40: 27 | O40: 3
A41: 5 | B41: 0 | C41: 463 | D41: -1 | E41: 231 | F41: 103 | G41: 153.07 | H41: 369 | I41: 2205 | J41: 228.62 | K41: 176.33 | L41: 38 | M41: 97 | N41: 74 | O41: 19 | P41: 3
A42: 5 | B42: 0 | C42: 499 | D42: -1 | E42: 502855 | F42: 161540 | G42: 138.25 | H42: 125 | I42: 1121 | J42: 100.63 | K42: 165.16 | L42: 9236 | M42: 298779 | N42: 194489 | O42: 347 | P42: 4
A43: 5 | B43: 0 | C43: -1 | D43: -1 | H43: 2376 | I43: 23315 | J43: 110.59 | K43: 112.44
A44: 5 | B44: 11 | C44: -1 | D44: -1 | E44: 9967 | F44: 7552 | G44: 400.24 | H44: 1054 | I44: 11025 | J44: 195.14 | K44: 207.06 | L44: 1746 | M44: 8131 | N44: 51 | O44: 34 | P44: 5
A45: 5 | B45: 11 | C45: 301 | D45: -1 | E45: 568 | F45: 177 | G45: 123.69 | H45: 1189 | I45: 9926 | J45: 150.7 | K45: 127.8 | L45: 74 | M45: 208 | N45: 266 | O45: 19 | P45: 1
A46: 5 | B46: 11 | C46: 304 | D46: -1 | E46: 972 | F46: 159 | G46: 75.17 | H46: 3106 | I46: 24484 | J46: 90.51 | K46: 77.02 | L46: 119 | M46: 316 | N46: 398 | O46: 66 | P46: 73
A47: 5 | B47: 11 | C47: 306 | D47: -1 | E47: 612 | F47: 228 | G47: 145.13 | H47: 1047 | I47: 11289 | J47: 187.15 | K47: 143.49 | L47: 113 | M47: 267 | N47: 173 | O47: 53 | P47: 6
A48: 5 | B48: 11 | C48: 307 | D48: -1 | E48: 780 | F48: 215 | G48: 122.83 | H48: 1099 | I48: 9277 | J48: 197.97 | K48: 149.99 | L48: 96 | M48: 299 | N48: 376 | O48: 6 | P48: 3
A49: 5 | B49: 11 | C49: 308 | D49: -1 | E49: 505 | F49: 214 | G49: 165.18 | H49: 1015 | I49: 8284 | J49: 184.62 | K49: 150.04 | L49: 33 | M49: 233 | N49: 197 | O49: 38 | P49: 4
A50: 5 | B50: 11 | C50: 309 | D50: -1 | E50: 323 | F50: 76 | G50: 115.77 | H50: 1075 | I50: 7878 | J50: 161.84 | K50: 155.12 | L50: 49 | M50: 149 | N50: 122 | O50: 3
A51: 5 | B51: 11 | C51: 310 | D51: -1 | E51: 4490 | F51: 1767 | G51: 146.74 | H51: 5655 | I51: 40313 | J51: 183.54 | K51: 132.38 | L51: 359 | M51: 2606 | N51: 1236 | O51: 210 | P51: 79
A52: 5 | B52: 11 | C52: 311 | D52: -1 | E52: 946 | F52: 301 | G52: 140.58 | H52: 1465 | I52: 11902 | J52: 164.17 | K52: 154.19 | L52: 139 | M52: 454 | N52: 322 | O52: 7 | P52: 24
A53: 5 | B53: 11 | C53: 313 | D53: -1 | E53: 473 | F53: 115 | G53: 97.65 | H53: 856 | I53: 7005 | J53: 153.54 | K53: 139.21 | L53: 109 | M53: 175 | N53: 148 | O53: 25 | P53: 16
A54: 5 | B54: 11 | C54: 314 | D54: -1 | E54: 1878 | F54: 999 | G54: 196.1 | H54: 2270 | I54: 14279 | J54: 294.28 | K54: 265.03 | L54: 242 | M54: 760 | N54: 781 | O54: 61 | P54: 34
A55: 5 | B55: 11 | C55: 315 | D55: -1 | E55: 834 | F55: 386 | G55: 193.24 | H55: 1512 | I55: 10458 | J55: 242.24 | K55: 186.33 | L55: 70 | M55: 351 | N55: 345 | O55: 62 | P55: 6
A56: 5 | B56: 11 | C56: 316 | D56: -1 | E56: 3169 | F56: 1319 | G56: 162.89 | H56: 5329 | I56: 46279 | J56: 181.95 | K56: 140.12 | L56: 271 | M56: 1507 | N56: 1302 | O56: 47 | P56: 42
A57: 5 | B57: 11 | C57: 317 | D57: -1 | E57: 5605 | F57: 2713 | G57: 192.29 | H57: 7954 | I57: 52792 | J57: 215.05 | K57: 201.31 | L57: 658 | M57: 2320 | N57: 2325 | O57: 189 | P57: 111
A58: 5 | B58: 11 | C58: 318 | D58: -1 | E58: 3539 | F58: 710 | G58: 98.5 | H58: 9122 | I58: 68779 | J58: 111.78 | K58: 101.18 | L58: 375 | M58: 1347 | N58: 1495 | O58: 263 | P58: 59
A59: 5 | B59: 11 | C59: 319 | D59: -1 | E59: 2036 | F59: 640 | G59: 129.89 | H59: 3851 | I59: 29566 | J59: 161.05 | K59: 134.1 | L59: 179 | M59: 1073 | N59: 663 | O59: 99 | P59: 22
A60: 5 | B60: 11 | C60: 320 | D60: -1 | E60: 1466 | F60: 449 | G60: 122.21 | H60: 3031 | I60: 24901 | J60: 148.89 | K60: 115.1 | L60: 162 | M60: 674 | N60: 610 | O60: 6 | P60: 14
A61: 5 | B61: 11 | C61: 321 | D61: -1 | E61: 964 | F61: 251 | G61: 111.52 | H61: 1644 | I61: 13787 | J61: 168.01 | K61: 130.31 | L61: 138 | M61: 372 | N61: 363 | O61: 76 | P61: 15
A62: 5 | B62: 11 | C62: 322 | D62: -1 | E62: 1147 | F62: 328 | G62: 117.64 | H62: 1989 | I62: 16663 | J62: 156.51 | K62: 116.45 | L62: 152 | M62: 445 | N62: 458 | O62: 57 | P62: 35
A63: 5 | B63: 11 | C63: 323 | D63: -1 | E63: 927 | F63: 326 | G63: 124.08 | H63: 1782 | I63: 14816 | J63: 150.95 | K63: 129.49 | L63: 116 | M63: 510 | N63: 265 | O63: 32 | P63: 4
A64: 5 | B64: 11 | C64: 325 | D64: -1 | E64: 1880 | F64: 750 | G64: 161.82 | H64: 2938 | I64: 18779 | J64: 230.83 | K64: 213.85 | L64: 248 | M64: 809 | N64: 683 | O64: 79 | P64: 60
A65: 5 | B65: 11 | C65: 326 | D65: -1 | E65: 1073 | F65: 330 | G65: 131.57 | H65: 1575 | I65: 14841 | J65: 172.62 | K65: 133.81 | L65: 140 | M65: 472 | N65: 433 | O65: 18 | P65: 10
A66: 5 | B66: 11 | C66: 327 | D66: -1 | E66: 1108 | F66: 352 | G66: 124.62 | H66: 3087 | I66: 23938 | J66: 149.17 | K66: 128.61 | L66: 106 | M66: 587 | N66: 323 | O66: 57 | P66: 35
A67: 5 | B67: 11 | C67: 328 | D67: -1 | E67: 905 | F67: 224 | G67: 110.8 | H67: 1588 | I67: 10802 | J67: 124.3 | K67: 118.37 | L67: 171 | M67: 300 | N67: 371 | O67: 54 | P67: 9
A68: 5 | B68: 11 | C68: 329 | D68: -1 | E68: 1152 | F68: 223 | G68: 87.3 | H68: 2867 | I68: 23373 | J68: 119.87 | K68: 103.55 | L68: 193 | M68: 436 | N68: 461 | O68: 54 | P68: 8
A69: 5 | B69: 11 | C69: 330 | D69: -1 | E69: 1420 | F69: 302 | G69: 99.64 | H69: 2582 | I69: 18845 | J69: 147.23 | K69: 115.93 | L69: 236 | M69: 482 | N69: 573 | O69: 90 | P69: 39
A70: 5 | B70: 11 | C70: 331 | D70: -1 | E70: 2219 | F70: 912 | G70: 164.31 | H70: 2499 | I70: 16943 | J70: 271.5 | K70: 224.99 | L70: 143 | M70: 1377 | N70: 613 | O70: 58 | P70: 28
A71: 5 | B71: 11 | C71: 333 | D71: -1 | E71: 854 | F71: 210 | G71: 111.54 | H71: 1814 | I71: 14168 | J71: 137.64 | K71: 122.51 | L71: 126 | M71: 283 | N71: 356 | O71: 71 | P71: 18
A72: 5 | B72: 11 | C72: 334 | D72: -1 | E72: 1080 | F72: 415 | G72: 162.63 | H72: 1635 | I72: 11783 | J72: 279.01 | K72: 208.18 | L72: 121 | M72: 575 | N72: 337 | O72: 34 | P72: 13
A73: 5 | B73: 11 | C73: 335 | D73: -1 | E73: 2042 | F73: 777 | G73: 165.52 | H73: 3052 | I73: 25936 | J73: 191.25 | K73: 159.98 | L73: 261 | M73: 781 | N73: 775 | O73: 177 | P73: 48
A74: 5 | B74: 11 | C74: 339 | D74: -1 | E74: 1256 | F74: 338 | G74: 110.96 | H74: 2747 | I74: 22844 | J74: 137.4 | K74: 118.95 | L74: 199 | M74: 557 | N74: 421 | O74: 74 | P74: 5
A75: 5 | B75: 11 | C75: 340 | D75: -1 | E75: 514 | F75: 170 | G75: 120.19 | H75: 792 | I75: 6491 | J75: 194.88 | K75: 166.72 | L75: 84 | M75: 202 | N75: 186 | O75: 35 | P75: 7
A76: 5 | B76: 11 | C76: 341 | D76: -1 | E76: 1944 | F76: 999 | G76: 212.04 | H76: 1889 | I76: 12544 | J76: 317.09 | K76: 279.32 | L76: 153 | M76: 854 | N76: 521 | O76: 403 | P76: 13
A77: 5 | B77: 11 | C77: 343 | D77: -1 | E77: 1041 | F77: 480 | G77: 193.88 | H77: 1263 | I77: 8785 | J77: 293.07 | K77: 218.63 | L77: 146 | M77: 413 | N77: 423 | O77: 47 | P77: 12
A78: 5 | B78: 11 | C78: 344 | D78: -1 | E78: 1491 | F78: 499 | G78: 133.31 | H78: 2170 | I78: 17612 | J78: 176.05 | K78: 141.26 | L78: 200 | M78: 707 | N78: 554 | O78: 14 | P78: 16
A79: 5 | B79: 11 | C79: 345 | D79: -1 | E79: 2243 | F79: 991 | G79: 190.52 | H79: 3364 | I79: 21112 | J79: 192.94 | K79: 176.65 | L79: 226 | M79: 1135 | N79: 675 | O79: 193 | P79: 14
A80: 5 | B80: 11 | C80: 346 | D80: -1 | E80: 3259 | F80: 721 | G80: 94.54 | H80: 8234 | I80: 65924 | J80: 97.36 | K80: 87.54 | L80: 258 | M80: 999 | N80: 1528 | O80: 278 | P80: 196
A81: 5 | B81: 11 | C81: 347 | D81: -1 | E81: 590 | F81: 106 | G81: 92.21 | H81: 1202 | I81: 9377 | J81: 131.45 | K81: 123.12 | L81: 73 | M81: 142 | N81: 249 | O81: 98 | P81: 28
A82: 5 | B82: 11 | C82: 348 | D82: -1 | E82: 1540 | F82: 664 | G82: 158.37 | H82: 1453 | I82: 13176 | J82: 223.01 | K82: 179.77 | L82: 163 | M82: 939 | N82: 391 | O82: 30 | P82: 17
A83: 5 | B83: 11 | C83: 349 | D83: -1 | E83: 4408 | F83: 2011 | G83: 190.05 | H83: 6353 | I83: 38182 | J83: 196.78 | K83: 205.13 | L83: 350 | M83: 2130 | N83: 1581 | O83: 288 | P83: 59
A84: 5 | B84: 11 | C84: 350 | D84: -1 | E84: 745 | F84: 191 | G84: 99.93 | H84: 1687 | I84: 13718 | J84: 144.59 | K84: 119.86 | L84: 131 | M84: 302 | N84: 260 | O84: 44 | P84: 8
A85: 5 | B85: 11 | C85: 351 | D85: -1 | E85: 2069 | F85: 743 | G85: 146.22 | H85: 4423 | I85: 32754 | J85: 161.1 | K85: 127.7 | L85: 106 | M85: 905 | N85: 965 | O85: 77 | P85: 16
A86: 5 | B86: 11 | C86: 354 | D86: -1 | E86: 497 | F86: 165 | G86: 138.54 | H86: 824 | I86: 5418 | J86: 321.44 | K86: 213.86 | L86: 141 | M86: 183 | N86: 156 | O86: 13 | P86: 4
A87: 5 | B87: 11 | C87: 355 | D87: -1 | E87: 638 | F87: 157 | G87: 112.69 | H87: 1163 | I87: 9838 | J87: 116.47 | K87: 129.04 | L87: 109 | M87: 293 | N87: 185 | O87: 46 | P87: 5
A88: 5 | B88: 11 | C88: 358 | D88: -1 | E88: 245 | F88: 114 | G88: 171.07 | H88: 896 | I88: 6414 | J88: 144.68 | K88: 140.88 | L88: 17 | M88: 144 | N88: 66 | O88: 16 | P88: 2
A89: 5 | B89: 11 | C89: 362 | D89: -1 | E89: 2638 | F89: 691 | G89: 103.89 | H89: 5584 | I89: 40585 | J89: 127.12 | K89: 111.26 | L89: 311 | M89: 1012 | N89: 1106 | O89: 102 | P89: 107
A90: 5 | B90: 11 | C90: 372 | D90: -1 | E90: 3 | G90: 1.67 | H90: 1 | I90: 1 | J90: 399 | K90: 399 | L90: 2 | M90: 1
A91: 5 | B91: 11 | C91: 373 | D91: -1 | E91: 280 | F91: 92 | G91: 132.45 | H91: 521 | I91: 4225 | J91: 213.12 | K91: 175.11 | L91: 40 | M91: 83 | N91: 147 | O91: 10
A92: 5 | B92: 11 | C92: 377 | D92: -1 | E92: 2860 | F92: 867 | G92: 125.21 | H92: 5527 | I92: 49094 | J92: 142.15 | K92: 111.51 | L92: 203 | M92: 1360 | N92: 1146 | O92: 125 | P92: 26
A93: 5 | B93: 11 | C93: 402 | D93: -1 | E93: 823 | F93: 465 | G93: 206.44 | H93: 1346 | I93: 9099 | J93: 298.24 | K93: 220.12 | L93: 74 | M93: 407 | N93: 296 | O93: 38 | P93: 8
A94: 5 | B94: 11 | C94: 405 | D94: -1 | E94: 168 | F94: 71 | G94: 143.62 | H94: 250 | I94: 2076 | J94: 199.48 | K94: 138.57 | L94: 15 | M94: 64 | N94: 83 | O94: 6
A95: 5 | B95: 11 | C95: 436 | D95: -1 | E95: 574 | F95: 191 | G95: 119.88 | H95: 771 | I95: 6336 | J95: 221.17 | K95: 171.43 | L95: 81 | M95: 230 | N95: 245 | O95: 17 | P95: 1
A96: 5 | B96: 11 | C96: 437 | D96: -1 | E96: 210 | F96: 68 | G96: 139.84 | H96: 610 | I96: 5066 | J96: 191.85 | K96: 151.29 | L96: 31 | M96: 69 | N96: 96 | O96: 10 | P96: 4
A97: 5 | B97: 11 | C97: 438 | D97: -1 | E97: 459 | F97: 163 | G97: 129.46 | H97: 885 | I97: 9202 | J97: 195.52 | K97: 113.85 | L97: 33 | M97: 192 | N97: 225 | O97: 9
A98: 5 | B98: 11 | C98: 442 | D98: -1 | E98: 182 | F98: 67 | G98: 168.34 | H98: 266 | I98: 2070 | J98: 270.89 | K98: 153.12 | L98: 35 | M98: 75 | N98: 52 | O98: 18 | P98: 2
A99: 5 | B99: 11 | C99: 452 | D99: -1 | E99: 384 | F99: 115 | G99: 118.65 | H99: 816 | I99: 6373 | J99: 183.67 | K99: 156.86 | L99: 76 | M99: 156 | N99: 105 | O99: 42 | P99: 5
A100: 5 | B100: 11 | C100: 459 | D100: -1 | E100: 317 | F100: 99 | G100: 115.6 | H100: 792 | I100: 6228 | J100: 164.66 | K100: 145.24 | L100: 36 | M100: 131 | N100: 148 | O100: 2
A101: 5 | B101: 11 | C101: 460 | D101: -1 | E101: 80 | F101: 28 | G101: 114.29 | H101: 238 | I101: 1880 | J101: 210.24 | K101: 174.25 | L101: 17 | M101: 35 | N101: 26 | O101: 2
A102: 5 | B102: 11 | C102: 463 | D102: -1 | E102: 231 | F102: 103 | G102: 153.07 | H102: 354 | I102: 2045 | J102: 234.71 | K102: 182.59 | L102: 38 | M102: 97 | N102: 74 | O102: 19 | P102: 3
A103: 5 | B103: 11 | C103: 499 | D103: -1 | E103: 478756 | F103: 157069 | G103: 140.64 | H103: 113 | I103: 1037 | J103: 108.81 | K103: 172.06 | L103: 2937 | M103: 283639 | N103: 192105 | O103: 75
A104: 5 | B104: 11 | C104: 100 | D104: -1 | E104: 565379 | F104: 191858 | G104: 145.75 | H104: 136216 | I104: 1042617 | J104: 171.65 | K104: 143.11 | L104: 13230 | M104: 325755 | N104: 220836 | O104: 4176 | P104: 1379
A105: 5 | B105: 12 | C105: -1 | D105: -1 | E105: 517 | F105: 51 | G105: 41.57 | H105: 1362 | I105: 12750 | J105: 53.82 | K105: 39.49 | L105: 423 | M105: 63 | N105: 17 | O105: 13 | P105: 1
A106: 5 | B106: 12 | C106: 310 | D106: -1 | E106: 15 | G106: 8 | H106: 4 | I106: 180 | J106: 4.75 | K106: 22.84 | L106: 13 | M106: 2
A107: 5 | B107: 12 | C107: 330 | D107: -1 | E107: 686 | F107: 161 | G107: 92.58 | H107: 1382 | I107: 11642 | J107: 95.3 | K107: 67.26 | L107: 126 | M107: 245 | N107: 30 | O107: 202 | P107: 83
A108: 5 | B108: 12 | C108: 335 | D108: -1 | E108: 759 | F108: 131 | G108: 80.26 | H108: 1614 | I108: 12198 | J108: 78.3 | K108: 62.12 | L108: 164 | M108: 274 | N108: 82 | O108: 225 | P108: 14
A109: 5 | B109: 12 | C109: 499 | D109: -1 | E109: 21378 | F109: 3718 | G109: 86.98 | H109: 9 | I109: 57 | J109: 31.11 | K109: 103.44 | L109: 6299 | M109: 12551 | N109: 2275 | O109: 251 | P109: 2
A110: 5 | B110: 12 | C110: 100 | D110: -1 | E110: 23355 | F110: 4061 | G110: 85.87 | H110: 4371 | I110: 36827 | J110: 75.88 | K110: 55.78 | L110: 7025 | M110: 13135 | N110: 2404 | O110: 691 | P110: 100
A111: 5 | B111: 13 | C111: -1 | D111: -1 | E111: 3 | F111: 2 | G111: 199.67 | H111: 5 | I111: 38 | J111: 37.4 | K111: 39.92 | M111: 2 | O111: 1
A112: 5 | B112: 13 | C112: 301 | D112: -1 | E112: 5 | F112: 2 | G112: 165.4 | H112: 7 | I112: 145 | J112: 61.57 | K112: 109.57 | M112: 2 | N112: 3
A113: 5 | B113: 13 | C113: 304 | D113: -1 | E113: 3 | F113: 1 | G113: 141.67 | H113: 8 | I113: 165 | J113: 79.63 | K113: 89.41 | M113: 1 | N113: 2
A114: 5 | B114: 13 | C114: 306 | D114: -1 | E114: 6 | F114: 2 | G114: 124 | H114: 23 | I114: 269 | J114: 111.87 | K114: 92.33 | M114: 2 | N114: 3 | O114: 1
A115: 5 | B115: 13 | C115: 307 | D115: -1 | E115: 4 | F115: 1 | G115: 90.25 | H115: 13 | I115: 207 | J115: 85 | K115: 100.72 | M115: 2 | N115: 2
A116: 5 | B116: 13 | C116: 308 | D116: -1 | E116: 10 | F116: 2 | G116: 61.2 | H116: 15 | I116: 215 | J116: 88.73 | K116: 105.01 | M116: 6 | N116: 2 | O116: 2
A117: 5 | B117: 13 | C117: 309 | D117: -1 | E117: 2 | F117: 1 | G117: 118.5 | H117: 11 | I117: 168 | J117: 77.64 | K117: 112.43 | N117: 2
A118: 5 | B118: 13 | C118: 310 | D118: -1 | E118: 21 | F118: 5 | G118: 99.52 | H118: 33 | I118: 265 | J118: 70.27 | K118: 92.52 | M118: 11 | N118: 10
A119: 5 | B119: 13 | C119: 311 | D119: -1 | E119: 32 | F119: 14 | G119: 128.88 | H119: 59 | I119: 564 | J119: 177.02 | K119: 132.67 | M119: 17 | N119: 14 | P119: 1
A120: 5 | B120: 13 | C120: 313 | D120: -1 | E120: 10 | F120: 4 | G120: 162.6 | H120: 19 | I120: 316 | J120: 110.05 | K120: 101.55 | M120: 5 | N120: 5
A121: 5 | B121: 13 | C121: 314 | D121: -1 | E121: 23 | F121: 4 | G121: 69.74 | H121: 106 | I121: 1039 | J121: 63.4 | K121: 61.87 | M121: 10 | N121: 13
A122: 5 | B122: 13 | C122: 315 | D122: -1 | E122: 4 | F122: 2 | G122: 167.5 | H122: 12 | I122: 192 | J122: 77.08 | K122: 103.32 | N122: 4
A123: 5 | B123: 13 | C123: 316 | D123: -1 | E123: 66 | F123: 11 | G123: 90.52 | H123: 192 | I123: 2012 | J123: 52.08 | K123: 62.76 | M123: 16 | N123: 47 | O123: 1 | P123: 2
A124: 5 | B124: 13 | C124: 317 | D124: -1 | E124: 40 | F124: 8 | G124: 97.95 | H124: 81 | I124: 769 | J124: 68.57 | K124: 51.08 | M124: 15 | N124: 20 | O124: 5
A125: 5 | B125: 13 | C125: 318 | D125: -1 | E125: 47 | F125: 1 | G125: 36.57 | H125: 232 | I125: 2450 | J125: 32.87 | K125: 46.89 | M125: 14 | N125: 24 | O125: 6 | P125: 3
A126: 5 | B126: 13 | C126: 319 | D126: -1 | E126: 41 | F126: 2 | G126: 42.76 | H126: 128 | I126: 1576 | J126: 48.41 | K126: 45.65 | M126: 12 | N126: 25 | O126: 4
A127: 5 | B127: 13 | C127: 320 | D127: -1 | E127: 45 | F127: 6 | G127: 71.07 | H127: 124 | I127: 1314 | J127: 34.83 | K127: 37.22 | M127: 9 | N127: 30 | O127: 6
A128: 5 | B128: 13 | C128: 321 | D128: -1 | E128: 8 | F128: 2 | G128: 87.63 | H128: 15 | I128: 206 | J128: 121.47 | K128: 105.81 | M128: 1 | N128: 5 | O128: 2
A129: 5 | B129: 13 | C129: 322 | D129: -1 | E129: 16 | F129: 5 | G129: 139.56 | H129: 16 | I129: 180 | J129: 124.69 | K129: 138.04 | L129: 1 | M129: 3 | N129: 11 | O129: 1
A130: 5 | B130: 13 | C130: 323 | D130: -1 | E130: 13 | F130: 1 | G130: 75.23 | H130: 16 | I130: 174 | J130: 224.56 | K130: 124.93 | M130: 3 | N130: 10
A131: 5 | B131: 13 | C131: 325 | D131: -1 | E131: 10 | F131: 2 | G131: 126.4 | H131: 16 | I131: 223 | J131: 127.81 | K131: 107.98 | M131: 3 | N131: 2 | P131: 5
A132: 5 | B132: 13 | C132: 326 | D132: -1 | E132: 14 | F132: 2 | G132: 70.29 | H132: 34 | I132: 305 | J132: 73.35 | K132: 98.66 | M132: 4 | N132: 10
A133: 5 | B133: 13 | C133: 327 | D133: -1 | E133: 5 | F133: 2 | G133: 133.4 | H133: 22 | I133: 210 | J133: 166.18 | K133: 107.13 | M133: 4 | P133: 1
A134: 5 | B134: 13 | C134: 328 | D134: -1 | E134: 9 | F134: 1 | G134: 97.78 | H134: 12 | I134: 180 | J134: 141.92 | K134: 111.49 | M134: 3 | N134: 6
A135: 5 | B135: 13 | C135: 329 | D135: -1 | E135: 4 | F135: 1 | G135: 115.25 | H135: 8 | I135: 124 | J135: 58.88 | K135: 94.43 | M135: 2 | N135: 2
A136: 5 | B136: 13 | C136: 330 | D136: -1 | E136: 5 | F136: 1 | G136: 210.6 | H136: 10 | I136: 160 | J136: 100.9 | K136: 118.68 | M136: 2 | N136: 2 | P136: 1
A137: 5 | B137: 13 | C137: 331 | D137: -1 | E137: 25 | F137: 8 | G137: 114.08 | H137: 56 | I137: 492 | J137: 117.57 | K137: 109.35 | M137: 8 | N137: 16 | O137: 1
A138: 5 | B138: 13 | C138: 333 | D138: -1 | E138: 5 | F138: 2 | G138: 110 | H138: 6 | I138: 149 | J138: 118.67 | K138: 87.06 | M138: 2 | N138: 3
A139: 5 | B139: 13 | C139: 334 | D139: -1 | E139: 7 | F139: 3 | G139: 130.71 | H139: 14 | I139: 267 | J139: 77.79 | K139: 92.57 | M139: 4 | N139: 3
A140: 5 | B140: 13 | C140: 335 | D140: -1 | E140: 9 | F140: 5 | G140: 114.33 | H140: 10 | I140: 146 | J140: 63.2 | K140: 81.57 | M140: 5 | N140: 4
A141: 5 | B141: 13 | C141: 339 | D141: -1 | E141: 14 | F141: 1 | G141: 66.43 | H141: 20 | I141: 281 | J141: 101.3 | K141: 103.24 | M141: 5 | N141: 9
A142: 5 | B142: 13 | C142: 340 | D142: -1 | E142: 9 | G142: 43.11 | H142: 10 | I142: 176 | J142: 80.4 | K142: 107.22 | M142: 3 | N142: 6
A143: 5 | B143: 13 | C143: 341 | D143: -1 | E143: 15 | F143: 1 | G143: 50.13 | H143: 33 | I143: 128 | J143: 70.36 | K143: 76.27 | M143: 3 | N143: 8 | O143: 4
A144: 5 | B144: 13 | C144: 343 | D144: -1 | E144: 10 | F144: 3 | G144: 134.1 | H144: 11 | I144: 27 | J144: 102 | K144: 82.15 | M144: 2 | N144: 7 | O144: 1
A145: 5 | B145: 13 | C145: 344 | D145: -1 | E145: 15 | F145: 6 | G145: 178.73 | H145: 23 | I145: 391 | J145: 154.91 | K145: 102.09 | M145: 6 | N145: 9
A146: 5 | B146: 13 | C146: 345 | D146: -1 | E146: 16 | F146: 4 | G146: 93.06 | H146: 59 | I146: 692 | J146: 67.53 | K146: 53.88 | M146: 8 | N146: 7 | O146: 1
A147: 5 | B147: 13 | C147: 346 | D147: -1 | E147: 19 | F147: 4 | G147: 94.84 | H147: 31 | I147: 388 | J147: 266.74 | K147: 106.59 | M147: 9 | N147: 9 | P147: 1
A148: 5 | B148: 13 | C148: 347 | D148: -1 | E148: 1 | F148: 1 | G148: 218 | H148: 14 | I148: 168 | J148: 83.86 | K148: 115.68 | M148: 1
A149: 5 | B149: 13 | C149: 348 | D149: -1 | E149: 20 | F149: 8 | G149: 169.05 | H149: 19 | I149: 271 | J149: 100.89 | K149: 102.42 | M149: 12 | N149: 8
A150: 5 | B150: 13 | C150: 349 | D150: -1 | E150: 61 | F150: 12 | G150: 82.48 | H150: 177 | I150: 1938 | J150: 42.28 | K150: 48.67 | M150: 16 | N150: 36 | O150: 5 | P150: 4
A151: 5 | B151: 13 | C151: 350 | D151: -1 | E151: 5 | F151: 2 | G151: 184.6 | H151: 9 | I151: 144 | J151: 166.11 | K151: 97.22 | N151: 5
A152: 5 | B152: 13 | C152: 351 | D152: -1 | E152: 33 | F152: 7 | G152: 71.09 | H152: 135 | I152: 1429 | J152: 43.59 | K152: 43.19 | M152: 10 | N152: 21 | O152: 1 | P152: 1
A153: 5 | B153: 13 | C153: 354 | D153: -1 | E153: 4 | G153: 37.5 | H153: 10 | I153: 145 | J153: 53.5 | K153: 94.43 | N153: 3 | O153: 1
A154: 5 | B154: 13 | C154: 355 | D154: -1 | E154: 5 | G154: 35.8 | H154: 4 | I154: 114 | J154: 82.75 | K154: 118.54 | M154: 2 | N154: 3
A155: 5 | B155: 13 | C155: 358 | D155: -1 | E155: 8 | G155: 39.13 | H155: 20 | I155: 223 | J155: 77.7 | K155: 93.7 | M155: 6 | N155: 2
A156: 5 | B156: 13 | C156: 362 | D156: -1 | E156: 51 | F156: 9 | G156: 67.16 | H156: 186 | I156: 1631 | J156: 47.14 | K156: 46.13 | M156: 14 | N156: 31 | O156: 3 | P156: 3
A157: 5 | B157: 13 | C157: 373 | D157: -1 | E157: 3 | F157: 3 | G157: 305.33 | H157: 4 | I157: 151 | J157: 235 | K157: 106.97 | M157: 2 | N157: 1
A158: 5 | B158: 13 | C158: 377 | D158: -1 | E158: 74 | F158: 8 | G158: 79.23 | H158: 229 | I158: 1933 | J158: 37.42 | K158: 43.75 | M158: 26 | N158: 45 | O158: 3
A159: 5 | B159: 13 | C159: 402 | D159: -1 | E159: 3 | F159: 1 | G159: 116.33 | H159: 11 | I159: 159 | J159: 174.09 | K159: 108.05 | M159: 1 | N159: 1 | O159: 1
A160: 5 | B160: 13 | C160: 405 | D160: -1 | E160: 3 | F160: 1 | G160: 118.67 | H160: 8 | I160: 129 | J160: 61.5 | K160: 103.84 | M160: 1 | N160: 2
A161: 5 | B161: 13 | C161: 436 | D161: -1 | E161: 8 | F161: 2 | G161: 136.25 | H161: 9 | I161: 142 | J161: 98.11 | K161: 96.89 | L161: 1 | M161: 1 | N161: 6
A162: 5 | B162: 13 | C162: 437 | D162: -1 | E162: 3 | F162: 1 | G162: 205 | H162: 12 | I162: 169 | J162: 44.42 | K162: 102.21 | M162: 2 | N162: 1
A163: 5 | B163: 13 | C163: 438 | D163: -1 | E163: 2 | G163: 56 | H163: 9 | I163: 103 | J163: 44.33 | K163: 87.64 | N163: 2
A164: 5 | B164: 13 | C164: 442 | D164: -1 | E164: 6 | F164: 1 | G164: 78.5 | H164: 3 | I164: 96 | J164: 109.67 | K164: 103.45 | M164: 1 | N164: 4 | P164: 1
A165: 5 | B165: 13 | C165: 452 | D165: -1 | E165: 2 | F165: 1 | G165: 101.5 | H165: 14 | I165: 180 | J165: 94.64 | K165: 123.21 | M165: 1 | N165: 1
A166: 5 | B166: 13 | C166: 459 | D166: -1 | E166: 7 | F166: 1 | G166: 95.43 | H166: 14 | I166: 234 | J166: 71.07 | K166: 76.29 | M166: 3 | N166: 4
A167: 5 | B167: 13 | C167: 460 | D167: -1 | E167: 1 | G167: 54 | H167: 6 | I167: 106 | J167: 131.83 | K167: 111.99 | N167: 1
A168: 5 | B168: 13 | C168: 463 | D168: -1 | H168: 15 | I168: 160 | J168: 84.8 | K168: 96.36
A169: 5 | B169: 13 | C169: 499 | D169: -1 | E169: 2719 | F169: 753 | G169: 121.2 | M169: 2589 | N169: 107 | O169: 21 | P169: 2
A170: 5 | B170: 13 | C170: 100 | D170: -1 | E170: 3609 | F170: 933 | G170: 113.78 | H170: 2398 | I170: 26228 | J170: 67.05 | K170: 68.74 | L170: 2 | M170: 2892 | N170: 619 | O170: 71 | P170: 25
A171: 5 | B171: 14 | C171: -1 | D171: -1 | H171: 1 | I171: 4 | J171: 306 | K171: 214.25
A172: 5 | B172: 14 | C172: 499 | D172: -1 | E172: 2 | G172: 37 | N172: 2
A173: 5 | B173: 14 | C173: 100 | D173: -1 | E173: 2 | G173: 37 | H173: 1 | I173: 4 | J173: 306 | K173: 214.25 | N173: 2
A174: 5 | B174: 0 | C174: 35 | D174: -1 | E174: 512930 | F174: 169106 | G174: 143.32 | H174: 2531 | I174: 24681 | J174: 114.36 | K174: 117.96 | L174: 11073 | M174: 306925 | N174: 194540 | O174: 383 | P174: 9
A175: 5 | B175: 0 | C175: 384 | D175: -1 | E175: 17184 | F175: 5970 | G175: 144.19 | H175: 31166 | I175: 234065 | J175: 166.16 | K175: 140.77 | L175: 1954 | M175: 7303 | N175: 6472 | O175: 1153 | P175: 302
A176: 5 | B176: 0 | C176: 393 | D176: -1 | E176: 24525 | F176: 8892 | G176: 146.43 | H176: 45386 | I176: 350340 | J176: 166.52 | K176: 139.67 | L176: 2820 | M176: 10656 | N176: 9582 | O176: 1069 | P176: 396
A177: 5 | B177: 0 | C177: 394 | D177: -1 | E177: 20652 | F177: 6867 | G177: 133.89 | H177: 34651 | I177: 267406 | J177: 172.56 | K177: 138.7 | L177: 2600 | M177: 9507 | N177: 7041 | O177: 1045 | P177: 458
A178: 5 | B178: 0 | C178: 395 | D178: -1 | E178: 17054 | F178: 6017 | G178: 144.81 | H178: 29252 | I178: 229184 | J178: 166.45 | K178: 136.08 | L178: 1810 | M178: 7391 | N178: 6226 | O178: 1288 | P178: 339
A179: 5 | B179: 11 | C179: 35 | D179: -1 | E179: 488723 | F179: 164621 | G179: 145.93 | H179: 1167 | I179: 12062 | J179: 186.78 | K179: 204.05 | L179: 4683 | M179: 291770 | N179: 192156 | O179: 109 | P179: 5
A180: 5 | B180: 11 | C180: 384 | D180: -1 | E180: 16156 | F180: 5789 | G180: 148.33 | H180: 28956 | I180: 215299 | J180: 173.44 | K180: 147.71 | L180: 1730 | M180: 6965 | N180: 6264 | O180: 919 | P180: 278
A181: 5 | B181: 11 | C181: 393 | D181: -1 | E181: 24056 | F181: 8821 | G181: 147.89 | H181: 44421 | I181: 339814 | J181: 168.88 | K181: 142.09 | L181: 2709 | M181: 10541 | N181: 9375 | O181: 1039 | P181: 390
A182: 5 | B182: 11 | C182: 394 | D182: -1 | E182: 19672 | F182: 6649 | G182: 136.2 | H182: 32912 | I182: 251222 | J182: 176.46 | K182: 142.64 | L182: 2370 | M182: 9173 | N182: 6924 | O182: 836 | P182: 368
A183: 5 | B183: 11 | C183: 395 | D183: -1 | E183: 16772 | F183: 5978 | G183: 146.03 | H183: 28760 | I183: 224220 | J183: 168.01 | K183: 137.51 | L183: 1738 | M183: 7306 | N183: 6117 | O183: 1273 | P183: 338
A184: 5 | B184: 13 | C184: 35 | D184: -1 | E184: 2722 | F184: 755 | G184: 121.29 | H184: 5 | I184: 38 | J184: 37.4 | K184: 39.92 | M184: 2591 | N184: 107 | O184: 22 | P184: 2
A185: 5 | B185: 13 | C185: 384 | D185: -1 | E185: 201 | F185: 44 | G185: 83.17 | H185: 595 | I185: 6531 | J185: 50.53 | K185: 58.5 | L185: 1 | M185: 61 | N185: 121 | O185: 9 | P185: 9
A186: 5 | B186: 13 | C186: 393 | D186: -1 | E186: 318 | F186: 46 | G186: 77.1 | H186: 957 | I186: 10380 | J186: 56.67 | K186: 58.17 | L186: 1 | M186: 89 | N186: 197 | O186: 25 | P186: 6
A187: 5 | B187: 13 | C187: 394 | D187: -1 | E187: 170 | F187: 52 | G187: 118.91 | H187: 353 | I187: 4343 | J187: 113.96 | K187: 107.43 | M187: 72 | N187: 86 | O187: 5 | P187: 7
A188: 5 | B188: 13 | C188: 395 | D188: -1 | E188: 198 | F188: 36 | G188: 96.19 | H188: 488 | I188: 4936 | J188: 73.93 | K188: 70.71 | M188: 79 | N188: 108 | O188: 10 | P188: 1
A189: 6 | B189: 0 | C189: 100 | D189: -1 | E189: 592345 | F189: 196852 | G189: 143.19 | H189: 142986 | I189: 1105676 | J189: 166.97 | K189: 138.44
A190: 6 | B190: 11 | C190: 100 | D190: -1 | E190: 564710 | F190: 191706 | G190: 145.92 | H190: 134215 | I190: 1029519 | J190: 172.53 | K190: 143.8
A191: 6 | B191: 11 | C191: AK | D191: -1 | E191: 1917 | F191: 711 | G191: 152.87 | H191: 444 | I191: 3054 | J191: 170.21 | K191: 143
A192: 6 | B192: 11 | C192: AL | D192: -1 | E192: 13776 | F192: 4274 | G192: 138 | H192: 3370 | I192: 26288 | J192: 171.78 | K192: 144.21
A193: 6 | B193: 11 | C193: AR | D193: -1 | E193: 6300 | F193: 2231 | G193: 156.92 | H193: 1487 | I193: 11262 | J193: 191.41 | K193: 153.9
A194: 6 | B194: 11 | C194: AZ | D194: -1 | E194: 12662 | F194: 4542 | G194: 152.48 | H194: 3033 | I194: 23376 | J194: 176.22 | K194: 144.06
A195: 6 | B195: 11 | C195: CA | D195: -1 | E195: 46115 | F195: 15399 | G195: 146.16 | H195: 10973 | I195: 83150 | J195: 169.86 | K195: 139.48
A196: 6 | B196: 11 | C196: CO | D196: -1 | E196: 10945 | F196: 3384 | G196: 136.95 | H196: 2728 | I196: 21140 | J196: 160.48 | K196: 130.62
A197: 6 | B197: 11 | C197: CT | D197: -1 | E197: 3159 | F197: 1165 | G197: 161.48 | H197: 799 | I197: 5604 | J197: 193.65 | K197: 158.32
A198: 6 | B198: 11 | C198: DC | D198: -1 | E198: 717 | F198: 234 | G198: 141.43 | H198: 175 | I198: 1221 | J198: 162.92 | K198: 143.07
A199: 6 | B199: 11 | C199: DE | D199: -1 | E199: 1658 | F199: 532 | G199: 137.54 | H199: 387 | I199: 2969 | J199: 168.69 | K199: 142.94
A200: 6 | B200: 11 | C200: FL | D200: -1 | E200: 52370 | F200: 18288 | G200: 144.19 | H200: 11881 | I200: 91389 | J200: 171.71 | K200: 142.87
... 2027 more rows

Sheet DT (hidden)
A1: ST_DATE
A2: 2022-05-28

Sheet Rating Bundle - SOO
C2: DISTRICT SELECTOR | D2: Compensation and Pension Rating Bundle Metrics | L2: Report through
D3: Station of Origin View | L3: =D_DT[] -> 2022-05-28
D4: The Station of Origination (SOO) primarily represents pending claims based on geographic boundaries | L4: ADP = Average Days Pending | O4: MTD = Month to Date
D5: Each Special Mission has distinct claim counts | L5: ADC = Average Days to Complete | O5: FYTD = Fiscal Year to Date
D6: When Special Mission is set to Pension, BDD, or Quickstart, the District Selector has no impact.
L7: Accuracy metrics are available on Rating Bundle - SOJ tab
D8: CLAIM METRICS | L8: ACCURACY METRICS
C9: SPECIAL MISSION SELECTOR | D9: # Pending | E9: # Pending > 125 Days | F9: % Pending > 125 Days | G9: ADP | H9: # Completed MTD | I9: ADC MTD | J9: # Completed FYTD | K9: ADC FYTD | L9: Accuracy measurement is available on the Rating Bundle SOJ tab
A12: 100 | C12: =Driver!$C$20& " Total" -> USA - All Missions Total | D12: =IF(ISNA($A12),"",IFERROR(SUMIFS(D_D[INV],D_D[MT],4,D_D[CAT],SMS,D_D[LOC],$A12),0)) -> 592345 | E12: =IF(ISNA($A12),"",IFERROR(SUMIFS(D_D[BL],D_D[MT],4,D_D[CAT],SMS,D_D[LOC],$A12),0)) -> 196852 | F12: =IF(ISNA($A12),"",IFERROR(E12/D12,0)) -> 0.3323266002 | G12: =IF(ISNA($A12),"",IFERROR(SUMIFS(D_D[ADP],D_D[MT],4,D_D[CAT],SMS,D_D[LOC],$A12),0)) -> 143.19 | H12: =IF(ISNA($A12),"",IFERROR(SUMIFS(D_D[PROD_MTD],D_D[MT],4,D_D[CAT],SMS,D_D[LOC],$A12),0)) -> 142986 | I12: =IF(ISNA($A12),"",IFERROR(SUMIFS(D_D[ADCM],D_D[MT],4,D_D[CAT],SMS,D_D[LOC],$A12),0)) -> 166.97 | J12: =IF(ISNA($A12),"",IFERROR(SUMIFS(D_D[PROD_FYTD],D_D[MT],4,D_D[CAT],SMS,D_D[LOC],$A12),0)) -> 1105676 | K12: =IF(ISNA($A12),"",IFERROR(SUMIFS(D_D[ADCF],D_D[MT],4,D_D[CAT],SMS,D_D[LOC],$A12),0)) -> 138.44
A13: =INDEX(RO,(MATCH($C13,RO_D,0))) -> 395 | B13: 1 | C13: =IFERROR(INDEX(INDIRECT(DS_RO),B13),"") -> Pacific District | D13: =IF(ISNA($A13),"",IFERROR(SUMIFS(D_D[INV],D_D[MT],4,D_D[CAT],SMS,D_D[LOC],$A13),0)) -> 82310 | E13: =IF(ISNA($A13),"",IFERROR(SUMIFS(D_D[BL],D_D[MT],4,D_D[CAT],SMS,D_D[LOC],$A13),0)) -> 27595 | F13: =IF(ISNA($A13),"",IFERROR(E13/D13,0)) -> 0.3352569554 | G13: =IF(ISNA($A13),"",IFERROR(SUMIFS(D_D[ADP],D_D[MT],4,D_D[CAT],SMS,D_D[LOC],$A13),0)) -> 148.63 | H13: =IF(ISNA($A13),"",IFERROR(SUMIFS(D_D[PROD_MTD],D_D[MT],4,D_D[CAT],SMS,D_D[LOC],$A13),0)) -> 21316 | I13: =IF(ISNA($A13),"",IFERROR(SUMIFS(D_D[ADCM],D_D[MT],4,D_D[CAT],SMS,D_D[LOC],$A13),0)) -> 158.8 | J13: =IF(ISNA($A13),"",IFERROR(SUMIFS(D_D[PROD_FYTD],D_D[MT],4,D_D[CAT],SMS,D_D[LOC],$A13),0)) -> 159599 | K13: =IF(ISNA($A13),"",IFERROR(SUMIFS(D_D[ADCF],D_D[MT],4,D_D[CAT],SMS,D_D[LOC],$A13),0)) -> 129.42
A14: 340 | B14: 2 | C14: Albuquerque | D14: =IF(ISNA($A14),"",IFERROR(SUMIFS(D_D[INV],D_D[MT],4,D_D[CAT],SMS,D_D[LOC],$A14),0)) -> 2694 | E14: =IF(ISNA($A14),"",IFERROR(SUMIFS(D_D[BL],D_D[MT],4,D_D[CAT],SMS,D_D[LOC],$A14),0)) -> 871 | F14: =IF(ISNA($A14),"",IFERROR(E14/D14,0)) -> 0.3233110616 | G14: =IF(ISNA($A14),"",IFERROR(SUMIFS(D_D[ADP],D_D[MT],4,D_D[CAT],SMS,D_D[LOC],$A14),0)) -> 145.05 | H14: =IF(ISNA($A14),"",IFERROR(SUMIFS(D_D[PROD_MTD],D_D[MT],4,D_D[CAT],SMS,D_D[LOC],$A14),0)) -> 617 | I14: =IF(ISNA($A14),"",IFERROR(SUMIFS(D_D[ADCM],D_D[MT],4,D_D[CAT],SMS,D_D[LOC],$A14),0)) -> 175.56 | J14: =IF(ISNA($A14),"",IFERROR(SUMIFS(D_D[PROD_FYTD],D_D[MT],4,D_D[CAT],SMS,D_D[LOC],$A14),0)) -> 4648 | K14: =IF(ISNA($A14),"",IFERROR(SUMIFS(D_D[ADCF],D_D[MT],4,D_D[CAT],SMS,D_D[LOC],$A14),0)) -> 156.27
A15: 463 | B15: 3 | C15: =IFERROR(INDEX(INDIRECT(DS_RO),B15),"") -> Anchorage | D15: =IF(ISNA($A15),"",IFERROR(SUMIFS(D_D[INV],D_D[MT],4,D_D[CAT],SMS,D_D[LOC],$A15),0)) -> 1451 | E15: =IF(ISNA($A15),"",IFERROR(SUMIFS(D_D[BL],D_D[MT],4,D_D[CAT],SMS,D_D[LOC],$A15),0)) -> 478 | F15: =IF(ISNA($A15),"",IFERROR(E15/D15,0)) -> 0.3294279807 | G15: =IF(ISNA($A15),"",IFERROR(SUMIFS(D_D[ADP],D_D[MT],4,D_D[CAT],SMS,D_D[LOC],$A15),0)) -> 150.64 | H15: =IF(ISNA($A15),"",IFERROR(SUMIFS(D_D[PROD_MTD],D_D[MT],4,D_D[CAT],SMS,D_D[LOC],$A15),0)) -> 335 | I15: =IF(ISNA($A15),"",IFERROR(SUMIFS(D_D[ADCM],D_D[MT],4,D_D[CAT],SMS,D_D[LOC],$A15),0)) -> 166.38 | J15: =IF(ISNA($A15),"",IFERROR(SUMIFS(D_D[PROD_FYTD],D_D[MT],4,D_D[CAT],SMS,D_D[LOC],$A15),0)) -> 2280 | K15: =IF(ISNA($A15),"",IFERROR(SUMIFS(D_D[ADCF],D_D[MT],4,D_D[CAT],SMS,D_D[LOC],$A15),0)) -> 153.47
A16: 347 | B16: 4 | C16: Boise | D16: =IF(ISNA($A16),"",IFERROR(SUMIFS(D_D[INV],D_D[MT],4,D_D[CAT],SMS,D_D[LOC],$A16),0)) -> 2422 | E16: =IF(ISNA($A16),"",IFERROR(SUMIFS(D_D[BL],D_D[MT],4,D_D[CAT],SMS,D_D[LOC],$A16),0)) -> 880 | F16: 0.3633360859 | G16: =IF(ISNA($A16),"",IFERROR(SUMIFS(D_D[ADP],D_D[MT],4,D_D[CAT],SMS,D_D[LOC],$A16),0)) -> 151.32 | H16: =IF(ISNA($A16),"",IFERROR(SUMIFS(D_D[PROD_MTD],D_D[MT],4,D_D[CAT],SMS,D_D[LOC],$A16),0)) -> 539 | I16: =IF(ISNA($A16),"",IFERROR(SUMIFS(D_D[ADCM],D_D[MT],4,D_D[CAT],SMS,D_D[LOC],$A16),0)) -> 180.43 | J16: =IF(ISNA($A16),"",IFERROR(SUMIFS(D_D[PROD_FYTD],D_D[MT],4,D_D[CAT],SMS,D_D[LOC],$A16),0)) -> 4174 | K16: =IF(ISNA($A16),"",IFERROR(SUMIFS(D_D[ADCF],D_D[MT],4,D_D[CAT],SMS,D_D[LOC],$A16),0)) -> 136.39
A17: 459 | B17: 5 | C17: Honolulu | D17: =IF(ISNA($A17),"",IFERROR(SUMIFS(D_D[INV],D_D[MT],4,D_D[CAT],SMS,D_D[LOC],$A17),0)) -> 3454 | E17: =IF(ISNA($A17),"",IFERROR(SUMIFS(D_D[BL],D_D[MT],4,D_D[CAT],SMS,D_D[LOC],$A17),0)) -> 1066 | F17: 0.3086276781 | G17: =IF(ISNA($A17),"",IFERROR(SUMIFS(D_D[ADP],D_D[MT],4,D_D[CAT],SMS,D_D[LOC],$A17),0)) -> 127.96 | H17: =IF(ISNA($A17),"",IFERROR(SUMIFS(D_D[PROD_MTD],D_D[MT],4,D_D[CAT],SMS,D_D[LOC],$A17),0)) -> 796 | I17: =IF(ISNA($A17),"",IFERROR(SUMIFS(D_D[ADCM],D_D[MT],4,D_D[CAT],SMS,D_D[LOC],$A17),0)) -> 164.06 | J17: =IF(ISNA($A17),"",IFERROR(SUMIFS(D_D[PROD_FYTD],D_D[MT],4,D_D[CAT],SMS,D_D[LOC],$A17),0)) -> 5730 | K17: =IF(ISNA($A17),"",IFERROR(SUMIFS(D_D[ADCF],D_D[MT],4,D_D[CAT],SMS,D_D[LOC],$A17),0)) -> 135.72
A18: 344 | B18: 6 | C18: Los Angeles | D18: =IF(ISNA($A18),"",IFERROR(SUMIFS(D_D[INV],D_D[MT],4,D_D[CAT],SMS,D_D[LOC],$A18),0)) -> 10917 | E18: =IF(ISNA($A18),"",IFERROR(SUMIFS(D_D[BL],D_D[MT],4,D_D[CAT],SMS,D_D[LOC],$A18),0)) -> 3211 | F18: 0.2941284236 | G18: =IF(ISNA($A18),"",IFERROR(SUMIFS(D_D[ADP],D_D[MT],4,D_D[CAT],SMS,D_D[LOC],$A18),0)) -> 123.75 | H18: =IF(ISNA($A18),"",IFERROR(SUMIFS(D_D[PROD_MTD],D_D[MT],4,D_D[CAT],SMS,D_D[LOC],$A18),0)) -> 2545 | I18: =IF(ISNA($A18),"",IFERROR(SUMIFS(D_D[ADCM],D_D[MT],4,D_D[CAT],SMS,D_D[LOC],$A18),0)) -> 152.67 | J18: =IF(ISNA($A18),"",IFERROR(SUMIFS(D_D[PROD_FYTD],D_D[MT],4,D_D[CAT],SMS,D_D[LOC],$A18),0)) -> 18743 | K18: =IF(ISNA($A18),"",IFERROR(SUMIFS(D_D[ADCF],D_D[MT],4,D_D[CAT],SMS,D_D[LOC],$A18),0)) -> 118.49
A19: 358 | B19: 7 | C19: Manila | D19: =IF(ISNA($A19),"",IFERROR(SUMIFS(D_D[INV],D_D[MT],4,D_D[CAT],SMS,D_D[LOC],$A19),0)) -> 457 | E19: =IF(ISNA($A19),"",IFERROR(SUMIFS(D_D[BL],D_D[MT],4,D_D[CAT],SMS,D_D[LOC],$A19),0)) -> 184 | F19: 0.4026258206 | G19: =IF(ISNA($A19),"",IFERROR(SUMIFS(D_D[ADP],D_D[MT],4,D_D[CAT],SMS,D_D[LOC],$A19),0)) -> 169.11 | H19: =IF(ISNA($A19),"",IFERROR(SUMIFS(D_D[PROD_MTD],D_D[MT],4,D_D[CAT],SMS,D_D[LOC],$A19),0)) -> 133 | I19: =IF(ISNA($A19),"",IFERROR(SUMIFS(D_D[ADCM],D_D[MT],4,D_D[CAT],SMS,D_D[LOC],$A19),0)) -> 172.65 | J19: =IF(ISNA($A19),"",IFERROR(SUMIFS(D_D[PROD_FYTD],D_D[MT],4,D_D[CAT],SMS,D_D[LOC],$A19),0)) -> 844 | K19: =IF(ISNA($A19),"",IFERROR(SUMIFS(D_D[ADCF],D_D[MT],4,D_D[CAT],SMS,D_D[LOC],$A19),0)) -> 141.86
A20: 343 | B20: 8 | C20: Oakland | D20: =IF(ISNA($A20),"",IFERROR(SUMIFS(D_D[INV],D_D[MT],4,D_D[CAT],SMS,D_D[LOC],$A20),0)) -> 11843 | E20: =IF(ISNA($A20),"",IFERROR(SUMIFS(D_D[BL],D_D[MT],4,D_D[CAT],SMS,D_D[LOC],$A20),0)) -> 3877 | F20: 0.3273663768 | G20: =IF(ISNA($A20),"",IFERROR(SUMIFS(D_D[ADP],D_D[MT],4,D_D[CAT],SMS,D_D[LOC],$A20),0)) -> 140.51 | H20: =IF(ISNA($A20),"",IFERROR(SUMIFS(D_D[PROD_MTD],D_D[MT],4,D_D[CAT],SMS,D_D[LOC],$A20),0)) -> 2759 | I20: =IF(ISNA($A20),"",IFERROR(SUMIFS(D_D[ADCM],D_D[MT],4,D_D[CAT],SMS,D_D[LOC],$A20),0)) -> 163.03 | J20: =IF(ISNA($A20),"",IFERROR(SUMIFS(D_D[PROD_FYTD],D_D[MT],4,D_D[CAT],SMS,D_D[LOC],$A20),0)) -> 19813 | K20: =IF(ISNA($A20),"",IFERROR(SUMIFS(D_D[ADCF],D_D[MT],4,D_D[CAT],SMS,D_D[LOC],$A20),0)) -> 134.18
A21: 345 | B21: 9 | C21: Phoenix | D21: =IF(ISNA($A21),"",IFERROR(SUMIFS(D_D[INV],D_D[MT],4,D_D[CAT],SMS,D_D[LOC],$A21),0)) -> 8528 | E21: =IF(ISNA($A21),"",IFERROR(SUMIFS(D_D[BL],D_D[MT],4,D_D[CAT],SMS,D_D[LOC],$A21),0)) -> 2867 | F21: 0.3361866792 | G21: =IF(ISNA($A21),"",IFERROR(SUMIFS(D_D[ADP],D_D[MT],4,D_D[CAT],SMS,D_D[LOC],$A21),0)) -> 144.49 | H21: =IF(ISNA($A21),"",IFERROR(SUMIFS(D_D[PROD_MTD],D_D[MT],4,D_D[CAT],SMS,D_D[LOC],$A21),0)) -> 1983 | I21: =IF(ISNA($A21),"",IFERROR(SUMIFS(D_D[ADCM],D_D[MT],4,D_D[CAT],SMS,D_D[LOC],$A21),0)) -> 162.85 | J21: =IF(ISNA($A21),"",IFERROR(SUMIFS(D_D[PROD_FYTD],D_D[MT],4,D_D[CAT],SMS,D_D[LOC],$A21),0)) -> 14565 | K21: =IF(ISNA($A21),"",IFERROR(SUMIFS(D_D[ADCF],D_D[MT],4,D_D[CAT],SMS,D_D[LOC],$A21),0)) -> 139.37
A22: 348 | B22: 10 | C22: Portland | D22: =IF(ISNA($A22),"",IFERROR(SUMIFS(D_D[INV],D_D[MT],4,D_D[CAT],SMS,D_D[LOC],$A22),0)) -> 4639 | E22: =IF(ISNA($A22),"",IFERROR(SUMIFS(D_D[BL],D_D[MT],4,D_D[CAT],SMS,D_D[LOC],$A22),0)) -> 1634 | F22: 0.3522310843 | G22: =IF(ISNA($A22),"",IFERROR(SUMIFS(D_D[ADP],D_D[MT],4,D_D[CAT],SMS,D_D[LOC],$A22),0)) -> 155.52 | H22: =IF(ISNA($A22),"",IFERROR(SUMIFS(D_D[PROD_MTD],D_D[MT],4,D_D[CAT],SMS,D_D[LOC],$A22),0)) -> 1050 | I22: =IF(ISNA($A22),"",IFERROR(SUMIFS(D_D[ADCM],D_D[MT],4,D_D[CAT],SMS,D_D[LOC],$A22),0)) -> 185.31 | J22: =IF(ISNA($A22),"",IFERROR(SUMIFS(D_D[PROD_FYTD],D_D[MT],4,D_D[CAT],SMS,D_D[LOC],$A22),0)) -> 7677 | K22: =IF(ISNA($A22),"",IFERROR(SUMIFS(D_D[ADCF],D_D[MT],4,D_D[CAT],SMS,D_D[LOC],$A22),0)) -> 157.55
A23: 354 | B23: 11 | C23: Reno | D23: =IF(ISNA($A23),"",IFERROR(SUMIFS(D_D[INV],D_D[MT],4,D_D[CAT],SMS,D_D[LOC],$A23),0)) -> 5580 | E23: =IF(ISNA($A23),"",IFERROR(SUMIFS(D_D[BL],D_D[MT],4,D_D[CAT],SMS,D_D[LOC],$A23),0)) -> 1799 | F23: 0.3224014337 | G23: =IF(ISNA($A23),"",IFERROR(SUMIFS(D_D[ADP],D_D[MT],4,D_D[CAT],SMS,D_D[LOC],$A23),0)) -> 137.56 | H23: =IF(ISNA($A23),"",IFERROR(SUMIFS(D_D[PROD_MTD],D_D[MT],4,D_D[CAT],SMS,D_D[LOC],$A23),0)) -> 1213 | I23: =IF(ISNA($A23),"",IFERROR(SUMIFS(D_D[ADCM],D_D[MT],4,D_D[CAT],SMS,D_D[LOC],$A23),0)) -> 171.52 | J23: =IF(ISNA($A23),"",IFERROR(SUMIFS(D_D[PROD_FYTD],D_D[MT],4,D_D[CAT],SMS,D_D[LOC],$A23),0)) -> 8774 | K23: =IF(ISNA($A23),"",IFERROR(SUMIFS(D_D[ADCF],D_D[MT],4,D_D[CAT],SMS,D_D[LOC],$A23),0)) -> 136.51
A24: 341 | B24: 12 | C24: Salt Lake City | D24: =IF(ISNA($A24),"",IFERROR(SUMIFS(D_D[INV],D_D[MT],4,D_D[CAT],SMS,D_D[LOC],$A24),0)) -> 4951 | E24: =IF(ISNA($A24),"",IFERROR(SUMIFS(D_D[BL],D_D[MT],4,D_D[CAT],SMS,D_D[LOC],$A24),0)) -> 2691 | F24: 0.5435265603 | G24: =IF(ISNA($A24),"",IFERROR(SUMIFS(D_D[ADP],D_D[MT],4,D_D[CAT],SMS,D_D[LOC],$A24),0)) -> 222.79 | H24: =IF(ISNA($A24),"",IFERROR(SUMIFS(D_D[PROD_MTD],D_D[MT],4,D_D[CAT],SMS,D_D[LOC],$A24),0)) -> 1012 | I24: =IF(ISNA($A24),"",IFERROR(SUMIFS(D_D[ADCM],D_D[MT],4,D_D[CAT],SMS,D_D[LOC],$A24),0)) -> 223.11 | J24: =IF(ISNA($A24),"",IFERROR(SUMIFS(D_D[PROD_FYTD],D_D[MT],4,D_D[CAT],SMS,D_D[LOC],$A24),0)) -> 7059 | K24: =IF(ISNA($A24),"",IFERROR(SUMIFS(D_D[ADCF],D_D[MT],4,D_D[CAT],SMS,D_D[LOC],$A24),0)) -> 186.3
A25: 377 | B25: 13 | C25: San Diego | D25: =IF(ISNA($A25),"",IFERROR(SUMIFS(D_D[INV],D_D[MT],4,D_D[CAT],SMS,D_D[LOC],$A25),0)) -> 12834 | E25: =IF(ISNA($A25),"",IFERROR(SUMIFS(D_D[BL],D_D[MT],4,D_D[CAT],SMS,D_D[LOC],$A25),0)) -> 3756 | F25: 0.2926601216 | G25: =IF(ISNA($A25),"",IFERROR(SUMIFS(D_D[ADP],D_D[MT],4,D_D[CAT],SMS,D_D[LOC],$A25),0)) -> 140.13 | H25: =IF(ISNA($A25),"",IFERROR(SUMIFS(D_D[PROD_MTD],D_D[MT],4,D_D[CAT],SMS,D_D[LOC],$A25),0)) -> 3189 | I25: =IF(ISNA($A25),"",IFERROR(SUMIFS(D_D[ADCM],D_D[MT],4,D_D[CAT],SMS,D_D[LOC],$A25),0)) -> 173.23 | J25: =IF(ISNA($A25),"",IFERROR(SUMIFS(D_D[PROD_FYTD],D_D[MT],4,D_D[CAT],SMS,D_D[LOC],$A25),0)) -> 25360 | K25: =IF(ISNA($A25),"",IFERROR(SUMIFS(D_D[ADCF],D_D[MT],4,D_D[CAT],SMS,D_D[LOC],$A25),0)) -> 134
A26: 346 | B26: 14 | C26: Seattle | D26: =IF(ISNA($A26),"",IFERROR(SUMIFS(D_D[INV],D_D[MT],4,D_D[CAT],SMS,D_D[LOC],$A26),0)) -> 12540 | E26: =IF(ISNA($A26),"",IFERROR(SUMIFS(D_D[BL],D_D[MT],4,D_D[CAT],SMS,D_D[LOC],$A26),0)) -> 4281 | F26: 0.3413875598 | G26: =IF(ISNA($A26),"",IFERROR(SUMIFS(D_D[ADP],D_D[MT],4,D_D[CAT],SMS,D_D[LOC],$A26),0)) -> 167.56 | H26: =IF(ISNA($A26),"",IFERROR(SUMIFS(D_D[PROD_MTD],D_D[MT],4,D_D[CAT],SMS,D_D[LOC],$A26),0)) -> 5145 | I26: =IF(ISNA($A26),"",IFERROR(SUMIFS(D_D[ADCM],D_D[MT],4,D_D[CAT],SMS,D_D[LOC],$A26),0)) -> 122.07 | J26: =IF(ISNA($A26),"",IFERROR(SUMIFS(D_D[PROD_FYTD],D_D[MT],4,D_D[CAT],SMS,D_D[LOC],$A26),0)) -> 39932 | K26: =IF(ISNA($A26),"",IFERROR(SUMIFS(D_D[ADCF],D_D[MT],4,D_D[CAT],SMS,D_D[LOC],$A26),0)) -> 102.23
B27: 15 | D27: =IF(ISNA($A27),"",IFERROR(SUMIFS(D_D[INV],D_D[MT],4,D_D[CAT],SMS,D_D[LOC],$A27),0)) ->  | E27: =IF(ISNA($A27),"",IFERROR(SUMIFS(D_D[BL],D_D[MT],4,D_D[CAT],SMS,D_D[LOC],$A27),0)) ->  | G27: =IF(ISNA($A27),"",IFERROR(SUMIFS(D_D[ADP],D_D[MT],4,D_D[CAT],SMS,D_D[LOC],$A27),0)) ->  | H27: =IF(ISNA($A27),"",IFERROR(SUMIFS(D_D[PROD_MTD],D_D[MT],4,D_D[CAT],SMS,D_D[LOC],$A27),0)) ->  | I27: =IF(ISNA($A27),"",IFERROR(SUMIFS(D_D[ADCM],D_D[MT],4,D_D[CAT],SMS,D_D[LOC],$A27),0)) ->  | J27: =IF(ISNA($A27),"",IFERROR(SUMIFS(D_D[PROD_FYTD],D_D[MT],4,D_D[CAT],SMS,D_D[LOC],$A27),0)) ->  | K27: =IF(ISNA($A27),"",IFERROR(SUMIFS(D_D[ADCF],D_D[MT],4,D_D[CAT],SMS,D_D[LOC],$A27),0)) -> 
B28: 16 | D28: =IF(ISNA($A28),"",IFERROR(SUMIFS(D_D[INV],D_D[MT],4,D_D[CAT],SMS,D_D[LOC],$A28),0)) ->  | E28: =IF(ISNA($A28),"",IFERROR(SUMIFS(D_D[BL],D_D[MT],4,D_D[CAT],SMS,D_D[LOC],$A28),0)) ->  | G28: =IF(ISNA($A28),"",IFERROR(SUMIFS(D_D[ADP],D_D[MT],4,D_D[CAT],SMS,D_D[LOC],$A28),0)) ->  | H28: =IF(ISNA($A28),"",IFERROR(SUMIFS(D_D[PROD_MTD],D_D[MT],4,D_D[CAT],SMS,D_D[LOC],$A28),0)) ->  | I28: =IF(ISNA($A28),"",IFERROR(SUMIFS(D_D[ADCM],D_D[MT],4,D_D[CAT],SMS,D_D[LOC],$A28),0)) ->  | J28: =IF(ISNA($A28),"",IFERROR(SUMIFS(D_D[PROD_FYTD],D_D[MT],4,D_D[CAT],SMS,D_D[LOC],$A28),0)) ->  | K28: =IF(ISNA($A28),"",IFERROR(SUMIFS(D_D[ADCF],D_D[MT],4,D_D[CAT],SMS,D_D[LOC],$A28),0)) -> 
B29: 17 | D29: =IF(ISNA($A29),"",IFERROR(SUMIFS(D_D[INV],D_D[MT],4,D_D[CAT],SMS,D_D[LOC],$A29),0)) ->  | E29: =IF(ISNA($A29),"",IFERROR(SUMIFS(D_D[BL],D_D[MT],4,D_D[CAT],SMS,D_D[LOC],$A29),0)) ->  | G29: =IF(ISNA($A29),"",IFERROR(SUMIFS(D_D[ADP],D_D[MT],4,D_D[CAT],SMS,D_D[LOC],$A29),0)) ->  | H29: =IF(ISNA($A29),"",IFERROR(SUMIFS(D_D[PROD_MTD],D_D[MT],4,D_D[CAT],SMS,D_D[LOC],$A29),0)) ->  | I29: =IF(ISNA($A29),"",IFERROR(SUMIFS(D_D[ADCM],D_D[MT],4,D_D[CAT],SMS,D_D[LOC],$A29),0)) ->  | J29: =IF(ISNA($A29),"",IFERROR(SUMIFS(D_D[PROD_FYTD],D_D[MT],4,D_D[CAT],SMS,D_D[LOC],$A29),0)) ->  | K29: =IF(ISNA($A29),"",IFERROR(SUMIFS(D_D[ADCF],D_D[MT],4,D_D[CAT],SMS,D_D[LOC],$A29),0)) -> 
B30: 18 | D30: =IF(ISNA($A30),"",IFERROR(SUMIFS(D_D[INV],D_D[MT],4,D_D[CAT],SMS,D_D[LOC],$A30),0)) ->  | E30: =IF(ISNA($A30),"",IFERROR(SUMIFS(D_D[BL],D_D[MT],4,D_D[CAT],SMS,D_D[LOC],$A30),0)) ->  | G30: =IF(ISNA($A30),"",IFERROR(SUMIFS(D_D[ADP],D_D[MT],4,D_D[CAT],SMS,D_D[LOC],$A30),0)) ->  | H30: =IF(ISNA($A30),"",IFERROR(SUMIFS(D_D[PROD_MTD],D_D[MT],4,D_D[CAT],SMS,D_D[LOC],$A30),0)) ->  | I30: =IF(ISNA($A30),"",IFERROR(SUMIFS(D_D[ADCM],D_D[MT],4,D_D[CAT],SMS,D_D[LOC],$A30),0)) ->  | J30: =IF(ISNA($A30),"",IFERROR(SUMIFS(D_D[PROD_FYTD],D_D[MT],4,D_D[CAT],SMS,D_D[LOC],$A30),0)) ->  | K30: =IF(ISNA($A30),"",IFERROR(SUMIFS(D_D[ADCF],D_D[MT],4,D_D[CAT],SMS,D_D[LOC],$A30),0)) -> 
B31: 19 | D31: =IF(ISNA($A31),"",IFERROR(SUMIFS(D_D[INV],D_D[MT],4,D_D[CAT],SMS,D_D[LOC],$A31),0)) ->  | E31: =IF(ISNA($A31),"",IFERROR(SUMIFS(D_D[BL],D_D[MT],4,D_D[CAT],SMS,D_D[LOC],$A31),0)) ->  | G31: =IF(ISNA($A31),"",IFERROR(SUMIFS(D_D[ADP],D_D[MT],4,D_D[CAT],SMS,D_D[LOC],$A31),0)) ->  | H31: =IF(ISNA($A31),"",IFERROR(SUMIFS(D_D[PROD_MTD],D_D[MT],4,D_D[CAT],SMS,D_D[LOC],$A31),0)) ->  | I31: =IF(ISNA($A31),"",IFERROR(SUMIFS(D_D[ADCM],D_D[MT],4,D_D[CAT],SMS,D_D[LOC],$A31),0)) ->  | J31: =IF(ISNA($A31),"",IFERROR(SUMIFS(D_D[PROD_FYTD],D_D[MT],4,D_D[CAT],SMS,D_D[LOC],$A31),0)) ->  | K31: =IF(ISNA($A31),"",IFERROR(SUMIFS(D_D[ADCF],D_D[MT],4,D_D[CAT],SMS,D_D[LOC],$A31),0)) -> 
B32: 20 | D32: =IF(ISNA($A32),"",IFERROR(SUMIFS(D_D[INV],D_D[MT],4,D_D[CAT],SMS,D_D[LOC],$A32),0)) ->  | E32: =IF(ISNA($A32),"",IFERROR(SUMIFS(D_D[BL],D_D[MT],4,D_D[CAT],SMS,D_D[LOC],$A32),0)) ->  | G32: =IF(ISNA($A32),"",IFERROR(SUMIFS(D_D[ADP],D_D[MT],4,D_D[CAT],SMS,D_D[LOC],$A32),0)) ->  | H32: =IF(ISNA($A32),"",IFERROR(SUMIFS(D_D[PROD_MTD],D_D[MT],4,D_D[CAT],SMS,D_D[LOC],$A32),0)) ->  | I32: =IF(ISNA($A32),"",IFERROR(SUMIFS(D_D[ADCM],D_D[MT],4,D_D[CAT],SMS,D_D[LOC],$A32),0)) ->  | J32: =IF(ISNA($A32),"",IFERROR(SUMIFS(D_D[PROD_FYTD],D_D[MT],4,D_D[CAT],SMS,D_D[LOC],$A32),0)) ->  | K32: =IF(ISNA($A32),"",IFERROR(SUMIFS(D_D[ADCF],D_D[MT],4,D_D[CAT],SMS,D_D[LOC],$A32),0)) -> 
B33: 21 | D33: =IF(ISNA($A33),"",IFERROR(SUMIFS(D_D[INV],D_D[MT],4,D_D[CAT],SMS,D_D[LOC],$A33),0)) ->  | E33: =IF(ISNA($A33),"",IFERROR(SUMIFS(D_D[BL],D_D[MT],4,D_D[CAT],SMS,D_D[LOC],$A33),0)) ->  | G33: =IF(ISNA($A33),"",IFERROR(SUMIFS(D_D[ADP],D_D[MT],4,D_D[CAT],SMS,D_D[LOC],$A33),0)) ->  | H33: =IF(ISNA($A33),"",IFERROR(SUMIFS(D_D[PROD_MTD],D_D[MT],4,D_D[CAT],SMS,D_D[LOC],$A33),0)) ->  | I33: =IF(ISNA($A33),"",IFERROR(SUMIFS(D_D[ADCM],D_D[MT],4,D_D[CAT],SMS,D_D[LOC],$A33),0)) ->  | J33: =IF(ISNA($A33),"",IFERROR(SUMIFS(D_D[PROD_FYTD],D_D[MT],4,D_D[CAT],SMS,D_D[LOC],$A33),0)) ->  | K33: =IF(ISNA($A33),"",IFERROR(SUMIFS(D_D[ADCF],D_D[MT],4,D_D[CAT],SMS,D_D[LOC],$A33),0)) -> 
B34: 22 | D34: =IF(ISNA($A34),"",IFERROR(SUMIFS(D_D[INV],D_D[MT],4,D_D[CAT],SMS,D_D[LOC],$A34),0)) ->  | E34: =IF(ISNA($A34),"",IFERROR(SUMIFS(D_D[BL],D_D[MT],4,D_D[CAT],SMS,D_D[LOC],$A34),0)) ->  | G34: =IF(ISNA($A34),"",IFERROR(SUMIFS(D_D[ADP],D_D[MT],4,D_D[CAT],SMS,D_D[LOC],$A34),0)) ->  | H34: =IF(ISNA($A34),"",IFERROR(SUMIFS(D_D[PROD_MTD],D_D[MT],4,D_D[CAT],SMS,D_D[LOC],$A34),0)) ->  | I34: =IF(ISNA($A34),"",IFERROR(SUMIFS(D_D[ADCM],D_D[MT],4,D_D[CAT],SMS,D_D[LOC],$A34),0)) ->  | J34: =IF(ISNA($A34),"",IFERROR(SUMIFS(D_D[PROD_FYTD],D_D[MT],4,D_D[CAT],SMS,D_D[LOC],$A34),0)) ->  | K34: =IF(ISNA($A34),"",IFERROR(SUMIFS(D_D[ADCF],D_D[MT],4,D_D[CAT],SMS,D_D[LOC],$A34),0)) -> 
B35: 23 | D35: =IF(ISNA($A35),"",IFERROR(SUMIFS(D_D[INV],D_D[MT],4,D_D[CAT],SMS,D_D[LOC],$A35),0)) ->  | E35: =IF(ISNA($A35),"",IFERROR(SUMIFS(D_D[BL],D_D[MT],4,D_D[CAT],SMS,D_D[LOC],$A35),0)) ->  | G35: =IF(ISNA($A35),"",IFERROR(SUMIFS(D_D[ADP],D_D[MT],4,D_D[CAT],SMS,D_D[LOC],$A35),0)) ->  | H35: =IF(ISNA($A35),"",IFERROR(SUMIFS(D_D[PROD_MTD],D_D[MT],4,D_D[CAT],SMS,D_D[LOC],$A35),0)) ->  | I35: =IF(ISNA($A35),"",IFERROR(SUMIFS(D_D[ADCM],D_D[MT],4,D_D[CAT],SMS,D_D[LOC],$A35),0)) ->  | J35: =IF(ISNA($A35),"",IFERROR(SUMIFS(D_D[PROD_FYTD],D_D[MT],4,D_D[CAT],SMS,D_D[LOC],$A35),0)) ->  | K35: =IF(ISNA($A35),"",IFERROR(SUMIFS(D_D[ADCF],D_D[MT],4,D_D[CAT],SMS,D_D[LOC],$A35),0)) -> 

Sheet Rating Bundle - State
C2: DISTRICT SELECTOR | D2: Compensation and Pension Rating Bundle Metrics | L2: Report through
D3: State View | L3: =D_DT[] -> 2022-05-28
D4: The State listed is based on the address associated with the claim, not payment address | L4: ADP = Average Days Pending | O4: MTD = Month to Date
D5: Each Special Mission has distinct claim counts | L5: ADC = Average Days to Complete | O5: FYTD = Fiscal Year to Date
D6: When Special Mission is set to Pension, BDD, or Quickstart, the District Selector has no impact.
L7: Accuracy metrics are available on Rating Bundle - SOJ tab
D8: CLAIM METRICS | L8: ACCURACY METRICS
C9: SPECIAL MISSION SELECTOR | D9: # Pending | E9: # Pending > 125 Days | F9: % Pending > 125 Days | G9: ADP | H9: # Completed MTD | I9: ADC MTD | J9: # Completed FYTD | K9: ADC FYTD | L9: Accuracy measurement is available on the Rating Bundle SOJ tab
A12: 100 | C12: =Driver!$C$20& " Total" -> USA - All Missions Total | D12: =IF(ISNA($A12),"",IFERROR(SUMIFS(D_D[INV],D_D[MT],6,D_D[CAT],SMS,D_D[LOC],$A12),0)) -> 592345 | E12: =IF(ISNA($A12),"",IFERROR(SUMIFS(D_D[BL],D_D[MT],6,D_D[CAT],SMS,D_D[LOC],$A12),0)) -> 196852 | F12: =IF(ISNA($A12),"",IFERROR(E12/D12,0)) -> 0.3323266002 | G12: =IF(ISNA($A12),"",IFERROR(SUMIFS(D_D[ADP],D_D[MT],6,D_D[CAT],SMS,D_D[LOC],$A12),0)) -> 143.19 | H12: =IF(ISNA($A12),"",IFERROR(SUMIFS(D_D[PROD_MTD],D_D[MT],6,D_D[CAT],SMS,D_D[LOC],$A12),0)) -> 142986 | I12: =IF(ISNA($A12),"",IFERROR(SUMIFS(D_D[ADCM],D_D[MT],6,D_D[CAT],SMS,D_D[LOC],$A12),0)) -> 166.97 | J12: =IF(ISNA($A12),"",IFERROR(SUMIFS(D_D[PROD_FYTD],D_D[MT],6,D_D[CAT],SMS,D_D[LOC],$A12),0)) -> 1105676 | K12: =IF(ISNA($A12),"",IFERROR(SUMIFS(D_D[ADCF],D_D[MT],6,D_D[CAT],SMS,D_D[LOC],$A12),0)) -> 138.44
A13: =INDEX(STATE,(MATCH($C13,STATE_D,0))) -> 395 | B13: 1 | C13: =IFERROR(INDEX(INDIRECT(DS_ST),B13),"") -> Pacific District | D13: =IF(ISNA($A13),"",IFERROR(SUMIFS(D_D[INV],D_D[MT],6,D_D[CAT],SMS,D_D[LOC],$A13),0)) -> 106884 | E13: =IF(ISNA($A13),"",IFERROR(SUMIFS(D_D[BL],D_D[MT],6,D_D[CAT],SMS,D_D[LOC],$A13),0)) -> 36699 | F13: =IF(ISNA($A13),"",IFERROR(E13/D13,0)) -> 0.3433535422 | G13: =IF(ISNA($A13),"",IFERROR(SUMIFS(D_D[ADP],D_D[MT],6,D_D[CAT],SMS,D_D[LOC],$A13),0)) -> 147.82 | H13: =IF(ISNA($A13),"",IFERROR(SUMIFS(D_D[PROD_MTD],D_D[MT],6,D_D[CAT],SMS,D_D[LOC],$A13),0)) -> 25720 | I13: =IF(ISNA($A13),"",IFERROR(SUMIFS(D_D[ADCM],D_D[MT],6,D_D[CAT],SMS,D_D[LOC],$A13),0)) -> 168.88 | J13: =IF(ISNA($A13),"",IFERROR(SUMIFS(D_D[PROD_FYTD],D_D[MT],6,D_D[CAT],SMS,D_D[LOC],$A13),0)) -> 195954 | K13: =IF(ISNA($A13),"",IFERROR(SUMIFS(D_D[ADCF],D_D[MT],6,D_D[CAT],SMS,D_D[LOC],$A13),0)) -> 137.84
A14: AK | B14: 2 | C14: Alaska | D14: =IF(ISNA($A14),"",IFERROR(SUMIFS(D_D[INV],D_D[MT],6,D_D[CAT],SMS,D_D[LOC],$A14),0)) -> 1997 | E14: =IF(ISNA($A14),"",IFERROR(SUMIFS(D_D[BL],D_D[MT],6,D_D[CAT],SMS,D_D[LOC],$A14),0)) -> 736 | F14: =IF(ISNA($A14),"",IFERROR(E14/D14,0)) -> 0.3685528292 | G14: =IF(ISNA($A14),"",IFERROR(SUMIFS(D_D[ADP],D_D[MT],6,D_D[CAT],SMS,D_D[LOC],$A14),0)) -> 151.32 | H14: =IF(ISNA($A14),"",IFERROR(SUMIFS(D_D[PROD_MTD],D_D[MT],6,D_D[CAT],SMS,D_D[LOC],$A14),0)) -> 471 | I14: =IF(ISNA($A14),"",IFERROR(SUMIFS(D_D[ADCM],D_D[MT],6,D_D[CAT],SMS,D_D[LOC],$A14),0)) -> 164.82 | J14: =IF(ISNA($A14),"",IFERROR(SUMIFS(D_D[PROD_FYTD],D_D[MT],6,D_D[CAT],SMS,D_D[LOC],$A14),0)) -> 3313 | K14: =IF(ISNA($A14),"",IFERROR(SUMIFS(D_D[ADCF],D_D[MT],6,D_D[CAT],SMS,D_D[LOC],$A14),0)) -> 137.8
A15: AZ | B15: 3 | C15: =IFERROR(INDEX(INDIRECT(DS_ST),B15),"") -> Arizona | D15: =IF(ISNA($A15),"",IFERROR(SUMIFS(D_D[INV],D_D[MT],6,D_D[CAT],SMS,D_D[LOC],$A15),0)) -> 13353 | E15: =IF(ISNA($A15),"",IFERROR(SUMIFS(D_D[BL],D_D[MT],6,D_D[CAT],SMS,D_D[LOC],$A15),0)) -> 4654 | F15: =IF(ISNA($A15),"",IFERROR(E15/D15,0)) -> 0.3485359095 | G15: =IF(ISNA($A15),"",IFERROR(SUMIFS(D_D[ADP],D_D[MT],6,D_D[CAT],SMS,D_D[LOC],$A15),0)) -> 148.68 | H15: =IF(ISNA($A15),"",IFERROR(SUMIFS(D_D[PROD_MTD],D_D[MT],6,D_D[CAT],SMS,D_D[LOC],$A15),0)) -> 3277 | I15: =IF(ISNA($A15),"",IFERROR(SUMIFS(D_D[ADCM],D_D[MT],6,D_D[CAT],SMS,D_D[LOC],$A15),0)) -> 168.94 | J15: =IF(ISNA($A15),"",IFERROR(SUMIFS(D_D[PROD_FYTD],D_D[MT],6,D_D[CAT],SMS,D_D[LOC],$A15),0)) -> 25360 | K15: =IF(ISNA($A15),"",IFERROR(SUMIFS(D_D[ADCF],D_D[MT],6,D_D[CAT],SMS,D_D[LOC],$A15),0)) -> 138.21
A16: CA | B16: 4 | C16: California | D16: =IF(ISNA($A16),"",IFERROR(SUMIFS(D_D[INV],D_D[MT],6,D_D[CAT],SMS,D_D[LOC],$A16),0)) -> 48381 | E16: =IF(ISNA($A16),"",IFERROR(SUMIFS(D_D[BL],D_D[MT],6,D_D[CAT],SMS,D_D[LOC],$A16),0)) -> 15782 | F16: 0.3262024348 | G16: =IF(ISNA($A16),"",IFERROR(SUMIFS(D_D[ADP],D_D[MT],6,D_D[CAT],SMS,D_D[LOC],$A16),0)) -> 143.24 | H16: =IF(ISNA($A16),"",IFERROR(SUMIFS(D_D[PROD_MTD],D_D[MT],6,D_D[CAT],SMS,D_D[LOC],$A16),0)) -> 11713 | I16: =IF(ISNA($A16),"",IFERROR(SUMIFS(D_D[ADCM],D_D[MT],6,D_D[CAT],SMS,D_D[LOC],$A16),0)) -> 164.29 | J16: =IF(ISNA($A16),"",IFERROR(SUMIFS(D_D[PROD_FYTD],D_D[MT],6,D_D[CAT],SMS,D_D[LOC],$A16),0)) -> 89370 | K16: =IF(ISNA($A16),"",IFERROR(SUMIFS(D_D[ADCF],D_D[MT],6,D_D[CAT],SMS,D_D[LOC],$A16),0)) -> 134.35
A17: HI | B17: 5 | C17: Hawaii | D17: =IF(ISNA($A17),"",IFERROR(SUMIFS(D_D[INV],D_D[MT],6,D_D[CAT],SMS,D_D[LOC],$A17),0)) -> 3551 | E17: =IF(ISNA($A17),"",IFERROR(SUMIFS(D_D[BL],D_D[MT],6,D_D[CAT],SMS,D_D[LOC],$A17),0)) -> 1219 | F17: 0.3432835821 | G17: =IF(ISNA($A17),"",IFERROR(SUMIFS(D_D[ADP],D_D[MT],6,D_D[CAT],SMS,D_D[LOC],$A17),0)) -> 147.95 | H17: =IF(ISNA($A17),"",IFERROR(SUMIFS(D_D[PROD_MTD],D_D[MT],6,D_D[CAT],SMS,D_D[LOC],$A17),0)) -> 938 | I17: =IF(ISNA($A17),"",IFERROR(SUMIFS(D_D[ADCM],D_D[MT],6,D_D[CAT],SMS,D_D[LOC],$A17),0)) -> 159.57 | J17: =IF(ISNA($A17),"",IFERROR(SUMIFS(D_D[PROD_FYTD],D_D[MT],6,D_D[CAT],SMS,D_D[LOC],$A17),0)) -> 6718 | K17: =IF(ISNA($A17),"",IFERROR(SUMIFS(D_D[ADCF],D_D[MT],6,D_D[CAT],SMS,D_D[LOC],$A17),0)) -> 136.22
A18: ID | B18: 6 | C18: Idaho | D18: =IF(ISNA($A18),"",IFERROR(SUMIFS(D_D[INV],D_D[MT],6,D_D[CAT],SMS,D_D[LOC],$A18),0)) -> 3514 | E18: =IF(ISNA($A18),"",IFERROR(SUMIFS(D_D[BL],D_D[MT],6,D_D[CAT],SMS,D_D[LOC],$A18),0)) -> 1331 | F18: 0.3787706318 | G18: =IF(ISNA($A18),"",IFERROR(SUMIFS(D_D[ADP],D_D[MT],6,D_D[CAT],SMS,D_D[LOC],$A18),0)) -> 158.51 | H18: =IF(ISNA($A18),"",IFERROR(SUMIFS(D_D[PROD_MTD],D_D[MT],6,D_D[CAT],SMS,D_D[LOC],$A18),0)) -> 833 | I18: =IF(ISNA($A18),"",IFERROR(SUMIFS(D_D[ADCM],D_D[MT],6,D_D[CAT],SMS,D_D[LOC],$A18),0)) -> 180.8 | J18: =IF(ISNA($A18),"",IFERROR(SUMIFS(D_D[PROD_FYTD],D_D[MT],6,D_D[CAT],SMS,D_D[LOC],$A18),0)) -> 6522 | K18: =IF(ISNA($A18),"",IFERROR(SUMIFS(D_D[ADCF],D_D[MT],6,D_D[CAT],SMS,D_D[LOC],$A18),0)) -> 141.08
A19: NV | B19: 7 | C19: Nevada | D19: =IF(ISNA($A19),"",IFERROR(SUMIFS(D_D[INV],D_D[MT],6,D_D[CAT],SMS,D_D[LOC],$A19),0)) -> 8173 | E19: =IF(ISNA($A19),"",IFERROR(SUMIFS(D_D[BL],D_D[MT],6,D_D[CAT],SMS,D_D[LOC],$A19),0)) -> 2715 | F19: 0.3321913618 | G19: =IF(ISNA($A19),"",IFERROR(SUMIFS(D_D[ADP],D_D[MT],6,D_D[CAT],SMS,D_D[LOC],$A19),0)) -> 141.67 | H19: =IF(ISNA($A19),"",IFERROR(SUMIFS(D_D[PROD_MTD],D_D[MT],6,D_D[CAT],SMS,D_D[LOC],$A19),0)) -> 1924 | I19: =IF(ISNA($A19),"",IFERROR(SUMIFS(D_D[ADCM],D_D[MT],6,D_D[CAT],SMS,D_D[LOC],$A19),0)) -> 173.44 | J19: =IF(ISNA($A19),"",IFERROR(SUMIFS(D_D[PROD_FYTD],D_D[MT],6,D_D[CAT],SMS,D_D[LOC],$A19),0)) -> 14126 | K19: =IF(ISNA($A19),"",IFERROR(SUMIFS(D_D[ADCF],D_D[MT],6,D_D[CAT],SMS,D_D[LOC],$A19),0)) -> 139.39
A20: NM | B20: 8 | C20: New Mexico | D20: =IF(ISNA($A20),"",IFERROR(SUMIFS(D_D[INV],D_D[MT],6,D_D[CAT],SMS,D_D[LOC],$A20),0)) -> 4195 | E20: =IF(ISNA($A20),"",IFERROR(SUMIFS(D_D[BL],D_D[MT],6,D_D[CAT],SMS,D_D[LOC],$A20),0)) -> 1515 | F20: 0.3611442193 | G20: =IF(ISNA($A20),"",IFERROR(SUMIFS(D_D[ADP],D_D[MT],6,D_D[CAT],SMS,D_D[LOC],$A20),0)) -> 150.81 | H20: =IF(ISNA($A20),"",IFERROR(SUMIFS(D_D[PROD_MTD],D_D[MT],6,D_D[CAT],SMS,D_D[LOC],$A20),0)) -> 968 | I20: =IF(ISNA($A20),"",IFERROR(SUMIFS(D_D[ADCM],D_D[MT],6,D_D[CAT],SMS,D_D[LOC],$A20),0)) -> 175.11 | J20: =IF(ISNA($A20),"",IFERROR(SUMIFS(D_D[PROD_FYTD],D_D[MT],6,D_D[CAT],SMS,D_D[LOC],$A20),0)) -> 7447 | K20: =IF(ISNA($A20),"",IFERROR(SUMIFS(D_D[ADCF],D_D[MT],6,D_D[CAT],SMS,D_D[LOC],$A20),0)) -> 145.3
A21: OR | B21: 9 | C21: Oregon | D21: =IF(ISNA($A21),"",IFERROR(SUMIFS(D_D[INV],D_D[MT],6,D_D[CAT],SMS,D_D[LOC],$A21),0)) -> 7287 | E21: =IF(ISNA($A21),"",IFERROR(SUMIFS(D_D[BL],D_D[MT],6,D_D[CAT],SMS,D_D[LOC],$A21),0)) -> 2911 | F21: 0.3994785234 | G21: =IF(ISNA($A21),"",IFERROR(SUMIFS(D_D[ADP],D_D[MT],6,D_D[CAT],SMS,D_D[LOC],$A21),0)) -> 171.36 | H21: =IF(ISNA($A21),"",IFERROR(SUMIFS(D_D[PROD_MTD],D_D[MT],6,D_D[CAT],SMS,D_D[LOC],$A21),0)) -> 1638 | I21: =IF(ISNA($A21),"",IFERROR(SUMIFS(D_D[ADCM],D_D[MT],6,D_D[CAT],SMS,D_D[LOC],$A21),0)) -> 194.06 | J21: =IF(ISNA($A21),"",IFERROR(SUMIFS(D_D[PROD_FYTD],D_D[MT],6,D_D[CAT],SMS,D_D[LOC],$A21),0)) -> 12539 | K21: =IF(ISNA($A21),"",IFERROR(SUMIFS(D_D[ADCF],D_D[MT],6,D_D[CAT],SMS,D_D[LOC],$A21),0)) -> 161.06
A22: PI | B22: 10 | C22: Philippines | D22: =IF(ISNA($A22),"",IFERROR(SUMIFS(D_D[INV],D_D[MT],6,D_D[CAT],SMS,D_D[LOC],$A22),0)) -> 0 | E22: =IF(ISNA($A22),"",IFERROR(SUMIFS(D_D[BL],D_D[MT],6,D_D[CAT],SMS,D_D[LOC],$A22),0)) -> 0 | F22: 0 | G22: =IF(ISNA($A22),"",IFERROR(SUMIFS(D_D[ADP],D_D[MT],6,D_D[CAT],SMS,D_D[LOC],$A22),0)) -> 0 | H22: =IF(ISNA($A22),"",IFERROR(SUMIFS(D_D[PROD_MTD],D_D[MT],6,D_D[CAT],SMS,D_D[LOC],$A22),0)) -> 0 | I22: =IF(ISNA($A22),"",IFERROR(SUMIFS(D_D[ADCM],D_D[MT],6,D_D[CAT],SMS,D_D[LOC],$A22),0)) -> 0 | J22: =IF(ISNA($A22),"",IFERROR(SUMIFS(D_D[PROD_FYTD],D_D[MT],6,D_D[CAT],SMS,D_D[LOC],$A22),0)) -> 0 | K22: =IF(ISNA($A22),"",IFERROR(SUMIFS(D_D[ADCF],D_D[MT],6,D_D[CAT],SMS,D_D[LOC],$A22),0)) -> 0
A23: UT | B23: 11 | C23: Utah | D23: =IF(ISNA($A23),"",IFERROR(SUMIFS(D_D[INV],D_D[MT],6,D_D[CAT],SMS,D_D[LOC],$A23),0)) -> 3295 | E23: =IF(ISNA($A23),"",IFERROR(SUMIFS(D_D[BL],D_D[MT],6,D_D[CAT],SMS,D_D[LOC],$A23),0)) -> 1095 | F23: 0.3323216995 | G23: =IF(ISNA($A23),"",IFERROR(SUMIFS(D_D[ADP],D_D[MT],6,D_D[CAT],SMS,D_D[LOC],$A23),0)) -> 142.05 | H23: =IF(ISNA($A23),"",IFERROR(SUMIFS(D_D[PROD_MTD],D_D[MT],6,D_D[CAT],SMS,D_D[LOC],$A23),0)) -> 776 | I23: =IF(ISNA($A23),"",IFERROR(SUMIFS(D_D[ADCM],D_D[MT],6,D_D[CAT],SMS,D_D[LOC],$A23),0)) -> 164.12 | J23: =IF(ISNA($A23),"",IFERROR(SUMIFS(D_D[PROD_FYTD],D_D[MT],6,D_D[CAT],SMS,D_D[LOC],$A23),0)) -> 6522 | K23: =IF(ISNA($A23),"",IFERROR(SUMIFS(D_D[ADCF],D_D[MT],6,D_D[CAT],SMS,D_D[LOC],$A23),0)) -> 134.29
A24: WA | B24: 12 | C24: Washington | D24: =IF(ISNA($A24),"",IFERROR(SUMIFS(D_D[INV],D_D[MT],6,D_D[CAT],SMS,D_D[LOC],$A24),0)) -> 13138 | E24: =IF(ISNA($A24),"",IFERROR(SUMIFS(D_D[BL],D_D[MT],6,D_D[CAT],SMS,D_D[LOC],$A24),0)) -> 4741 | F24: 0.3608616228 | G24: =IF(ISNA($A24),"",IFERROR(SUMIFS(D_D[ADP],D_D[MT],6,D_D[CAT],SMS,D_D[LOC],$A24),0)) -> 151.65 | H24: =IF(ISNA($A24),"",IFERROR(SUMIFS(D_D[PROD_MTD],D_D[MT],6,D_D[CAT],SMS,D_D[LOC],$A24),0)) -> 3182 | I24: =IF(ISNA($A24),"",IFERROR(SUMIFS(D_D[ADCM],D_D[MT],6,D_D[CAT],SMS,D_D[LOC],$A24),0)) -> 169.48 | J24: =IF(ISNA($A24),"",IFERROR(SUMIFS(D_D[PROD_FYTD],D_D[MT],6,D_D[CAT],SMS,D_D[LOC],$A24),0)) -> 24037 | K24: =IF(ISNA($A24),"",IFERROR(SUMIFS(D_D[ADCF],D_D[MT],6,D_D[CAT],SMS,D_D[LOC],$A24),0)) -> 135.61
B25: 13 | D25: =IF(ISNA($A25),"",IFERROR(SUMIFS(D_D[INV],D_D[MT],6,D_D[CAT],SMS,D_D[LOC],$A25),0)) ->  | E25: =IF(ISNA($A25),"",IFERROR(SUMIFS(D_D[BL],D_D[MT],6,D_D[CAT],SMS,D_D[LOC],$A25),0)) ->  | G25: =IF(ISNA($A25),"",IFERROR(SUMIFS(D_D[ADP],D_D[MT],6,D_D[CAT],SMS,D_D[LOC],$A25),0)) ->  | H25: =IF(ISNA($A25),"",IFERROR(SUMIFS(D_D[PROD_MTD],D_D[MT],6,D_D[CAT],SMS,D_D[LOC],$A25),0)) ->  | I25: =IF(ISNA($A25),"",IFERROR(SUMIFS(D_D[ADCM],D_D[MT],6,D_D[CAT],SMS,D_D[LOC],$A25),0)) ->  | J25: =IF(ISNA($A25),"",IFERROR(SUMIFS(D_D[PROD_FYTD],D_D[MT],6,D_D[CAT],SMS,D_D[LOC],$A25),0)) ->  | K25: =IF(ISNA($A25),"",IFERROR(SUMIFS(D_D[ADCF],D_D[MT],6,D_D[CAT],SMS,D_D[LOC],$A25),0)) -> 
B26: 14 | D26: =IF(ISNA($A26),"",IFERROR(SUMIFS(D_D[INV],D_D[MT],6,D_D[CAT],SMS,D_D[LOC],$A26),0)) ->  | E26: =IF(ISNA($A26),"",IFERROR(SUMIFS(D_D[BL],D_D[MT],6,D_D[CAT],SMS,D_D[LOC],$A26),0)) ->  | G26: =IF(ISNA($A26),"",IFERROR(SUMIFS(D_D[ADP],D_D[MT],6,D_D[CAT],SMS,D_D[LOC],$A26),0)) ->  | H26: =IF(ISNA($A26),"",IFERROR(SUMIFS(D_D[PROD_MTD],D_D[MT],6,D_D[CAT],SMS,D_D[LOC],$A26),0)) ->  | I26: =IF(ISNA($A26),"",IFERROR(SUMIFS(D_D[ADCM],D_D[MT],6,D_D[CAT],SMS,D_D[LOC],$A26),0)) ->  | J26: =IF(ISNA($A26),"",IFERROR(SUMIFS(D_D[PROD_FYTD],D_D[MT],6,D_D[CAT],SMS,D_D[LOC],$A26),0)) ->  | K26: =IF(ISNA($A26),"",IFERROR(SUMIFS(D_D[ADCF],D_D[MT],6,D_D[CAT],SMS,D_D[LOC],$A26),0)) -> 
B27: 15 | D27: =IF(ISNA($A27),"",IFERROR(SUMIFS(D_D[INV],D_D[MT],6,D_D[CAT],SMS,D_D[LOC],$A27),0)) ->  | E27: =IF(ISNA($A27),"",IFERROR(SUMIFS(D_D[BL],D_D[MT],6,D_D[CAT],SMS,D_D[LOC],$A27),0)) ->  | G27: =IF(ISNA($A27),"",IFERROR(SUMIFS(D_D[ADP],D_D[MT],6,D_D[CAT],SMS,D_D[LOC],$A27),0)) ->  | H27: =IF(ISNA($A27),"",IFERROR(SUMIFS(D_D[PROD_MTD],D_D[MT],6,D_D[CAT],SMS,D_D[LOC],$A27),0)) ->  | I27: =IF(ISNA($A27),"",IFERROR(SUMIFS(D_D[ADCM],D_D[MT],6,D_D[CAT],SMS,D_D[LOC],$A27),0)) ->  | J27: =IF(ISNA($A27),"",IFERROR(SUMIFS(D_D[PROD_FYTD],D_D[MT],6,D_D[CAT],SMS,D_D[LOC],$A27),0)) ->  | K27: =IF(ISNA($A27),"",IFERROR(SUMIFS(D_D[ADCF],D_D[MT],6,D_D[CAT],SMS,D_D[LOC],$A27),0)) -> 
B28: 16 | D28: =IF(ISNA($A28),"",IFERROR(SUMIFS(D_D[INV],D_D[MT],6,D_D[CAT],SMS,D_D[LOC],$A28),0)) ->  | E28: =IF(ISNA($A28),"",IFERROR(SUMIFS(D_D[BL],D_D[MT],6,D_D[CAT],SMS,D_D[LOC],$A28),0)) ->  | G28: =IF(ISNA($A28),"",IFERROR(SUMIFS(D_D[ADP],D_D[MT],6,D_D[CAT],SMS,D_D[LOC],$A28),0)) ->  | H28: =IF(ISNA($A28),"",IFERROR(SUMIFS(D_D[PROD_MTD],D_D[MT],6,D_D[CAT],SMS,D_D[LOC],$A28),0)) ->  | I28: =IF(ISNA($A28),"",IFERROR(SUMIFS(D_D[ADCM],D_D[MT],6,D_D[CAT],SMS,D_D[LOC],$A28),0)) ->  | J28: =IF(ISNA($A28),"",IFERROR(SUMIFS(D_D[PROD_FYTD],D_D[MT],6,D_D[CAT],SMS,D_D[LOC],$A28),0)) ->  | K28: =IF(ISNA($A28),"",IFERROR(SUMIFS(D_D[ADCF],D_D[MT],6,D_D[CAT],SMS,D_D[LOC],$A28),0)) -> 
B29: 17 | D29: =IF(ISNA($A29),"",IFERROR(SUMIFS(D_D[INV],D_D[MT],6,D_D[CAT],SMS,D_D[LOC],$A29),0)) ->  | E29: =IF(ISNA($A29),"",IFERROR(SUMIFS(D_D[BL],D_D[MT],6,D_D[CAT],SMS,D_D[LOC],$A29),0)) ->  | G29: =IF(ISNA($A29),"",IFERROR(SUMIFS(D_D[ADP],D_D[MT],6,D_D[CAT],SMS,D_D[LOC],$A29),0)) ->  | H29: =IF(ISNA($A29),"",IFERROR(SUMIFS(D_D[PROD_MTD],D_D[MT],6,D_D[CAT],SMS,D_D[LOC],$A29),0)) ->  | I29: =IF(ISNA($A29),"",IFERROR(SUMIFS(D_D[ADCM],D_D[MT],6,D_D[CAT],SMS,D_D[LOC],$A29),0)) ->  | J29: =IF(ISNA($A29),"",IFERROR(SUMIFS(D_D[PROD_FYTD],D_D[MT],6,D_D[CAT],SMS,D_D[LOC],$A29),0)) ->  | K29: =IF(ISNA($A29),"",IFERROR(SUMIFS(D_D[ADCF],D_D[MT],6,D_D[CAT],SMS,D_D[LOC],$A29),0)) -> 
B30: 18 | D30: =IF(ISNA($A30),"",IFERROR(SUMIFS(D_D[INV],D_D[MT],6,D_D[CAT],SMS,D_D[LOC],$A30),0)) ->  | E30: =IF(ISNA($A30),"",IFERROR(SUMIFS(D_D[BL],D_D[MT],6,D_D[CAT],SMS,D_D[LOC],$A30),0)) ->  | G30: =IF(ISNA($A30),"",IFERROR(SUMIFS(D_D[ADP],D_D[MT],6,D_D[CAT],SMS,D_D[LOC],$A30),0)) ->  | H30: =IF(ISNA($A30),"",IFERROR(SUMIFS(D_D[PROD_MTD],D_D[MT],6,D_D[CAT],SMS,D_D[LOC],$A30),0)) ->  | I30: =IF(ISNA($A30),"",IFERROR(SUMIFS(D_D[ADCM],D_D[MT],6,D_D[CAT],SMS,D_D[LOC],$A30),0)) ->  | J30: =IF(ISNA($A30),"",IFERROR(SUMIFS(D_D[PROD_FYTD],D_D[MT],6,D_D[CAT],SMS,D_D[LOC],$A30),0)) ->  | K30: =IF(ISNA($A30),"",IFERROR(SUMIFS(D_D[ADCF],D_D[MT],6,D_D[CAT],SMS,D_D[LOC],$A30),0)) -> 
B31: 19 | D31: =IF(ISNA($A31),"",IFERROR(SUMIFS(D_D[INV],D_D[MT],6,D_D[CAT],SMS,D_D[LOC],$A31),0)) ->  | E31: =IF(ISNA($A31),"",IFERROR(SUMIFS(D_D[BL],D_D[MT],6,D_D[CAT],SMS,D_D[LOC],$A31),0)) ->  | G31: =IF(ISNA($A31),"",IFERROR(SUMIFS(D_D[ADP],D_D[MT],6,D_D[CAT],SMS,D_D[LOC],$A31),0)) ->  | H31: =IF(ISNA($A31),"",IFERROR(SUMIFS(D_D[PROD_MTD],D_D[MT],6,D_D[CAT],SMS,D_D[LOC],$A31),0)) ->  | I31: =IF(ISNA($A31),"",IFERROR(SUMIFS(D_D[ADCM],D_D[MT],6,D_D[CAT],SMS,D_D[LOC],$A31),0)) ->  | J31: =IF(ISNA($A31),"",IFERROR(SUMIFS(D_D[PROD_FYTD],D_D[MT],6,D_D[CAT],SMS,D_D[LOC],$A31),0)) ->  | K31: =IF(ISNA($A31),"",IFERROR(SUMIFS(D_D[ADCF],D_D[MT],6,D_D[CAT],SMS,D_D[LOC],$A31),0)) -> 
B32: 20 | D32: =IF(ISNA($A32),"",IFERROR(SUMIFS(D_D[INV],D_D[MT],6,D_D[CAT],SMS,D_D[LOC],$A32),0)) ->  | E32: =IF(ISNA($A32),"",IFERROR(SUMIFS(D_D[BL],D_D[MT],6,D_D[CAT],SMS,D_D[LOC],$A32),0)) ->  | G32: =IF(ISNA($A32),"",IFERROR(SUMIFS(D_D[ADP],D_D[MT],6,D_D[CAT],SMS,D_D[LOC],$A32),0)) ->  | H32: =IF(ISNA($A32),"",IFERROR(SUMIFS(D_D[PROD_MTD],D_D[MT],6,D_D[CAT],SMS,D_D[LOC],$A32),0)) ->  | I32: =IF(ISNA($A32),"",IFERROR(SUMIFS(D_D[ADCM],D_D[MT],6,D_D[CAT],SMS,D_D[LOC],$A32),0)) ->  | J32: =IF(ISNA($A32),"",IFERROR(SUMIFS(D_D[PROD_FYTD],D_D[MT],6,D_D[CAT],SMS,D_D[LOC],$A32),0)) ->  | K32: =IF(ISNA($A32),"",IFERROR(SUMIFS(D_D[ADCF],D_D[MT],6,D_D[CAT],SMS,D_D[LOC],$A32),0)) -> 
B33: 21 | D33: =IF(ISNA($A33),"",IFERROR(SUMIFS(D_D[INV],D_D[MT],6,D_D[CAT],SMS,D_D[LOC],$A33),0)) ->  | E33: =IF(ISNA($A33),"",IFERROR(SUMIFS(D_D[BL],D_D[MT],6,D_D[CAT],SMS,D_D[LOC],$A33),0)) ->  | G33: =IF(ISNA($A33),"",IFERROR(SUMIFS(D_D[ADP],D_D[MT],6,D_D[CAT],SMS,D_D[LOC],$A33),0)) ->  | H33: =IF(ISNA($A33),"",IFERROR(SUMIFS(D_D[PROD_MTD],D_D[MT],6,D_D[CAT],SMS,D_D[LOC],$A33),0)) ->  | I33: =IF(ISNA($A33),"",IFERROR(SUMIFS(D_D[ADCM],D_D[MT],6,D_D[CAT],SMS,D_D[LOC],$A33),0)) ->  | J33: =IF(ISNA($A33),"",IFERROR(SUMIFS(D_D[PROD_FYTD],D_D[MT],6,D_D[CAT],SMS,D_D[LOC],$A33),0)) ->  | K33: =IF(ISNA($A33),"",IFERROR(SUMIFS(D_D[ADCF],D_D[MT],6,D_D[CAT],SMS,D_D[LOC],$A33),0)) -> 
B34: 22 | D34: =IF(ISNA($A34),"",IFERROR(SUMIFS(D_D[INV],D_D[MT],6,D_D[CAT],SMS,D_D[LOC],$A34),0)) ->  | E34: =IF(ISNA($A34),"",IFERROR(SUMIFS(D_D[BL],D_D[MT],6,D_D[CAT],SMS,D_D[LOC],$A34),0)) ->  | G34: =IF(ISNA($A34),"",IFERROR(SUMIFS(D_D[ADP],D_D[MT],6,D_D[CAT],SMS,D_D[LOC],$A34),0)) ->  | H34: =IF(ISNA($A34),"",IFERROR(SUMIFS(D_D[PROD_MTD],D_D[MT],6,D_D[CAT],SMS,D_D[LOC],$A34),0)) ->  | I34: =IF(ISNA($A34),"",IFERROR(SUMIFS(D_D[ADCM],D_D[MT],6,D_D[CAT],SMS,D_D[LOC],$A34),0)) ->  | J34: =IF(ISNA($A34),"",IFERROR(SUMIFS(D_D[PROD_FYTD],D_D[MT],6,D_D[CAT],SMS,D_D[LOC],$A34),0)) ->  | K34: =IF(ISNA($A34),"",IFERROR(SUMIFS(D_D[ADCF],D_D[MT],6,D_D[CAT],SMS,D_D[LOC],$A34),0)) -> 
B35: 23 | D35: =IF(ISNA($A35),"",IFERROR(SUMIFS(D_D[INV],D_D[MT],6,D_D[CAT],SMS,D_D[LOC],$A35),0)) ->  | E35: =IF(ISNA($A35),"",IFERROR(SUMIFS(D_D[BL],D_D[MT],6,D_D[CAT],SMS,D_D[LOC],$A35),0)) ->  | G35: =IF(ISNA($A35),"",IFERROR(SUMIFS(D_D[ADP],D_D[MT],6,D_D[CAT],SMS,D_D[LOC],$A35),0)) ->  | H35: =IF(ISNA($A35),"",IFERROR(SUMIFS(D_D[PROD_MTD],D_D[MT],6,D_D[CAT],SMS,D_D[LOC],$A35),0)) ->  | I35: =IF(ISNA($A35),"",IFERROR(SUMIFS(D_D[ADCM],D_D[MT],6,D_D[CAT],SMS,D_D[LOC],$A35),0)) ->  | J35: =IF(ISNA($A35),"",IFERROR(SUMIFS(D_D[PROD_FYTD],D_D[MT],6,D_D[CAT],SMS,D_D[LOC],$A35),0)) ->  | K35: =IF(ISNA($A35),"",IFERROR(SUMIFS(D_D[ADCF],D_D[MT],6,D_D[CAT],SMS,D_D[LOC],$A35),0)) -> 

Sheet Rating Bundle - SOJ - NWQ
C2: DISTRICT SELECTOR | D2: Compensation and Pension Rating Bundle Metrics | J2: Report through
D3: NWQ-Station of Jurisdiction View | J3: =D_DT[] -> 2022-05-28
D4: The Station of Jurisdiction (SOJ) is the regional office assigned to work the claim | J4: ADP = Average Days Pending
D5: Each Special Mission has distinct claim counts
D6: When Special Mission is set to Pension, BDD, or Quickstart, the District Selector has | J6: Life Cycle Metrics defined on Legend tab
D7: no impact
D8: CLAIM METRICS | H8: LIFE CYCLE METRICS (as Percent of # Pending)
C9: SPECIAL MISSION SELECTOR | D9: # Pending | E9: # Pending > 125 Days | F9: % Pending > 125 Days | G9: ADP | H9: Pending Development | I9: Pending Evidence | J9: Pending Decision | K9: Pending Award | L9: Pending Authorization
A12: 100 | C12: =Driver!$C$20& " Total" -> USA - All Missions Total | D12: =IF(ISNA($A12),"",IFERROR(SUMIFS(D_D[INV],D_D[MT],5,D_D[CAT],SMS, D_D[EP],-1,D_D[LOC],$A12),0)) -> 592345 | E12: =IF(ISNA($A12),"",IFERROR(SUMIFS(D_D[BL],D_D[MT],5,D_D[CAT],SMS, D_D[EP],-1,D_D[LOC],$A12),0)) -> 196852 | F12: =IF(ISNA($A12),"",IFERROR(E12/D12,0)) -> 0.3323266002 | G12: =IF(ISNA($A12),"",IFERROR(SUMIFS(D_D[ADP],D_D[MT],5,D_D[CAT],SMS, D_D[EP],-1,D_D[LOC],$A12),0)) -> 143.19 | H12: =IF(ISNA($A12),"",IFERROR(SUMIFS(D_D[DEV],D_D[MT],5,D_D[CAT],SMS, D_D[EP],-1,D_D[LOC],$A12)/$D12,0)) -> 0.03419797584 | I12: =IF(ISNA($A12),"",IFERROR(SUMIFS(D_D[EVD],D_D[MT],5,D_D[CAT],SMS, D_D[EP],-1,D_D[LOC],$A12)/$D12,0)) -> 0.5769982021 | J12: =IF(ISNA($A12),"",IFERROR(SUMIFS(D_D[DEC],D_D[MT],5,D_D[CAT],SMS, D_D[EP],-1,D_D[LOC],$A12)/$D12,0)) -> 0.3779233386 | K12: =IF(ISNA($A12),"",IFERROR(SUMIFS(D_D[AWD],D_D[MT],5,D_D[CAT],SMS, D_D[EP],-1,D_D[LOC],$A12)/$D12,0)) -> 0.008336358035 | L12: =IF(ISNA($A12),"",IFERROR(SUMIFS(D_D[AUT],D_D[MT],5,D_D[CAT],SMS, D_D[EP],-1,D_D[LOC],$A12)/$D12,0)) -> 0.002539060851
A13: 499 | C13: ="NWQ-"&Driver!$C$20& " Total" -> NWQ-USA - All Missions Total | D13: =IF(ISNA($A13),"",IFERROR(SUMIFS(D_D[INV],D_D[MT],5,D_D[CAT],SMS, D_D[EP],-1,D_D[LOC],$A13),0)) -> 502855 | E13: =IF(ISNA($A13),"",IFERROR(SUMIFS(D_D[BL],D_D[MT],5,D_D[CAT],SMS, D_D[EP],-1,D_D[LOC],$A13),0)) -> 161540 | F13: =IF(ISNA($A13),"",IFERROR(E13/D13,0)) -> 0.3212456871 | G13: =IF(ISNA($A13),"",IFERROR(SUMIFS(D_D[ADP],D_D[MT],5,D_D[CAT],SMS, D_D[EP],-1,D_D[LOC],$A13),0)) -> 138.25 | H13: =IF(ISNA($A13),"",IFERROR(SUMIFS(D_D[DEV],D_D[MT],5,D_D[CAT],SMS, D_D[EP],-1,D_D[LOC],$A13)/$D13,0)) -> 0.01836712372 | I13: =IF(ISNA($A13),"",IFERROR(SUMIFS(D_D[EVD],D_D[MT],5,D_D[CAT],SMS, D_D[EP],-1,D_D[LOC],$A13)/$D13,0)) -> 0.594165316 | J13: =IF(ISNA($A13),"",IFERROR(SUMIFS(D_D[DEC],D_D[MT],5,D_D[CAT],SMS, D_D[EP],-1,D_D[LOC],$A13)/$D13,0)) -> 0.3867695459 | K13: =IF(ISNA($A13),"",IFERROR(SUMIFS(D_D[AWD],D_D[MT],5,D_D[CAT],SMS, D_D[EP],-1,D_D[LOC],$A13)/$D13,0)) -> 0.0006900597588 | L13: =IF(ISNA($A13),"",IFERROR(SUMIFS(D_D[AUT],D_D[MT],5,D_D[CAT],SMS, D_D[EP],-1,D_D[LOC],$A13)/$D13,0)) -> 7.954579352e-06
A14: =INDEX(RO,(MATCH($C14,RO_D,0))) -> 395 | B14: 1 | C14: =IFERROR(INDEX(INDIRECT(DS_RO),B14),"") -> Pacific District | D14: =IF(ISNA($A14),"",IFERROR(SUMIFS(D_D[INV],D_D[MT],5,D_D[CAT],SMS, D_D[EP],-1,D_D[LOC],$A14),0)) -> 17054 | E14: =IF(ISNA($A14),"",IFERROR(SUMIFS(D_D[BL],D_D[MT],5,D_D[CAT],SMS, D_D[EP],-1,D_D[LOC],$A14),0)) -> 6017 | F14: =IF(ISNA($A14),"",IFERROR(E14/D14,0)) -> 0.3528204527 | G14: =IF(ISNA($A14),"",IFERROR(SUMIFS(D_D[ADP],D_D[MT],5,D_D[CAT],SMS, D_D[EP],-1,D_D[LOC],$A14),0)) -> 144.81 | H14: =IF(ISNA($A14),"",IFERROR(SUMIFS(D_D[DEV],D_D[MT],5,D_D[CAT],SMS, D_D[EP],-1,D_D[LOC],$A14)/$D14,0)) -> 0.1061334584 | I14: =IF(ISNA($A14),"",IFERROR(SUMIFS(D_D[EVD],D_D[MT],5,D_D[CAT],SMS, D_D[EP],-1,D_D[LOC],$A14)/$D14,0)) -> 0.4333880615 | J14: =IF(ISNA($A14),"",IFERROR(SUMIFS(D_D[DEC],D_D[MT],5,D_D[CAT],SMS, D_D[EP],-1,D_D[LOC],$A14)/$D14,0)) -> 0.3650756421 | K14: =IF(ISNA($A14),"",IFERROR(SUMIFS(D_D[AWD],D_D[MT],5,D_D[CAT],SMS, D_D[EP],-1,D_D[LOC],$A14)/$D14,0)) -> 0.07552480357 | L14: =IF(ISNA($A14),"",IFERROR(SUMIFS(D_D[AUT],D_D[MT],5,D_D[CAT],SMS, D_D[EP],-1,D_D[LOC],$A14)/$D14,0)) -> 0.01987803448
A15: 340 | B15: 2 | C15: =IFERROR(INDEX(INDIRECT(DS_RO),B15),"") -> Albuquerque | D15: =IF(ISNA($A15),"",IFERROR(SUMIFS(D_D[INV],D_D[MT],5,D_D[CAT],SMS, D_D[EP],-1,D_D[LOC],$A15),0)) -> 525 | E15: =IF(ISNA($A15),"",IFERROR(SUMIFS(D_D[BL],D_D[MT],5,D_D[CAT],SMS, D_D[EP],-1,D_D[LOC],$A15),0)) -> 170 | F15: =IF(ISNA($A15),"",IFERROR(E15/D15,0)) -> 0.3238095238 | G15: =IF(ISNA($A15),"",IFERROR(SUMIFS(D_D[ADP],D_D[MT],5,D_D[CAT],SMS, D_D[EP],-1,D_D[LOC],$A15),0)) -> 118.42 | H15: =IF(ISNA($A15),"",IFERROR(SUMIFS(D_D[DEV],D_D[MT],5,D_D[CAT],SMS, D_D[EP],-1,D_D[LOC],$A15)/$D15,0)) -> 0.1619047619 | I15: =IF(ISNA($A15),"",IFERROR(SUMIFS(D_D[EVD],D_D[MT],5,D_D[CAT],SMS, D_D[EP],-1,D_D[LOC],$A15)/$D15,0)) -> 0.3904761905 | J15: =IF(ISNA($A15),"",IFERROR(SUMIFS(D_D[DEC],D_D[MT],5,D_D[CAT],SMS, D_D[EP],-1,D_D[LOC],$A15)/$D15,0)) -> 0.3657142857 | K15: =IF(ISNA($A15),"",IFERROR(SUMIFS(D_D[AWD],D_D[MT],5,D_D[CAT],SMS, D_D[EP],-1,D_D[LOC],$A15)/$D15,0)) -> 0.06857142857 | L15: =IF(ISNA($A15),"",IFERROR(SUMIFS(D_D[AUT],D_D[MT],5,D_D[CAT],SMS, D_D[EP],-1,D_D[LOC],$A15)/$D15,0)) -> 0.01333333333
A16: 463 | B16: 3 | C16: Anchorage | D16: =IF(ISNA($A16),"",IFERROR(SUMIFS(D_D[INV],D_D[MT],5,D_D[CAT],SMS, D_D[EP],-1,D_D[LOC],$A16),0)) -> 231 | E16: =IF(ISNA($A16),"",IFERROR(SUMIFS(D_D[BL],D_D[MT],5,D_D[CAT],SMS, D_D[EP],-1,D_D[LOC],$A16),0)) -> 103 | F16: 0.4458874459 | G16: =IF(ISNA($A16),"",IFERROR(SUMIFS(D_D[ADP],D_D[MT],5,D_D[CAT],SMS, D_D[EP],-1,D_D[LOC],$A16),0)) -> 153.07 | H16: =IF(ISNA($A16),"",IFERROR(SUMIFS(D_D[DEV],D_D[MT],5,D_D[CAT],SMS, D_D[EP],-1,D_D[LOC],$A16)/$D16,0)) -> 0.1645021645 | I16: =IF(ISNA($A16),"",IFERROR(SUMIFS(D_D[EVD],D_D[MT],5,D_D[CAT],SMS, D_D[EP],-1,D_D[LOC],$A16)/$D16,0)) -> 0.4199134199 | J16: =IF(ISNA($A16),"",IFERROR(SUMIFS(D_D[DEC],D_D[MT],5,D_D[CAT],SMS, D_D[EP],-1,D_D[LOC],$A16)/$D16,0)) -> 0.3203463203 | K16: =IF(ISNA($A16),"",IFERROR(SUMIFS(D_D[AWD],D_D[MT],5,D_D[CAT],SMS, D_D[EP],-1,D_D[LOC],$A16)/$D16,0)) -> 0.08225108225 | L16: =IF(ISNA($A16),"",IFERROR(SUMIFS(D_D[AUT],D_D[MT],5,D_D[CAT],SMS, D_D[EP],-1,D_D[LOC],$A16)/$D16,0)) -> 0.01298701299
A17: 347 | B17: 4 | C17: Boise | D17: =IF(ISNA($A17),"",IFERROR(SUMIFS(D_D[INV],D_D[MT],5,D_D[CAT],SMS, D_D[EP],-1,D_D[LOC],$A17),0)) -> 595 | E17: =IF(ISNA($A17),"",IFERROR(SUMIFS(D_D[BL],D_D[MT],5,D_D[CAT],SMS, D_D[EP],-1,D_D[LOC],$A17),0)) -> 107 | F17: 0.1798319328 | G17: =IF(ISNA($A17),"",IFERROR(SUMIFS(D_D[ADP],D_D[MT],5,D_D[CAT],SMS, D_D[EP],-1,D_D[LOC],$A17),0)) -> 91.82 | H17: =IF(ISNA($A17),"",IFERROR(SUMIFS(D_D[DEV],D_D[MT],5,D_D[CAT],SMS, D_D[EP],-1,D_D[LOC],$A17)/$D17,0)) -> 0.1277310924 | I17: =IF(ISNA($A17),"",IFERROR(SUMIFS(D_D[EVD],D_D[MT],5,D_D[CAT],SMS, D_D[EP],-1,D_D[LOC],$A17)/$D17,0)) -> 0.2403361345 | J17: =IF(ISNA($A17),"",IFERROR(SUMIFS(D_D[DEC],D_D[MT],5,D_D[CAT],SMS, D_D[EP],-1,D_D[LOC],$A17)/$D17,0)) -> 0.418487395 | K17: =IF(ISNA($A17),"",IFERROR(SUMIFS(D_D[AWD],D_D[MT],5,D_D[CAT],SMS, D_D[EP],-1,D_D[LOC],$A17)/$D17,0)) -> 0.1663865546 | L17: =IF(ISNA($A17),"",IFERROR(SUMIFS(D_D[AUT],D_D[MT],5,D_D[CAT],SMS, D_D[EP],-1,D_D[LOC],$A17)/$D17,0)) -> 0.04705882353
A18: 459 | B18: 5 | C18: Honolulu | D18: =IF(ISNA($A18),"",IFERROR(SUMIFS(D_D[INV],D_D[MT],5,D_D[CAT],SMS, D_D[EP],-1,D_D[LOC],$A18),0)) -> 329 | E18: =IF(ISNA($A18),"",IFERROR(SUMIFS(D_D[BL],D_D[MT],5,D_D[CAT],SMS, D_D[EP],-1,D_D[LOC],$A18),0)) -> 100 | F18: 0.3039513678 | G18: =IF(ISNA($A18),"",IFERROR(SUMIFS(D_D[ADP],D_D[MT],5,D_D[CAT],SMS, D_D[EP],-1,D_D[LOC],$A18),0)) -> 113.45 | H18: =IF(ISNA($A18),"",IFERROR(SUMIFS(D_D[DEV],D_D[MT],5,D_D[CAT],SMS, D_D[EP],-1,D_D[LOC],$A18)/$D18,0)) -> 0.1246200608 | I18: =IF(ISNA($A18),"",IFERROR(SUMIFS(D_D[EVD],D_D[MT],5,D_D[CAT],SMS, D_D[EP],-1,D_D[LOC],$A18)/$D18,0)) -> 0.4072948328 | J18: =IF(ISNA($A18),"",IFERROR(SUMIFS(D_D[DEC],D_D[MT],5,D_D[CAT],SMS, D_D[EP],-1,D_D[LOC],$A18)/$D18,0)) -> 0.462006079 | K18: =IF(ISNA($A18),"",IFERROR(SUMIFS(D_D[AWD],D_D[MT],5,D_D[CAT],SMS, D_D[EP],-1,D_D[LOC],$A18)/$D18,0)) -> 0.006079027356 | L18: =IF(ISNA($A18),"",IFERROR(SUMIFS(D_D[AUT],D_D[MT],5,D_D[CAT],SMS, D_D[EP],-1,D_D[LOC],$A18)/$D18,0)) -> 0
A19: 344 | B19: 6 | C19: Los Angeles | D19: =IF(ISNA($A19),"",IFERROR(SUMIFS(D_D[INV],D_D[MT],5,D_D[CAT],SMS, D_D[EP],-1,D_D[LOC],$A19),0)) -> 1524 | E19: =IF(ISNA($A19),"",IFERROR(SUMIFS(D_D[BL],D_D[MT],5,D_D[CAT],SMS, D_D[EP],-1,D_D[LOC],$A19),0)) -> 505 | F19: 0.3313648294 | G19: =IF(ISNA($A19),"",IFERROR(SUMIFS(D_D[ADP],D_D[MT],5,D_D[CAT],SMS, D_D[EP],-1,D_D[LOC],$A19),0)) -> 132.23 | H19: =IF(ISNA($A19),"",IFERROR(SUMIFS(D_D[DEV],D_D[MT],5,D_D[CAT],SMS, D_D[EP],-1,D_D[LOC],$A19)/$D19,0)) -> 0.1423884514 | I19: =IF(ISNA($A19),"",IFERROR(SUMIFS(D_D[EVD],D_D[MT],5,D_D[CAT],SMS, D_D[EP],-1,D_D[LOC],$A19)/$D19,0)) -> 0.468503937 | J19: =IF(ISNA($A19),"",IFERROR(SUMIFS(D_D[DEC],D_D[MT],5,D_D[CAT],SMS, D_D[EP],-1,D_D[LOC],$A19)/$D19,0)) -> 0.3694225722 | K19: =IF(ISNA($A19),"",IFERROR(SUMIFS(D_D[AWD],D_D[MT],5,D_D[CAT],SMS, D_D[EP],-1,D_D[LOC],$A19)/$D19,0)) -> 0.009186351706 | L19: =IF(ISNA($A19),"",IFERROR(SUMIFS(D_D[AUT],D_D[MT],5,D_D[CAT],SMS, D_D[EP],-1,D_D[LOC],$A19)/$D19,0)) -> 0.01049868766
A20: 358 | B20: 7 | C20: Manila | D20: =IF(ISNA($A20),"",IFERROR(SUMIFS(D_D[INV],D_D[MT],5,D_D[CAT],SMS, D_D[EP],-1,D_D[LOC],$A20),0)) -> 253 | E20: =IF(ISNA($A20),"",IFERROR(SUMIFS(D_D[BL],D_D[MT],5,D_D[CAT],SMS, D_D[EP],-1,D_D[LOC],$A20),0)) -> 114 | F20: 0.4505928854 | G20: =IF(ISNA($A20),"",IFERROR(SUMIFS(D_D[ADP],D_D[MT],5,D_D[CAT],SMS, D_D[EP],-1,D_D[LOC],$A20),0)) -> 166.9 | H20: =IF(ISNA($A20),"",IFERROR(SUMIFS(D_D[DEV],D_D[MT],5,D_D[CAT],SMS, D_D[EP],-1,D_D[LOC],$A20)/$D20,0)) -> 0.06719367589 | I20: =IF(ISNA($A20),"",IFERROR(SUMIFS(D_D[EVD],D_D[MT],5,D_D[CAT],SMS, D_D[EP],-1,D_D[LOC],$A20)/$D20,0)) -> 0.5928853755 | J20: =IF(ISNA($A20),"",IFERROR(SUMIFS(D_D[DEC],D_D[MT],5,D_D[CAT],SMS, D_D[EP],-1,D_D[LOC],$A20)/$D20,0)) -> 0.2687747036 | K20: =IF(ISNA($A20),"",IFERROR(SUMIFS(D_D[AWD],D_D[MT],5,D_D[CAT],SMS, D_D[EP],-1,D_D[LOC],$A20)/$D20,0)) -> 0.06324110672 | L20: =IF(ISNA($A20),"",IFERROR(SUMIFS(D_D[AUT],D_D[MT],5,D_D[CAT],SMS, D_D[EP],-1,D_D[LOC],$A20)/$D20,0)) -> 0.00790513834
A21: 343 | B21: 8 | C21: Oakland | D21: =IF(ISNA($A21),"",IFERROR(SUMIFS(D_D[INV],D_D[MT],5,D_D[CAT],SMS, D_D[EP],-1,D_D[LOC],$A21),0)) -> 1060 | E21: =IF(ISNA($A21),"",IFERROR(SUMIFS(D_D[BL],D_D[MT],5,D_D[CAT],SMS, D_D[EP],-1,D_D[LOC],$A21),0)) -> 483 | F21: 0.4556603774 | G21: =IF(ISNA($A21),"",IFERROR(SUMIFS(D_D[ADP],D_D[MT],5,D_D[CAT],SMS, D_D[EP],-1,D_D[LOC],$A21),0)) -> 191.69 | H21: =IF(ISNA($A21),"",IFERROR(SUMIFS(D_D[DEV],D_D[MT],5,D_D[CAT],SMS, D_D[EP],-1,D_D[LOC],$A21)/$D21,0)) -> 0.1443396226 | I21: =IF(ISNA($A21),"",IFERROR(SUMIFS(D_D[EVD],D_D[MT],5,D_D[CAT],SMS, D_D[EP],-1,D_D[LOC],$A21)/$D21,0)) -> 0.3924528302 | J21: =IF(ISNA($A21),"",IFERROR(SUMIFS(D_D[DEC],D_D[MT],5,D_D[CAT],SMS, D_D[EP],-1,D_D[LOC],$A21)/$D21,0)) -> 0.4056603774 | K21: =IF(ISNA($A21),"",IFERROR(SUMIFS(D_D[AWD],D_D[MT],5,D_D[CAT],SMS, D_D[EP],-1,D_D[LOC],$A21)/$D21,0)) -> 0.04622641509 | L21: =IF(ISNA($A21),"",IFERROR(SUMIFS(D_D[AUT],D_D[MT],5,D_D[CAT],SMS, D_D[EP],-1,D_D[LOC],$A21)/$D21,0)) -> 0.01132075472
A22: 345 | B22: 9 | C22: Phoenix | D22: =IF(ISNA($A22),"",IFERROR(SUMIFS(D_D[INV],D_D[MT],5,D_D[CAT],SMS, D_D[EP],-1,D_D[LOC],$A22),0)) -> 2276 | E22: =IF(ISNA($A22),"",IFERROR(SUMIFS(D_D[BL],D_D[MT],5,D_D[CAT],SMS, D_D[EP],-1,D_D[LOC],$A22),0)) -> 996 | F22: 0.4376098418 | G22: =IF(ISNA($A22),"",IFERROR(SUMIFS(D_D[ADP],D_D[MT],5,D_D[CAT],SMS, D_D[EP],-1,D_D[LOC],$A22),0)) -> 188.52 | H22: =IF(ISNA($A22),"",IFERROR(SUMIFS(D_D[DEV],D_D[MT],5,D_D[CAT],SMS, D_D[EP],-1,D_D[LOC],$A22)/$D22,0)) -> 0.105887522 | I22: =IF(ISNA($A22),"",IFERROR(SUMIFS(D_D[EVD],D_D[MT],5,D_D[CAT],SMS, D_D[EP],-1,D_D[LOC],$A22)/$D22,0)) -> 0.5026362039 | J22: =IF(ISNA($A22),"",IFERROR(SUMIFS(D_D[DEC],D_D[MT],5,D_D[CAT],SMS, D_D[EP],-1,D_D[LOC],$A22)/$D22,0)) -> 0.2996485062 | K22: =IF(ISNA($A22),"",IFERROR(SUMIFS(D_D[AWD],D_D[MT],5,D_D[CAT],SMS, D_D[EP],-1,D_D[LOC],$A22)/$D22,0)) -> 0.08567662566 | L22: =IF(ISNA($A22),"",IFERROR(SUMIFS(D_D[AUT],D_D[MT],5,D_D[CAT],SMS, D_D[EP],-1,D_D[LOC],$A22)/$D22,0)) -> 0.006151142355
A23: 348 | B23: 10 | C23: Portland | D23: =IF(ISNA($A23),"",IFERROR(SUMIFS(D_D[INV],D_D[MT],5,D_D[CAT],SMS, D_D[EP],-1,D_D[LOC],$A23),0)) -> 1565 | E23: =IF(ISNA($A23),"",IFERROR(SUMIFS(D_D[BL],D_D[MT],5,D_D[CAT],SMS, D_D[EP],-1,D_D[LOC],$A23),0)) -> 672 | F23: 0.4293929712 | G23: =IF(ISNA($A23),"",IFERROR(SUMIFS(D_D[ADP],D_D[MT],5,D_D[CAT],SMS, D_D[EP],-1,D_D[LOC],$A23),0)) -> 158.01 | H23: =IF(ISNA($A23),"",IFERROR(SUMIFS(D_D[DEV],D_D[MT],5,D_D[CAT],SMS, D_D[EP],-1,D_D[LOC],$A23)/$D23,0)) -> 0.1073482428 | I23: =IF(ISNA($A23),"",IFERROR(SUMIFS(D_D[EVD],D_D[MT],5,D_D[CAT],SMS, D_D[EP],-1,D_D[LOC],$A23)/$D23,0)) -> 0.6076677316 | J23: =IF(ISNA($A23),"",IFERROR(SUMIFS(D_D[DEC],D_D[MT],5,D_D[CAT],SMS, D_D[EP],-1,D_D[LOC],$A23)/$D23,0)) -> 0.2549520767 | K23: =IF(ISNA($A23),"",IFERROR(SUMIFS(D_D[AWD],D_D[MT],5,D_D[CAT],SMS, D_D[EP],-1,D_D[LOC],$A23)/$D23,0)) -> 0.01916932907 | L23: =IF(ISNA($A23),"",IFERROR(SUMIFS(D_D[AUT],D_D[MT],5,D_D[CAT],SMS, D_D[EP],-1,D_D[LOC],$A23)/$D23,0)) -> 0.01086261981
A24: 354 | B24: 11 | C24: Reno | D24: =IF(ISNA($A24),"",IFERROR(SUMIFS(D_D[INV],D_D[MT],5,D_D[CAT],SMS, D_D[EP],-1,D_D[LOC],$A24),0)) -> 509 | E24: =IF(ISNA($A24),"",IFERROR(SUMIFS(D_D[BL],D_D[MT],5,D_D[CAT],SMS, D_D[EP],-1,D_D[LOC],$A24),0)) -> 165 | F24: 0.3241650295 | G24: =IF(ISNA($A24),"",IFERROR(SUMIFS(D_D[ADP],D_D[MT],5,D_D[CAT],SMS, D_D[EP],-1,D_D[LOC],$A24),0)) -> 135.78 | H24: =IF(ISNA($A24),"",IFERROR(SUMIFS(D_D[DEV],D_D[MT],5,D_D[CAT],SMS, D_D[EP],-1,D_D[LOC],$A24)/$D24,0)) -> 0.2927308448 | I24: =IF(ISNA($A24),"",IFERROR(SUMIFS(D_D[EVD],D_D[MT],5,D_D[CAT],SMS, D_D[EP],-1,D_D[LOC],$A24)/$D24,0)) -> 0.3595284872 | J24: =IF(ISNA($A24),"",IFERROR(SUMIFS(D_D[DEC],D_D[MT],5,D_D[CAT],SMS, D_D[EP],-1,D_D[LOC],$A24)/$D24,0)) -> 0.3123772102 | K24: =IF(ISNA($A24),"",IFERROR(SUMIFS(D_D[AWD],D_D[MT],5,D_D[CAT],SMS, D_D[EP],-1,D_D[LOC],$A24)/$D24,0)) -> 0.02750491159 | L24: =IF(ISNA($A24),"",IFERROR(SUMIFS(D_D[AUT],D_D[MT],5,D_D[CAT],SMS, D_D[EP],-1,D_D[LOC],$A24)/$D24,0)) -> 0.007858546169
A25: 341 | B25: 12 | C25: Salt Lake City | D25: =IF(ISNA($A25),"",IFERROR(SUMIFS(D_D[INV],D_D[MT],5,D_D[CAT],SMS, D_D[EP],-1,D_D[LOC],$A25),0)) -> 1967 | E25: =IF(ISNA($A25),"",IFERROR(SUMIFS(D_D[BL],D_D[MT],5,D_D[CAT],SMS, D_D[EP],-1,D_D[LOC],$A25),0)) -> 1002 | F25: 0.5094051856 | G25: =IF(ISNA($A25),"",IFERROR(SUMIFS(D_D[ADP],D_D[MT],5,D_D[CAT],SMS, D_D[EP],-1,D_D[LOC],$A25),0)) -> 210.33 | H25: =IF(ISNA($A25),"",IFERROR(SUMIFS(D_D[DEV],D_D[MT],5,D_D[CAT],SMS, D_D[EP],-1,D_D[LOC],$A25)/$D25,0)) -> 0.07981698017 | I25: =IF(ISNA($A25),"",IFERROR(SUMIFS(D_D[EVD],D_D[MT],5,D_D[CAT],SMS, D_D[EP],-1,D_D[LOC],$A25)/$D25,0)) -> 0.4367056431 | J25: =IF(ISNA($A25),"",IFERROR(SUMIFS(D_D[DEC],D_D[MT],5,D_D[CAT],SMS, D_D[EP],-1,D_D[LOC],$A25)/$D25,0)) -> 0.2694458566 | K25: =IF(ISNA($A25),"",IFERROR(SUMIFS(D_D[AWD],D_D[MT],5,D_D[CAT],SMS, D_D[EP],-1,D_D[LOC],$A25)/$D25,0)) -> 0.2074224708 | L25: =IF(ISNA($A25),"",IFERROR(SUMIFS(D_D[AUT],D_D[MT],5,D_D[CAT],SMS, D_D[EP],-1,D_D[LOC],$A25)/$D25,0)) -> 0.006609049314
A26: 377 | B26: 13 | C26: San Diego | D26: =IF(ISNA($A26),"",IFERROR(SUMIFS(D_D[INV],D_D[MT],5,D_D[CAT],SMS, D_D[EP],-1,D_D[LOC],$A26),0)) -> 2940 | E26: =IF(ISNA($A26),"",IFERROR(SUMIFS(D_D[BL],D_D[MT],5,D_D[CAT],SMS, D_D[EP],-1,D_D[LOC],$A26),0)) -> 875 | F26: 0.2976190476 | G26: =IF(ISNA($A26),"",IFERROR(SUMIFS(D_D[ADP],D_D[MT],5,D_D[CAT],SMS, D_D[EP],-1,D_D[LOC],$A26),0)) -> 123.81 | H26: =IF(ISNA($A26),"",IFERROR(SUMIFS(D_D[DEV],D_D[MT],5,D_D[CAT],SMS, D_D[EP],-1,D_D[LOC],$A26)/$D26,0)) -> 0.07074829932 | I26: =IF(ISNA($A26),"",IFERROR(SUMIFS(D_D[EVD],D_D[MT],5,D_D[CAT],SMS, D_D[EP],-1,D_D[LOC],$A26)/$D26,0)) -> 0.4717687075 | J26: =IF(ISNA($A26),"",IFERROR(SUMIFS(D_D[DEC],D_D[MT],5,D_D[CAT],SMS, D_D[EP],-1,D_D[LOC],$A26)/$D26,0)) -> 0.4051020408 | K26: =IF(ISNA($A26),"",IFERROR(SUMIFS(D_D[AWD],D_D[MT],5,D_D[CAT],SMS, D_D[EP],-1,D_D[LOC],$A26)/$D26,0)) -> 0.04353741497 | L26: =IF(ISNA($A26),"",IFERROR(SUMIFS(D_D[AUT],D_D[MT],5,D_D[CAT],SMS, D_D[EP],-1,D_D[LOC],$A26)/$D26,0)) -> 0.008843537415
A27: 346 | B27: 14 | C27: Seattle | D27: =IF(ISNA($A27),"",IFERROR(SUMIFS(D_D[INV],D_D[MT],5,D_D[CAT],SMS, D_D[EP],-1,D_D[LOC],$A27),0)) -> 3280 | E27: =IF(ISNA($A27),"",IFERROR(SUMIFS(D_D[BL],D_D[MT],5,D_D[CAT],SMS, D_D[EP],-1,D_D[LOC],$A27),0)) -> 725 | F27: 0.2210365854 | G27: =IF(ISNA($A27),"",IFERROR(SUMIFS(D_D[ADP],D_D[MT],5,D_D[CAT],SMS, D_D[EP],-1,D_D[LOC],$A27),0)) -> 94.49 | H27: =IF(ISNA($A27),"",IFERROR(SUMIFS(D_D[DEV],D_D[MT],5,D_D[CAT],SMS, D_D[EP],-1,D_D[LOC],$A27)/$D27,0)) -> 0.07926829268 | I27: =IF(ISNA($A27),"",IFERROR(SUMIFS(D_D[EVD],D_D[MT],5,D_D[CAT],SMS, D_D[EP],-1,D_D[LOC],$A27)/$D27,0)) -> 0.3073170732 | J27: =IF(ISNA($A27),"",IFERROR(SUMIFS(D_D[DEC],D_D[MT],5,D_D[CAT],SMS, D_D[EP],-1,D_D[LOC],$A27)/$D27,0)) -> 0.468597561 | K27: =IF(ISNA($A27),"",IFERROR(SUMIFS(D_D[AWD],D_D[MT],5,D_D[CAT],SMS, D_D[EP],-1,D_D[LOC],$A27)/$D27,0)) -> 0.08475609756 | L27: =IF(ISNA($A27),"",IFERROR(SUMIFS(D_D[AUT],D_D[MT],5,D_D[CAT],SMS, D_D[EP],-1,D_D[LOC],$A27)/$D27,0)) -> 0.06006097561
B28: 15 | D28: =IF(ISNA($A28),"",IFERROR(SUMIFS(D_D[INV],D_D[MT],5,D_D[CAT],SMS, D_D[EP],-1,D_D[LOC],$A28),0)) ->  | E28: =IF(ISNA($A28),"",IFERROR(SUMIFS(D_D[BL],D_D[MT],5,D_D[CAT],SMS, D_D[EP],-1,D_D[LOC],$A28),0)) ->  | G28: =IF(ISNA($A28),"",IFERROR(SUMIFS(D_D[ADP],D_D[MT],5,D_D[CAT],SMS, D_D[EP],-1,D_D[LOC],$A28),0)) ->  | H28: =IF(ISNA($A28),"",IFERROR(SUMIFS(D_D[DEV],D_D[MT],5,D_D[CAT],SMS, D_D[EP],-1,D_D[LOC],$A28)/$D28,0)) ->  | I28: =IF(ISNA($A28),"",IFERROR(SUMIFS(D_D[EVD],D_D[MT],5,D_D[CAT],SMS, D_D[EP],-1,D_D[LOC],$A28)/$D28,0)) ->  | J28: =IF(ISNA($A28),"",IFERROR(SUMIFS(D_D[DEC],D_D[MT],5,D_D[CAT],SMS, D_D[EP],-1,D_D[LOC],$A28)/$D28,0)) ->  | K28: =IF(ISNA($A28),"",IFERROR(SUMIFS(D_D[AWD],D_D[MT],5,D_D[CAT],SMS, D_D[EP],-1,D_D[LOC],$A28)/$D28,0)) ->  | L28: =IF(ISNA($A28),"",IFERROR(SUMIFS(D_D[AUT],D_D[MT],5,D_D[CAT],SMS, D_D[EP],-1,D_D[LOC],$A28)/$D28,0)) -> 
B29: 16 | D29: =IF(ISNA($A29),"",IFERROR(SUMIFS(D_D[INV],D_D[MT],5,D_D[CAT],SMS, D_D[EP],-1,D_D[LOC],$A29),0)) ->  | E29: =IF(ISNA($A29),"",IFERROR(SUMIFS(D_D[BL],D_D[MT],5,D_D[CAT],SMS, D_D[EP],-1,D_D[LOC],$A29),0)) ->  | G29: =IF(ISNA($A29),"",IFERROR(SUMIFS(D_D[ADP],D_D[MT],5,D_D[CAT],SMS, D_D[EP],-1,D_D[LOC],$A29),0)) ->  | H29: =IF(ISNA($A29),"",IFERROR(SUMIFS(D_D[DEV],D_D[MT],5,D_D[CAT],SMS, D_D[EP],-1,D_D[LOC],$A29)/$D29,0)) ->  | I29: =IF(ISNA($A29),"",IFERROR(SUMIFS(D_D[EVD],D_D[MT],5,D_D[CAT],SMS, D_D[EP],-1,D_D[LOC],$A29)/$D29,0)) ->  | J29: =IF(ISNA($A29),"",IFERROR(SUMIFS(D_D[DEC],D_D[MT],5,D_D[CAT],SMS, D_D[EP],-1,D_D[LOC],$A29)/$D29,0)) ->  | K29: =IF(ISNA($A29),"",IFERROR(SUMIFS(D_D[AWD],D_D[MT],5,D_D[CAT],SMS, D_D[EP],-1,D_D[LOC],$A29)/$D29,0)) ->  | L29: =IF(ISNA($A29),"",IFERROR(SUMIFS(D_D[AUT],D_D[MT],5,D_D[CAT],SMS, D_D[EP],-1,D_D[LOC],$A29)/$D29,0)) -> 
B30: 17 | D30: =IF(ISNA($A30),"",IFERROR(SUMIFS(D_D[INV],D_D[MT],5,D_D[CAT],SMS, D_D[EP],-1,D_D[LOC],$A30),0)) ->  | E30: =IF(ISNA($A30),"",IFERROR(SUMIFS(D_D[BL],D_D[MT],5,D_D[CAT],SMS, D_D[EP],-1,D_D[LOC],$A30),0)) ->  | G30: =IF(ISNA($A30),"",IFERROR(SUMIFS(D_D[ADP],D_D[MT],5,D_D[CAT],SMS, D_D[EP],-1,D_D[LOC],$A30),0)) ->  | H30: =IF(ISNA($A30),"",IFERROR(SUMIFS(D_D[DEV],D_D[MT],5,D_D[CAT],SMS, D_D[EP],-1,D_D[LOC],$A30)/$D30,0)) ->  | I30: =IF(ISNA($A30),"",IFERROR(SUMIFS(D_D[EVD],D_D[MT],5,D_D[CAT],SMS, D_D[EP],-1,D_D[LOC],$A30)/$D30,0)) ->  | J30: =IF(ISNA($A30),"",IFERROR(SUMIFS(D_D[DEC],D_D[MT],5,D_D[CAT],SMS, D_D[EP],-1,D_D[LOC],$A30)/$D30,0)) ->  | K30: =IF(ISNA($A30),"",IFERROR(SUMIFS(D_D[AWD],D_D[MT],5,D_D[CAT],SMS, D_D[EP],-1,D_D[LOC],$A30)/$D30,0)) ->  | L30: =IF(ISNA($A30),"",IFERROR(SUMIFS(D_D[AUT],D_D[MT],5,D_D[CAT],SMS, D_D[EP],-1,D_D[LOC],$A30)/$D30,0)) -> 
B31: 18 | D31: =IF(ISNA($A31),"",IFERROR(SUMIFS(D_D[INV],D_D[MT],5,D_D[CAT],SMS, D_D[EP],-1,D_D[LOC],$A31),0)) ->  | E31: =IF(ISNA($A31),"",IFERROR(SUMIFS(D_D[BL],D_D[MT],5,D_D[CAT],SMS, D_D[EP],-1,D_D[LOC],$A31),0)) ->  | G31: =IF(ISNA($A31),"",IFERROR(SUMIFS(D_D[ADP],D_D[MT],5,D_D[CAT],SMS, D_D[EP],-1,D_D[LOC],$A31),0)) ->  | H31: =IF(ISNA($A31),"",IFERROR(SUMIFS(D_D[DEV],D_D[MT],5,D_D[CAT],SMS, D_D[EP],-1,D_D[LOC],$A31)/$D31,0)) ->  | I31: =IF(ISNA($A31),"",IFERROR(SUMIFS(D_D[EVD],D_D[MT],5,D_D[CAT],SMS, D_D[EP],-1,D_D[LOC],$A31)/$D31,0)) ->  | J31: =IF(ISNA($A31),"",IFERROR(SUMIFS(D_D[DEC],D_D[MT],5,D_D[CAT],SMS, D_D[EP],-1,D_D[LOC],$A31)/$D31,0)) ->  | K31: =IF(ISNA($A31),"",IFERROR(SUMIFS(D_D[AWD],D_D[MT],5,D_D[CAT],SMS, D_D[EP],-1,D_D[LOC],$A31)/$D31,0)) ->  | L31: =IF(ISNA($A31),"",IFERROR(SUMIFS(D_D[AUT],D_D[MT],5,D_D[CAT],SMS, D_D[EP],-1,D_D[LOC],$A31)/$D31,0)) -> 
B32: 19 | D32: =IF(ISNA($A32),"",IFERROR(SUMIFS(D_D[INV],D_D[MT],5,D_D[CAT],SMS, D_D[EP],-1,D_D[LOC],$A32),0)) ->  | E32: =IF(ISNA($A32),"",IFERROR(SUMIFS(D_D[BL],D_D[MT],5,D_D[CAT],SMS, D_D[EP],-1,D_D[LOC],$A32),0)) ->  | G32: =IF(ISNA($A32),"",IFERROR(SUMIFS(D_D[ADP],D_D[MT],5,D_D[CAT],SMS, D_D[EP],-1,D_D[LOC],$A32),0)) ->  | H32: =IF(ISNA($A32),"",IFERROR(SUMIFS(D_D[DEV],D_D[MT],5,D_D[CAT],SMS, D_D[EP],-1,D_D[LOC],$A32)/$D32,0)) ->  | I32: =IF(ISNA($A32),"",IFERROR(SUMIFS(D_D[EVD],D_D[MT],5,D_D[CAT],SMS, D_D[EP],-1,D_D[LOC],$A32)/$D32,0)) ->  | J32: =IF(ISNA($A32),"",IFERROR(SUMIFS(D_D[DEC],D_D[MT],5,D_D[CAT],SMS, D_D[EP],-1,D_D[LOC],$A32)/$D32,0)) ->  | K32: =IF(ISNA($A32),"",IFERROR(SUMIFS(D_D[AWD],D_D[MT],5,D_D[CAT],SMS, D_D[EP],-1,D_D[LOC],$A32)/$D32,0)) ->  | L32: =IF(ISNA($A32),"",IFERROR(SUMIFS(D_D[AUT],D_D[MT],5,D_D[CAT],SMS, D_D[EP],-1,D_D[LOC],$A32)/$D32,0)) -> 
B33: 20 | D33: =IF(ISNA($A33),"",IFERROR(SUMIFS(D_D[INV],D_D[MT],5,D_D[CAT],SMS, D_D[EP],-1,D_D[LOC],$A33),0)) ->  | E33: =IF(ISNA($A33),"",IFERROR(SUMIFS(D_D[BL],D_D[MT],5,D_D[CAT],SMS, D_D[EP],-1,D_D[LOC],$A33),0)) ->  | G33: =IF(ISNA($A33),"",IFERROR(SUMIFS(D_D[ADP],D_D[MT],5,D_D[CAT],SMS, D_D[EP],-1,D_D[LOC],$A33),0)) ->  | H33: =IF(ISNA($A33),"",IFERROR(SUMIFS(D_D[DEV],D_D[MT],5,D_D[CAT],SMS, D_D[EP],-1,D_D[LOC],$A33)/$D33,0)) ->  | I33: =IF(ISNA($A33),"",IFERROR(SUMIFS(D_D[EVD],D_D[MT],5,D_D[CAT],SMS, D_D[EP],-1,D_D[LOC],$A33)/$D33,0)) ->  | J33: =IF(ISNA($A33),"",IFERROR(SUMIFS(D_D[DEC],D_D[MT],5,D_D[CAT],SMS, D_D[EP],-1,D_D[LOC],$A33)/$D33,0)) ->  | K33: =IF(ISNA($A33),"",IFERROR(SUMIFS(D_D[AWD],D_D[MT],5,D_D[CAT],SMS, D_D[EP],-1,D_D[LOC],$A33)/$D33,0)) ->  | L33: =IF(ISNA($A33),"",IFERROR(SUMIFS(D_D[AUT],D_D[MT],5,D_D[CAT],SMS, D_D[EP],-1,D_D[LOC],$A33)/$D33,0)) -> 
B34: 21 | D34: =IF(ISNA($A34),"",IFERROR(SUMIFS(D_D[INV],D_D[MT],5,D_D[CAT],SMS, D_D[EP],-1,D_D[LOC],$A34),0)) ->  | E34: =IF(ISNA($A34),"",IFERROR(SUMIFS(D_D[BL],D_D[MT],5,D_D[CAT],SMS, D_D[EP],-1,D_D[LOC],$A34),0)) ->  | G34: =IF(ISNA($A34),"",IFERROR(SUMIFS(D_D[ADP],D_D[MT],5,D_D[CAT],SMS, D_D[EP],-1,D_D[LOC],$A34),0)) ->  | H34: =IF(ISNA($A34),"",IFERROR(SUMIFS(D_D[DEV],D_D[MT],5,D_D[CAT],SMS, D_D[EP],-1,D_D[LOC],$A34)/$D34,0)) ->  | I34: =IF(ISNA($A34),"",IFERROR(SUMIFS(D_D[EVD],D_D[MT],5,D_D[CAT],SMS, D_D[EP],-1,D_D[LOC],$A34)/$D34,0)) ->  | J34: =IF(ISNA($A34),"",IFERROR(SUMIFS(D_D[DEC],D_D[MT],5,D_D[CAT],SMS, D_D[EP],-1,D_D[LOC],$A34)/$D34,0)) ->  | K34: =IF(ISNA($A34),"",IFERROR(SUMIFS(D_D[AWD],D_D[MT],5,D_D[CAT],SMS, D_D[EP],-1,D_D[LOC],$A34)/$D34,0)) ->  | L34: =IF(ISNA($A34),"",IFERROR(SUMIFS(D_D[AUT],D_D[MT],5,D_D[CAT],SMS, D_D[EP],-1,D_D[LOC],$A34)/$D34,0)) -> 
B35: 22 | D35: =IF(ISNA($A35),"",IFERROR(SUMIFS(D_D[INV],D_D[MT],5,D_D[CAT],SMS, D_D[EP],-1,D_D[LOC],$A35),0)) ->  | E35: =IF(ISNA($A35),"",IFERROR(SUMIFS(D_D[BL],D_D[MT],5,D_D[CAT],SMS, D_D[EP],-1,D_D[LOC],$A35),0)) ->  | G35: =IF(ISNA($A35),"",IFERROR(SUMIFS(D_D[ADP],D_D[MT],5,D_D[CAT],SMS, D_D[EP],-1,D_D[LOC],$A35),0)) ->  | H35: =IF(ISNA($A35),"",IFERROR(SUMIFS(D_D[DEV],D_D[MT],5,D_D[CAT],SMS, D_D[EP],-1,D_D[LOC],$A35)/$D35,0)) ->  | I35: =IF(ISNA($A35),"",IFERROR(SUMIFS(D_D[EVD],D_D[MT],5,D_D[CAT],SMS, D_D[EP],-1,D_D[LOC],$A35)/$D35,0)) ->  | J35: =IF(ISNA($A35),"",IFERROR(SUMIFS(D_D[DEC],D_D[MT],5,D_D[CAT],SMS, D_D[EP],-1,D_D[LOC],$A35)/$D35,0)) ->  | K35: =IF(ISNA($A35),"",IFERROR(SUMIFS(D_D[AWD],D_D[MT],5,D_D[CAT],SMS, D_D[EP],-1,D_D[LOC],$A35)/$D35,0)) ->  | L35: =IF(ISNA($A35),"",IFERROR(SUMIFS(D_D[AUT],D_D[MT],5,D_D[CAT],SMS, D_D[EP],-1,D_D[LOC],$A35)/$D35,0)) -> 
B36: 23 | D36: =IF(ISNA($A36),"",IFERROR(SUMIFS(D_D[INV],D_D[MT],5,D_D[CAT],SMS, D_D[EP],-1,D_D[LOC],$A36),0)) ->  | E36: =IF(ISNA($A36),"",IFERROR(SUMIFS(D_D[BL],D_D[MT],5,D_D[CAT],SMS, D_D[EP],-1,D_D[LOC],$A36),0)) ->  | G36: =IF(ISNA($A36),"",IFERROR(SUMIFS(D_D[ADP],D_D[MT],5,D_D[CAT],SMS, D_D[EP],-1,D_D[LOC],$A36),0)) ->  | H36: =IF(ISNA($A36),"",IFERROR(SUMIFS(D_D[DEV],D_D[MT],5,D_D[CAT],SMS, D_D[EP],-1,D_D[LOC],$A36)/$D36,0)) ->  | I36: =IF(ISNA($A36),"",IFERROR(SUMIFS(D_D[EVD],D_D[MT],5,D_D[CAT],SMS, D_D[EP],-1,D_D[LOC],$A36)/$D36,0)) ->  | J36: =IF(ISNA($A36),"",IFERROR(SUMIFS(D_D[DEC],D_D[MT],5,D_D[CAT],SMS, D_D[EP],-1,D_D[LOC],$A36)/$D36,0)) ->  | K36: =IF(ISNA($A36),"",IFERROR(SUMIFS(D_D[AWD],D_D[MT],5,D_D[CAT],SMS, D_D[EP],-1,D_D[LOC],$A36)/$D36,0)) ->  | L36: =IF(ISNA($A36),"",IFERROR(SUMIFS(D_D[AUT],D_D[MT],5,D_D[CAT],SMS, D_D[EP],-1,D_D[LOC],$A36)/$D36,0)) -> 

Sheet Rating Bundle - NWQ - State
C2: DISTRICT SELECTOR | E2: Compensation and Pension Rating Bundle Metrics | J2: Report through
E3: NWQ State View | J3: =D_DT[] -> 2022-05-28
E4: The State listed is based on the address associated with the claim, not payment address
E6: Each Special Mission has distinct claim counts | J6: Life Cycle Metrics defined on Legend tab
E8: CLAIM METRICS | H8: LIFE CYCLE METRICS (as Percent of # Pending)
C9: SPECIAL MISSION SELECTOR | E9: # Pending | F9: # Pending > 125 Days | G9: % Pending > 125 Days | H9: Pending Development | I9: Pending Evidence | J9: Pending Decision | K9: Pending Award | L9: Pending Authorization
A12: 100 | C12: =Driver!$C$20 -> USA - All Missions | D12: Total | E12: =IF(ISNA($A12),"",IFERROR(SUMIFS(D_D[INV],D_D[MT],5,D_D[CAT],SMS, D_D[EP],-1,D_D[LOC],$A12),0)) -> 592345 | F12: =IF(ISNA($A12),"",IFERROR(SUMIFS(D_D[BL],D_D[MT],5,D_D[CAT],SMS, D_D[EP],-1,D_D[LOC],$A12),0)) -> 196852 | G12: =IF(ISNA($A12),"",IFERROR(F12/E12,0)) -> 0.3323266002 | H12: =IF(ISNA($A12),"",IFERROR(SUMIFS(D_D[DEV],D_D[MT],5,D_D[CAT],SMS, D_D[EP],-1,D_D[LOC],$A12)/$E12,0)) -> 0.03419797584 | I12: =IF(ISNA($A12),"",IFERROR(SUMIFS(D_D[EVD],D_D[MT],5,D_D[CAT],SMS, D_D[EP],-1,D_D[LOC],$A12)/$E12,0)) -> 0.5769982021 | J12: =IF(ISNA($A12),"",IFERROR(SUMIFS(D_D[DEC],D_D[MT],5,D_D[CAT],SMS, D_D[EP],-1,D_D[LOC],$A12)/$E12,0)) -> 0.3779233386 | K12: =IF(ISNA($A12),"",IFERROR(SUMIFS(D_D[AWD],D_D[MT],5,D_D[CAT],SMS, D_D[EP],-1,D_D[LOC],$A12)/$E12,0)) -> 0.008336358035 | L12: =IF(ISNA($A12),"",IFERROR(SUMIFS(D_D[AUT],D_D[MT],5,D_D[CAT],SMS, D_D[EP],-1,D_D[LOC],$A12)/$E12,0)) -> 0.002539060851
A13: 499 | C13: ="NWQ-"&Driver!$C$20 -> NWQ-USA - All Missions | D13: Total | E13: =IF(ISNA($A13),"",IFERROR(SUMIFS(D_D[INV],D_D[MT],5,D_D[CAT],SMS, D_D[EP],-1,D_D[LOC],$A13),0)) -> 502855 | F13: =IF(ISNA($A13),"",IFERROR(SUMIFS(D_D[BL],D_D[MT],5,D_D[CAT],SMS, D_D[EP],-1,D_D[LOC],$A13),0)) -> 161540 | G13: =IF(ISNA($A13),"",IFERROR(F13/E13,0)) -> 0.3212456871 | H13: =IF(ISNA($A13),"",IFERROR(SUMIFS(D_D[DEV],D_D[MT],5,D_D[CAT],SMS, D_D[EP],-1,D_D[LOC],$A13)/$E13,0)) -> 0.01836712372 | I13: =IF(ISNA($A13),"",IFERROR(SUMIFS(D_D[EVD],D_D[MT],5,D_D[CAT],SMS, D_D[EP],-1,D_D[LOC],$A13)/$E13,0)) -> 0.594165316 | J13: =IF(ISNA($A13),"",IFERROR(SUMIFS(D_D[DEC],D_D[MT],5,D_D[CAT],SMS, D_D[EP],-1,D_D[LOC],$A13)/$E13,0)) -> 0.3867695459 | K13: =IF(ISNA($A13),"",IFERROR(SUMIFS(D_D[AWD],D_D[MT],5,D_D[CAT],SMS, D_D[EP],-1,D_D[LOC],$A13)/$E13,0)) -> 0.0006900597588 | L13: =IF(ISNA($A13),"",IFERROR(SUMIFS(D_D[AUT],D_D[MT],5,D_D[CAT],SMS, D_D[EP],-1,D_D[LOC],$A13)/$E13,0)) -> 7.954579352e-06
A14: =INDEX(STATE,(MATCH($C14,STATE_D,0))) -> 395 | B14: 1 | C14: =IFERROR(INDEX(INDIRECT(DS_NWQ),B14),"") -> Pacific District | D14: =IFERROR(INDEX(INDIRECT(DS_NWQD),B14),"") ->  | E14: =IF(ISNA($A14),"",IFERROR(SUMIFS(D_D[INV],D_D[MT],5,D_D[CAT],SMS, D_D[EP],499,D_D[LOC],$A14),0)) -> 106884 | F14: =IF(ISNA($A14),"",IFERROR(SUMIFS(D_D[BL],D_D[MT],5,D_D[CAT],SMS, D_D[EP],499,D_D[LOC],$A14),0)) -> 36699 | G14: =IF(ISNA($A14),"",IFERROR(F14/E14,0)) -> 0.3433535422 | H14: =IF(ISNA($A14),"",IFERROR(SUMIFS(D_D[DEV],D_D[MT],5,D_D[CAT],SMS, D_D[EP],499,D_D[LOC],$A14)/$E14,0)) -> 0.0328019161 | I14: =IF(ISNA($A14),"",IFERROR(SUMIFS(D_D[EVD],D_D[MT],5,D_D[CAT],SMS, D_D[EP],499,D_D[LOC],$A14)/$E14,0)) -> 0.5883761835 | J14: =IF(ISNA($A14),"",IFERROR(SUMIFS(D_D[DEC],D_D[MT],5,D_D[CAT],SMS, D_D[EP],499,D_D[LOC],$A14)/$E14,0)) -> 0.3683993863 | K14: =IF(ISNA($A14),"",IFERROR(SUMIFS(D_D[AWD],D_D[MT],5,D_D[CAT],SMS, D_D[EP],499,D_D[LOC],$A14)/$E14,0)) -> 0.008364207926 | L14: =IF(ISNA($A14),"",IFERROR(SUMIFS(D_D[AUT],D_D[MT],5,D_D[CAT],SMS, D_D[EP],499,D_D[LOC],$A14)/$E14,0)) -> 0.002058306201
A15: =IFERROR(INDEX(INDIRECT(DS_NWQI),B15),#N/A) -> AK100 | B15: 2 | C15: Alaska | D15: =IFERROR(INDEX(INDIRECT(DS_NWQD),B15),"") -> Alaska-Total | E15: =IF(ISNA($A15),"",IFERROR(SUMIFS(D_D[INV],D_D[MT],5,D_D[CAT],SMS, D_D[EP],499,D_D[LOC],$A15),0)) -> 1997 | F15: =IF(ISNA($A15),"",IFERROR(SUMIFS(D_D[BL],D_D[MT],5,D_D[CAT],SMS, D_D[EP],499,D_D[LOC],$A15),0)) -> 736 | G15: 0.3685528292 | H15: =IF(ISNA($A15),"",IFERROR(SUMIFS(D_D[DEV],D_D[MT],5,D_D[CAT],SMS, D_D[EP],499,D_D[LOC],$A15)/$E15,0)) -> 0.02053079619 | I15: =IF(ISNA($A15),"",IFERROR(SUMIFS(D_D[EVD],D_D[MT],5,D_D[CAT],SMS, D_D[EP],499,D_D[LOC],$A15)/$E15,0)) -> 0.6855282924 | J15: =IF(ISNA($A15),"",IFERROR(SUMIFS(D_D[DEC],D_D[MT],5,D_D[CAT],SMS, D_D[EP],499,D_D[LOC],$A15)/$E15,0)) -> 0.2824236355 | K15: =IF(ISNA($A15),"",IFERROR(SUMIFS(D_D[AWD],D_D[MT],5,D_D[CAT],SMS, D_D[EP],499,D_D[LOC],$A15)/$E15,0)) -> 0.01001502253 | L15: =IF(ISNA($A15),"",IFERROR(SUMIFS(D_D[AUT],D_D[MT],5,D_D[CAT],SMS, D_D[EP],499,D_D[LOC],$A15)/$E15,0)) -> 0.00150225338
A16: AK463 | B16: 3 | C16: 0 | D16: Anchorage RO | E16: =IF(ISNA($A16),"",IFERROR(SUMIFS(D_D[INV],D_D[MT],5,D_D[CAT],SMS, D_D[EP],499,D_D[LOC],$A16),0)) -> 24 | F16: =IF(ISNA($A16),"",IFERROR(SUMIFS(D_D[BL],D_D[MT],5,D_D[CAT],SMS, D_D[EP],499,D_D[LOC],$A16),0)) -> 4 | G16: 0.1666666667 | H16: =IF(ISNA($A16),"",IFERROR(SUMIFS(D_D[DEV],D_D[MT],5,D_D[CAT],SMS, D_D[EP],499,D_D[LOC],$A16)/$E16,0)) -> 0.5416666667 | I16: =IF(ISNA($A16),"",IFERROR(SUMIFS(D_D[EVD],D_D[MT],5,D_D[CAT],SMS, D_D[EP],499,D_D[LOC],$A16)/$E16,0)) -> 0.375 | J16: =IF(ISNA($A16),"",IFERROR(SUMIFS(D_D[DEC],D_D[MT],5,D_D[CAT],SMS, D_D[EP],499,D_D[LOC],$A16)/$E16,0)) -> 0.04166666667 | K16: =IF(ISNA($A16),"",IFERROR(SUMIFS(D_D[AWD],D_D[MT],5,D_D[CAT],SMS, D_D[EP],499,D_D[LOC],$A16)/$E16,0)) -> 0.04166666667 | L16: =IF(ISNA($A16),"",IFERROR(SUMIFS(D_D[AUT],D_D[MT],5,D_D[CAT],SMS, D_D[EP],499,D_D[LOC],$A16)/$E16,0)) -> 0
A17: AK-1 | B17: 4 | D17: Alaska-Other RO | E17: =IF(ISNA($A17),"",IFERROR(SUMIFS(D_D[INV],D_D[MT],5,D_D[CAT],SMS, D_D[EP],499,D_D[LOC],$A17),0)) -> 293 | F17: =IF(ISNA($A17),"",IFERROR(SUMIFS(D_D[BL],D_D[MT],5,D_D[CAT],SMS, D_D[EP],499,D_D[LOC],$A17),0)) -> 112 | G17: 0.3822525597 | H17: =IF(ISNA($A17),"",IFERROR(SUMIFS(D_D[DEV],D_D[MT],5,D_D[CAT],SMS, D_D[EP],499,D_D[LOC],$A17)/$E17,0)) -> 0.05802047782 | I17: =IF(ISNA($A17),"",IFERROR(SUMIFS(D_D[EVD],D_D[MT],5,D_D[CAT],SMS, D_D[EP],499,D_D[LOC],$A17)/$E17,0)) -> 0.4880546075 | J17: =IF(ISNA($A17),"",IFERROR(SUMIFS(D_D[DEC],D_D[MT],5,D_D[CAT],SMS, D_D[EP],499,D_D[LOC],$A17)/$E17,0)) -> 0.3788395904 | K17: =IF(ISNA($A17),"",IFERROR(SUMIFS(D_D[AWD],D_D[MT],5,D_D[CAT],SMS, D_D[EP],499,D_D[LOC],$A17)/$E17,0)) -> 0.06484641638 | L17: =IF(ISNA($A17),"",IFERROR(SUMIFS(D_D[AUT],D_D[MT],5,D_D[CAT],SMS, D_D[EP],499,D_D[LOC],$A17)/$E17,0)) -> 0.01023890785
A18: AK499 | B18: 5 | D18: Alaska-NWQ | E18: =IF(ISNA($A18),"",IFERROR(SUMIFS(D_D[INV],D_D[MT],5,D_D[CAT],SMS, D_D[EP],499,D_D[LOC],$A18),0)) -> 1680 | F18: =IF(ISNA($A18),"",IFERROR(SUMIFS(D_D[BL],D_D[MT],5,D_D[CAT],SMS, D_D[EP],499,D_D[LOC],$A18),0)) -> 620 | G18: 0.369047619 | H18: =IF(ISNA($A18),"",IFERROR(SUMIFS(D_D[DEV],D_D[MT],5,D_D[CAT],SMS, D_D[EP],499,D_D[LOC],$A18)/$E18,0)) -> 0.006547619048 | I18: =IF(ISNA($A18),"",IFERROR(SUMIFS(D_D[EVD],D_D[MT],5,D_D[CAT],SMS, D_D[EP],499,D_D[LOC],$A18)/$E18,0)) -> 0.7244047619 | J18: =IF(ISNA($A18),"",IFERROR(SUMIFS(D_D[DEC],D_D[MT],5,D_D[CAT],SMS, D_D[EP],499,D_D[LOC],$A18)/$E18,0)) -> 0.269047619 | K18: =IF(ISNA($A18),"",IFERROR(SUMIFS(D_D[AWD],D_D[MT],5,D_D[CAT],SMS, D_D[EP],499,D_D[LOC],$A18)/$E18,0)) -> 0 | L18: =IF(ISNA($A18),"",IFERROR(SUMIFS(D_D[AUT],D_D[MT],5,D_D[CAT],SMS, D_D[EP],499,D_D[LOC],$A18)/$E18,0)) -> 0
A19: AZ100 | B19: 6 | C19: Arizona | D19: Arizona-Total | E19: =IF(ISNA($A19),"",IFERROR(SUMIFS(D_D[INV],D_D[MT],5,D_D[CAT],SMS, D_D[EP],499,D_D[LOC],$A19),0)) -> 13353 | F19: =IF(ISNA($A19),"",IFERROR(SUMIFS(D_D[BL],D_D[MT],5,D_D[CAT],SMS, D_D[EP],499,D_D[LOC],$A19),0)) -> 4654 | G19: 0.3485359095 | H19: =IF(ISNA($A19),"",IFERROR(SUMIFS(D_D[DEV],D_D[MT],5,D_D[CAT],SMS, D_D[EP],499,D_D[LOC],$A19)/$E19,0)) -> 0.03759454804 | I19: =IF(ISNA($A19),"",IFERROR(SUMIFS(D_D[EVD],D_D[MT],5,D_D[CAT],SMS, D_D[EP],499,D_D[LOC],$A19)/$E19,0)) -> 0.5907286752 | J19: =IF(ISNA($A19),"",IFERROR(SUMIFS(D_D[DEC],D_D[MT],5,D_D[CAT],SMS, D_D[EP],499,D_D[LOC],$A19)/$E19,0)) -> 0.3608926833 | K19: =IF(ISNA($A19),"",IFERROR(SUMIFS(D_D[AWD],D_D[MT],5,D_D[CAT],SMS, D_D[EP],499,D_D[LOC],$A19)/$E19,0)) -> 0.008836965476 | L19: =IF(ISNA($A19),"",IFERROR(SUMIFS(D_D[AUT],D_D[MT],5,D_D[CAT],SMS, D_D[EP],499,D_D[LOC],$A19)/$E19,0)) -> 0.001947127986
A20: AZ345 | B20: 7 | C20: 0 | D20: Phoenix RO | E20: =IF(ISNA($A20),"",IFERROR(SUMIFS(D_D[INV],D_D[MT],5,D_D[CAT],SMS, D_D[EP],499,D_D[LOC],$A20),0)) -> 331 | F20: =IF(ISNA($A20),"",IFERROR(SUMIFS(D_D[BL],D_D[MT],5,D_D[CAT],SMS, D_D[EP],499,D_D[LOC],$A20),0)) -> 66 | G20: 0.1993957704 | H20: =IF(ISNA($A20),"",IFERROR(SUMIFS(D_D[DEV],D_D[MT],5,D_D[CAT],SMS, D_D[EP],499,D_D[LOC],$A20)/$E20,0)) -> 0.3625377644 | I20: =IF(ISNA($A20),"",IFERROR(SUMIFS(D_D[EVD],D_D[MT],5,D_D[CAT],SMS, D_D[EP],499,D_D[LOC],$A20)/$E20,0)) -> 0.3716012085 | J20: =IF(ISNA($A20),"",IFERROR(SUMIFS(D_D[DEC],D_D[MT],5,D_D[CAT],SMS, D_D[EP],499,D_D[LOC],$A20)/$E20,0)) -> 0.1812688822 | K20: =IF(ISNA($A20),"",IFERROR(SUMIFS(D_D[AWD],D_D[MT],5,D_D[CAT],SMS, D_D[EP],499,D_D[LOC],$A20)/$E20,0)) -> 0.06948640483 | L20: =IF(ISNA($A20),"",IFERROR(SUMIFS(D_D[AUT],D_D[MT],5,D_D[CAT],SMS, D_D[EP],499,D_D[LOC],$A20)/$E20,0)) -> 0.01510574018
A21: AZ-1 | B21: 8 | D21: Arizona-Other RO | E21: =IF(ISNA($A21),"",IFERROR(SUMIFS(D_D[INV],D_D[MT],5,D_D[CAT],SMS, D_D[EP],499,D_D[LOC],$A21),0)) -> 1726 | F21: =IF(ISNA($A21),"",IFERROR(SUMIFS(D_D[BL],D_D[MT],5,D_D[CAT],SMS, D_D[EP],499,D_D[LOC],$A21),0)) -> 754 | G21: 0.4368482039 | H21: =IF(ISNA($A21),"",IFERROR(SUMIFS(D_D[DEV],D_D[MT],5,D_D[CAT],SMS, D_D[EP],499,D_D[LOC],$A21)/$E21,0)) -> 0.08980301275 | I21: =IF(ISNA($A21),"",IFERROR(SUMIFS(D_D[EVD],D_D[MT],5,D_D[CAT],SMS, D_D[EP],499,D_D[LOC],$A21)/$E21,0)) -> 0.527230591 | J21: =IF(ISNA($A21),"",IFERROR(SUMIFS(D_D[DEC],D_D[MT],5,D_D[CAT],SMS, D_D[EP],499,D_D[LOC],$A21)/$E21,0)) -> 0.3250289687 | K21: =IF(ISNA($A21),"",IFERROR(SUMIFS(D_D[AWD],D_D[MT],5,D_D[CAT],SMS, D_D[EP],499,D_D[LOC],$A21)/$E21,0)) -> 0.04577056779 | L21: =IF(ISNA($A21),"",IFERROR(SUMIFS(D_D[AUT],D_D[MT],5,D_D[CAT],SMS, D_D[EP],499,D_D[LOC],$A21)/$E21,0)) -> 0.01216685979
A22: AZ499 | B22: 9 | D22: =IFERROR(INDEX(INDIRECT(DS_NWQD),B22),"") -> Arizona-NWQ | E22: =IF(ISNA($A22),"",IFERROR(SUMIFS(D_D[INV],D_D[MT],5,D_D[CAT],SMS, D_D[EP],499,D_D[LOC],$A22),0)) -> 11296 | F22: =IF(ISNA($A22),"",IFERROR(SUMIFS(D_D[BL],D_D[MT],5,D_D[CAT],SMS, D_D[EP],499,D_D[LOC],$A22),0)) -> 3834 | G22: =IF(ISNA($A22),"",IFERROR(F22/E22,0)) -> 0.3394121813 | H22: =IF(ISNA($A22),"",IFERROR(SUMIFS(D_D[DEV],D_D[MT],5,D_D[CAT],SMS, D_D[EP],499,D_D[LOC],$A22)/$E22,0)) -> 0.02009560907 | I22: =IF(ISNA($A22),"",IFERROR(SUMIFS(D_D[EVD],D_D[MT],5,D_D[CAT],SMS, D_D[EP],499,D_D[LOC],$A22)/$E22,0)) -> 0.606851983 | J22: =IF(ISNA($A22),"",IFERROR(SUMIFS(D_D[DEC],D_D[MT],5,D_D[CAT],SMS, D_D[EP],499,D_D[LOC],$A22)/$E22,0)) -> 0.3716359773 | K22: =IF(ISNA($A22),"",IFERROR(SUMIFS(D_D[AWD],D_D[MT],5,D_D[CAT],SMS, D_D[EP],499,D_D[LOC],$A22)/$E22,0)) -> 0.001416430595 | L22: =IF(ISNA($A22),"",IFERROR(SUMIFS(D_D[AUT],D_D[MT],5,D_D[CAT],SMS, D_D[EP],499,D_D[LOC],$A22)/$E22,0)) -> 0
A23: CA100 | B23: 10 | C23: California | D23: California-Total | E23: =IF(ISNA($A23),"",IFERROR(SUMIFS(D_D[INV],D_D[MT],5,D_D[CAT],SMS, D_D[EP],499,D_D[LOC],$A23),0)) -> 48381 | F23: =IF(ISNA($A23),"",IFERROR(SUMIFS(D_D[BL],D_D[MT],5,D_D[CAT],SMS, D_D[EP],499,D_D[LOC],$A23),0)) -> 15782 | G23: 0.3262024348 | H23: =IF(ISNA($A23),"",IFERROR(SUMIFS(D_D[DEV],D_D[MT],5,D_D[CAT],SMS, D_D[EP],499,D_D[LOC],$A23)/$E23,0)) -> 0.0331328414 | I23: =IF(ISNA($A23),"",IFERROR(SUMIFS(D_D[EVD],D_D[MT],5,D_D[CAT],SMS, D_D[EP],499,D_D[LOC],$A23)/$E23,0)) -> 0.5853330853 | J23: =IF(ISNA($A23),"",IFERROR(SUMIFS(D_D[DEC],D_D[MT],5,D_D[CAT],SMS, D_D[EP],499,D_D[LOC],$A23)/$E23,0)) -> 0.3715508154 | K23: =IF(ISNA($A23),"",IFERROR(SUMIFS(D_D[AWD],D_D[MT],5,D_D[CAT],SMS, D_D[EP],499,D_D[LOC],$A23)/$E23,0)) -> 0.008185031314 | L23: =IF(ISNA($A23),"",IFERROR(SUMIFS(D_D[AUT],D_D[MT],5,D_D[CAT],SMS, D_D[EP],499,D_D[LOC],$A23)/$E23,0)) -> 0.001798226577
A24: CA344 | B24: 11 | C24: 0 | D24: Los Angeles RO | E24: =IF(ISNA($A24),"",IFERROR(SUMIFS(D_D[INV],D_D[MT],5,D_D[CAT],SMS, D_D[EP],499,D_D[LOC],$A24),0)) -> 539 | F24: =IF(ISNA($A24),"",IFERROR(SUMIFS(D_D[BL],D_D[MT],5,D_D[CAT],SMS, D_D[EP],499,D_D[LOC],$A24),0)) -> 122 | G24: 0.2263450835 | H24: =IF(ISNA($A24),"",IFERROR(SUMIFS(D_D[DEV],D_D[MT],5,D_D[CAT],SMS, D_D[EP],499,D_D[LOC],$A24)/$E24,0)) -> 0.2820037106 | I24: =IF(ISNA($A24),"",IFERROR(SUMIFS(D_D[EVD],D_D[MT],5,D_D[CAT],SMS, D_D[EP],499,D_D[LOC],$A24)/$E24,0)) -> 0.3784786642 | J24: =IF(ISNA($A24),"",IFERROR(SUMIFS(D_D[DEC],D_D[MT],5,D_D[CAT],SMS, D_D[EP],499,D_D[LOC],$A24)/$E24,0)) -> 0.3135435993 | K24: =IF(ISNA($A24),"",IFERROR(SUMIFS(D_D[AWD],D_D[MT],5,D_D[CAT],SMS, D_D[EP],499,D_D[LOC],$A24)/$E24,0)) -> 0.009276437848 | L24: =IF(ISNA($A24),"",IFERROR(SUMIFS(D_D[AUT],D_D[MT],5,D_D[CAT],SMS, D_D[EP],499,D_D[LOC],$A24)/$E24,0)) -> 0.01669758813
A25: CA343 | B25: 12 | C25: 0 | D25: Oakland RO | E25: =IF(ISNA($A25),"",IFERROR(SUMIFS(D_D[INV],D_D[MT],5,D_D[CAT],SMS, D_D[EP],499,D_D[LOC],$A25),0)) -> 319 | F25: =IF(ISNA($A25),"",IFERROR(SUMIFS(D_D[BL],D_D[MT],5,D_D[CAT],SMS, D_D[EP],499,D_D[LOC],$A25),0)) -> 70 | G25: 0.2194357367 | H25: =IF(ISNA($A25),"",IFERROR(SUMIFS(D_D[DEV],D_D[MT],5,D_D[CAT],SMS, D_D[EP],499,D_D[LOC],$A25)/$E25,0)) -> 0.3197492163 | I25: =IF(ISNA($A25),"",IFERROR(SUMIFS(D_D[EVD],D_D[MT],5,D_D[CAT],SMS, D_D[EP],499,D_D[LOC],$A25)/$E25,0)) -> 0.4200626959 | J25: =IF(ISNA($A25),"",IFERROR(SUMIFS(D_D[DEC],D_D[MT],5,D_D[CAT],SMS, D_D[EP],499,D_D[LOC],$A25)/$E25,0)) -> 0.2194357367 | K25: =IF(ISNA($A25),"",IFERROR(SUMIFS(D_D[AWD],D_D[MT],5,D_D[CAT],SMS, D_D[EP],499,D_D[LOC],$A25)/$E25,0)) -> 0.02821316614 | L25: =IF(ISNA($A25),"",IFERROR(SUMIFS(D_D[AUT],D_D[MT],5,D_D[CAT],SMS, D_D[EP],499,D_D[LOC],$A25)/$E25,0)) -> 0.01253918495
A26: CA377 | B26: 13 | D26: San Diego RO | E26: =IF(ISNA($A26),"",IFERROR(SUMIFS(D_D[INV],D_D[MT],5,D_D[CAT],SMS, D_D[EP],499,D_D[LOC],$A26),0)) -> 614 | F26: =IF(ISNA($A26),"",IFERROR(SUMIFS(D_D[BL],D_D[MT],5,D_D[CAT],SMS, D_D[EP],499,D_D[LOC],$A26),0)) -> 138 | G26: 0.2247557003 | H26: =IF(ISNA($A26),"",IFERROR(SUMIFS(D_D[DEV],D_D[MT],5,D_D[CAT],SMS, D_D[EP],499,D_D[LOC],$A26)/$E26,0)) -> 0.1563517915 | I26: =IF(ISNA($A26),"",IFERROR(SUMIFS(D_D[EVD],D_D[MT],5,D_D[CAT],SMS, D_D[EP],499,D_D[LOC],$A26)/$E26,0)) -> 0.4250814332 | J26: =IF(ISNA($A26),"",IFERROR(SUMIFS(D_D[DEC],D_D[MT],5,D_D[CAT],SMS, D_D[EP],499,D_D[LOC],$A26)/$E26,0)) -> 0.3827361564 | K26: =IF(ISNA($A26),"",IFERROR(SUMIFS(D_D[AWD],D_D[MT],5,D_D[CAT],SMS, D_D[EP],499,D_D[LOC],$A26)/$E26,0)) -> 0.02768729642 | L26: =IF(ISNA($A26),"",IFERROR(SUMIFS(D_D[AUT],D_D[MT],5,D_D[CAT],SMS, D_D[EP],499,D_D[LOC],$A26)/$E26,0)) -> 0.008143322476
A27: CA-1 | B27: 14 | D27: California-Other RO | E27: =IF(ISNA($A27),"",IFERROR(SUMIFS(D_D[INV],D_D[MT],5,D_D[CAT],SMS, D_D[EP],499,D_D[LOC],$A27),0)) -> 5879 | F27: =IF(ISNA($A27),"",IFERROR(SUMIFS(D_D[BL],D_D[MT],5,D_D[CAT],SMS, D_D[EP],499,D_D[LOC],$A27),0)) -> 2565 | G27: 0.4362986903 | H27: =IF(ISNA($A27),"",IFERROR(SUMIFS(D_D[DEV],D_D[MT],5,D_D[CAT],SMS, D_D[EP],499,D_D[LOC],$A27)/$E27,0)) -> 0.08930090151 | I27: =IF(ISNA($A27),"",IFERROR(SUMIFS(D_D[EVD],D_D[MT],5,D_D[CAT],SMS, D_D[EP],499,D_D[LOC],$A27)/$E27,0)) -> 0.5153937745 | J27: =IF(ISNA($A27),"",IFERROR(SUMIFS(D_D[DEC],D_D[MT],5,D_D[CAT],SMS, D_D[EP],499,D_D[LOC],$A27)/$E27,0)) -> 0.3259057663 | K27: =IF(ISNA($A27),"",IFERROR(SUMIFS(D_D[AWD],D_D[MT],5,D_D[CAT],SMS, D_D[EP],499,D_D[LOC],$A27)/$E27,0)) -> 0.05766286783 | L27: =IF(ISNA($A27),"",IFERROR(SUMIFS(D_D[AUT],D_D[MT],5,D_D[CAT],SMS, D_D[EP],499,D_D[LOC],$A27)/$E27,0)) -> 0.01173668991
A28: CA499 | B28: 15 | D28: =IFERROR(INDEX(INDIRECT(DS_NWQD),B28),"") -> California-NWQ | E28: =IF(ISNA($A28),"",IFERROR(SUMIFS(D_D[INV],D_D[MT],5,D_D[CAT],SMS, D_D[EP],499,D_D[LOC],$A28),0)) -> 41030 | F28: =IF(ISNA($A28),"",IFERROR(SUMIFS(D_D[BL],D_D[MT],5,D_D[CAT],SMS, D_D[EP],499,D_D[LOC],$A28),0)) -> 12887 | G28: =IF(ISNA($A28),"",IFERROR(F28/E28,0)) -> 0.3140872532 | H28: =IF(ISNA($A28),"",IFERROR(SUMIFS(D_D[DEV],D_D[MT],5,D_D[CAT],SMS, D_D[EP],499,D_D[LOC],$A28)/$E28,0)) -> 0.01774311479 | I28: =IF(ISNA($A28),"",IFERROR(SUMIFS(D_D[EVD],D_D[MT],5,D_D[CAT],SMS, D_D[EP],499,D_D[LOC],$A28)/$E28,0)) -> 0.6017548136 | J28: =IF(ISNA($A28),"",IFERROR(SUMIFS(D_D[DEC],D_D[MT],5,D_D[CAT],SMS, D_D[EP],499,D_D[LOC],$A28)/$E28,0)) -> 0.379868389 | K28: =IF(ISNA($A28),"",IFERROR(SUMIFS(D_D[AWD],D_D[MT],5,D_D[CAT],SMS, D_D[EP],499,D_D[LOC],$A28)/$E28,0)) -> 0.0006336826712 | L28: =IF(ISNA($A28),"",IFERROR(SUMIFS(D_D[AUT],D_D[MT],5,D_D[CAT],SMS, D_D[EP],499,D_D[LOC],$A28)/$E28,0)) -> 0
A29: HI100 | B29: 16 | C29: Hawaii | D29: Hawaii-Total | E29: =IF(ISNA($A29),"",IFERROR(SUMIFS(D_D[INV],D_D[MT],5,D_D[CAT],SMS, D_D[EP],499,D_D[LOC],$A29),0)) -> 3551 | F29: =IF(ISNA($A29),"",IFERROR(SUMIFS(D_D[BL],D_D[MT],5,D_D[CAT],SMS, D_D[EP],499,D_D[LOC],$A29),0)) -> 1219 | G29: 0.3432835821 | H29: =IF(ISNA($A29),"",IFERROR(SUMIFS(D_D[DEV],D_D[MT],5,D_D[CAT],SMS, D_D[EP],499,D_D[LOC],$A29)/$E29,0)) -> 0.02281047592 | I29: =IF(ISNA($A29),"",IFERROR(SUMIFS(D_D[EVD],D_D[MT],5,D_D[CAT],SMS, D_D[EP],499,D_D[LOC],$A29)/$E29,0)) -> 0.6386933258 | J29: =IF(ISNA($A29),"",IFERROR(SUMIFS(D_D[DEC],D_D[MT],5,D_D[CAT],SMS, D_D[EP],499,D_D[LOC],$A29)/$E29,0)) -> 0.3314559279 | K29: =IF(ISNA($A29),"",IFERROR(SUMIFS(D_D[AWD],D_D[MT],5,D_D[CAT],SMS, D_D[EP],499,D_D[LOC],$A29)/$E29,0)) -> 0.004787383836 | L29: =IF(ISNA($A29),"",IFERROR(SUMIFS(D_D[AUT],D_D[MT],5,D_D[CAT],SMS, D_D[EP],499,D_D[LOC],$A29)/$E29,0)) -> 0.002252886511
A30: HI459 | B30: 17 | C30: 0 | D30: Honolulu RO | E30: =IF(ISNA($A30),"",IFERROR(SUMIFS(D_D[INV],D_D[MT],5,D_D[CAT],SMS, D_D[EP],499,D_D[LOC],$A30),0)) -> 47 | F30: =IF(ISNA($A30),"",IFERROR(SUMIFS(D_D[BL],D_D[MT],5,D_D[CAT],SMS, D_D[EP],499,D_D[LOC],$A30),0)) -> 7 | G30: 0.1489361702 | H30: =IF(ISNA($A30),"",IFERROR(SUMIFS(D_D[DEV],D_D[MT],5,D_D[CAT],SMS, D_D[EP],499,D_D[LOC],$A30)/$E30,0)) -> 0.5106382979 | I30: =IF(ISNA($A30),"",IFERROR(SUMIFS(D_D[EVD],D_D[MT],5,D_D[CAT],SMS, D_D[EP],499,D_D[LOC],$A30)/$E30,0)) -> 0.2127659574 | J30: =IF(ISNA($A30),"",IFERROR(SUMIFS(D_D[DEC],D_D[MT],5,D_D[CAT],SMS, D_D[EP],499,D_D[LOC],$A30)/$E30,0)) -> 0.2765957447 | K30: =IF(ISNA($A30),"",IFERROR(SUMIFS(D_D[AWD],D_D[MT],5,D_D[CAT],SMS, D_D[EP],499,D_D[LOC],$A30)/$E30,0)) -> 0 | L30: =IF(ISNA($A30),"",IFERROR(SUMIFS(D_D[AUT],D_D[MT],5,D_D[CAT],SMS, D_D[EP],499,D_D[LOC],$A30)/$E30,0)) -> 0
A31: HI-1 | B31: 18 | C31: 0 | D31: Hawaii-Other RO | E31: =IF(ISNA($A31),"",IFERROR(SUMIFS(D_D[INV],D_D[MT],5,D_D[CAT],SMS, D_D[EP],499,D_D[LOC],$A31),0)) -> 456 | F31: =IF(ISNA($A31),"",IFERROR(SUMIFS(D_D[BL],D_D[MT],5,D_D[CAT],SMS, D_D[EP],499,D_D[LOC],$A31),0)) -> 201 | G31: 0.4407894737 | H31: =IF(ISNA($A31),"",IFERROR(SUMIFS(D_D[DEV],D_D[MT],5,D_D[CAT],SMS, D_D[EP],499,D_D[LOC],$A31)/$E31,0)) -> 0.0701754386 | I31: =IF(ISNA($A31),"",IFERROR(SUMIFS(D_D[EVD],D_D[MT],5,D_D[CAT],SMS, D_D[EP],499,D_D[LOC],$A31)/$E31,0)) -> 0.5460526316 | J31: =IF(ISNA($A31),"",IFERROR(SUMIFS(D_D[DEC],D_D[MT],5,D_D[CAT],SMS, D_D[EP],499,D_D[LOC],$A31)/$E31,0)) -> 0.3311403509 | K31: =IF(ISNA($A31),"",IFERROR(SUMIFS(D_D[AWD],D_D[MT],5,D_D[CAT],SMS, D_D[EP],499,D_D[LOC],$A31)/$E31,0)) -> 0.0350877193 | L31: =IF(ISNA($A31),"",IFERROR(SUMIFS(D_D[AUT],D_D[MT],5,D_D[CAT],SMS, D_D[EP],499,D_D[LOC],$A31)/$E31,0)) -> 0.01754385965
A32: HI499 | B32: 19 | C32: 0 | D32: Hawaii-NWQ | E32: =IF(ISNA($A32),"",IFERROR(SUMIFS(D_D[INV],D_D[MT],5,D_D[CAT],SMS, D_D[EP],499,D_D[LOC],$A32),0)) -> 3048 | F32: =IF(ISNA($A32),"",IFERROR(SUMIFS(D_D[BL],D_D[MT],5,D_D[CAT],SMS, D_D[EP],499,D_D[LOC],$A32),0)) -> 1011 | G32: 0.3316929134 | H32: =IF(ISNA($A32),"",IFERROR(SUMIFS(D_D[DEV],D_D[MT],5,D_D[CAT],SMS, D_D[EP],499,D_D[LOC],$A32)/$E32,0)) -> 0.008202099738 | I32: =IF(ISNA($A32),"",IFERROR(SUMIFS(D_D[EVD],D_D[MT],5,D_D[CAT],SMS, D_D[EP],499,D_D[LOC],$A32)/$E32,0)) -> 0.6591207349 | J32: =IF(ISNA($A32),"",IFERROR(SUMIFS(D_D[DEC],D_D[MT],5,D_D[CAT],SMS, D_D[EP],499,D_D[LOC],$A32)/$E32,0)) -> 0.3323490814 | K32: =IF(ISNA($A32),"",IFERROR(SUMIFS(D_D[AWD],D_D[MT],5,D_D[CAT],SMS, D_D[EP],499,D_D[LOC],$A32)/$E32,0)) -> 0.0003280839895 | L32: =IF(ISNA($A32),"",IFERROR(SUMIFS(D_D[AUT],D_D[MT],5,D_D[CAT],SMS, D_D[EP],499,D_D[LOC],$A32)/$E32,0)) -> 0
A33: ID100 | B33: 20 | C33: Idaho | D33: Idaho-Total | E33: =IF(ISNA($A33),"",IFERROR(SUMIFS(D_D[INV],D_D[MT],5,D_D[CAT],SMS, D_D[EP],499,D_D[LOC],$A33),0)) -> 3514 | F33: =IF(ISNA($A33),"",IFERROR(SUMIFS(D_D[BL],D_D[MT],5,D_D[CAT],SMS, D_D[EP],499,D_D[LOC],$A33),0)) -> 1331 | G33: 0.3787706318 | H33: =IF(ISNA($A33),"",IFERROR(SUMIFS(D_D[DEV],D_D[MT],5,D_D[CAT],SMS, D_D[EP],499,D_D[LOC],$A33)/$E33,0)) -> 0.031303358 | I33: =IF(ISNA($A33),"",IFERROR(SUMIFS(D_D[EVD],D_D[MT],5,D_D[CAT],SMS, D_D[EP],499,D_D[LOC],$A33)/$E33,0)) -> 0.5799658509 | J33: =IF(ISNA($A33),"",IFERROR(SUMIFS(D_D[DEC],D_D[MT],5,D_D[CAT],SMS, D_D[EP],499,D_D[LOC],$A33)/$E33,0)) -> 0.3770631759 | K33: =IF(ISNA($A33),"",IFERROR(SUMIFS(D_D[AWD],D_D[MT],5,D_D[CAT],SMS, D_D[EP],499,D_D[LOC],$A33)/$E33,0)) -> 0.009675583381 | L33: =IF(ISNA($A33),"",IFERROR(SUMIFS(D_D[AUT],D_D[MT],5,D_D[CAT],SMS, D_D[EP],499,D_D[LOC],$A33)/$E33,0)) -> 0.001992031873
A34: ID347 | B34: 21 | C34: 0 | D34: Boise RO | E34: =IF(ISNA($A34),"",IFERROR(SUMIFS(D_D[INV],D_D[MT],5,D_D[CAT],SMS, D_D[EP],499,D_D[LOC],$A34),0)) -> 45 | F34: =IF(ISNA($A34),"",IFERROR(SUMIFS(D_D[BL],D_D[MT],5,D_D[CAT],SMS, D_D[EP],499,D_D[LOC],$A34),0)) -> 4 | G34: 0.08888888889 | H34: =IF(ISNA($A34),"",IFERROR(SUMIFS(D_D[DEV],D_D[MT],5,D_D[CAT],SMS, D_D[EP],499,D_D[LOC],$A34)/$E34,0)) -> 0.6888888889 | I34: =IF(ISNA($A34),"",IFERROR(SUMIFS(D_D[EVD],D_D[MT],5,D_D[CAT],SMS, D_D[EP],499,D_D[LOC],$A34)/$E34,0)) -> 0.1111111111 | J34: =IF(ISNA($A34),"",IFERROR(SUMIFS(D_D[DEC],D_D[MT],5,D_D[CAT],SMS, D_D[EP],499,D_D[LOC],$A34)/$E34,0)) -> 0.1111111111 | K34: =IF(ISNA($A34),"",IFERROR(SUMIFS(D_D[AWD],D_D[MT],5,D_D[CAT],SMS, D_D[EP],499,D_D[LOC],$A34)/$E34,0)) -> 0.08888888889 | L34: =IF(ISNA($A34),"",IFERROR(SUMIFS(D_D[AUT],D_D[MT],5,D_D[CAT],SMS, D_D[EP],499,D_D[LOC],$A34)/$E34,0)) -> 0
A35: ID-1 | B35: 22 | C35: 0 | D35: Idaho-Other RO | E35: =IF(ISNA($A35),"",IFERROR(SUMIFS(D_D[INV],D_D[MT],5,D_D[CAT],SMS, D_D[EP],499,D_D[LOC],$A35),0)) -> 511 | F35: =IF(ISNA($A35),"",IFERROR(SUMIFS(D_D[BL],D_D[MT],5,D_D[CAT],SMS, D_D[EP],499,D_D[LOC],$A35),0)) -> 230 | G35: 0.4500978474 | H35: =IF(ISNA($A35),"",IFERROR(SUMIFS(D_D[DEV],D_D[MT],5,D_D[CAT],SMS, D_D[EP],499,D_D[LOC],$A35)/$E35,0)) -> 0.08023483366 | I35: =IF(ISNA($A35),"",IFERROR(SUMIFS(D_D[EVD],D_D[MT],5,D_D[CAT],SMS, D_D[EP],499,D_D[LOC],$A35)/$E35,0)) -> 0.5088062622 | J35: =IF(ISNA($A35),"",IFERROR(SUMIFS(D_D[DEC],D_D[MT],5,D_D[CAT],SMS, D_D[EP],499,D_D[LOC],$A35)/$E35,0)) -> 0.3385518591 | K35: =IF(ISNA($A35),"",IFERROR(SUMIFS(D_D[AWD],D_D[MT],5,D_D[CAT],SMS, D_D[EP],499,D_D[LOC],$A35)/$E35,0)) -> 0.05870841487 | L35: =IF(ISNA($A35),"",IFERROR(SUMIFS(D_D[AUT],D_D[MT],5,D_D[CAT],SMS, D_D[EP],499,D_D[LOC],$A35)/$E35,0)) -> 0.01369863014
A36: ID499 | B36: 23 | C36: 0 | D36: Idaho-NWQ | E36: =IF(ISNA($A36),"",IFERROR(SUMIFS(D_D[INV],D_D[MT],5,D_D[CAT],SMS, D_D[EP],499,D_D[LOC],$A36),0)) -> 2958 | F36: =IF(ISNA($A36),"",IFERROR(SUMIFS(D_D[BL],D_D[MT],5,D_D[CAT],SMS, D_D[EP],499,D_D[LOC],$A36),0)) -> 1097 | G36: 0.3708586883 | H36: =IF(ISNA($A36),"",IFERROR(SUMIFS(D_D[DEV],D_D[MT],5,D_D[CAT],SMS, D_D[EP],499,D_D[LOC],$A36)/$E36,0)) -> 0.01284651792 | I36: =IF(ISNA($A36),"",IFERROR(SUMIFS(D_D[EVD],D_D[MT],5,D_D[CAT],SMS, D_D[EP],499,D_D[LOC],$A36)/$E36,0)) -> 0.5993914807 | J36: =IF(ISNA($A36),"",IFERROR(SUMIFS(D_D[DEC],D_D[MT],5,D_D[CAT],SMS, D_D[EP],499,D_D[LOC],$A36)/$E36,0)) -> 0.3877620014 | K36: =IF(ISNA($A36),"",IFERROR(SUMIFS(D_D[AWD],D_D[MT],5,D_D[CAT],SMS, D_D[EP],499,D_D[LOC],$A36)/$E36,0)) -> 0 | L36: =IF(ISNA($A36),"",IFERROR(SUMIFS(D_D[AUT],D_D[MT],5,D_D[CAT],SMS, D_D[EP],499,D_D[LOC],$A36)/$E36,0)) -> 0
A37: NV100 | B37: 24 | C37: Nevada | D37: Nevada-Total | E37: =IF(ISNA($A37),"",IFERROR(SUMIFS(D_D[INV],D_D[MT],5,D_D[CAT],SMS, D_D[EP],499,D_D[LOC],$A37),0)) -> 8173 | F37: =IF(ISNA($A37),"",IFERROR(SUMIFS(D_D[BL],D_D[MT],5,D_D[CAT],SMS, D_D[EP],499,D_D[LOC],$A37),0)) -> 2715 | G37: 0.3321913618 | H37: =IF(ISNA($A37),"",IFERROR(SUMIFS(D_D[DEV],D_D[MT],5,D_D[CAT],SMS, D_D[EP],499,D_D[LOC],$A37)/$E37,0)) -> 0.03719564419 | I37: =IF(ISNA($A37),"",IFERROR(SUMIFS(D_D[EVD],D_D[MT],5,D_D[CAT],SMS, D_D[EP],499,D_D[LOC],$A37)/$E37,0)) -> 0.5680900526 | J37: =IF(ISNA($A37),"",IFERROR(SUMIFS(D_D[DEC],D_D[MT],5,D_D[CAT],SMS, D_D[EP],499,D_D[LOC],$A37)/$E37,0)) -> 0.3830906644 | K37: =IF(ISNA($A37),"",IFERROR(SUMIFS(D_D[AWD],D_D[MT],5,D_D[CAT],SMS, D_D[EP],499,D_D[LOC],$A37)/$E37,0)) -> 0.009176556956 | L37: =IF(ISNA($A37),"",IFERROR(SUMIFS(D_D[AUT],D_D[MT],5,D_D[CAT],SMS, D_D[EP],499,D_D[LOC],$A37)/$E37,0)) -> 0.002447081855
A38: NV354 | B38: 25 | C38: 0 | D38: Reno RO | E38: =IF(ISNA($A38),"",IFERROR(SUMIFS(D_D[INV],D_D[MT],5,D_D[CAT],SMS, D_D[EP],499,D_D[LOC],$A38),0)) -> 200 | F38: =IF(ISNA($A38),"",IFERROR(SUMIFS(D_D[BL],D_D[MT],5,D_D[CAT],SMS, D_D[EP],499,D_D[LOC],$A38),0)) -> 20 | G38: 0.1 | H38: =IF(ISNA($A38),"",IFERROR(SUMIFS(D_D[DEV],D_D[MT],5,D_D[CAT],SMS, D_D[EP],499,D_D[LOC],$A38)/$E38,0)) -> 0.64 | I38: =IF(ISNA($A38),"",IFERROR(SUMIFS(D_D[EVD],D_D[MT],5,D_D[CAT],SMS, D_D[EP],499,D_D[LOC],$A38)/$E38,0)) -> 0.185 | J38: =IF(ISNA($A38),"",IFERROR(SUMIFS(D_D[DEC],D_D[MT],5,D_D[CAT],SMS, D_D[EP],499,D_D[LOC],$A38)/$E38,0)) -> 0.155 | K38: =IF(ISNA($A38),"",IFERROR(SUMIFS(D_D[AWD],D_D[MT],5,D_D[CAT],SMS, D_D[EP],499,D_D[LOC],$A38)/$E38,0)) -> 0.01 | L38: =IF(ISNA($A38),"",IFERROR(SUMIFS(D_D[AUT],D_D[MT],5,D_D[CAT],SMS, D_D[EP],499,D_D[LOC],$A38)/$E38,0)) -> 0.01
A39: NV-1 | B39: 26 | C39: 0 | D39: Nevada-Other RO | E39: =IF(ISNA($A39),"",IFERROR(SUMIFS(D_D[INV],D_D[MT],5,D_D[CAT],SMS, D_D[EP],499,D_D[LOC],$A39),0)) -> 1129 | F39: =IF(ISNA($A39),"",IFERROR(SUMIFS(D_D[BL],D_D[MT],5,D_D[CAT],SMS, D_D[EP],499,D_D[LOC],$A39),0)) -> 511 | G39: 0.4526129318 | H39: =IF(ISNA($A39),"",IFERROR(SUMIFS(D_D[DEV],D_D[MT],5,D_D[CAT],SMS, D_D[EP],499,D_D[LOC],$A39)/$E39,0)) -> 0.0708591674 | I39: =IF(ISNA($A39),"",IFERROR(SUMIFS(D_D[EVD],D_D[MT],5,D_D[CAT],SMS, D_D[EP],499,D_D[LOC],$A39)/$E39,0)) -> 0.5093002657 | J39: =IF(ISNA($A39),"",IFERROR(SUMIFS(D_D[DEC],D_D[MT],5,D_D[CAT],SMS, D_D[EP],499,D_D[LOC],$A39)/$E39,0)) -> 0.3436669619 | K39: =IF(ISNA($A39),"",IFERROR(SUMIFS(D_D[AWD],D_D[MT],5,D_D[CAT],SMS, D_D[EP],499,D_D[LOC],$A39)/$E39,0)) -> 0.06023029229 | L39: =IF(ISNA($A39),"",IFERROR(SUMIFS(D_D[AUT],D_D[MT],5,D_D[CAT],SMS, D_D[EP],499,D_D[LOC],$A39)/$E39,0)) -> 0.01594331267
A40: NV499 | B40: 27 | C40: 0 | D40: Nevada-NWQ | E40: =IF(ISNA($A40),"",IFERROR(SUMIFS(D_D[INV],D_D[MT],5,D_D[CAT],SMS, D_D[EP],499,D_D[LOC],$A40),0)) -> 6844 | F40: =IF(ISNA($A40),"",IFERROR(SUMIFS(D_D[BL],D_D[MT],5,D_D[CAT],SMS, D_D[EP],499,D_D[LOC],$A40),0)) -> 2184 | G40: 0.3191116306 | H40: =IF(ISNA($A40),"",IFERROR(SUMIFS(D_D[DEV],D_D[MT],5,D_D[CAT],SMS, D_D[EP],499,D_D[LOC],$A40)/$E40,0)) -> 0.01402688486 | I40: =IF(ISNA($A40),"",IFERROR(SUMIFS(D_D[EVD],D_D[MT],5,D_D[CAT],SMS, D_D[EP],499,D_D[LOC],$A40)/$E40,0)) -> 0.5889830508 | J40: =IF(ISNA($A40),"",IFERROR(SUMIFS(D_D[DEC],D_D[MT],5,D_D[CAT],SMS, D_D[EP],499,D_D[LOC],$A40)/$E40,0)) -> 0.3962594974 | K40: =IF(ISNA($A40),"",IFERROR(SUMIFS(D_D[AWD],D_D[MT],5,D_D[CAT],SMS, D_D[EP],499,D_D[LOC],$A40)/$E40,0)) -> 0.0007305669199 | L40: =IF(ISNA($A40),"",IFERROR(SUMIFS(D_D[AUT],D_D[MT],5,D_D[CAT],SMS, D_D[EP],499,D_D[LOC],$A40)/$E40,0)) -> 0
A41: NM100 | B41: 28 | C41: New Mexico | D41: New Mexico-Total | E41: =IF(ISNA($A41),"",IFERROR(SUMIFS(D_D[INV],D_D[MT],5,D_D[CAT],SMS, D_D[EP],499,D_D[LOC],$A41),0)) -> 4195 | F41: =IF(ISNA($A41),"",IFERROR(SUMIFS(D_D[BL],D_D[MT],5,D_D[CAT],SMS, D_D[EP],499,D_D[LOC],$A41),0)) -> 1515 | G41: 0.3611442193 | H41: =IF(ISNA($A41),"",IFERROR(SUMIFS(D_D[DEV],D_D[MT],5,D_D[CAT],SMS, D_D[EP],499,D_D[LOC],$A41)/$E41,0)) -> 0.03504171633 | I41: =IF(ISNA($A41),"",IFERROR(SUMIFS(D_D[EVD],D_D[MT],5,D_D[CAT],SMS, D_D[EP],499,D_D[LOC],$A41)/$E41,0)) -> 0.631466031 | J41: =IF(ISNA($A41),"",IFERROR(SUMIFS(D_D[DEC],D_D[MT],5,D_D[CAT],SMS, D_D[EP],499,D_D[LOC],$A41)/$E41,0)) -> 0.3218116806 | K41: =IF(ISNA($A41),"",IFERROR(SUMIFS(D_D[AWD],D_D[MT],5,D_D[CAT],SMS, D_D[EP],499,D_D[LOC],$A41)/$E41,0)) -> 0.008820023838 | L41: =IF(ISNA($A41),"",IFERROR(SUMIFS(D_D[AUT],D_D[MT],5,D_D[CAT],SMS, D_D[EP],499,D_D[LOC],$A41)/$E41,0)) -> 0.002860548272
A42: NM340 | B42: 29 | C42: 0 | D42: Albuquerque RO | E42: =IF(ISNA($A42),"",IFERROR(SUMIFS(D_D[INV],D_D[MT],5,D_D[CAT],SMS, D_D[EP],499,D_D[LOC],$A42),0)) -> 71 | F42: =IF(ISNA($A42),"",IFERROR(SUMIFS(D_D[BL],D_D[MT],5,D_D[CAT],SMS, D_D[EP],499,D_D[LOC],$A42),0)) -> 14 | G42: 0.1971830986 | H42: =IF(ISNA($A42),"",IFERROR(SUMIFS(D_D[DEV],D_D[MT],5,D_D[CAT],SMS, D_D[EP],499,D_D[LOC],$A42)/$E42,0)) -> 0.4507042254 | I42: =IF(ISNA($A42),"",IFERROR(SUMIFS(D_D[EVD],D_D[MT],5,D_D[CAT],SMS, D_D[EP],499,D_D[LOC],$A42)/$E42,0)) -> 0.1830985915 | J42: =IF(ISNA($A42),"",IFERROR(SUMIFS(D_D[DEC],D_D[MT],5,D_D[CAT],SMS, D_D[EP],499,D_D[LOC],$A42)/$E42,0)) -> 0.2816901408 | K42: =IF(ISNA($A42),"",IFERROR(SUMIFS(D_D[AWD],D_D[MT],5,D_D[CAT],SMS, D_D[EP],499,D_D[LOC],$A42)/$E42,0)) -> 0.07042253521 | L42: =IF(ISNA($A42),"",IFERROR(SUMIFS(D_D[AUT],D_D[MT],5,D_D[CAT],SMS, D_D[EP],499,D_D[LOC],$A42)/$E42,0)) -> 0.01408450704
A43: NM-1 | B43: 30 | C43: 0 | D43: New Mexico-Other RO | E43: =IF(ISNA($A43),"",IFERROR(SUMIFS(D_D[INV],D_D[MT],5,D_D[CAT],SMS, D_D[EP],499,D_D[LOC],$A43),0)) -> 580 | F43: =IF(ISNA($A43),"",IFERROR(SUMIFS(D_D[BL],D_D[MT],5,D_D[CAT],SMS, D_D[EP],499,D_D[LOC],$A43),0)) -> 245 | G43: 0.4224137931 | H43: =IF(ISNA($A43),"",IFERROR(SUMIFS(D_D[DEV],D_D[MT],5,D_D[CAT],SMS, D_D[EP],499,D_D[LOC],$A43)/$E43,0)) -> 0.09482758621 | I43: =IF(ISNA($A43),"",IFERROR(SUMIFS(D_D[EVD],D_D[MT],5,D_D[CAT],SMS, D_D[EP],499,D_D[LOC],$A43)/$E43,0)) -> 0.5068965517 | J43: =IF(ISNA($A43),"",IFERROR(SUMIFS(D_D[DEC],D_D[MT],5,D_D[CAT],SMS, D_D[EP],499,D_D[LOC],$A43)/$E43,0)) -> 0.325862069 | K43: =IF(ISNA($A43),"",IFERROR(SUMIFS(D_D[AWD],D_D[MT],5,D_D[CAT],SMS, D_D[EP],499,D_D[LOC],$A43)/$E43,0)) -> 0.05344827586 | L43: =IF(ISNA($A43),"",IFERROR(SUMIFS(D_D[AUT],D_D[MT],5,D_D[CAT],SMS, D_D[EP],499,D_D[LOC],$A43)/$E43,0)) -> 0.01896551724
A44: NM499 | B44: 31 | C44: 0 | D44: New Mexico-NWQ | E44: =IF(ISNA($A44),"",IFERROR(SUMIFS(D_D[INV],D_D[MT],5,D_D[CAT],SMS, D_D[EP],499,D_D[LOC],$A44),0)) -> 3544 | F44: =IF(ISNA($A44),"",IFERROR(SUMIFS(D_D[BL],D_D[MT],5,D_D[CAT],SMS, D_D[EP],499,D_D[LOC],$A44),0)) -> 1256 | G44: 0.3544018059 | H44: =IF(ISNA($A44),"",IFERROR(SUMIFS(D_D[DEV],D_D[MT],5,D_D[CAT],SMS, D_D[EP],499,D_D[LOC],$A44)/$E44,0)) -> 0.01693002257 | I44: =IF(ISNA($A44),"",IFERROR(SUMIFS(D_D[EVD],D_D[MT],5,D_D[CAT],SMS, D_D[EP],499,D_D[LOC],$A44)/$E44,0)) -> 0.6608352144 | J44: =IF(ISNA($A44),"",IFERROR(SUMIFS(D_D[DEC],D_D[MT],5,D_D[CAT],SMS, D_D[EP],499,D_D[LOC],$A44)/$E44,0)) -> 0.3219525959 | K44: =IF(ISNA($A44),"",IFERROR(SUMIFS(D_D[AWD],D_D[MT],5,D_D[CAT],SMS, D_D[EP],499,D_D[LOC],$A44)/$E44,0)) -> 0.0002821670429 | L44: =IF(ISNA($A44),"",IFERROR(SUMIFS(D_D[AUT],D_D[MT],5,D_D[CAT],SMS, D_D[EP],499,D_D[LOC],$A44)/$E44,0)) -> 0
A45: OR100 | B45: 32 | C45: Oregon | D45: Oregon-Total | E45: =IF(ISNA($A45),"",IFERROR(SUMIFS(D_D[INV],D_D[MT],5,D_D[CAT],SMS, D_D[EP],499,D_D[LOC],$A45),0)) -> 7287 | F45: =IF(ISNA($A45),"",IFERROR(SUMIFS(D_D[BL],D_D[MT],5,D_D[CAT],SMS, D_D[EP],499,D_D[LOC],$A45),0)) -> 2911 | G45: 0.3994785234 | H45: =IF(ISNA($A45),"",IFERROR(SUMIFS(D_D[DEV],D_D[MT],5,D_D[CAT],SMS, D_D[EP],499,D_D[LOC],$A45)/$E45,0)) -> 0.03073967339 | I45: =IF(ISNA($A45),"",IFERROR(SUMIFS(D_D[EVD],D_D[MT],5,D_D[CAT],SMS, D_D[EP],499,D_D[LOC],$A45)/$E45,0)) -> 0.590778098 | J45: =IF(ISNA($A45),"",IFERROR(SUMIFS(D_D[DEC],D_D[MT],5,D_D[CAT],SMS, D_D[EP],499,D_D[LOC],$A45)/$E45,0)) -> 0.3680526966 | K45: =IF(ISNA($A45),"",IFERROR(SUMIFS(D_D[AWD],D_D[MT],5,D_D[CAT],SMS, D_D[EP],499,D_D[LOC],$A45)/$E45,0)) -> 0.007410456978 | L45: =IF(ISNA($A45),"",IFERROR(SUMIFS(D_D[AUT],D_D[MT],5,D_D[CAT],SMS, D_D[EP],499,D_D[LOC],$A45)/$E45,0)) -> 0.003019075065
A46: OR348 | B46: 33 | C46: 0 | D46: Portland RO | E46: =IF(ISNA($A46),"",IFERROR(SUMIFS(D_D[INV],D_D[MT],5,D_D[CAT],SMS, D_D[EP],499,D_D[LOC],$A46),0)) -> 140 | F46: =IF(ISNA($A46),"",IFERROR(SUMIFS(D_D[BL],D_D[MT],5,D_D[CAT],SMS, D_D[EP],499,D_D[LOC],$A46),0)) -> 26 | G46: 0.1857142857 | H46: =IF(ISNA($A46),"",IFERROR(SUMIFS(D_D[DEV],D_D[MT],5,D_D[CAT],SMS, D_D[EP],499,D_D[LOC],$A46)/$E46,0)) -> 0.3857142857 | I46: =IF(ISNA($A46),"",IFERROR(SUMIFS(D_D[EVD],D_D[MT],5,D_D[CAT],SMS, D_D[EP],499,D_D[LOC],$A46)/$E46,0)) -> 0.3357142857 | J46: =IF(ISNA($A46),"",IFERROR(SUMIFS(D_D[DEC],D_D[MT],5,D_D[CAT],SMS, D_D[EP],499,D_D[LOC],$A46)/$E46,0)) -> 0.2285714286 | K46: =IF(ISNA($A46),"",IFERROR(SUMIFS(D_D[AWD],D_D[MT],5,D_D[CAT],SMS, D_D[EP],499,D_D[LOC],$A46)/$E46,0)) -> 0.007142857143 | L46: =IF(ISNA($A46),"",IFERROR(SUMIFS(D_D[AUT],D_D[MT],5,D_D[CAT],SMS, D_D[EP],499,D_D[LOC],$A46)/$E46,0)) -> 0.04285714286
A47: =IFERROR(INDEX(INDIRECT(DS_NWQI),B47),#N/A) -> OR-1 | B47: 34 | C47: 0 | D47: Oregon-Other RO | E47: =IF(ISNA($A47),"",IFERROR(SUMIFS(D_D[INV],D_D[MT],5,D_D[CAT],SMS, D_D[EP],499,D_D[LOC],$A47),0)) -> 998 | F47: =IF(ISNA($A47),"",IFERROR(SUMIFS(D_D[BL],D_D[MT],5,D_D[CAT],SMS, D_D[EP],499,D_D[LOC],$A47),0)) -> 498 | G47: 0.498997996 | H47: =IF(ISNA($A47),"",IFERROR(SUMIFS(D_D[DEV],D_D[MT],5,D_D[CAT],SMS, D_D[EP],499,D_D[LOC],$A47)/$E47,0)) -> 0.06412825651 | I47: =IF(ISNA($A47),"",IFERROR(SUMIFS(D_D[EVD],D_D[MT],5,D_D[CAT],SMS, D_D[EP],499,D_D[LOC],$A47)/$E47,0)) -> 0.5611222445 | J47: =IF(ISNA($A47),"",IFERROR(SUMIFS(D_D[DEC],D_D[MT],5,D_D[CAT],SMS, D_D[EP],499,D_D[LOC],$A47)/$E47,0)) -> 0.3116232465 | K47: =IF(ISNA($A47),"",IFERROR(SUMIFS(D_D[AWD],D_D[MT],5,D_D[CAT],SMS, D_D[EP],499,D_D[LOC],$A47)/$E47,0)) -> 0.04809619238 | L47: =IF(ISNA($A47),"",IFERROR(SUMIFS(D_D[AUT],D_D[MT],5,D_D[CAT],SMS, D_D[EP],499,D_D[LOC],$A47)/$E47,0)) -> 0.01503006012
A48: OR499 | B48: 35 | C48: 0 | D48: Oregon-NWQ | E48: =IF(ISNA($A48),"",IFERROR(SUMIFS(D_D[INV],D_D[MT],5,D_D[CAT],SMS, D_D[EP],499,D_D[LOC],$A48),0)) -> 6149 | F48: =IF(ISNA($A48),"",IFERROR(SUMIFS(D_D[BL],D_D[MT],5,D_D[CAT],SMS, D_D[EP],499,D_D[LOC],$A48),0)) -> 2387 | G48: 0.3881932021 | H48: =IF(ISNA($A48),"",IFERROR(SUMIFS(D_D[DEV],D_D[MT],5,D_D[CAT],SMS, D_D[EP],499,D_D[LOC],$A48)/$E48,0)) -> 0.01723857538 | I48: =IF(ISNA($A48),"",IFERROR(SUMIFS(D_D[EVD],D_D[MT],5,D_D[CAT],SMS, D_D[EP],499,D_D[LOC],$A48)/$E48,0)) -> 0.6013986014 | J48: =IF(ISNA($A48),"",IFERROR(SUMIFS(D_D[DEC],D_D[MT],5,D_D[CAT],SMS, D_D[EP],499,D_D[LOC],$A48)/$E48,0)) -> 0.3803870548 | K48: =IF(ISNA($A48),"",IFERROR(SUMIFS(D_D[AWD],D_D[MT],5,D_D[CAT],SMS, D_D[EP],499,D_D[LOC],$A48)/$E48,0)) -> 0.000813140348 | L48: =IF(ISNA($A48),"",IFERROR(SUMIFS(D_D[AUT],D_D[MT],5,D_D[CAT],SMS, D_D[EP],499,D_D[LOC],$A48)/$E48,0)) -> 0.0001626280696
A49: PI100 | B49: 36 | C49: Philippines | D49: =IFERROR(INDEX(INDIRECT(DS_NWQD),B49),"") -> Philippines-Total | E49: =IF(ISNA($A49),"",IFERROR(SUMIFS(D_D[INV],D_D[MT],5,D_D[CAT],SMS, D_D[EP],499,D_D[LOC],$A49),0)) -> 0 | F49: =IF(ISNA($A49),"",IFERROR(SUMIFS(D_D[BL],D_D[MT],5,D_D[CAT],SMS, D_D[EP],499,D_D[LOC],$A49),0)) -> 0 | G49: =IF(ISNA($A49),"",IFERROR(F49/E49,0)) -> 0 | H49: =IF(ISNA($A49),"",IFERROR(SUMIFS(D_D[DEV],D_D[MT],5,D_D[CAT],SMS, D_D[EP],499,D_D[LOC],$A49)/$E49,0)) -> 0 | I49: =IF(ISNA($A49),"",IFERROR(SUMIFS(D_D[EVD],D_D[MT],5,D_D[CAT],SMS, D_D[EP],499,D_D[LOC],$A49)/$E49,0)) -> 0 | J49: =IF(ISNA($A49),"",IFERROR(SUMIFS(D_D[DEC],D_D[MT],5,D_D[CAT],SMS, D_D[EP],499,D_D[LOC],$A49)/$E49,0)) -> 0 | K49: =IF(ISNA($A49),"",IFERROR(SUMIFS(D_D[AWD],D_D[MT],5,D_D[CAT],SMS, D_D[EP],499,D_D[LOC],$A49)/$E49,0)) -> 0 | L49: =IF(ISNA($A49),"",IFERROR(SUMIFS(D_D[AUT],D_D[MT],5,D_D[CAT],SMS, D_D[EP],499,D_D[LOC],$A49)/$E49,0)) -> 0
A50: PI358 | B50: 37 | C50: 0 | D50: Manila RO | E50: =IF(ISNA($A50),"",IFERROR(SUMIFS(D_D[INV],D_D[MT],5,D_D[CAT],SMS, D_D[EP],499,D_D[LOC],$A50),0)) -> 0 | F50: =IF(ISNA($A50),"",IFERROR(SUMIFS(D_D[BL],D_D[MT],5,D_D[CAT],SMS, D_D[EP],499,D_D[LOC],$A50),0)) -> 0 | G50: 0 | H50: =IF(ISNA($A50),"",IFERROR(SUMIFS(D_D[DEV],D_D[MT],5,D_D[CAT],SMS, D_D[EP],499,D_D[LOC],$A50)/$E50,0)) -> 0 | I50: =IF(ISNA($A50),"",IFERROR(SUMIFS(D_D[EVD],D_D[MT],5,D_D[CAT],SMS, D_D[EP],499,D_D[LOC],$A50)/$E50,0)) -> 0 | J50: =IF(ISNA($A50),"",IFERROR(SUMIFS(D_D[DEC],D_D[MT],5,D_D[CAT],SMS, D_D[EP],499,D_D[LOC],$A50)/$E50,0)) -> 0 | K50: =IF(ISNA($A50),"",IFERROR(SUMIFS(D_D[AWD],D_D[MT],5,D_D[CAT],SMS, D_D[EP],499,D_D[LOC],$A50)/$E50,0)) -> 0 | L50: =IF(ISNA($A50),"",IFERROR(SUMIFS(D_D[AUT],D_D[MT],5,D_D[CAT],SMS, D_D[EP],499,D_D[LOC],$A50)/$E50,0)) -> 0
A51: PI-1 | B51: 38 | C51: 0 | D51: Philippines-Other RO | E51: =IF(ISNA($A51),"",IFERROR(SUMIFS(D_D[INV],D_D[MT],5,D_D[CAT],SMS, D_D[EP],499,D_D[LOC],$A51),0)) -> 0 | F51: =IF(ISNA($A51),"",IFERROR(SUMIFS(D_D[BL],D_D[MT],5,D_D[CAT],SMS, D_D[EP],499,D_D[LOC],$A51),0)) -> 0 | G51: 0 | H51: =IF(ISNA($A51),"",IFERROR(SUMIFS(D_D[DEV],D_D[MT],5,D_D[CAT],SMS, D_D[EP],499,D_D[LOC],$A51)/$E51,0)) -> 0 | I51: =IF(ISNA($A51),"",IFERROR(SUMIFS(D_D[EVD],D_D[MT],5,D_D[CAT],SMS, D_D[EP],499,D_D[LOC],$A51)/$E51,0)) -> 0 | J51: =IF(ISNA($A51),"",IFERROR(SUMIFS(D_D[DEC],D_D[MT],5,D_D[CAT],SMS, D_D[EP],499,D_D[LOC],$A51)/$E51,0)) -> 0 | K51: =IF(ISNA($A51),"",IFERROR(SUMIFS(D_D[AWD],D_D[MT],5,D_D[CAT],SMS, D_D[EP],499,D_D[LOC],$A51)/$E51,0)) -> 0 | L51: =IF(ISNA($A51),"",IFERROR(SUMIFS(D_D[AUT],D_D[MT],5,D_D[CAT],SMS, D_D[EP],499,D_D[LOC],$A51)/$E51,0)) -> 0
A52: PI499 | B52: 39 | C52: 0 | D52: Philippines-NWQ | E52: =IF(ISNA($A52),"",IFERROR(SUMIFS(D_D[INV],D_D[MT],5,D_D[CAT],SMS, D_D[EP],499,D_D[LOC],$A52),0)) -> 0 | F52: =IF(ISNA($A52),"",IFERROR(SUMIFS(D_D[BL],D_D[MT],5,D_D[CAT],SMS, D_D[EP],499,D_D[LOC],$A52),0)) -> 0 | G52: 0 | H52: =IF(ISNA($A52),"",IFERROR(SUMIFS(D_D[DEV],D_D[MT],5,D_D[CAT],SMS, D_D[EP],499,D_D[LOC],$A52)/$E52,0)) -> 0 | I52: =IF(ISNA($A52),"",IFERROR(SUMIFS(D_D[EVD],D_D[MT],5,D_D[CAT],SMS, D_D[EP],499,D_D[LOC],$A52)/$E52,0)) -> 0 | J52: =IF(ISNA($A52),"",IFERROR(SUMIFS(D_D[DEC],D_D[MT],5,D_D[CAT],SMS, D_D[EP],499,D_D[LOC],$A52)/$E52,0)) -> 0 | K52: =IF(ISNA($A52),"",IFERROR(SUMIFS(D_D[AWD],D_D[MT],5,D_D[CAT],SMS, D_D[EP],499,D_D[LOC],$A52)/$E52,0)) -> 0 | L52: =IF(ISNA($A52),"",IFERROR(SUMIFS(D_D[AUT],D_D[MT],5,D_D[CAT],SMS, D_D[EP],499,D_D[LOC],$A52)/$E52,0)) -> 0
A53: UT100 | B53: 40 | C53: Utah | D53: Utah-Total | E53: =IF(ISNA($A53),"",IFERROR(SUMIFS(D_D[INV],D_D[MT],5,D_D[CAT],SMS, D_D[EP],499,D_D[LOC],$A53),0)) -> 3295 | F53: =IF(ISNA($A53),"",IFERROR(SUMIFS(D_D[BL],D_D[MT],5,D_D[CAT],SMS, D_D[EP],499,D_D[LOC],$A53),0)) -> 1095 | G53: 0.3323216995 | H53: =IF(ISNA($A53),"",IFERROR(SUMIFS(D_D[DEV],D_D[MT],5,D_D[CAT],SMS, D_D[EP],499,D_D[LOC],$A53)/$E53,0)) -> 0.03490136571 | I53: =IF(ISNA($A53),"",IFERROR(SUMIFS(D_D[EVD],D_D[MT],5,D_D[CAT],SMS, D_D[EP],499,D_D[LOC],$A53)/$E53,0)) -> 0.5593323217 | J53: =IF(ISNA($A53),"",IFERROR(SUMIFS(D_D[DEC],D_D[MT],5,D_D[CAT],SMS, D_D[EP],499,D_D[LOC],$A53)/$E53,0)) -> 0.3924127466 | K53: =IF(ISNA($A53),"",IFERROR(SUMIFS(D_D[AWD],D_D[MT],5,D_D[CAT],SMS, D_D[EP],499,D_D[LOC],$A53)/$E53,0)) -> 0.01092564492 | L53: =IF(ISNA($A53),"",IFERROR(SUMIFS(D_D[AUT],D_D[MT],5,D_D[CAT],SMS, D_D[EP],499,D_D[LOC],$A53)/$E53,0)) -> 0.002427921093
A54: UT341 | B54: 41 | C54: 0 | D54: Salt Lake City RO | E54: =IF(ISNA($A54),"",IFERROR(SUMIFS(D_D[INV],D_D[MT],5,D_D[CAT],SMS, D_D[EP],499,D_D[LOC],$A54),0)) -> 74 | F54: =IF(ISNA($A54),"",IFERROR(SUMIFS(D_D[BL],D_D[MT],5,D_D[CAT],SMS, D_D[EP],499,D_D[LOC],$A54),0)) -> 17 | G54: 0.2297297297 | H54: =IF(ISNA($A54),"",IFERROR(SUMIFS(D_D[DEV],D_D[MT],5,D_D[CAT],SMS, D_D[EP],499,D_D[LOC],$A54)/$E54,0)) -> 0.3918918919 | I54: =IF(ISNA($A54),"",IFERROR(SUMIFS(D_D[EVD],D_D[MT],5,D_D[CAT],SMS, D_D[EP],499,D_D[LOC],$A54)/$E54,0)) -> 0.2432432432 | J54: =IF(ISNA($A54),"",IFERROR(SUMIFS(D_D[DEC],D_D[MT],5,D_D[CAT],SMS, D_D[EP],499,D_D[LOC],$A54)/$E54,0)) -> 0.2162162162 | K54: =IF(ISNA($A54),"",IFERROR(SUMIFS(D_D[AWD],D_D[MT],5,D_D[CAT],SMS, D_D[EP],499,D_D[LOC],$A54)/$E54,0)) -> 0.1351351351 | L54: =IF(ISNA($A54),"",IFERROR(SUMIFS(D_D[AUT],D_D[MT],5,D_D[CAT],SMS, D_D[EP],499,D_D[LOC],$A54)/$E54,0)) -> 0.01351351351
A55: UT-1 | B55: 42 | C55: 0 | D55: Utah-Other RO | E55: =IF(ISNA($A55),"",IFERROR(SUMIFS(D_D[INV],D_D[MT],5,D_D[CAT],SMS, D_D[EP],499,D_D[LOC],$A55),0)) -> 441 | F55: =IF(ISNA($A55),"",IFERROR(SUMIFS(D_D[BL],D_D[MT],5,D_D[CAT],SMS, D_D[EP],499,D_D[LOC],$A55),0)) -> 183 | G55: 0.4149659864 | H55: =IF(ISNA($A55),"",IFERROR(SUMIFS(D_D[DEV],D_D[MT],5,D_D[CAT],SMS, D_D[EP],499,D_D[LOC],$A55)/$E55,0)) -> 0.06802721088 | I55: =IF(ISNA($A55),"",IFERROR(SUMIFS(D_D[EVD],D_D[MT],5,D_D[CAT],SMS, D_D[EP],499,D_D[LOC],$A55)/$E55,0)) -> 0.5192743764 | J55: =IF(ISNA($A55),"",IFERROR(SUMIFS(D_D[DEC],D_D[MT],5,D_D[CAT],SMS, D_D[EP],499,D_D[LOC],$A55)/$E55,0)) -> 0.3401360544 | K55: =IF(ISNA($A55),"",IFERROR(SUMIFS(D_D[AWD],D_D[MT],5,D_D[CAT],SMS, D_D[EP],499,D_D[LOC],$A55)/$E55,0)) -> 0.0566893424 | L55: =IF(ISNA($A55),"",IFERROR(SUMIFS(D_D[AUT],D_D[MT],5,D_D[CAT],SMS, D_D[EP],499,D_D[LOC],$A55)/$E55,0)) -> 0.01587301587
A56: UT499 | B56: 43 | C56: 0 | D56: Utah-NWQ | E56: =IF(ISNA($A56),"",IFERROR(SUMIFS(D_D[INV],D_D[MT],5,D_D[CAT],SMS, D_D[EP],499,D_D[LOC],$A56),0)) -> 2780 | F56: =IF(ISNA($A56),"",IFERROR(SUMIFS(D_D[BL],D_D[MT],5,D_D[CAT],SMS, D_D[EP],499,D_D[LOC],$A56),0)) -> 895 | G56: 0.321942446 | H56: =IF(ISNA($A56),"",IFERROR(SUMIFS(D_D[DEV],D_D[MT],5,D_D[CAT],SMS, D_D[EP],499,D_D[LOC],$A56)/$E56,0)) -> 0.02014388489 | I56: =IF(ISNA($A56),"",IFERROR(SUMIFS(D_D[EVD],D_D[MT],5,D_D[CAT],SMS, D_D[EP],499,D_D[LOC],$A56)/$E56,0)) -> 0.5741007194 | J56: =IF(ISNA($A56),"",IFERROR(SUMIFS(D_D[DEC],D_D[MT],5,D_D[CAT],SMS, D_D[EP],499,D_D[LOC],$A56)/$E56,0)) -> 0.4053956835 | K56: =IF(ISNA($A56),"",IFERROR(SUMIFS(D_D[AWD],D_D[MT],5,D_D[CAT],SMS, D_D[EP],499,D_D[LOC],$A56)/$E56,0)) -> 0.0003597122302 | L56: =IF(ISNA($A56),"",IFERROR(SUMIFS(D_D[AUT],D_D[MT],5,D_D[CAT],SMS, D_D[EP],499,D_D[LOC],$A56)/$E56,0)) -> 0
A57: WA100 | B57: 44 | C57: Washington | D57: Washington-Total | E57: =IF(ISNA($A57),"",IFERROR(SUMIFS(D_D[INV],D_D[MT],5,D_D[CAT],SMS, D_D[EP],499,D_D[LOC],$A57),0)) -> 13138 | F57: =IF(ISNA($A57),"",IFERROR(SUMIFS(D_D[BL],D_D[MT],5,D_D[CAT],SMS, D_D[EP],499,D_D[LOC],$A57),0)) -> 4741 | G57: 0.3608616228 | H57: =IF(ISNA($A57),"",IFERROR(SUMIFS(D_D[DEV],D_D[MT],5,D_D[CAT],SMS, D_D[EP],499,D_D[LOC],$A57)/$E57,0)) -> 0.0288476176 | I57: =IF(ISNA($A57),"",IFERROR(SUMIFS(D_D[EVD],D_D[MT],5,D_D[CAT],SMS, D_D[EP],499,D_D[LOC],$A57)/$E57,0)) -> 0.5758867408 | J57: =IF(ISNA($A57),"",IFERROR(SUMIFS(D_D[DEC],D_D[MT],5,D_D[CAT],SMS, D_D[EP],499,D_D[LOC],$A57)/$E57,0)) -> 0.3850662201 | K57: =IF(ISNA($A57),"",IFERROR(SUMIFS(D_D[AWD],D_D[MT],5,D_D[CAT],SMS, D_D[EP],499,D_D[LOC],$A57)/$E57,0)) -> 0.008144314203 | L57: =IF(ISNA($A57),"",IFERROR(SUMIFS(D_D[AUT],D_D[MT],5,D_D[CAT],SMS, D_D[EP],499,D_D[LOC],$A57)/$E57,0)) -> 0.002055107322
A58: WA346 | B58: 45 | C58: 0 | D58: Seattle RO | E58: =IF(ISNA($A58),"",IFERROR(SUMIFS(D_D[INV],D_D[MT],5,D_D[CAT],SMS, D_D[EP],499,D_D[LOC],$A58),0)) -> 264 | F58: =IF(ISNA($A58),"",IFERROR(SUMIFS(D_D[BL],D_D[MT],5,D_D[CAT],SMS, D_D[EP],499,D_D[LOC],$A58),0)) -> 54 | G58: 0.2045454545 | H58: =IF(ISNA($A58),"",IFERROR(SUMIFS(D_D[DEV],D_D[MT],5,D_D[CAT],SMS, D_D[EP],499,D_D[LOC],$A58)/$E58,0)) -> 0.2916666667 | I58: =IF(ISNA($A58),"",IFERROR(SUMIFS(D_D[EVD],D_D[MT],5,D_D[CAT],SMS, D_D[EP],499,D_D[LOC],$A58)/$E58,0)) -> 0.3181818182 | J58: =IF(ISNA($A58),"",IFERROR(SUMIFS(D_D[DEC],D_D[MT],5,D_D[CAT],SMS, D_D[EP],499,D_D[LOC],$A58)/$E58,0)) -> 0.3106060606 | K58: =IF(ISNA($A58),"",IFERROR(SUMIFS(D_D[AWD],D_D[MT],5,D_D[CAT],SMS, D_D[EP],499,D_D[LOC],$A58)/$E58,0)) -> 0.05303030303 | L58: =IF(ISNA($A58),"",IFERROR(SUMIFS(D_D[AUT],D_D[MT],5,D_D[CAT],SMS, D_D[EP],499,D_D[LOC],$A58)/$E58,0)) -> 0.02651515152
A59: WA-1 | B59: 46 | C59: 0 | D59: Washington-Other RO | E59: =IF(ISNA($A59),"",IFERROR(SUMIFS(D_D[INV],D_D[MT],5,D_D[CAT],SMS, D_D[EP],499,D_D[LOC],$A59),0)) -> 1748 | F59: =IF(ISNA($A59),"",IFERROR(SUMIFS(D_D[BL],D_D[MT],5,D_D[CAT],SMS, D_D[EP],499,D_D[LOC],$A59),0)) -> 802 | G59: 0.4588100686 | H59: =IF(ISNA($A59),"",IFERROR(SUMIFS(D_D[DEV],D_D[MT],5,D_D[CAT],SMS, D_D[EP],499,D_D[LOC],$A59)/$E59,0)) -> 0.0766590389 | I59: =IF(ISNA($A59),"",IFERROR(SUMIFS(D_D[EVD],D_D[MT],5,D_D[CAT],SMS, D_D[EP],499,D_D[LOC],$A59)/$E59,0)) -> 0.5245995423 | J59: =IF(ISNA($A59),"",IFERROR(SUMIFS(D_D[DEC],D_D[MT],5,D_D[CAT],SMS, D_D[EP],499,D_D[LOC],$A59)/$E59,0)) -> 0.3352402746 | K59: =IF(ISNA($A59),"",IFERROR(SUMIFS(D_D[AWD],D_D[MT],5,D_D[CAT],SMS, D_D[EP],499,D_D[LOC],$A59)/$E59,0)) -> 0.05205949657 | L59: =IF(ISNA($A59),"",IFERROR(SUMIFS(D_D[AUT],D_D[MT],5,D_D[CAT],SMS, D_D[EP],499,D_D[LOC],$A59)/$E59,0)) -> 0.0114416476
A60: WA499 | B60: 47 | C60: 0 | D60: =IFERROR(INDEX(INDIRECT(DS_NWQD),B60),"") -> Washington-NWQ | E60: =IF(ISNA($A60),"",IFERROR(SUMIFS(D_D[INV],D_D[MT],5,D_D[CAT],SMS, D_D[EP],499,D_D[LOC],$A60),0)) -> 11126 | F60: =IF(ISNA($A60),"",IFERROR(SUMIFS(D_D[BL],D_D[MT],5,D_D[CAT],SMS, D_D[EP],499,D_D[LOC],$A60),0)) -> 3885 | G60: =IF(ISNA($A60),"",IFERROR(F60/E60,0)) -> 0.349182096 | H60: =IF(ISNA($A60),"",IFERROR(SUMIFS(D_D[DEV],D_D[MT],5,D_D[CAT],SMS, D_D[EP],499,D_D[LOC],$A60)/$E60,0)) -> 0.01509976631 | I60: =IF(ISNA($A60),"",IFERROR(SUMIFS(D_D[EVD],D_D[MT],5,D_D[CAT],SMS, D_D[EP],499,D_D[LOC],$A60)/$E60,0)) -> 0.5900593205 | J60: =IF(ISNA($A60),"",IFERROR(SUMIFS(D_D[DEC],D_D[MT],5,D_D[CAT],SMS, D_D[EP],499,D_D[LOC],$A60)/$E60,0)) -> 0.3946611541 | K60: =IF(ISNA($A60),"",IFERROR(SUMIFS(D_D[AWD],D_D[MT],5,D_D[CAT],SMS, D_D[EP],499,D_D[LOC],$A60)/$E60,0)) -> 0.0001797591228 | L60: =IF(ISNA($A60),"",IFERROR(SUMIFS(D_D[AUT],D_D[MT],5,D_D[CAT],SMS, D_D[EP],499,D_D[LOC],$A60)/$E60,0)) -> 0
B61: 48 | E61: =IF(ISNA($A61),"",IFERROR(SUMIFS(D_D[INV],D_D[MT],5,D_D[CAT],SMS, D_D[EP],499,D_D[LOC],$A61),0)) ->  | F61: =IF(ISNA($A61),"",IFERROR(SUMIFS(D_D[BL],D_D[MT],5,D_D[CAT],SMS, D_D[EP],499,D_D[LOC],$A61),0)) ->  | H61: =IF(ISNA($A61),"",IFERROR(SUMIFS(D_D[DEV],D_D[MT],5,D_D[CAT],SMS, D_D[EP],499,D_D[LOC],$A61)/$E61,0)) ->  | I61: =IF(ISNA($A61),"",IFERROR(SUMIFS(D_D[EVD],D_D[MT],5,D_D[CAT],SMS, D_D[EP],499,D_D[LOC],$A61)/$E61,0)) ->  | J61: =IF(ISNA($A61),"",IFERROR(SUMIFS(D_D[DEC],D_D[MT],5,D_D[CAT],SMS, D_D[EP],499,D_D[LOC],$A61)/$E61,0)) ->  | K61: =IF(ISNA($A61),"",IFERROR(SUMIFS(D_D[AWD],D_D[MT],5,D_D[CAT],SMS, D_D[EP],499,D_D[LOC],$A61)/$E61,0)) ->  | L61: =IF(ISNA($A61),"",IFERROR(SUMIFS(D_D[AUT],D_D[MT],5,D_D[CAT],SMS, D_D[EP],499,D_D[LOC],$A61)/$E61,0)) -> 
B62: 49 | E62: =IF(ISNA($A62),"",IFERROR(SUMIFS(D_D[INV],D_D[MT],5,D_D[CAT],SMS, D_D[EP],499,D_D[LOC],$A62),0)) ->  | F62: =IF(ISNA($A62),"",IFERROR(SUMIFS(D_D[BL],D_D[MT],5,D_D[CAT],SMS, D_D[EP],499,D_D[LOC],$A62),0)) ->  | H62: =IF(ISNA($A62),"",IFERROR(SUMIFS(D_D[DEV],D_D[MT],5,D_D[CAT],SMS, D_D[EP],499,D_D[LOC],$A62)/$E62,0)) ->  | I62: =IF(ISNA($A62),"",IFERROR(SUMIFS(D_D[EVD],D_D[MT],5,D_D[CAT],SMS, D_D[EP],499,D_D[LOC],$A62)/$E62,0)) ->  | J62: =IF(ISNA($A62),"",IFERROR(SUMIFS(D_D[DEC],D_D[MT],5,D_D[CAT],SMS, D_D[EP],499,D_D[LOC],$A62)/$E62,0)) ->  | K62: =IF(ISNA($A62),"",IFERROR(SUMIFS(D_D[AWD],D_D[MT],5,D_D[CAT],SMS, D_D[EP],499,D_D[LOC],$A62)/$E62,0)) ->  | L62: =IF(ISNA($A62),"",IFERROR(SUMIFS(D_D[AUT],D_D[MT],5,D_D[CAT],SMS, D_D[EP],499,D_D[LOC],$A62)/$E62,0)) -> 
B63: 50 | C63: =IFERROR(INDEX(INDIRECT(DS_NWQ),B63),"") ->  | E63: =IF(ISNA($A63),"",IFERROR(SUMIFS(D_D[INV],D_D[MT],5,D_D[CAT],SMS, D_D[EP],499,D_D[LOC],$A63),0)) ->  | F63: =IF(ISNA($A63),"",IFERROR(SUMIFS(D_D[BL],D_D[MT],5,D_D[CAT],SMS, D_D[EP],499,D_D[LOC],$A63),0)) ->  | H63: =IF(ISNA($A63),"",IFERROR(SUMIFS(D_D[DEV],D_D[MT],5,D_D[CAT],SMS, D_D[EP],499,D_D[LOC],$A63)/$E63,0)) ->  | I63: =IF(ISNA($A63),"",IFERROR(SUMIFS(D_D[EVD],D_D[MT],5,D_D[CAT],SMS, D_D[EP],499,D_D[LOC],$A63)/$E63,0)) ->  | J63: =IF(ISNA($A63),"",IFERROR(SUMIFS(D_D[DEC],D_D[MT],5,D_D[CAT],SMS, D_D[EP],499,D_D[LOC],$A63)/$E63,0)) ->  | K63: =IF(ISNA($A63),"",IFERROR(SUMIFS(D_D[AWD],D_D[MT],5,D_D[CAT],SMS, D_D[EP],499,D_D[LOC],$A63)/$E63,0)) ->  | L63: =IF(ISNA($A63),"",IFERROR(SUMIFS(D_D[AUT],D_D[MT],5,D_D[CAT],SMS, D_D[EP],499,D_D[LOC],$A63)/$E63,0)) -> 
B64: 51 | D64: =IFERROR(INDEX(INDIRECT(DS_NWQD),B64),"") ->  | E64: =IF(ISNA($A64),"",IFERROR(SUMIFS(D_D[INV],D_D[MT],5,D_D[CAT],SMS, D_D[EP],499,D_D[LOC],$A64),0)) ->  | F64: =IF(ISNA($A64),"",IFERROR(SUMIFS(D_D[BL],D_D[MT],5,D_D[CAT],SMS, D_D[EP],499,D_D[LOC],$A64),0)) ->  | G64: =IF(ISNA($A64),"",IFERROR(F64/E64,0)) ->  | H64: =IF(ISNA($A64),"",IFERROR(SUMIFS(D_D[DEV],D_D[MT],5,D_D[CAT],SMS, D_D[EP],499,D_D[LOC],$A64)/$E64,0)) ->  | I64: =IF(ISNA($A64),"",IFERROR(SUMIFS(D_D[EVD],D_D[MT],5,D_D[CAT],SMS, D_D[EP],499,D_D[LOC],$A64)/$E64,0)) ->  | J64: =IF(ISNA($A64),"",IFERROR(SUMIFS(D_D[DEC],D_D[MT],5,D_D[CAT],SMS, D_D[EP],499,D_D[LOC],$A64)/$E64,0)) ->  | K64: =IF(ISNA($A64),"",IFERROR(SUMIFS(D_D[AWD],D_D[MT],5,D_D[CAT],SMS, D_D[EP],499,D_D[LOC],$A64)/$E64,0)) ->  | L64: =IF(ISNA($A64),"",IFERROR(SUMIFS(D_D[AUT],D_D[MT],5,D_D[CAT],SMS, D_D[EP],499,D_D[LOC],$A64)/$E64,0)) -> 
B65: 52 | E65: =IF(ISNA($A65),"",IFERROR(SUMIFS(D_D[INV],D_D[MT],5,D_D[CAT],SMS, D_D[EP],499,D_D[LOC],$A65),0)) ->  | F65: =IF(ISNA($A65),"",IFERROR(SUMIFS(D_D[BL],D_D[MT],5,D_D[CAT],SMS, D_D[EP],499,D_D[LOC],$A65),0)) ->  | H65: =IF(ISNA($A65),"",IFERROR(SUMIFS(D_D[DEV],D_D[MT],5,D_D[CAT],SMS, D_D[EP],499,D_D[LOC],$A65)/$E65,0)) ->  | I65: =IF(ISNA($A65),"",IFERROR(SUMIFS(D_D[EVD],D_D[MT],5,D_D[CAT],SMS, D_D[EP],499,D_D[LOC],$A65)/$E65,0)) ->  | J65: =IF(ISNA($A65),"",IFERROR(SUMIFS(D_D[DEC],D_D[MT],5,D_D[CAT],SMS, D_D[EP],499,D_D[LOC],$A65)/$E65,0)) ->  | K65: =IF(ISNA($A65),"",IFERROR(SUMIFS(D_D[AWD],D_D[MT],5,D_D[CAT],SMS, D_D[EP],499,D_D[LOC],$A65)/$E65,0)) ->  | L65: =IF(ISNA($A65),"",IFERROR(SUMIFS(D_D[AUT],D_D[MT],5,D_D[CAT],SMS, D_D[EP],499,D_D[LOC],$A65)/$E65,0)) -> 
B66: 53 | E66: =IF(ISNA($A66),"",IFERROR(SUMIFS(D_D[INV],D_D[MT],5,D_D[CAT],SMS, D_D[EP],499,D_D[LOC],$A66),0)) ->  | F66: =IF(ISNA($A66),"",IFERROR(SUMIFS(D_D[BL],D_D[MT],5,D_D[CAT],SMS, D_D[EP],499,D_D[LOC],$A66),0)) ->  | H66: =IF(ISNA($A66),"",IFERROR(SUMIFS(D_D[DEV],D_D[MT],5,D_D[CAT],SMS, D_D[EP],499,D_D[LOC],$A66)/$E66,0)) ->  | I66: =IF(ISNA($A66),"",IFERROR(SUMIFS(D_D[EVD],D_D[MT],5,D_D[CAT],SMS, D_D[EP],499,D_D[LOC],$A66)/$E66,0)) ->  | J66: =IF(ISNA($A66),"",IFERROR(SUMIFS(D_D[DEC],D_D[MT],5,D_D[CAT],SMS, D_D[EP],499,D_D[LOC],$A66)/$E66,0)) ->  | K66: =IF(ISNA($A66),"",IFERROR(SUMIFS(D_D[AWD],D_D[MT],5,D_D[CAT],SMS, D_D[EP],499,D_D[LOC],$A66)/$E66,0)) ->  | L66: =IF(ISNA($A66),"",IFERROR(SUMIFS(D_D[AUT],D_D[MT],5,D_D[CAT],SMS, D_D[EP],499,D_D[LOC],$A66)/$E66,0)) -> 
B67: 54 | E67: =IF(ISNA($A67),"",IFERROR(SUMIFS(D_D[INV],D_D[MT],5,D_D[CAT],SMS, D_D[EP],499,D_D[LOC],$A67),0)) ->  | F67: =IF(ISNA($A67),"",IFERROR(SUMIFS(D_D[BL],D_D[MT],5,D_D[CAT],SMS, D_D[EP],499,D_D[LOC],$A67),0)) ->  | H67: =IF(ISNA($A67),"",IFERROR(SUMIFS(D_D[DEV],D_D[MT],5,D_D[CAT],SMS, D_D[EP],499,D_D[LOC],$A67)/$E67,0)) ->  | I67: =IF(ISNA($A67),"",IFERROR(SUMIFS(D_D[EVD],D_D[MT],5,D_D[CAT],SMS, D_D[EP],499,D_D[LOC],$A67)/$E67,0)) ->  | J67: =IF(ISNA($A67),"",IFERROR(SUMIFS(D_D[DEC],D_D[MT],5,D_D[CAT],SMS, D_D[EP],499,D_D[LOC],$A67)/$E67,0)) ->  | K67: =IF(ISNA($A67),"",IFERROR(SUMIFS(D_D[AWD],D_D[MT],5,D_D[CAT],SMS, D_D[EP],499,D_D[LOC],$A67)/$E67,0)) ->  | L67: =IF(ISNA($A67),"",IFERROR(SUMIFS(D_D[AUT],D_D[MT],5,D_D[CAT],SMS, D_D[EP],499,D_D[LOC],$A67)/$E67,0)) -> 
B68: 55 | E68: =IF(ISNA($A68),"",IFERROR(SUMIFS(D_D[INV],D_D[MT],5,D_D[CAT],SMS, D_D[EP],499,D_D[LOC],$A68),0)) ->  | F68: =IF(ISNA($A68),"",IFERROR(SUMIFS(D_D[BL],D_D[MT],5,D_D[CAT],SMS, D_D[EP],499,D_D[LOC],$A68),0)) ->  | H68: =IF(ISNA($A68),"",IFERROR(SUMIFS(D_D[DEV],D_D[MT],5,D_D[CAT],SMS, D_D[EP],499,D_D[LOC],$A68)/$E68,0)) ->  | I68: =IF(ISNA($A68),"",IFERROR(SUMIFS(D_D[EVD],D_D[MT],5,D_D[CAT],SMS, D_D[EP],499,D_D[LOC],$A68)/$E68,0)) ->  | J68: =IF(ISNA($A68),"",IFERROR(SUMIFS(D_D[DEC],D_D[MT],5,D_D[CAT],SMS, D_D[EP],499,D_D[LOC],$A68)/$E68,0)) ->  | K68: =IF(ISNA($A68),"",IFERROR(SUMIFS(D_D[AWD],D_D[MT],5,D_D[CAT],SMS, D_D[EP],499,D_D[LOC],$A68)/$E68,0)) ->  | L68: =IF(ISNA($A68),"",IFERROR(SUMIFS(D_D[AUT],D_D[MT],5,D_D[CAT],SMS, D_D[EP],499,D_D[LOC],$A68)/$E68,0)) -> 
B69: 56 | E69: =IF(ISNA($A69),"",IFERROR(SUMIFS(D_D[INV],D_D[MT],5,D_D[CAT],SMS, D_D[EP],499,D_D[LOC],$A69),0)) ->  | F69: =IF(ISNA($A69),"",IFERROR(SUMIFS(D_D[BL],D_D[MT],5,D_D[CAT],SMS, D_D[EP],499,D_D[LOC],$A69),0)) ->  | H69: =IF(ISNA($A69),"",IFERROR(SUMIFS(D_D[DEV],D_D[MT],5,D_D[CAT],SMS, D_D[EP],499,D_D[LOC],$A69)/$E69,0)) ->  | I69: =IF(ISNA($A69),"",IFERROR(SUMIFS(D_D[EVD],D_D[MT],5,D_D[CAT],SMS, D_D[EP],499,D_D[LOC],$A69)/$E69,0)) ->  | J69: =IF(ISNA($A69),"",IFERROR(SUMIFS(D_D[DEC],D_D[MT],5,D_D[CAT],SMS, D_D[EP],499,D_D[LOC],$A69)/$E69,0)) ->  | K69: =IF(ISNA($A69),"",IFERROR(SUMIFS(D_D[AWD],D_D[MT],5,D_D[CAT],SMS, D_D[EP],499,D_D[LOC],$A69)/$E69,0)) ->  | L69: =IF(ISNA($A69),"",IFERROR(SUMIFS(D_D[AUT],D_D[MT],5,D_D[CAT],SMS, D_D[EP],499,D_D[LOC],$A69)/$E69,0)) -> 
B70: 57 | E70: =IF(ISNA($A70),"",IFERROR(SUMIFS(D_D[INV],D_D[MT],5,D_D[CAT],SMS, D_D[EP],499,D_D[LOC],$A70),0)) ->  | F70: =IF(ISNA($A70),"",IFERROR(SUMIFS(D_D[BL],D_D[MT],5,D_D[CAT],SMS, D_D[EP],499,D_D[LOC],$A70),0)) ->  | H70: =IF(ISNA($A70),"",IFERROR(SUMIFS(D_D[DEV],D_D[MT],5,D_D[CAT],SMS, D_D[EP],499,D_D[LOC],$A70)/$E70,0)) ->  | I70: =IF(ISNA($A70),"",IFERROR(SUMIFS(D_D[EVD],D_D[MT],5,D_D[CAT],SMS, D_D[EP],499,D_D[LOC],$A70)/$E70,0)) ->  | J70: =IF(ISNA($A70),"",IFERROR(SUMIFS(D_D[DEC],D_D[MT],5,D_D[CAT],SMS, D_D[EP],499,D_D[LOC],$A70)/$E70,0)) ->  | K70: =IF(ISNA($A70),"",IFERROR(SUMIFS(D_D[AWD],D_D[MT],5,D_D[CAT],SMS, D_D[EP],499,D_D[LOC],$A70)/$E70,0)) ->  | L70: =IF(ISNA($A70),"",IFERROR(SUMIFS(D_D[AUT],D_D[MT],5,D_D[CAT],SMS, D_D[EP],499,D_D[LOC],$A70)/$E70,0)) -> 
B71: 58 | E71: =IF(ISNA($A71),"",IFERROR(SUMIFS(D_D[INV],D_D[MT],5,D_D[CAT],SMS, D_D[EP],499,D_D[LOC],$A71),0)) ->  | F71: =IF(ISNA($A71),"",IFERROR(SUMIFS(D_D[BL],D_D[MT],5,D_D[CAT],SMS, D_D[EP],499,D_D[LOC],$A71),0)) ->  | H71: =IF(ISNA($A71),"",IFERROR(SUMIFS(D_D[DEV],D_D[MT],5,D_D[CAT],SMS, D_D[EP],499,D_D[LOC],$A71)/$E71,0)) ->  | I71: =IF(ISNA($A71),"",IFERROR(SUMIFS(D_D[EVD],D_D[MT],5,D_D[CAT],SMS, D_D[EP],499,D_D[LOC],$A71)/$E71,0)) ->  | J71: =IF(ISNA($A71),"",IFERROR(SUMIFS(D_D[DEC],D_D[MT],5,D_D[CAT],SMS, D_D[EP],499,D_D[LOC],$A71)/$E71,0)) ->  | K71: =IF(ISNA($A71),"",IFERROR(SUMIFS(D_D[AWD],D_D[MT],5,D_D[CAT],SMS, D_D[EP],499,D_D[LOC],$A71)/$E71,0)) ->  | L71: =IF(ISNA($A71),"",IFERROR(SUMIFS(D_D[AUT],D_D[MT],5,D_D[CAT],SMS, D_D[EP],499,D_D[LOC],$A71)/$E71,0)) -> 
B72: 59 | E72: =IF(ISNA($A72),"",IFERROR(SUMIFS(D_D[INV],D_D[MT],5,D_D[CAT],SMS, D_D[EP],499,D_D[LOC],$A72),0)) ->  | F72: =IF(ISNA($A72),"",IFERROR(SUMIFS(D_D[BL],D_D[MT],5,D_D[CAT],SMS, D_D[EP],499,D_D[LOC],$A72),0)) ->  | H72: =IF(ISNA($A72),"",IFERROR(SUMIFS(D_D[DEV],D_D[MT],5,D_D[CAT],SMS, D_D[EP],499,D_D[LOC],$A72)/$E72,0)) ->  | I72: =IF(ISNA($A72),"",IFERROR(SUMIFS(D_D[EVD],D_D[MT],5,D_D[CAT],SMS, D_D[EP],499,D_D[LOC],$A72)/$E72,0)) ->  | J72: =IF(ISNA($A72),"",IFERROR(SUMIFS(D_D[DEC],D_D[MT],5,D_D[CAT],SMS, D_D[EP],499,D_D[LOC],$A72)/$E72,0)) ->  | K72: =IF(ISNA($A72),"",IFERROR(SUMIFS(D_D[AWD],D_D[MT],5,D_D[CAT],SMS, D_D[EP],499,D_D[LOC],$A72)/$E72,0)) ->  | L72: =IF(ISNA($A72),"",IFERROR(SUMIFS(D_D[AUT],D_D[MT],5,D_D[CAT],SMS, D_D[EP],499,D_D[LOC],$A72)/$E72,0)) -> 
B73: 60 | E73: =IF(ISNA($A73),"",IFERROR(SUMIFS(D_D[INV],D_D[MT],5,D_D[CAT],SMS, D_D[EP],499,D_D[LOC],$A73),0)) ->  | F73: =IF(ISNA($A73),"",IFERROR(SUMIFS(D_D[BL],D_D[MT],5,D_D[CAT],SMS, D_D[EP],499,D_D[LOC],$A73),0)) ->  | H73: =IF(ISNA($A73),"",IFERROR(SUMIFS(D_D[DEV],D_D[MT],5,D_D[CAT],SMS, D_D[EP],499,D_D[LOC],$A73)/$E73,0)) ->  | I73: =IF(ISNA($A73),"",IFERROR(SUMIFS(D_D[EVD],D_D[MT],5,D_D[CAT],SMS, D_D[EP],499,D_D[LOC],$A73)/$E73,0)) ->  | J73: =IF(ISNA($A73),"",IFERROR(SUMIFS(D_D[DEC],D_D[MT],5,D_D[CAT],SMS, D_D[EP],499,D_D[LOC],$A73)/$E73,0)) ->  | K73: =IF(ISNA($A73),"",IFERROR(SUMIFS(D_D[AWD],D_D[MT],5,D_D[CAT],SMS, D_D[EP],499,D_D[LOC],$A73)/$E73,0)) ->  | L73: =IF(ISNA($A73),"",IFERROR(SUMIFS(D_D[AUT],D_D[MT],5,D_D[CAT],SMS, D_D[EP],499,D_D[LOC],$A73)/$E73,0)) -> 
B74: 61 | E74: =IF(ISNA($A74),"",IFERROR(SUMIFS(D_D[INV],D_D[MT],5,D_D[CAT],SMS, D_D[EP],499,D_D[LOC],$A74),0)) ->  | F74: =IF(ISNA($A74),"",IFERROR(SUMIFS(D_D[BL],D_D[MT],5,D_D[CAT],SMS, D_D[EP],499,D_D[LOC],$A74),0)) ->  | H74: =IF(ISNA($A74),"",IFERROR(SUMIFS(D_D[DEV],D_D[MT],5,D_D[CAT],SMS, D_D[EP],499,D_D[LOC],$A74)/$E74,0)) ->  | I74: =IF(ISNA($A74),"",IFERROR(SUMIFS(D_D[EVD],D_D[MT],5,D_D[CAT],SMS, D_D[EP],499,D_D[LOC],$A74)/$E74,0)) ->  | J74: =IF(ISNA($A74),"",IFERROR(SUMIFS(D_D[DEC],D_D[MT],5,D_D[CAT],SMS, D_D[EP],499,D_D[LOC],$A74)/$E74,0)) ->  | K74: =IF(ISNA($A74),"",IFERROR(SUMIFS(D_D[AWD],D_D[MT],5,D_D[CAT],SMS, D_D[EP],499,D_D[LOC],$A74)/$E74,0)) ->  | L74: =IF(ISNA($A74),"",IFERROR(SUMIFS(D_D[AUT],D_D[MT],5,D_D[CAT],SMS, D_D[EP],499,D_D[LOC],$A74)/$E74,0)) -> 
B75: 62 | E75: =IF(ISNA($A75),"",IFERROR(SUMIFS(D_D[INV],D_D[MT],5,D_D[CAT],SMS, D_D[EP],499,D_D[LOC],$A75),0)) ->  | F75: =IF(ISNA($A75),"",IFERROR(SUMIFS(D_D[BL],D_D[MT],5,D_D[CAT],SMS, D_D[EP],499,D_D[LOC],$A75),0)) ->  | H75: =IF(ISNA($A75),"",IFERROR(SUMIFS(D_D[DEV],D_D[MT],5,D_D[CAT],SMS, D_D[EP],499,D_D[LOC],$A75)/$E75,0)) ->  | I75: =IF(ISNA($A75),"",IFERROR(SUMIFS(D_D[EVD],D_D[MT],5,D_D[CAT],SMS, D_D[EP],499,D_D[LOC],$A75)/$E75,0)) ->  | J75: =IF(ISNA($A75),"",IFERROR(SUMIFS(D_D[DEC],D_D[MT],5,D_D[CAT],SMS, D_D[EP],499,D_D[LOC],$A75)/$E75,0)) ->  | K75: =IF(ISNA($A75),"",IFERROR(SUMIFS(D_D[AWD],D_D[MT],5,D_D[CAT],SMS, D_D[EP],499,D_D[LOC],$A75)/$E75,0)) ->  | L75: =IF(ISNA($A75),"",IFERROR(SUMIFS(D_D[AUT],D_D[MT],5,D_D[CAT],SMS, D_D[EP],499,D_D[LOC],$A75)/$E75,0)) -> 
B76: 63 | E76: =IF(ISNA($A76),"",IFERROR(SUMIFS(D_D[INV],D_D[MT],5,D_D[CAT],SMS, D_D[EP],499,D_D[LOC],$A76),0)) ->  | F76: =IF(ISNA($A76),"",IFERROR(SUMIFS(D_D[BL],D_D[MT],5,D_D[CAT],SMS, D_D[EP],499,D_D[LOC],$A76),0)) ->  | H76: =IF(ISNA($A76),"",IFERROR(SUMIFS(D_D[DEV],D_D[MT],5,D_D[CAT],SMS, D_D[EP],499,D_D[LOC],$A76)/$E76,0)) ->  | I76: =IF(ISNA($A76),"",IFERROR(SUMIFS(D_D[EVD],D_D[MT],5,D_D[CAT],SMS, D_D[EP],499,D_D[LOC],$A76)/$E76,0)) ->  | J76: =IF(ISNA($A76),"",IFERROR(SUMIFS(D_D[DEC],D_D[MT],5,D_D[CAT],SMS, D_D[EP],499,D_D[LOC],$A76)/$E76,0)) ->  | K76: =IF(ISNA($A76),"",IFERROR(SUMIFS(D_D[AWD],D_D[MT],5,D_D[CAT],SMS, D_D[EP],499,D_D[LOC],$A76)/$E76,0)) ->  | L76: =IF(ISNA($A76),"",IFERROR(SUMIFS(D_D[AUT],D_D[MT],5,D_D[CAT],SMS, D_D[EP],499,D_D[LOC],$A76)/$E76,0)) -> 
B77: 64 | E77: =IF(ISNA($A77),"",IFERROR(SUMIFS(D_D[INV],D_D[MT],5,D_D[CAT],SMS, D_D[EP],499,D_D[LOC],$A77),0)) ->  | F77: =IF(ISNA($A77),"",IFERROR(SUMIFS(D_D[BL],D_D[MT],5,D_D[CAT],SMS, D_D[EP],499,D_D[LOC],$A77),0)) ->  | H77: =IF(ISNA($A77),"",IFERROR(SUMIFS(D_D[DEV],D_D[MT],5,D_D[CAT],SMS, D_D[EP],499,D_D[LOC],$A77)/$E77,0)) ->  | I77: =IF(ISNA($A77),"",IFERROR(SUMIFS(D_D[EVD],D_D[MT],5,D_D[CAT],SMS, D_D[EP],499,D_D[LOC],$A77)/$E77,0)) ->  | J77: =IF(ISNA($A77),"",IFERROR(SUMIFS(D_D[DEC],D_D[MT],5,D_D[CAT],SMS, D_D[EP],499,D_D[LOC],$A77)/$E77,0)) ->  | K77: =IF(ISNA($A77),"",IFERROR(SUMIFS(D_D[AWD],D_D[MT],5,D_D[CAT],SMS, D_D[EP],499,D_D[LOC],$A77)/$E77,0)) ->  | L77: =IF(ISNA($A77),"",IFERROR(SUMIFS(D_D[AUT],D_D[MT],5,D_D[CAT],SMS, D_D[EP],499,D_D[LOC],$A77)/$E77,0)) -> 
B78: 65 | E78: =IF(ISNA($A78),"",IFERROR(SUMIFS(D_D[INV],D_D[MT],5,D_D[CAT],SMS, D_D[EP],499,D_D[LOC],$A78),0)) ->  | F78: =IF(ISNA($A78),"",IFERROR(SUMIFS(D_D[BL],D_D[MT],5,D_D[CAT],SMS, D_D[EP],499,D_D[LOC],$A78),0)) ->  | H78: =IF(ISNA($A78),"",IFERROR(SUMIFS(D_D[DEV],D_D[MT],5,D_D[CAT],SMS, D_D[EP],499,D_D[LOC],$A78)/$E78,0)) ->  | I78: =IF(ISNA($A78),"",IFERROR(SUMIFS(D_D[EVD],D_D[MT],5,D_D[CAT],SMS, D_D[EP],499,D_D[LOC],$A78)/$E78,0)) ->  | J78: =IF(ISNA($A78),"",IFERROR(SUMIFS(D_D[DEC],D_D[MT],5,D_D[CAT],SMS, D_D[EP],499,D_D[LOC],$A78)/$E78,0)) ->  | K78: =IF(ISNA($A78),"",IFERROR(SUMIFS(D_D[AWD],D_D[MT],5,D_D[CAT],SMS, D_D[EP],499,D_D[LOC],$A78)/$E78,0)) ->  | L78: =IF(ISNA($A78),"",IFERROR(SUMIFS(D_D[AUT],D_D[MT],5,D_D[CAT],SMS, D_D[EP],499,D_D[LOC],$A78)/$E78,0)) -> 
B79: 66 | E79: =IF(ISNA($A79),"",IFERROR(SUMIFS(D_D[INV],D_D[MT],5,D_D[CAT],SMS, D_D[EP],499,D_D[LOC],$A79),0)) ->  | F79: =IF(ISNA($A79),"",IFERROR(SUMIFS(D_D[BL],D_D[MT],5,D_D[CAT],SMS, D_D[EP],499,D_D[LOC],$A79),0)) ->  | H79: =IF(ISNA($A79),"",IFERROR(SUMIFS(D_D[DEV],D_D[MT],5,D_D[CAT],SMS, D_D[EP],499,D_D[LOC],$A79)/$E79,0)) ->  | I79: =IF(ISNA($A79),"",IFERROR(SUMIFS(D_D[EVD],D_D[MT],5,D_D[CAT],SMS, D_D[EP],499,D_D[LOC],$A79)/$E79,0)) ->  | J79: =IF(ISNA($A79),"",IFERROR(SUMIFS(D_D[DEC],D_D[MT],5,D_D[CAT],SMS, D_D[EP],499,D_D[LOC],$A79)/$E79,0)) ->  | K79: =IF(ISNA($A79),"",IFERROR(SUMIFS(D_D[AWD],D_D[MT],5,D_D[CAT],SMS, D_D[EP],499,D_D[LOC],$A79)/$E79,0)) ->  | L79: =IF(ISNA($A79),"",IFERROR(SUMIFS(D_D[AUT],D_D[MT],5,D_D[CAT],SMS, D_D[EP],499,D_D[LOC],$A79)/$E79,0)) -> 
B80: 67 | E80: =IF(ISNA($A80),"",IFERROR(SUMIFS(D_D[INV],D_D[MT],5,D_D[CAT],SMS, D_D[EP],499,D_D[LOC],$A80),0)) ->  | F80: =IF(ISNA($A80),"",IFERROR(SUMIFS(D_D[BL],D_D[MT],5,D_D[CAT],SMS, D_D[EP],499,D_D[LOC],$A80),0)) ->  | H80: =IF(ISNA($A80),"",IFERROR(SUMIFS(D_D[DEV],D_D[MT],5,D_D[CAT],SMS, D_D[EP],499,D_D[LOC],$A80)/$E80,0)) ->  | I80: =IF(ISNA($A80),"",IFERROR(SUMIFS(D_D[EVD],D_D[MT],5,D_D[CAT],SMS, D_D[EP],499,D_D[LOC],$A80)/$E80,0)) ->  | J80: =IF(ISNA($A80),"",IFERROR(SUMIFS(D_D[DEC],D_D[MT],5,D_D[CAT],SMS, D_D[EP],499,D_D[LOC],$A80)/$E80,0)) ->  | K80: =IF(ISNA($A80),"",IFERROR(SUMIFS(D_D[AWD],D_D[MT],5,D_D[CAT],SMS, D_D[EP],499,D_D[LOC],$A80)/$E80,0)) ->  | L80: =IF(ISNA($A80),"",IFERROR(SUMIFS(D_D[AUT],D_D[MT],5,D_D[CAT],SMS, D_D[EP],499,D_D[LOC],$A80)/$E80,0)) -> 
B81: 68 | C81: =IFERROR(INDEX(INDIRECT(DS_NWQ),B81),"") ->  | E81: =IF(ISNA($A81),"",IFERROR(SUMIFS(D_D[INV],D_D[MT],5,D_D[CAT],SMS, D_D[EP],499,D_D[LOC],$A81),0)) ->  | F81: =IF(ISNA($A81),"",IFERROR(SUMIFS(D_D[BL],D_D[MT],5,D_D[CAT],SMS, D_D[EP],499,D_D[LOC],$A81),0)) ->  | H81: =IF(ISNA($A81),"",IFERROR(SUMIFS(D_D[DEV],D_D[MT],5,D_D[CAT],SMS, D_D[EP],499,D_D[LOC],$A81)/$E81,0)) ->  | I81: =IF(ISNA($A81),"",IFERROR(SUMIFS(D_D[EVD],D_D[MT],5,D_D[CAT],SMS, D_D[EP],499,D_D[LOC],$A81)/$E81,0)) ->  | J81: =IF(ISNA($A81),"",IFERROR(SUMIFS(D_D[DEC],D_D[MT],5,D_D[CAT],SMS, D_D[EP],499,D_D[LOC],$A81)/$E81,0)) ->  | K81: =IF(ISNA($A81),"",IFERROR(SUMIFS(D_D[AWD],D_D[MT],5,D_D[CAT],SMS, D_D[EP],499,D_D[LOC],$A81)/$E81,0)) ->  | L81: =IF(ISNA($A81),"",IFERROR(SUMIFS(D_D[AUT],D_D[MT],5,D_D[CAT],SMS, D_D[EP],499,D_D[LOC],$A81)/$E81,0)) -> 
B82: 69 | D82: =IFERROR(INDEX(INDIRECT(DS_NWQD),B82),"") ->  | E82: =IF(ISNA($A82),"",IFERROR(SUMIFS(D_D[INV],D_D[MT],5,D_D[CAT],SMS, D_D[EP],499,D_D[LOC],$A82),0)) ->  | F82: =IF(ISNA($A82),"",IFERROR(SUMIFS(D_D[BL],D_D[MT],5,D_D[CAT],SMS, D_D[EP],499,D_D[LOC],$A82),0)) ->  | G82: =IF(ISNA($A82),"",IFERROR(F82/E82,0)) ->  | H82: =IF(ISNA($A82),"",IFERROR(SUMIFS(D_D[DEV],D_D[MT],5,D_D[CAT],SMS, D_D[EP],499,D_D[LOC],$A82)/$E82,0)) ->  | I82: =IF(ISNA($A82),"",IFERROR(SUMIFS(D_D[EVD],D_D[MT],5,D_D[CAT],SMS, D_D[EP],499,D_D[LOC],$A82)/$E82,0)) ->  | J82: =IF(ISNA($A82),"",IFERROR(SUMIFS(D_D[DEC],D_D[MT],5,D_D[CAT],SMS, D_D[EP],499,D_D[LOC],$A82)/$E82,0)) ->  | K82: =IF(ISNA($A82),"",IFERROR(SUMIFS(D_D[AWD],D_D[MT],5,D_D[CAT],SMS, D_D[EP],499,D_D[LOC],$A82)/$E82,0)) ->  | L82: =IF(ISNA($A82),"",IFERROR(SUMIFS(D_D[AUT],D_D[MT],5,D_D[CAT],SMS, D_D[EP],499,D_D[LOC],$A82)/$E82,0)) -> 
B83: 70 | E83: =IF(ISNA($A83),"",IFERROR(SUMIFS(D_D[INV],D_D[MT],5,D_D[CAT],SMS, D_D[EP],499,D_D[LOC],$A83),0)) ->  | F83: =IF(ISNA($A83),"",IFERROR(SUMIFS(D_D[BL],D_D[MT],5,D_D[CAT],SMS, D_D[EP],499,D_D[LOC],$A83),0)) ->  | H83: =IF(ISNA($A83),"",IFERROR(SUMIFS(D_D[DEV],D_D[MT],5,D_D[CAT],SMS, D_D[EP],499,D_D[LOC],$A83)/$E83,0)) ->  | I83: =IF(ISNA($A83),"",IFERROR(SUMIFS(D_D[EVD],D_D[MT],5,D_D[CAT],SMS, D_D[EP],499,D_D[LOC],$A83)/$E83,0)) ->  | J83: =IF(ISNA($A83),"",IFERROR(SUMIFS(D_D[DEC],D_D[MT],5,D_D[CAT],SMS, D_D[EP],499,D_D[LOC],$A83)/$E83,0)) ->  | K83: =IF(ISNA($A83),"",IFERROR(SUMIFS(D_D[AWD],D_D[MT],5,D_D[CAT],SMS, D_D[EP],499,D_D[LOC],$A83)/$E83,0)) ->  | L83: =IF(ISNA($A83),"",IFERROR(SUMIFS(D_D[AUT],D_D[MT],5,D_D[CAT],SMS, D_D[EP],499,D_D[LOC],$A83)/$E83,0)) -> 
B84: 71 | E84: =IF(ISNA($A84),"",IFERROR(SUMIFS(D_D[INV],D_D[MT],5,D_D[CAT],SMS, D_D[EP],499,D_D[LOC],$A84),0)) ->  | F84: =IF(ISNA($A84),"",IFERROR(SUMIFS(D_D[BL],D_D[MT],5,D_D[CAT],SMS, D_D[EP],499,D_D[LOC],$A84),0)) ->  | H84: =IF(ISNA($A84),"",IFERROR(SUMIFS(D_D[DEV],D_D[MT],5,D_D[CAT],SMS, D_D[EP],499,D_D[LOC],$A84)/$E84,0)) ->  | I84: =IF(ISNA($A84),"",IFERROR(SUMIFS(D_D[EVD],D_D[MT],5,D_D[CAT],SMS, D_D[EP],499,D_D[LOC],$A84)/$E84,0)) ->  | J84: =IF(ISNA($A84),"",IFERROR(SUMIFS(D_D[DEC],D_D[MT],5,D_D[CAT],SMS, D_D[EP],499,D_D[LOC],$A84)/$E84,0)) ->  | K84: =IF(ISNA($A84),"",IFERROR(SUMIFS(D_D[AWD],D_D[MT],5,D_D[CAT],SMS, D_D[EP],499,D_D[LOC],$A84)/$E84,0)) ->  | L84: =IF(ISNA($A84),"",IFERROR(SUMIFS(D_D[AUT],D_D[MT],5,D_D[CAT],SMS, D_D[EP],499,D_D[LOC],$A84)/$E84,0)) -> 
B85: 72 | E85: =IF(ISNA($A85),"",IFERROR(SUMIFS(D_D[INV],D_D[MT],5,D_D[CAT],SMS, D_D[EP],499,D_D[LOC],$A85),0)) ->  | F85: =IF(ISNA($A85),"",IFERROR(SUMIFS(D_D[BL],D_D[MT],5,D_D[CAT],SMS, D_D[EP],499,D_D[LOC],$A85),0)) ->  | H85: =IF(ISNA($A85),"",IFERROR(SUMIFS(D_D[DEV],D_D[MT],5,D_D[CAT],SMS, D_D[EP],499,D_D[LOC],$A85)/$E85,0)) ->  | I85: =IF(ISNA($A85),"",IFERROR(SUMIFS(D_D[EVD],D_D[MT],5,D_D[CAT],SMS, D_D[EP],499,D_D[LOC],$A85)/$E85,0)) ->  | J85: =IF(ISNA($A85),"",IFERROR(SUMIFS(D_D[DEC],D_D[MT],5,D_D[CAT],SMS, D_D[EP],499,D_D[LOC],$A85)/$E85,0)) ->  | K85: =IF(ISNA($A85),"",IFERROR(SUMIFS(D_D[AWD],D_D[MT],5,D_D[CAT],SMS, D_D[EP],499,D_D[LOC],$A85)/$E85,0)) ->  | L85: =IF(ISNA($A85),"",IFERROR(SUMIFS(D_D[AUT],D_D[MT],5,D_D[CAT],SMS, D_D[EP],499,D_D[LOC],$A85)/$E85,0)) -> 
B86: 73 | E86: =IF(ISNA($A86),"",IFERROR(SUMIFS(D_D[INV],D_D[MT],5,D_D[CAT],SMS, D_D[EP],499,D_D[LOC],$A86),0)) ->  | F86: =IF(ISNA($A86),"",IFERROR(SUMIFS(D_D[BL],D_D[MT],5,D_D[CAT],SMS, D_D[EP],499,D_D[LOC],$A86),0)) ->  | H86: =IF(ISNA($A86),"",IFERROR(SUMIFS(D_D[DEV],D_D[MT],5,D_D[CAT],SMS, D_D[EP],499,D_D[LOC],$A86)/$E86,0)) ->  | I86: =IF(ISNA($A86),"",IFERROR(SUMIFS(D_D[EVD],D_D[MT],5,D_D[CAT],SMS, D_D[EP],499,D_D[LOC],$A86)/$E86,0)) ->  | J86: =IF(ISNA($A86),"",IFERROR(SUMIFS(D_D[DEC],D_D[MT],5,D_D[CAT],SMS, D_D[EP],499,D_D[LOC],$A86)/$E86,0)) ->  | K86: =IF(ISNA($A86),"",IFERROR(SUMIFS(D_D[AWD],D_D[MT],5,D_D[CAT],SMS, D_D[EP],499,D_D[LOC],$A86)/$E86,0)) ->  | L86: =IF(ISNA($A86),"",IFERROR(SUMIFS(D_D[AUT],D_D[MT],5,D_D[CAT],SMS, D_D[EP],499,D_D[LOC],$A86)/$E86,0)) -> 
B87: 74 | E87: =IF(ISNA($A87),"",IFERROR(SUMIFS(D_D[INV],D_D[MT],5,D_D[CAT],SMS, D_D[EP],499,D_D[LOC],$A87),0)) ->  | F87: =IF(ISNA($A87),"",IFERROR(SUMIFS(D_D[BL],D_D[MT],5,D_D[CAT],SMS, D_D[EP],499,D_D[LOC],$A87),0)) ->  | H87: =IF(ISNA($A87),"",IFERROR(SUMIFS(D_D[DEV],D_D[MT],5,D_D[CAT],SMS, D_D[EP],499,D_D[LOC],$A87)/$E87,0)) ->  | I87: =IF(ISNA($A87),"",IFERROR(SUMIFS(D_D[EVD],D_D[MT],5,D_D[CAT],SMS, D_D[EP],499,D_D[LOC],$A87)/$E87,0)) ->  | J87: =IF(ISNA($A87),"",IFERROR(SUMIFS(D_D[DEC],D_D[MT],5,D_D[CAT],SMS, D_D[EP],499,D_D[LOC],$A87)/$E87,0)) ->  | K87: =IF(ISNA($A87),"",IFERROR(SUMIFS(D_D[AWD],D_D[MT],5,D_D[CAT],SMS, D_D[EP],499,D_D[LOC],$A87)/$E87,0)) ->  | L87: =IF(ISNA($A87),"",IFERROR(SUMIFS(D_D[AUT],D_D[MT],5,D_D[CAT],SMS, D_D[EP],499,D_D[LOC],$A87)/$E87,0)) -> 
B88: 75 | E88: =IF(ISNA($A88),"",IFERROR(SUMIFS(D_D[INV],D_D[MT],5,D_D[CAT],SMS, D_D[EP],499,D_D[LOC],$A88),0)) ->  | F88: =IF(ISNA($A88),"",IFERROR(SUMIFS(D_D[BL],D_D[MT],5,D_D[CAT],SMS, D_D[EP],499,D_D[LOC],$A88),0)) ->  | H88: =IF(ISNA($A88),"",IFERROR(SUMIFS(D_D[DEV],D_D[MT],5,D_D[CAT],SMS, D_D[EP],499,D_D[LOC],$A88)/$E88,0)) ->  | I88: =IF(ISNA($A88),"",IFERROR(SUMIFS(D_D[EVD],D_D[MT],5,D_D[CAT],SMS, D_D[EP],499,D_D[LOC],$A88)/$E88,0)) ->  | J88: =IF(ISNA($A88),"",IFERROR(SUMIFS(D_D[DEC],D_D[MT],5,D_D[CAT],SMS, D_D[EP],499,D_D[LOC],$A88)/$E88,0)) ->  | K88: =IF(ISNA($A88),"",IFERROR(SUMIFS(D_D[AWD],D_D[MT],5,D_D[CAT],SMS, D_D[EP],499,D_D[LOC],$A88)/$E88,0)) ->  | L88: =IF(ISNA($A88),"",IFERROR(SUMIFS(D_D[AUT],D_D[MT],5,D_D[CAT],SMS, D_D[EP],499,D_D[LOC],$A88)/$E88,0)) -> 
B89: 77 | D89: =IFERROR(INDEX(INDIRECT(DS_NWQD),B89),"") ->  | E89: =IF(ISNA($A89),"",IFERROR(SUMIFS(D_D[INV],D_D[MT],5,D_D[CAT],SMS, D_D[EP],499,D_D[LOC],$A89),0)) ->  | F89: =IF(ISNA($A89),"",IFERROR(SUMIFS(D_D[BL],D_D[MT],5,D_D[CAT],SMS, D_D[EP],499,D_D[LOC],$A89),0)) ->  | G89: =IF(ISNA($A89),"",IFERROR(F89/E89,0)) ->  | H89: =IF(ISNA($A89),"",IFERROR(SUMIFS(D_D[DEV],D_D[MT],5,D_D[CAT],SMS, D_D[EP],499,D_D[LOC],$A89)/$E89,0)) ->  | I89: =IF(ISNA($A89),"",IFERROR(SUMIFS(D_D[EVD],D_D[MT],5,D_D[CAT],SMS, D_D[EP],499,D_D[LOC],$A89)/$E89,0)) ->  | J89: =IF(ISNA($A89),"",IFERROR(SUMIFS(D_D[DEC],D_D[MT],5,D_D[CAT],SMS, D_D[EP],499,D_D[LOC],$A89)/$E89,0)) ->  | K89: =IF(ISNA($A89),"",IFERROR(SUMIFS(D_D[AWD],D_D[MT],5,D_D[CAT],SMS, D_D[EP],499,D_D[LOC],$A89)/$E89,0)) ->  | L89: =IF(ISNA($A89),"",IFERROR(SUMIFS(D_D[AUT],D_D[MT],5,D_D[CAT],SMS, D_D[EP],499,D_D[LOC],$A89)/$E89,0)) -> 

Sheet Traditional Aggregate (TA)
B2: ="Compensation and Pension National Inventory - Historical Reporting Bundles* - Data through " -> Compensation and Pension National Inventory - Historical Reporting Bundles* - Data through | H2: =D_DT[] -> 2022-05-28
B3: *The data on this page represents historical, alternative reporting on VBA claims processing. VBA actively measures and monitors these workloads, but the bundles are not specifically tied to VBA's strategic target 125 Days and 98% Accuracy. The Rating Bundle measures are the only claims processing bundle that is directly related to the strategic 2015 goals. End products which are included in the Rating Bundle group are highlighted in green.
B4: Compensation Entitlement | G4: Pension Entitlement | L4: Legacy Appeals
B5: Measurement | C5: Claims Pending | D5: Pending over 125 days | E5: Percent Pending over 125 days | G5: Measurement | H5: Claims Pending | I5: Pending over 125 days | J5: Percent Pending over 125 days | L5: Measurement | M5: Appeals Pending | N5: Average Days Pending
B6: Original Entitlement - Veterans1 | C6: =SUM(C7:C9) -> 137465 | D6: =SUM(D7:D9) -> 51133 | E6: =IFERROR(D6/C6,0) -> 0.3719710472 | G6: Original Entitlement | H6: =SUM(H7:H9) -> 15647 | I6: =SUM(I7:I9) -> 1190 | J6: =IFERROR(I6/H6,0) -> 0.07605291749 | K6: 1 | L6: Notice of Disagreements | M6: =IFERROR(SUMIFS(D_D[INV],D_D[MT],7,D_D[CAT],1,D_D[EP],$K6),0) -> 785 | N6: =IFERROR(SUMIFS(D_D[ADP],D_D[MT],7,D_D[CAT],1,D_D[EP],$K6),0) -> 1608.26
A7: 095 | B7: EP 095 - Initial entitlement decisions for Voc Rehab | C7: =IFERROR(SUMIFS(D_D[INV],D_D[MT],3,D_D[CAT],TA_21,D_D[EP],$A7),0) -> 12 | D7: =IFERROR(SUMIFS(D_D[BL],D_D[MT],3,D_D[CAT],TA_21,D_D[EP],$A7),0) -> 1 | E7: =IFERROR(D7/C7,0) -> 0.08333333333 | F7: 180 | G7: EP 180 - Initial entitlement - Veteran | H7: =IFERROR(SUMIFS(D_D[INV],D_D[MT],3,D_D[CAT],TA_31,D_D[EP],$F7),0) -> 7107 | I7: =IFERROR(SUMIFS(D_D[BL],D_D[MT],3,D_D[CAT],TA_31,D_D[EP],$F7),0) -> 567 | J7: 0.0797804981 | K7: 9 | L7: Statement of the Case* | M7: =IFERROR(SUMIFS(D_D[INV],D_D[MT],7,D_D[CAT],1,D_D[EP],$K7),0) -> 577 | N7: =IFERROR(SUMIFS(D_D[ADP],D_D[MT],7,D_D[CAT],1,D_D[EP],$K7),0) -> 1815.36
A8: 010 | B8: EP 010 - Initial entitlement for service-connected disability (=>8) | C8: =IFERROR(SUMIFS(D_D[INV],D_D[MT],3,D_D[CAT],TA_21,D_D[EP],$A8),0) -> 48734 | D8: =IFERROR(SUMIFS(D_D[BL],D_D[MT],3,D_D[CAT],TA_21,D_D[EP],$A8),0) -> 19548 | E8: 0.4011162638 | F8: 120 | G8: EP 120 - Increased entitlement and/or reconsideration | H8: =IFERROR(SUMIFS(D_D[INV],D_D[MT],3,D_D[CAT],TA_31,D_D[EP],$F8),0) -> 4232 | I8: =IFERROR(SUMIFS(D_D[BL],D_D[MT],3,D_D[CAT],TA_31,D_D[EP],$F8),0) -> 309 | J8: 0.07301512287 | K8: 2 | L8: Form 9s | M8: =IFERROR(SUMIFS(D_D[INV],D_D[MT],7,D_D[CAT],1,D_D[EP],$K8),0) -> 1202 | N8: =IFERROR(SUMIFS(D_D[ADP],D_D[MT],7,D_D[CAT],1,D_D[EP],$K8),0) -> 1136.34
A9: 110 | B9: EP 110 - Initial entitlement for service-connected disability (<=7) | C9: =IFERROR(SUMIFS(D_D[INV],D_D[MT],3,D_D[CAT],TA_21,D_D[EP],$A9),0) -> 88719 | D9: =IFERROR(SUMIFS(D_D[BL],D_D[MT],3,D_D[CAT],TA_21,D_D[EP],$A9),0) -> 31584 | E9: 0.3560004058 | F9: 190 | G9: EP 190 - Initial entitlement - Survivor | H9: =IFERROR(SUMIFS(D_D[INV],D_D[MT],3,D_D[CAT],TA_31,D_D[EP],$F9),0) -> 4308 | I9: =IFERROR(SUMIFS(D_D[BL],D_D[MT],3,D_D[CAT],TA_31,D_D[EP],$F9),0) -> 314 | J9: 0.07288765088 | K9: 3 | L9: Remands | M9: =IFERROR(SUMIFS(D_D[INV],D_D[MT],7,D_D[CAT],1,D_D[EP],$K9),0) -> 28239 | N9: =IFERROR(SUMIFS(D_D[ADP],D_D[MT],7,D_D[CAT],1,D_D[EP],$K9),0) -> 275.75
B10: Original Entitlement - Survivors2 | C10: =SUM(C11:C12) -> 14134 | D10: =SUM(D11:D12) -> 3845 | E10: 0.2720390548 | G10: Pension Award Adjustments | H10: =SUM(H11:H16) -> 5863 | I10: =SUM(I11:I16) -> 1008 | J10: 0.1719256353 | L10: Total Appeals Pending Under VBA control | M10: =M6+M7+M8+M9 -> 30803
A11: 140 | B11: EP 140 - Initial claims from surviving spouses, children or parents | C11: =IFERROR(SUMIFS(D_D[INV],D_D[MT],3,D_D[CAT],TA_21,D_D[EP],$A11),0) -> 14090 | D11: =IFERROR(SUMIFS(D_D[BL],D_D[MT],3,D_D[CAT],TA_21,D_D[EP],$A11),0) -> 3831 | E11: 0.271894961 | F11: 135 | G11: EP 135 - Hospitalization adjustment (non-rating) | H11: =IFERROR(SUMIFS(D_D[INV],D_D[MT],3,D_D[CAT],TA_32,D_D[EP],$F11),0) -> 138 | I11: =IFERROR(SUMIFS(D_D[BL],D_D[MT],3,D_D[CAT],TA_32,D_D[EP],$F11),0) -> 13 | J11: =IFERROR(I11/H11,0) -> 0.09420289855 | L11: *the veteran has 60 days to respond to an SOC to continue onto the Form 9 stage
A12: 410 | B12: EP 410 - Initial claims from Veterans' children with Spina bifida and/or birth defects | C12: =IFERROR(SUMIFS(D_D[INV],D_D[MT],3,D_D[CAT],TA_21,D_D[EP],$A12),0) -> 44 | D12: =IFERROR(SUMIFS(D_D[BL],D_D[MT],3,D_D[CAT],TA_21,D_D[EP],$A12),0) -> 14 | E12: 0.3181818182 | F12: 137 | G12: EP 137 - Dependency | H12: =IFERROR(SUMIFS(D_D[INV],D_D[MT],3,D_D[CAT],TA_32,D_D[EP],$F12),0) -> 6 | I12: =IFERROR(SUMIFS(D_D[BL],D_D[MT],3,D_D[CAT],TA_32,D_D[EP],$F12),0) -> 3 | J12: 0.5 | L12: RAMP (Rapid Appeals Modernization Program)
B13: Supplemental Entitlement | C13: =SUM(C14:C17) -> 358771 | D13: =SUM(D14:D17) -> 97356 | E13: 0.2713597253 | F13: 150G | G13: EP 150 - Income adjustments | H13: =IFERROR(SUMIFS(D_D[INV],D_D[MT],3,D_D[CAT],TA_32,D_D[EP],$F13),0) -> 5701 | I13: =IFERROR(SUMIFS(D_D[BL],D_D[MT],3,D_D[CAT],TA_32,D_D[EP],$F13),0) -> 986 | J13: 0.1729521137 | K13: 7 | L13: EP 682 - Higher Level Review | M13: =IFERROR(SUMIFS(D_D[INV],D_D[MT],7,D_D[CAT],1,D_D[EP],$K13),0) -> 0 | N13: =IFERROR(SUMIFS(D_D[ADP],D_D[MT],7,D_D[CAT],1,D_D[EP],$K13),0) -> 0
A14: 040 | B14: EP 040 - Supplemental Claims (AMA) | C14: =IFERROR(SUMIFS(D_D[INV],D_D[MT],3,D_D[CAT],TA_21,D_D[EP],$A14),0) -> 92207 | D14: =IFERROR(SUMIFS(D_D[BL],D_D[MT],3,D_D[CAT],TA_21,D_D[EP],$A14),0) -> 27390 | E14: 0.297049031 | F14: 155 | G14: EP 155 - Annual eligibility verification reporting (EVRs) | H14: =IFERROR(SUMIFS(D_D[INV],D_D[MT],3,D_D[CAT],TA_32,D_D[EP],$F14),0) -> 0 | I14: =IFERROR(SUMIFS(D_D[BL],D_D[MT],3,D_D[CAT],TA_32,D_D[EP],$F14),0) -> 0 | J14: 0 | K14: 8 | L14: EP 683 - Supplemental Evidence | M14: =IFERROR(SUMIFS(D_D[INV],D_D[MT],7,D_D[CAT],1,D_D[EP],$K14),0) -> 13 | N14: =IFERROR(SUMIFS(D_D[ADP],D_D[MT],7,D_D[CAT],1,D_D[EP],$K14),0) -> 1261.77
A15: 020 | B15: EP 020 - Increased evaluation and/or additional claimed conditions | C15: =IFERROR(SUMIFS(D_D[INV],D_D[MT],3,D_D[CAT],TA_21,D_D[EP],$A15),0) -> 264970 | D15: =IFERROR(SUMIFS(D_D[BL],D_D[MT],3,D_D[CAT],TA_21,D_D[EP],$A15),0) -> 69910 | E15: 0.2638411896 | F15: 297 | G15: EP 297 - Misc determinations | H15: =IFERROR(SUMIFS(D_D[INV],D_D[MT],3,D_D[CAT],TA_32,D_D[EP],$F15),0) -> 9 | I15: =IFERROR(SUMIFS(D_D[BL],D_D[MT],3,D_D[CAT],TA_32,D_D[EP],$F15),0) -> 6 | J15: 0.6666666667 | K15: 6 | L15: Total RAMP | M15: =IFERROR(SUMIFS(D_D[INV],D_D[MT],7,D_D[CAT],1,D_D[EP],$K15),0) -> 13 | N15: =IFERROR(SUMIFS(D_D[ADP],D_D[MT],7,D_D[CAT],1,D_D[EP],$K15),0) -> 1261.77
A16: 320 | B16: EP 320 -Increased entitlement due to hospitalization or surgery | C16: =IFERROR(SUMIFS(D_D[INV],D_D[MT],3,D_D[CAT],TA_21,D_D[EP],$A16),0) -> 1582 | D16: =IFERROR(SUMIFS(D_D[BL],D_D[MT],3,D_D[CAT],TA_21,D_D[EP],$A16),0) -> 51 | E16: 0.03223767383 | F16: 607 | G16: EP 607 - Due process | H16: =IFERROR(SUMIFS(D_D[INV],D_D[MT],3,D_D[CAT],TA_32,D_D[EP],$F16),0) -> 9 | I16: =IFERROR(SUMIFS(D_D[BL],D_D[MT],3,D_D[CAT],TA_32,D_D[EP],$F16),0) -> 0 | J16: 0
A17: 420 | B17: EP 420 - Spina bifida and/or birth defects reconsideration | C17: =IFERROR(SUMIFS(D_D[INV],D_D[MT],3,D_D[CAT],TA_21,D_D[EP],$A17),0) -> 12 | D17: =IFERROR(SUMIFS(D_D[BL],D_D[MT],3,D_D[CAT],TA_21,D_D[EP],$A17),0) -> 5 | E17: 0.4166666667 | G17: Program Reviews | H17: =SUM(H18:H20) -> 4830 | I17: =SUM(I18:I20) -> 596 | J17: =IFERROR(I17/H17,0) -> 0.1233954451 | L17: DROC Decision Review Workload (AMA)
A18: 12 | B18: Award Adjustments | C18: =SUM(C19:C25) -> 209869 | D18: =SUM(D19:D25) -> 44978 | E18: 0.2143146439 | F18: 154 | G18: EP 154 - Income Verification Match | H18: =IFERROR(SUMIFS(D_D[INV],D_D[MT],3,D_D[CAT],TA_33,D_D[EP],$F18),0) -> 4165 | I18: =IFERROR(SUMIFS(D_D[BL],D_D[MT],3,D_D[CAT],TA_33,D_D[EP],$F18),0) -> 2 | J18: 0.0004801920768 | M18: Claims Pending | N18: Average Days Pending
A19: 130G | B19: EP 130 - Dependency | C19: =IFERROR(SUMIFS(D_D[INV],D_D[MT],3,D_D[CAT],TA_22,D_D[EP],$A19),0) -> 48868 | D19: =IFERROR(SUMIFS(D_D[BL],D_D[MT],3,D_D[CAT],TA_22,D_D[EP],$A19),0) -> 2373 | E19: =IFERROR(D19/C19,0) -> 0.04855938446 | F19: 696 | G19: EP 696 - Cost of Living Adjustments | H19: =IFERROR(SUMIFS(D_D[INV],D_D[MT],3,D_D[CAT],TA_33,D_D[EP],$F19),0) -> 665 | I19: =IFERROR(SUMIFS(D_D[BL],D_D[MT],3,D_D[CAT],TA_33,D_D[EP],$F19),0) -> 594 | J19: 0.8932330827 | K19: 1 | L19: EP 030 - Higher-Level Reviews (HLR) | M19: =IFERROR(SUMIFS(D_D[INV],D_D[MT],12,D_D[CAT],9000,D_D[EP],$K19),0) -> 10175 | N19: =IFERROR(SUMIFS(D_D[ADP],D_D[MT],12,D_D[CAT],9000,D_D[EP],$K19),0) -> 18.32206388
A20: 133 | B20: EP 133 - Survivor restored entitlement | C20: =IFERROR(SUMIFS(D_D[INV],D_D[MT],3,D_D[CAT],TA_22,D_D[EP],$A20),0) -> 3 | D20: =IFERROR(SUMIFS(D_D[BL],D_D[MT],3,D_D[CAT],TA_22,D_D[EP],$A20),0) -> 1 | E20: 0.3333333333 | F20: 697 | G20: EP 697 - Non-entitlement reviews | H20: =IFERROR(SUMIFS(D_D[INV],D_D[MT],3,D_D[CAT],TA_33,D_D[EP],$F20),0) -> 0 | I20: =IFERROR(SUMIFS(D_D[BL],D_D[MT],3,D_D[CAT],TA_33,D_D[EP],$F20),0) -> 0 | J20: 0 | K20: 1.1 | L20: HLR - Compensation | M20: =IFERROR(SUMIFS(D_D[INV],D_D[MT],12,D_D[CAT],9000,D_D[EP],$K20),0) -> 9998 | N20: =IFERROR(SUMIFS(D_D[ADP],D_D[MT],12,D_D[CAT],9000,D_D[EP],$K20),0) -> 18.12942589
A21: 135 | B21: EP 135 - Hospitalization adjustment (non-rating) | C21: =IFERROR(SUMIFS(D_D[INV],D_D[MT],3,D_D[CAT],TA_22,D_D[EP],$A21),0) -> 312 | D21: =IFERROR(SUMIFS(D_D[BL],D_D[MT],3,D_D[CAT],TA_22,D_D[EP],$A21),0) -> 35 | E21: 0.1121794872 | G21: Pension Other | H21: =SUM(H22:H25) -> 118 | I21: =SUM(I22:I25) -> 18 | J21: =IFERROR(I21/H21,0) -> 0.1525423729 | K21: 1.2 | L21: HLR - Pension | M21: =IFERROR(SUMIFS(D_D[INV],D_D[MT],12,D_D[CAT],9000,D_D[EP],$K21),0) -> 177 | N21: =IFERROR(SUMIFS(D_D[ADP],D_D[MT],12,D_D[CAT],9000,D_D[EP],$K21),0) -> 29.20338983
A22: 290G | B22: EP 290 - Misc determinations | C22: =IFERROR(SUMIFS(D_D[INV],D_D[MT],3,D_D[CAT],TA_22,D_D[EP],$A22),0) -> 53354 | D22: =IFERROR(SUMIFS(D_D[BL],D_D[MT],3,D_D[CAT],TA_22,D_D[EP],$A22),0) -> 8666 | E22: 0.1624245605 | F22: 407 | G22: EP 407 - Correspondence | H22: =IFERROR(SUMIFS(D_D[INV],D_D[MT],3,D_D[CAT],TA_34,D_D[EP],$F22),0) -> 117 | I22: =IFERROR(SUMIFS(D_D[BL],D_D[MT],3,D_D[CAT],TA_34,D_D[EP],$F22),0) -> 17 | J22: 0.1452991453 | K22: 2 | L22: EP 040 - Higher-Level Review Returns (HLRR) | M22: =IFERROR(SUMIFS(D_D[INV],D_D[MT],12,D_D[CAT],9000,D_D[EP],$K22),0) -> 15034 | N22: =IFERROR(SUMIFS(D_D[ADP],D_D[MT],12,D_D[CAT],9000,D_D[EP],$K22),0) -> 119.6479979
A23: 450 | B23: EP 450 - Spina bifida and/or birth defects adjustments | C23: =IFERROR(SUMIFS(D_D[INV],D_D[MT],3,D_D[CAT],TA_22,D_D[EP],$A23),0) -> 11 | D23: =IFERROR(SUMIFS(D_D[BL],D_D[MT],3,D_D[CAT],TA_22,D_D[EP],$A23),0) -> 7 | E23: 0.6363636364 | F23: 507 | G23: EP 507 - Congressional correspondence | H23: =IFERROR(SUMIFS(D_D[INV],D_D[MT],3,D_D[CAT],TA_34,D_D[EP],$F23),0) -> 0 | I23: =IFERROR(SUMIFS(D_D[BL],D_D[MT],3,D_D[CAT],TA_34,D_D[EP],$F23),0) -> 0 | J23: 0 | K23: 2.1 | L23: HLRR - Compensation | M23: =IFERROR(SUMIFS(D_D[INV],D_D[MT],12,D_D[CAT],9000,D_D[EP],$K23),0) -> 14786 | N23: =IFERROR(SUMIFS(D_D[ADP],D_D[MT],12,D_D[CAT],9000,D_D[EP],$K23),0) -> 119.4564453
A24: 310G | B24: EP 310 -Future examination for disabilities | C24: =IFERROR(SUMIFS(D_D[INV],D_D[MT],3,D_D[CAT],TA_22,D_D[EP],$A24),0) -> 7278 | D24: =IFERROR(SUMIFS(D_D[BL],D_D[MT],3,D_D[CAT],TA_22,D_D[EP],$A24),0) -> 1913 | E24: 0.262846936 | F24: 937 | G24: EP 937 - Internal quality reviews | H24: =IFERROR(SUMIFS(D_D[INV],D_D[MT],3,D_D[CAT],TA_34,D_D[EP],$F24),0) -> 1 | I24: =IFERROR(SUMIFS(D_D[BL],D_D[MT],3,D_D[CAT],TA_34,D_D[EP],$F24),0) -> 1 | J24: 1 | K24: 2.2 | L24: HLRR - Pension | M24: =IFERROR(SUMIFS(D_D[INV],D_D[MT],12,D_D[CAT],9000,D_D[EP],$K24),0) -> 248 | N24: =IFERROR(SUMIFS(D_D[ADP],D_D[MT],12,D_D[CAT],9000,D_D[EP],$K24),0) -> 131.0685484
A25: 600G | B25: EP 600 - Due process | C25: =IFERROR(SUMIFS(D_D[INV],D_D[MT],3,D_D[CAT],TA_22,D_D[EP],$A25),0) -> 100043 | D25: =IFERROR(SUMIFS(D_D[BL],D_D[MT],3,D_D[CAT],TA_22,D_D[EP],$A25),0) -> 31983 | E25: 0.3196925322 | F25: 967 | G25: EP 967 - Correction of errors | H25: =IFERROR(SUMIFS(D_D[INV],D_D[MT],3,D_D[CAT],TA_34,D_D[EP],$F25),0) -> 0 | I25: =IFERROR(SUMIFS(D_D[BL],D_D[MT],3,D_D[CAT],TA_34,D_D[EP],$F25),0) -> 0 | J25: 0 | K25: 3 | L25: EP 040 - Board AMA Returns (Remands) | M25: =IFERROR(SUMIFS(D_D[INV],D_D[MT],12,D_D[CAT],9000,D_D[EP],$K25),0) -> 4490 | N25: =IFERROR(SUMIFS(D_D[ADP],D_D[MT],12,D_D[CAT],9000,D_D[EP],$K25),0) -> 139.089755
B26: Program Reviews | C26: =SUM(C27:C33) -> 2218 | D26: =SUM(D27:D33) -> 266 | E26: =IFERROR(D26/C26,0) -> 0.1199278629 | G26: Pension Burial/Accrued | H26: =SUM(H27:H29) -> 3420 | I26: =SUM(I27:I29) -> 2109 | J26: =IFERROR(I26/H26,0) -> 0.6166666667 | K26: 3.1 | L26: Remands - Compensation | M26: =IFERROR(SUMIFS(D_D[INV],D_D[MT],12,D_D[CAT],9000,D_D[EP],$K26),0) -> 4389 | N26: =IFERROR(SUMIFS(D_D[ADP],D_D[MT],12,D_D[CAT],9000,D_D[EP],$K26),0) -> 139.7562087
A27: 314 | B27: EP 314 - Income verification for unemployability | C27: =IFERROR(SUMIFS(D_D[INV],D_D[MT],3,D_D[CAT],TA_23,D_D[EP],$A27),0) -> 0 | D27: =IFERROR(SUMIFS(D_D[BL],D_D[MT],3,D_D[CAT],TA_23,D_D[EP],$A27),0) -> 0 | E27: 0 | F27: 167 | G27: EP 167 - Burials | H27: =IFERROR(SUMIFS(D_D[INV],D_D[MT],3,D_D[CAT],TA_35,D_D[EP],$F27),0) -> 0 | I27: =IFERROR(SUMIFS(D_D[BL],D_D[MT],3,D_D[CAT],TA_35,D_D[EP],$F27),0) -> 0 | J27: 0 | K27: 3.2 | L27: Remands - Pension | M27: =IFERROR(SUMIFS(D_D[INV],D_D[MT],12,D_D[CAT],9000,D_D[EP],$K27),0) -> 101 | N27: =IFERROR(SUMIFS(D_D[ADP],D_D[MT],12,D_D[CAT],9000,D_D[EP],$K27),0) -> 110.1287129
A28: 680G | B28: EP 680 - Review of Hemodialysis related cases/conditions | C28: =IFERROR(SUMIFS(D_D[INV],D_D[MT],3,D_D[CAT],TA_23,D_D[EP],$A28),0) -> 15 | D28: =IFERROR(SUMIFS(D_D[BL],D_D[MT],3,D_D[CAT],TA_23,D_D[EP],$A28),0) -> 15 | E28: 1 | F28: 165 | G28: EP 165 - Accrued | H28: =IFERROR(SUMIFS(D_D[INV],D_D[MT],3,D_D[CAT],TA_36,D_D[EP],$F28),0) -> 3420 | I28: =IFERROR(SUMIFS(D_D[BL],D_D[MT],3,D_D[CAT],TA_36,D_D[EP],$F28),0) -> 2109 | J28: 0.6166666667 | K28: 4 | L28: EP 030 - Board AMA Full Grants | M28: =IFERROR(SUMIFS(D_D[INV],D_D[MT],12,D_D[CAT],9000,D_D[EP],$K28),0) -> 543 | N28: =IFERROR(SUMIFS(D_D[ADP],D_D[MT],12,D_D[CAT],9000,D_D[EP],$K28),0) -> 53.02209945
A29: 682 | B29: EP 682 - Review of Radiation related cases/conditions | C29: =IFERROR(SUMIFS(D_D[INV],D_D[MT],3,D_D[CAT],TA_23,D_D[EP],$A29),0) -> 0 | D29: =IFERROR(SUMIFS(D_D[BL],D_D[MT],3,D_D[CAT],TA_23,D_D[EP],$A29),0) -> 0 | E29: 0 | K29: 4.1 | L29: Grants - Compensation | M29: =IFERROR(SUMIFS(D_D[INV],D_D[MT],12,D_D[CAT],9000,D_D[EP],$K29),0) -> 525 | N29: =IFERROR(SUMIFS(D_D[ADP],D_D[MT],12,D_D[CAT],9000,D_D[EP],$K29),0) -> 52.6952381
A30: 684 | B30: EP 684 - Review of Misc cases referred to central office | C30: =IFERROR(SUMIFS(D_D[INV],D_D[MT],3,D_D[CAT],TA_23,D_D[EP],$A30),0) -> 2 | D30: =IFERROR(SUMIFS(D_D[BL],D_D[MT],3,D_D[CAT],TA_23,D_D[EP],$A30),0) -> 1 | E30: 0.5 | K30: 4.2 | L30: Grants - Pension | M30: =IFERROR(SUMIFS(D_D[INV],D_D[MT],12,D_D[CAT],9000,D_D[EP],$K30),0) -> 18 | N30: =IFERROR(SUMIFS(D_D[ADP],D_D[MT],12,D_D[CAT],9000,D_D[EP],$K30),0) -> 62.55555556
A31: 685 | B31: EP 685 - Review of effective date related to herbicide exposure | C31: =IFERROR(SUMIFS(D_D[INV],D_D[MT],3,D_D[CAT],TA_23,D_D[EP],$A31),0) -> 245 | D31: =IFERROR(SUMIFS(D_D[BL],D_D[MT],3,D_D[CAT],TA_23,D_D[EP],$A31),0) -> 184 | E31: 0.7510204082
A32: 690G | B32: EP 690 - Cost of Living Adjustments (COLAs) and other reviews | C32: =IFERROR(SUMIFS(D_D[INV],D_D[MT],3,D_D[CAT],TA_23,D_D[EP],$A32),0) -> 1952 | D32: =IFERROR(SUMIFS(D_D[BL],D_D[MT],3,D_D[CAT],TA_23,D_D[EP],$A32),0) -> 66 | E32: 0.03381147541 | L32: Integrated Disability Evaluation System (IDES)
A33: 690 | B33: EP 690 - Social Security number verification | C33: =IFERROR(SUMIFS(D_D[INV],D_D[MT],3,D_D[CAT],TA_23,D_D[EP],$A33),0) -> 4 | D33: =IFERROR(SUMIFS(D_D[BL],D_D[MT],3,D_D[CAT],TA_23,D_D[EP],$A33),0) -> 0 | E33: 0 | L33: Number of IDES claims pending | N33: =IFERROR(SUMIFS(D_D[INV],D_D[MT],10,D_D[CAT],1,D_D[EP],-1),0) -> 23458
B34: Compensation Other | C34: =SUM(C35:C45) -> 111767 | D34: =SUM(D35:D45) -> 56976 | E34: =IFERROR(D34/C34,0) -> 0.5097747994
A35: 335 | B35: EP 335 - Blue Water Navy (Agent Orange) | C35: =IFERROR(SUMIFS(D_D[INV],D_D[MT],3,D_D[CAT],TA_24,D_D[EP],$A35),0) -> 14355 | D35: =IFERROR(SUMIFS(D_D[BL],D_D[MT],3,D_D[CAT],TA_24,D_D[EP],$A35),0) -> 12994 | E35: =IFERROR(D35/C35,0) -> 0.9051898293
A36: 400G | B36: EP 400 - Correspondence | C36: =IFERROR(SUMIFS(D_D[INV],D_D[MT],3,D_D[CAT],TA_24,D_D[EP],$A36),0) -> 15243 | D36: =IFERROR(SUMIFS(D_D[BL],D_D[MT],3,D_D[CAT],TA_24,D_D[EP],$A36),0) -> 3774 | E36: 0.2475890573
A37: 500G | B37: EP 500 - Congressional correspondence | C37: =IFERROR(SUMIFS(D_D[INV],D_D[MT],3,D_D[CAT],TA_24,D_D[EP],$A37),0) -> 477 | D37: =IFERROR(SUMIFS(D_D[BL],D_D[MT],3,D_D[CAT],TA_24,D_D[EP],$A37),0) -> 29 | E37: 0.0607966457
A38: 510 | B38: EP 510 - Freedom of Information Act (FOIA) requests | C38: =IFERROR(SUMIFS(D_D[INV],D_D[MT],3,D_D[CAT],TA_24,D_D[EP],$A38),0) -> 37476 | D38: =IFERROR(SUMIFS(D_D[BL],D_D[MT],3,D_D[CAT],TA_24,D_D[EP],$A38),0) -> 2669 | E38: 0.07121891344
A39: 930G | B39: EP 930 - Review, including quality assurance | C39: =IFERROR(SUMIFS(D_D[INV],D_D[MT],3,D_D[CAT],TA_24,D_D[EP],$A39),0) -> 14147 | D39: =IFERROR(SUMIFS(D_D[BL],D_D[MT],3,D_D[CAT],TA_24,D_D[EP],$A39),0) -> 8611 | E39: 0.6086802856
A40: 960G | B40: EP 960 - Correction of errors | C40: =IFERROR(SUMIFS(D_D[INV],D_D[MT],3,D_D[CAT],TA_24,D_D[EP],$A40),0) -> 522 | D40: =IFERROR(SUMIFS(D_D[BL],D_D[MT],3,D_D[CAT],TA_24,D_D[EP],$A40),0) -> 144 | E40: 0.275862069
A41: 681 | B41: EP 681 - Used to control claims under the Nehmer Agent Orange stipulation | C41: =IFERROR(SUMIFS(D_D[INV],D_D[MT],3,D_D[CAT],TA_24,D_D[EP],$A41),0) -> 1204 | D41: =IFERROR(SUMIFS(D_D[BL],D_D[MT],3,D_D[CAT],TA_24,D_D[EP],$A41),0) -> 928 | E41: =IFERROR(D41/C41,0) -> 0.7707641196
A42: 687 | B42: EP 687 - Blue Water Navy Agent Orange Nehmer Reviews | C42: =IFERROR(SUMIFS(D_D[INV],D_D[MT],3,D_D[CAT],TA_24,D_D[EP],$A42),0) -> 1885 | D42: =IFERROR(SUMIFS(D_D[BL],D_D[MT],3,D_D[CAT],TA_24,D_D[EP],$A42),0) -> 1881 | E42: =IFERROR(D42/C42,0) -> 0.9978779841
A43: 688 | B43: EP 688 - NDAA Agent Orange Nehmer Reviews (3 new authorized AO disabilities) | C43: =IFERROR(SUMIFS(D_D[INV],D_D[MT],3,D_D[CAT],TA_24,D_D[EP],$A43),0) -> 26436 | D43: =IFERROR(SUMIFS(D_D[BL],D_D[MT],3,D_D[CAT],TA_24,D_D[EP],$A43),0) -> 25946 | E43: =IFERROR(D43/C43,0) -> 0.9814646694
A44: 405 | B44: EP 405 - Reopened or new Agent Orange claims between 9/01/10 and 10/24/2011 | C44: =IFERROR(SUMIFS(D_D[INV],D_D[MT],3,D_D[CAT],TA_24,D_D[EP],$A44),0) -> 0 | D44: =IFERROR(SUMIFS(D_D[BL],D_D[MT],3,D_D[CAT],TA_24,D_D[EP],$A44),0) -> 0 | E44: =IFERROR(D44/C44,0) -> 0
A45: 409 | B45: EP 409 - Agent Orange claims where an interim decision was provided; No longer used as of 10/24/2011 | C45: =IFERROR(SUMIFS(D_D[INV],D_D[MT],3,D_D[CAT],TA_24,D_D[EP],$A45),0) -> 22 | D45: =IFERROR(SUMIFS(D_D[BL],D_D[MT],3,D_D[CAT],TA_24,D_D[EP],$A45),0) -> 0 | E45: =IFERROR(D45/C45,0) -> 0
B46: Compensation Burial/Accrued | C46: =SUM(C47:C49) -> 20212 | D46: =SUM(D47:D49) -> 13844 | E46: =IFERROR(D46/C46,0) -> 0.6849396398
A47: 160G | B47: EP 160 - Burials | C47: =IFERROR(SUMIFS(D_D[INV],D_D[MT],3,D_D[CAT],TA_25,D_D[EP],$A47),0) -> 8996 | D47: =IFERROR(SUMIFS(D_D[BL],D_D[MT],3,D_D[CAT],TA_25,D_D[EP],$A47),0) -> 3227 | E47: 0.3587149844
A48: 165 | B48: EP 165 - Accrued | C48: =IFERROR(SUMIFS(D_D[INV],D_D[MT],3,D_D[CAT],TA_26,D_D[EP],$A48),0) -> 11216 | D48: =IFERROR(SUMIFS(D_D[BL],D_D[MT],3,D_D[CAT],TA_26,D_D[EP],$A48),0) -> 10617 | E48: 0.9465941512

Sheet Diarys and Future Claims
B1: Compensation and Pension Diary and Future Claims - Historical Reporting Bundles* - Data through | F1: =D_DT[] -> 2022-05-28
B2: The data on this page represents future claims that VA is aware of. A portion of these claims roll into the traditional Rating Bundle group of end-products (EP) once the date of claim matures.
B3: Compensation Entitlement | E3: Pension Entitlement
B4: Measurement | C4: Claims Pending | E4: Measurement | F4: Claims Pending
B5: Original Entitlement - Veterans1 | C5: =SUM(C6:C8) -> 20955 | E5: Original Entitlement | F5: =SUM(F6:F8) -> 0
A6: 095 | B6: EP 095 - Initial entitlement decisions for Voc Rehab | C6: =IFERROR(SUMIFS(D_D[INV],D_D[MT],11,D_D[CAT],TA_21,D_D[EP],$A6),0) -> 0 | D6: 180 | E6: EP 180 - Initial entitlement - Veteran | F6: =IFERROR(SUMIFS(D_D[INV],D_D[MT],11,D_D[CAT],TA_31,D_D[EP],$D6),0) -> 0
A7: 010 | B7: EP 010 - Initial entitlement for service-connected disability (=>8) | C7: =IFERROR(SUMIFS(D_D[INV],D_D[MT],11,D_D[CAT],TA_21,D_D[EP],$A7),0) -> 17769 | D7: 120 | E7: EP 120 - Increased entitlement and/or reconsideration | F7: =IFERROR(SUMIFS(D_D[INV],D_D[MT],11,D_D[CAT],TA_31,D_D[EP],$D7),0) -> 0
A8: 110 | B8: EP 110 - Initial entitlement for service-connected disability (<=7) | C8: =IFERROR(SUMIFS(D_D[INV],D_D[MT],11,D_D[CAT],TA_21,D_D[EP],$A8),0) -> 3186 | D8: 190 | E8: EP 190 - Initial entitlement - Survivor | F8: =IFERROR(SUMIFS(D_D[INV],D_D[MT],11,D_D[CAT],TA_31,D_D[EP],$D8),0) -> 0
B9: Original Entitlement - Survivors2 | C9: =SUM(C10:C11) -> 0 | E9: Pension Award Adjustments | F9: =SUM(F10:F15) -> 0
A10: 140 | B10: EP 140 - Initial claims from surviving spouses, children or parents | C10: =IFERROR(SUMIFS(D_D[INV],D_D[MT],11,D_D[CAT],TA_21,D_D[EP],$A10),0) -> 0 | D10: 135 | E10: EP 135 - Hospitalization adjustment (non-rating) | F10: =IFERROR(SUMIFS(D_D[INV],D_D[MT],11,D_D[CAT],TA_31,D_D[EP],$D10),0) -> 0
A11: 410 | B11: EP 410 - Initial claims from Veterans' children with Spina bifida and/or birth defects | C11: =IFERROR(SUMIFS(D_D[INV],D_D[MT],11,D_D[CAT],TA_21,D_D[EP],$A11),0) -> 0 | D11: 137 | E11: EP 137 - Dependency | F11: =IFERROR(SUMIFS(D_D[INV],D_D[MT],11,D_D[CAT],TA_31,D_D[EP],$D11),0) -> 0
B12: Supplemental Entitlement | C12: =SUM(C13:C16) -> 738 | D12: 150G | E12: EP 150 - Income adjustments | F12: =IFERROR(SUMIFS(D_D[INV],D_D[MT],11,D_D[CAT],TA_31,D_D[EP],$D12),0) -> 0
A13: 040 | B13: EP 040 - Decision Review Request | C13: =IFERROR(SUMIFS(D_D[INV],D_D[MT],11,D_D[CAT],TA_21,D_D[EP],$A13),0) -> 0 | D13: 155 | E13: EP 155 - Annual eligibility verification reporting (EVRs) | F13: =IFERROR(SUMIFS(D_D[INV],D_D[MT],11,D_D[CAT],TA_31,D_D[EP],$D13),0) -> 0
A14: 020 | B14: EP 020 - Increased evaluation and/or additional claimed conditions | C14: =IFERROR(SUMIFS(D_D[INV],D_D[MT],11,D_D[CAT],TA_21,D_D[EP],$A14),0) -> 738 | D14: 297 | E14: EP 297 - Misc determinations | F14: =IFERROR(SUMIFS(D_D[INV],D_D[MT],11,D_D[CAT],TA_31,D_D[EP],$D14),0) -> 0
A15: 320 | B15: EP 320 -Increased entitlement due to hospitalization or surgery | C15: =IFERROR(SUMIFS(D_D[INV],D_D[MT],11,D_D[CAT],TA_21,D_D[EP],$A15),0) -> 0 | D15: 607 | E15: EP 607 - Due process | F15: =IFERROR(SUMIFS(D_D[INV],D_D[MT],11,D_D[CAT],TA_31,D_D[EP],$D15),0) -> 0
A16: 420 | B16: EP 420 - Spina bifida and/or birth defects reconsideration | C16: =IFERROR(SUMIFS(D_D[INV],D_D[MT],11,D_D[CAT],TA_21,D_D[EP],$A16),0) -> 0 | E16: Program Reviews | F16: =SUM(F17:F19) -> 0
A17: 12 | B17: Award Adjustments | C17: =SUM(C18:C24) -> 50 | D17: 154 | E17: EP 154 - Income Verification Match | F17: =IFERROR(SUMIFS(D_D[INV],D_D[MT],11,D_D[CAT],TA_31,D_D[EP],$D17),0) -> 0
A18: 130G | B18: EP 130 - Dependency | C18: =IFERROR(SUMIFS(D_D[INV],D_D[MT],11,D_D[CAT],TA_22,D_D[EP],$A18),0) -> 28 | D18: 696 | E18: EP 696 - Cost of Living Adjustments | F18: =IFERROR(SUMIFS(D_D[INV],D_D[MT],11,D_D[CAT],TA_31,D_D[EP],$D18),0) -> 0
A19: 133 | B19: EP 133 - Survivor restored entitlement | C19: =IFERROR(SUMIFS(D_D[INV],D_D[MT],11,D_D[CAT],TA_22,D_D[EP],$A19),0) -> 0 | D19: 697 | E19: EP 697 - Non-entitlement reviews | F19: =IFERROR(SUMIFS(D_D[INV],D_D[MT],11,D_D[CAT],TA_31,D_D[EP],$D19),0) -> 0
A20: 135 | B20: EP 135 - Hospitalization adjustment (non-rating) | C20: =IFERROR(SUMIFS(D_D[INV],D_D[MT],11,D_D[CAT],TA_22,D_D[EP],$A20),0) -> 0 | E20: Pension Other | F20: =SUM(F21:F24) -> 0
A21: 290G | B21: EP 290 - Misc determinations | C21: =IFERROR(SUMIFS(D_D[INV],D_D[MT],11,D_D[CAT],TA_22,D_D[EP],$A21),0) -> 22 | D21: 407 | E21: EP 407 - Correspondence | F21: =IFERROR(SUMIFS(D_D[INV],D_D[MT],11,D_D[CAT],TA_31,D_D[EP],$D21),0) -> 0
A22: 450 | B22: EP 450 - Spina bifida and/or birth defects adjustments | C22: =IFERROR(SUMIFS(D_D[INV],D_D[MT],11,D_D[CAT],TA_22,D_D[EP],$A22),0) -> 0 | D22: 507 | E22: EP 507 - Congressional correspondence | F22: =IFERROR(SUMIFS(D_D[INV],D_D[MT],11,D_D[CAT],TA_31,D_D[EP],$D22),0) -> 0
A23: 310G | B23: EP 310 -Future examination for disabilities | C23: =IFERROR(SUMIFS(D_D[INV],D_D[MT],11,D_D[CAT],TA_22,D_D[EP],$A23),0) -> 0 | D23: 937 | E23: EP 937 - Internal quality reviews | F23: =IFERROR(SUMIFS(D_D[INV],D_D[MT],11,D_D[CAT],TA_31,D_D[EP],$D23),0) -> 0
A24: 600G | B24: EP 600 - Due process | C24: =IFERROR(SUMIFS(D_D[INV],D_D[MT],11,D_D[CAT],TA_22,D_D[EP],$A24),0) -> 0 | D24: 967 | E24: EP 967 - Correction of errors | F24: =IFERROR(SUMIFS(D_D[INV],D_D[MT],11,D_D[CAT],TA_31,D_D[EP],$D24),0) -> 0
B25: Program Reviews | C25: =SUM(C26:C33) -> 1766 | E25: Pension Burial/Accrued | F25: =SUM(F26:F27) -> 0
A26: 314 | B26: EP 314 - Income verification for unemployability | C26: =IFERROR(SUMIFS(D_D[INV],D_D[MT],11,D_D[CAT],TA_23,D_D[EP],$A26),0) -> 0 | D26: 167 | E26: EP 167 - Burials | F26: =IFERROR(SUMIFS(D_D[INV],D_D[MT],11,D_D[CAT],TA_31,D_D[EP],$D26),0) -> 0
A27: 330 | B27: EP 330 - Reviews | C27: =IFERROR(SUMIFS(D_D[INV],D_D[MT],11,D_D[CAT],TA_23,D_D[EP],$A27),0) -> 1766 | D27: 165 | E27: EP 165 - Accrued | F27: =IFERROR(SUMIFS(D_D[INV],D_D[MT],11,D_D[CAT],TA_31,D_D[EP],$D27),0) -> 0
A28: 680G | B28: EP 680 - Review of Hemodialysis related cases/conditions | C28: =IFERROR(SUMIFS(D_D[INV],D_D[MT],11,D_D[CAT],TA_23,D_D[EP],$A28),0) -> 0
A29: 682 | B29: EP 682 - Review of Radiation related cases/conditions | C29: =IFERROR(SUMIFS(D_D[INV],D_D[MT],11,D_D[CAT],TA_23,D_D[EP],$A29),0) -> 0
A30: 684 | B30: EP 684 - Review of Misc cases referred to central office | C30: =IFERROR(SUMIFS(D_D[INV],D_D[MT],11,D_D[CAT],TA_23,D_D[EP],$A30),0) -> 0 | E30: Integrated Disability Evaluation System (IDES)
A31: 685 | B31: EP 685 - Review of effective date related to herbicide exposure | C31: =IFERROR(SUMIFS(D_D[INV],D_D[MT],11,D_D[CAT],TA_23,D_D[EP],$A31),0) -> 0 | E31: EP 689 - IDES | F31: =IFERROR(SUMIFS(D_D[INV],D_D[MT],11,D_D[CAT],1,D_D[EP],-1),0) -> 0
A32: 690G | B32: EP 690 - Cost of Living Adjustments (COLAs) and other reviews | C32: =IFERROR(SUMIFS(D_D[INV],D_D[MT],11,D_D[CAT],TA_23,D_D[EP],$A32),0) -> 0
A33: 690 | B33: EP 690 - Social Security number verification | C33: =IFERROR(SUMIFS(D_D[INV],D_D[MT],11,D_D[CAT],TA_23,D_D[EP],$A33),0) -> 0
B34: Compensation Other | C34: =SUM(C35:C44) -> 88
A35: 335 | B35: EP 335 - Blue Water Navy (Agent Orange) | C35: =IFERROR(SUMIFS(D_D[INV],D_D[MT],11,D_D[CAT],TA_24,D_D[EP],$A35),0) -> 0
A36: 400G | B36: EP 400 - Correspondence | C36: =IFERROR(SUMIFS(D_D[INV],D_D[MT],11,D_D[CAT],TA_24,D_D[EP],$A36),0) -> 86
A37: 500G | B37: EP 500 - Congressional correspondence | C37: =IFERROR(SUMIFS(D_D[INV],D_D[MT],11,D_D[CAT],TA_24,D_D[EP],$A37),0) -> 0
A38: 510 | B38: EP 510 - Freedom of Information Act (FOIA) requests | C38: =IFERROR(SUMIFS(D_D[INV],D_D[MT],11,D_D[CAT],TA_24,D_D[EP],$A38),0) -> 0
A39: 930G | B39: EP 930 - Review, including quality assurance | C39: =IFERROR(SUMIFS(D_D[INV],D_D[MT],11,D_D[CAT],TA_24,D_D[EP],$A39),0) -> 2
A40: 960G | B40: EP 960 - Correction of errors | C40: =IFERROR(SUMIFS(D_D[INV],D_D[MT],11,D_D[CAT],TA_24,D_D[EP],$A40),0) -> 0
A41: 681 | B41: EP 681 - Used to control claims under the Nehmer Agent Orange stipulation | C41: =IFERROR(SUMIFS(D_D[INV],D_D[MT],11,D_D[CAT],TA_24,D_D[EP],$A41),0) -> 0
A42: 687 | B42: EP 687 - Previously used for Nehmer Agent Orange presumptive issues | C42: =IFERROR(SUMIFS(D_D[INV],D_D[MT],11,D_D[CAT],TA_24,D_D[EP],$A42),0) -> 0
A43: 405 | B43: EP 405 - Reopened or new Agent Orange claims between 9/01/10 and 10/24/2011 | C43: =IFERROR(SUMIFS(D_D[INV],D_D[MT],11,D_D[CAT],TA_24,D_D[EP],$A43),0) -> 0
A44: 409 | B44: EP 409 - Agent Orange claims where an interim decision was provided; No longer used as of 10/24/2011 | C44: =IFERROR(SUMIFS(D_D[INV],D_D[MT],11,D_D[CAT],TA_24,D_D[EP],$A44),0) -> 0
B45: Compensation Burial/Accrued | C45: =SUM(C46:C47) -> 0
A46: 160G | B46: EP 160 - Burials | C46: =IFERROR(SUMIFS(D_D[INV],D_D[MT],11,D_D[CAT],TA_25,D_D[EP],$A46),0) -> 0
A47: 165 | B47: EP 165 - Accrued | C47: =IFERROR(SUMIFS(D_D[INV],D_D[MT],11,D_D[CAT],TA_25,D_D[EP],$A47),0) -> 0

Sheet TA-Regional Office
C1: 2000 | D1: 2000 | E1: 11 | F1: 11 | H1: 12 | I1: 12 | K1: 13 | L1: 13 | N1: 14 | O1: 14 | Q1: 15 | R1: 16 | S1: 1
B2: Scroll down to see Pension | C2: =("Inventory by Regional Office - Data through ") -> Inventory by Regional Office - Data through | G2: =D_DT[] -> 2022-05-28
C3: *The claims pending under 'Non-Rating' are a subset of claims listed under the 'Award Adjustment' column and should not be counted twice when computing totals
C4: Non-Rating | E4: Entitlement | H4: Award Adjustment | K4: Program Review | N4: Other | Q4: Burial | R4: Accrued | S4: Legacy Appeals
C5: Claims Pending | D5: Avg. Days Pending | E5: Claims Pending | F5: Pending over 125 days | G5: Percent Pending over 125 days | H5: Claims Pending | I5: Pending over 125 days | J5: Percent Pending over 125 days | K5: Claims Pending | L5: Pending over 125 days | M5: Percent Pending over 125 days | N5: Claims Pending | O5: Pending over 125 days | P5: Percent Pending over 125 days | Q5: Claims Pending | R5: Claims Pending | S5: Appeals Pending
C6: Compensation
A7: 100 | B7: USA Compensation | C7: =IFERROR(SUMIFS(D_D[INV],D_D[MT],1,D_D[CAT],TA_20,D_D[EP],-1, D_D[LOC],$A7),0) -> 102222 | D7: =IFERROR(SUMIFS(D_D[ADP],D_D[MT],1,D_D[CAT],D$1,D_D[EP],-1, D_D[LOC],$A7),0) -> 70.98 | E7: =IFERROR(SUMIFS(D_D[INV],D_D[MT],2,D_D[CAT],TA_21,D_D[EP],-1, D_D[LOC],$A7),0) -> 529894 | F7: =IFERROR(SUMIFS(D_D[BL],D_D[MT],2,D_D[CAT],TA_21,D_D[EP],-1, D_D[LOC],$A7),0) -> 152334 | G7: =IFERROR(F7/E7,"0%") -> 0.2874801375 | H7: =IFERROR(SUMIFS(D_D[INV],D_D[MT],2,D_D[CAT],TA_22,D_D[EP],-1, D_D[LOC],$A7),0) -> 209869 | I7: =IFERROR(SUMIFS(D_D[BL],D_D[MT],2,D_D[CAT],TA_22,D_D[EP],-1, D_D[LOC],$A7),0) -> 44978 | J7: =IFERROR(I7/H7,"0%") -> 0.2143146439 | K7: =IFERROR(SUMIFS(D_D[INV],D_D[MT],2,D_D[CAT],TA_23,D_D[EP],-1, D_D[LOC],$A7),0) -> 5188 | L7: =IFERROR(SUMIFS(D_D[BL],D_D[MT],2,D_D[CAT],TA_23,D_D[EP],-1, D_D[LOC],$A7),0) -> 361 | M7: =IFERROR(L7/K7,"0%") -> 0.06958365459 | N7: =IFERROR(SUMIFS(D_D[INV],D_D[MT],2,D_D[CAT],TA_24,D_D[EP],-1, D_D[LOC],$A7),0) - 'Diarys and Future Claims'!C35 -> 111768 | O7: =IFERROR(SUMIFS(D_D[BL],D_D[MT],2,D_D[CAT],TA_24,D_D[EP],-1, D_D[LOC],$A7),0) -> 56976 | P7: =IFERROR(O7/N7,"0%") -> 0.5097702384 | Q7: =IFERROR(SUMIFS(D_D[INV],D_D[MT],2,D_D[CAT],TA_25,D_D[EP],-1, D_D[LOC],$A7),0) -> 8996 | R7: =IFERROR(SUMIFS(D_D[INV],D_D[MT],2,D_D[CAT],TA_26,D_D[EP],-1, D_D[LOC],$A7),0) -> 11216 | S7: =IFERROR(SUMIFS(D_D[INV],D_D[MT],7,D_D[CAT],2,D_D[EP],TA_20, D_D[LOC],$A7),0) -> 29888
A8: 394 | B8: Northeast | C8: =IFERROR(SUMIFS(D_D[INV],D_D[MT],1,D_D[CAT],TA_20,D_D[EP],-1, D_D[LOC],$A8),0) -> 24878 | D8: =IFERROR(SUMIFS(D_D[ADP],D_D[MT],1,D_D[CAT],D$1,D_D[EP],-1, D_D[LOC],$A8),0) -> 100.42 | E8: =IFERROR(SUMIFS(D_D[INV],D_D[MT],2,D_D[CAT],TA_21,D_D[EP],-1, D_D[LOC],$A8),0) -> 92184 | F8: =IFERROR(SUMIFS(D_D[BL],D_D[MT],2,D_D[CAT],TA_21,D_D[EP],-1, D_D[LOC],$A8),0) -> 28670 | G8: =IFERROR(F8/E8,"0%") -> 0.3110084179 | H8: =IFERROR(SUMIFS(D_D[INV],D_D[MT],2,D_D[CAT],TA_22,D_D[EP],-1, D_D[LOC],$A8),0) -> 56690 | I8: =IFERROR(SUMIFS(D_D[BL],D_D[MT],2,D_D[CAT],TA_22,D_D[EP],-1, D_D[LOC],$A8),0) -> 14508 | J8: =IFERROR(I8/H8,"0%") -> 0.2559181513 | K8: =IFERROR(SUMIFS(D_D[INV],D_D[MT],2,D_D[CAT],TA_23,D_D[EP],-1, D_D[LOC],$A8),0) -> 1284 | L8: =IFERROR(SUMIFS(D_D[BL],D_D[MT],2,D_D[CAT],TA_23,D_D[EP],-1, D_D[LOC],$A8),0) -> 46 | M8: =IFERROR(L8/K8,"0%") -> 0.03582554517 | N8: =IFERROR(SUMIFS(D_D[INV],D_D[MT],2,D_D[CAT],TA_24,D_D[EP],-1, D_D[LOC],$A8),0) -> 27615 | O8: =IFERROR(SUMIFS(D_D[BL],D_D[MT],2,D_D[CAT],TA_24,D_D[EP],-1, D_D[LOC],$A8),0) -> 7221 | P8: =IFERROR(O8/N8,"0%") -> 0.2614883216 | Q8: =IFERROR(SUMIFS(D_D[INV],D_D[MT],2,D_D[CAT],TA_25,D_D[EP],-1, D_D[LOC],$A8),0) -> 2716 | R8: =IFERROR(SUMIFS(D_D[INV],D_D[MT],2,D_D[CAT],TA_26,D_D[EP],-1, D_D[LOC],$A8),0) -> 1154 | S8: =IFERROR(SUMIFS(D_D[INV],D_D[MT],7,D_D[CAT],2,D_D[EP],TA_20, D_D[LOC],$A8),0) -> 209
A9: 313 | B9: Baltimore | C9: =IFERROR(SUMIFS(D_D[INV],D_D[MT],1,D_D[CAT],TA_20,D_D[EP],-1, D_D[LOC],$A9),0) -> 960 | D9: =IFERROR(SUMIFS(D_D[ADP],D_D[MT],1,D_D[CAT],D$1,D_D[EP],-1, D_D[LOC],$A9),0) -> 36.3 | E9: =IFERROR(SUMIFS(D_D[INV],D_D[MT],2,D_D[CAT],TA_21,D_D[EP],-1, D_D[LOC],$A9),0) -> 7175 | F9: =IFERROR(SUMIFS(D_D[BL],D_D[MT],2,D_D[CAT],TA_21,D_D[EP],-1, D_D[LOC],$A9),0) -> 1899 | G9: 0.2646689895 | H9: =IFERROR(SUMIFS(D_D[INV],D_D[MT],2,D_D[CAT],TA_22,D_D[EP],-1, D_D[LOC],$A9),0) -> 1807 | I9: =IFERROR(SUMIFS(D_D[BL],D_D[MT],2,D_D[CAT],TA_22,D_D[EP],-1, D_D[LOC],$A9),0) -> 152 | J9: 0.08411732153 | K9: =IFERROR(SUMIFS(D_D[INV],D_D[MT],2,D_D[CAT],TA_23,D_D[EP],-1, D_D[LOC],$A9),0) -> 84 | L9: =IFERROR(SUMIFS(D_D[BL],D_D[MT],2,D_D[CAT],TA_23,D_D[EP],-1, D_D[LOC],$A9),0) -> 0 | M9: 0 | N9: =IFERROR(SUMIFS(D_D[INV],D_D[MT],2,D_D[CAT],TA_24,D_D[EP],-1, D_D[LOC],$A9),0) -> 834 | O9: =IFERROR(SUMIFS(D_D[BL],D_D[MT],2,D_D[CAT],TA_24,D_D[EP],-1, D_D[LOC],$A9),0) -> 170 | P9: 0.2038369305 | Q9: =IFERROR(SUMIFS(D_D[INV],D_D[MT],2,D_D[CAT],TA_25,D_D[EP],-1, D_D[LOC],$A9),0) -> 37 | R9: =IFERROR(SUMIFS(D_D[INV],D_D[MT],2,D_D[CAT],TA_26,D_D[EP],-1, D_D[LOC],$A9),0) -> 1 | S9: =IFERROR(SUMIFS(D_D[INV],D_D[MT],7,D_D[CAT],2,D_D[EP],TA_20, D_D[LOC],$A9),0) -> 5
A10: 301 | B10: Boston | C10: =IFERROR(SUMIFS(D_D[INV],D_D[MT],1,D_D[CAT],TA_20,D_D[EP],-1, D_D[LOC],$A10),0) -> 390 | D10: =IFERROR(SUMIFS(D_D[ADP],D_D[MT],1,D_D[CAT],D$1,D_D[EP],-1, D_D[LOC],$A10),0) -> 32.26 | E10: =IFERROR(SUMIFS(D_D[INV],D_D[MT],2,D_D[CAT],TA_21,D_D[EP],-1, D_D[LOC],$A10),0) -> 3006 | F10: =IFERROR(SUMIFS(D_D[BL],D_D[MT],2,D_D[CAT],TA_21,D_D[EP],-1, D_D[LOC],$A10),0) -> 893 | G10: =IFERROR(F10/E10,"0%") -> 0.2970725216 | H10: =IFERROR(SUMIFS(D_D[INV],D_D[MT],2,D_D[CAT],TA_22,D_D[EP],-1, D_D[LOC],$A10),0) -> 1035 | I10: =IFERROR(SUMIFS(D_D[BL],D_D[MT],2,D_D[CAT],TA_22,D_D[EP],-1, D_D[LOC],$A10),0) -> 120 | J10: =IFERROR(I10/H10,"0%") -> 0.115942029 | K10: =IFERROR(SUMIFS(D_D[INV],D_D[MT],2,D_D[CAT],TA_23,D_D[EP],-1, D_D[LOC],$A10),0) -> 51 | L10: =IFERROR(SUMIFS(D_D[BL],D_D[MT],2,D_D[CAT],TA_23,D_D[EP],-1, D_D[LOC],$A10),0) -> 2 | M10: =IFERROR(L10/K10,"0%") -> 0.03921568627 | N10: =IFERROR(SUMIFS(D_D[INV],D_D[MT],2,D_D[CAT],TA_24,D_D[EP],-1, D_D[LOC],$A10),0) -> 199 | O10: =IFERROR(SUMIFS(D_D[BL],D_D[MT],2,D_D[CAT],TA_24,D_D[EP],-1, D_D[LOC],$A10),0) -> 124 | P10: =IFERROR(O10/N10,"0%") -> 0.6231155779 | Q10: =IFERROR(SUMIFS(D_D[INV],D_D[MT],2,D_D[CAT],TA_25,D_D[EP],-1, D_D[LOC],$A10),0) -> 29 | R10: =IFERROR(SUMIFS(D_D[INV],D_D[MT],2,D_D[CAT],TA_26,D_D[EP],-1, D_D[LOC],$A10),0) -> 1 | S10: =IFERROR(SUMIFS(D_D[INV],D_D[MT],7,D_D[CAT],2,D_D[EP],TA_20, D_D[LOC],$A10),0) -> 2
A11: 307 | B11: Buffalo | C11: =IFERROR(SUMIFS(D_D[INV],D_D[MT],1,D_D[CAT],TA_20,D_D[EP],-1, D_D[LOC],$A11),0) -> 503 | D11: =IFERROR(SUMIFS(D_D[ADP],D_D[MT],1,D_D[CAT],D$1,D_D[EP],-1, D_D[LOC],$A11),0) -> 35.68 | E11: =IFERROR(SUMIFS(D_D[INV],D_D[MT],2,D_D[CAT],TA_21,D_D[EP],-1, D_D[LOC],$A11),0) -> 3578 | F11: =IFERROR(SUMIFS(D_D[BL],D_D[MT],2,D_D[CAT],TA_21,D_D[EP],-1, D_D[LOC],$A11),0) -> 1108 | G11: 0.3096702068 | H11: =IFERROR(SUMIFS(D_D[INV],D_D[MT],2,D_D[CAT],TA_22,D_D[EP],-1, D_D[LOC],$A11),0) -> 1289 | I11: =IFERROR(SUMIFS(D_D[BL],D_D[MT],2,D_D[CAT],TA_22,D_D[EP],-1, D_D[LOC],$A11),0) -> 164 | J11: 0.1272304112 | K11: =IFERROR(SUMIFS(D_D[INV],D_D[MT],2,D_D[CAT],TA_23,D_D[EP],-1, D_D[LOC],$A11),0) -> 48 | L11: =IFERROR(SUMIFS(D_D[BL],D_D[MT],2,D_D[CAT],TA_23,D_D[EP],-1, D_D[LOC],$A11),0) -> 3 | M11: 0.0625 | N11: =IFERROR(SUMIFS(D_D[INV],D_D[MT],2,D_D[CAT],TA_24,D_D[EP],-1, D_D[LOC],$A11),0) -> 215 | O11: =IFERROR(SUMIFS(D_D[BL],D_D[MT],2,D_D[CAT],TA_24,D_D[EP],-1, D_D[LOC],$A11),0) -> 130 | P11: 0.6046511628 | Q11: =IFERROR(SUMIFS(D_D[INV],D_D[MT],2,D_D[CAT],TA_25,D_D[EP],-1, D_D[LOC],$A11),0) -> 50 | R11: =IFERROR(SUMIFS(D_D[INV],D_D[MT],2,D_D[CAT],TA_26,D_D[EP],-1, D_D[LOC],$A11),0) -> 0 | S11: =IFERROR(SUMIFS(D_D[INV],D_D[MT],7,D_D[CAT],2,D_D[EP],TA_20, D_D[LOC],$A11),0) -> 3
A12: 328 | B12: Chicago | C12: =IFERROR(SUMIFS(D_D[INV],D_D[MT],1,D_D[CAT],TA_20,D_D[EP],-1, D_D[LOC],$A12),0) -> 994 | D12: =IFERROR(SUMIFS(D_D[ADP],D_D[MT],1,D_D[CAT],D$1,D_D[EP],-1, D_D[LOC],$A12),0) -> 40.61 | E12: =IFERROR(SUMIFS(D_D[INV],D_D[MT],2,D_D[CAT],TA_21,D_D[EP],-1, D_D[LOC],$A12),0) -> 8256 | F12: =IFERROR(SUMIFS(D_D[BL],D_D[MT],2,D_D[CAT],TA_21,D_D[EP],-1, D_D[LOC],$A12),0) -> 2580 | G12: 0.3125 | H12: =IFERROR(SUMIFS(D_D[INV],D_D[MT],2,D_D[CAT],TA_22,D_D[EP],-1, D_D[LOC],$A12),0) -> 1986 | I12: =IFERROR(SUMIFS(D_D[BL],D_D[MT],2,D_D[CAT],TA_22,D_D[EP],-1, D_D[LOC],$A12),0) -> 268 | J12: 0.1349446123 | K12: =IFERROR(SUMIFS(D_D[INV],D_D[MT],2,D_D[CAT],TA_23,D_D[EP],-1, D_D[LOC],$A12),0) -> 106 | L12: =IFERROR(SUMIFS(D_D[BL],D_D[MT],2,D_D[CAT],TA_23,D_D[EP],-1, D_D[LOC],$A12),0) -> 0 | M12: 0 | N12: =IFERROR(SUMIFS(D_D[INV],D_D[MT],2,D_D[CAT],TA_24,D_D[EP],-1, D_D[LOC],$A12),0) -> 552 | O12: =IFERROR(SUMIFS(D_D[BL],D_D[MT],2,D_D[CAT],TA_24,D_D[EP],-1, D_D[LOC],$A12),0) -> 273 | P12: 0.4945652174 | Q12: =IFERROR(SUMIFS(D_D[INV],D_D[MT],2,D_D[CAT],TA_25,D_D[EP],-1, D_D[LOC],$A12),0) -> 100 | R12: =IFERROR(SUMIFS(D_D[INV],D_D[MT],2,D_D[CAT],TA_26,D_D[EP],-1, D_D[LOC],$A12),0) -> 6 | S12: =IFERROR(SUMIFS(D_D[INV],D_D[MT],7,D_D[CAT],2,D_D[EP],TA_20, D_D[LOC],$A12),0) -> 5
A13: 325 | B13: Cleveland | C13: =IFERROR(SUMIFS(D_D[INV],D_D[MT],1,D_D[CAT],TA_20,D_D[EP],-1, D_D[LOC],$A13),0) -> 1905 | D13: =IFERROR(SUMIFS(D_D[ADP],D_D[MT],1,D_D[CAT],D$1,D_D[EP],-1, D_D[LOC],$A13),0) -> 57.62 | E13: =IFERROR(SUMIFS(D_D[INV],D_D[MT],2,D_D[CAT],TA_21,D_D[EP],-1, D_D[LOC],$A13),0) -> 10201 | F13: =IFERROR(SUMIFS(D_D[BL],D_D[MT],2,D_D[CAT],TA_21,D_D[EP],-1, D_D[LOC],$A13),0) -> 3126 | G13: 0.306440545 | H13: =IFERROR(SUMIFS(D_D[INV],D_D[MT],2,D_D[CAT],TA_22,D_D[EP],-1, D_D[LOC],$A13),0) -> 3403 | I13: =IFERROR(SUMIFS(D_D[BL],D_D[MT],2,D_D[CAT],TA_22,D_D[EP],-1, D_D[LOC],$A13),0) -> 464 | J13: 0.1363502792 | K13: =IFERROR(SUMIFS(D_D[INV],D_D[MT],2,D_D[CAT],TA_23,D_D[EP],-1, D_D[LOC],$A13),0) -> 128 | L13: =IFERROR(SUMIFS(D_D[BL],D_D[MT],2,D_D[CAT],TA_23,D_D[EP],-1, D_D[LOC],$A13),0) -> 6 | M13: 0.046875 | N13: =IFERROR(SUMIFS(D_D[INV],D_D[MT],2,D_D[CAT],TA_24,D_D[EP],-1, D_D[LOC],$A13),0) -> 1528 | O13: =IFERROR(SUMIFS(D_D[BL],D_D[MT],2,D_D[CAT],TA_24,D_D[EP],-1, D_D[LOC],$A13),0) -> 1165 | P13: 0.762434555 | Q13: =IFERROR(SUMIFS(D_D[INV],D_D[MT],2,D_D[CAT],TA_25,D_D[EP],-1, D_D[LOC],$A13),0) -> 112 | R13: =IFERROR(SUMIFS(D_D[INV],D_D[MT],2,D_D[CAT],TA_26,D_D[EP],-1, D_D[LOC],$A13),0) -> 12 | S13: =IFERROR(SUMIFS(D_D[INV],D_D[MT],7,D_D[CAT],2,D_D[EP],TA_20, D_D[LOC],$A13),0) -> 7
A14: 329 | B14: Detroit | C14: =IFERROR(SUMIFS(D_D[INV],D_D[MT],1,D_D[CAT],TA_20,D_D[EP],-1, D_D[LOC],$A14),0) -> 2158 | D14: =IFERROR(SUMIFS(D_D[ADP],D_D[MT],1,D_D[CAT],D$1,D_D[EP],-1, D_D[LOC],$A14),0) -> 52.82 | E14: =IFERROR(SUMIFS(D_D[INV],D_D[MT],2,D_D[CAT],TA_21,D_D[EP],-1, D_D[LOC],$A14),0) -> 6926 | F14: =IFERROR(SUMIFS(D_D[BL],D_D[MT],2,D_D[CAT],TA_21,D_D[EP],-1, D_D[LOC],$A14),0) -> 2107 | G14: 0.3042159977 | H14: =IFERROR(SUMIFS(D_D[INV],D_D[MT],2,D_D[CAT],TA_22,D_D[EP],-1, D_D[LOC],$A14),0) -> 7078 | I14: =IFERROR(SUMIFS(D_D[BL],D_D[MT],2,D_D[CAT],TA_22,D_D[EP],-1, D_D[LOC],$A14),0) -> 1705 | J14: 0.2408872563 | K14: =IFERROR(SUMIFS(D_D[INV],D_D[MT],2,D_D[CAT],TA_23,D_D[EP],-1, D_D[LOC],$A14),0) -> 84 | L14: =IFERROR(SUMIFS(D_D[BL],D_D[MT],2,D_D[CAT],TA_23,D_D[EP],-1, D_D[LOC],$A14),0) -> 7 | M14: 0.08333333333 | N14: =IFERROR(SUMIFS(D_D[INV],D_D[MT],2,D_D[CAT],TA_24,D_D[EP],-1, D_D[LOC],$A14),0) -> 784 | O14: =IFERROR(SUMIFS(D_D[BL],D_D[MT],2,D_D[CAT],TA_24,D_D[EP],-1, D_D[LOC],$A14),0) -> 386 | P14: 0.4923469388 | Q14: =IFERROR(SUMIFS(D_D[INV],D_D[MT],2,D_D[CAT],TA_25,D_D[EP],-1, D_D[LOC],$A14),0) -> 101 | R14: =IFERROR(SUMIFS(D_D[INV],D_D[MT],2,D_D[CAT],TA_26,D_D[EP],-1, D_D[LOC],$A14),0) -> 7 | S14: =IFERROR(SUMIFS(D_D[INV],D_D[MT],7,D_D[CAT],2,D_D[EP],TA_20, D_D[LOC],$A14),0) -> 2
A15: 308 | B15: Hartford | C15: =IFERROR(SUMIFS(D_D[INV],D_D[MT],1,D_D[CAT],TA_20,D_D[EP],-1, D_D[LOC],$A15),0) -> 282 | D15: =IFERROR(SUMIFS(D_D[ADP],D_D[MT],1,D_D[CAT],D$1,D_D[EP],-1, D_D[LOC],$A15),0) -> 38.46 | E15: =IFERROR(SUMIFS(D_D[INV],D_D[MT],2,D_D[CAT],TA_21,D_D[EP],-1, D_D[LOC],$A15),0) -> 2037 | F15: =IFERROR(SUMIFS(D_D[BL],D_D[MT],2,D_D[CAT],TA_21,D_D[EP],-1, D_D[LOC],$A15),0) -> 676 | G15: 0.3318605793 | H15: =IFERROR(SUMIFS(D_D[INV],D_D[MT],2,D_D[CAT],TA_22,D_D[EP],-1, D_D[LOC],$A15),0) -> 756 | I15: =IFERROR(SUMIFS(D_D[BL],D_D[MT],2,D_D[CAT],TA_22,D_D[EP],-1, D_D[LOC],$A15),0) -> 113 | J15: 0.1494708995 | K15: =IFERROR(SUMIFS(D_D[INV],D_D[MT],2,D_D[CAT],TA_23,D_D[EP],-1, D_D[LOC],$A15),0) -> 21 | L15: =IFERROR(SUMIFS(D_D[BL],D_D[MT],2,D_D[CAT],TA_23,D_D[EP],-1, D_D[LOC],$A15),0) -> 1 | M15: 0.04761904762 | N15: =IFERROR(SUMIFS(D_D[INV],D_D[MT],2,D_D[CAT],TA_24,D_D[EP],-1, D_D[LOC],$A15),0) -> 202 | O15: =IFERROR(SUMIFS(D_D[BL],D_D[MT],2,D_D[CAT],TA_24,D_D[EP],-1, D_D[LOC],$A15),0) -> 98 | P15: 0.4851485149 | Q15: =IFERROR(SUMIFS(D_D[INV],D_D[MT],2,D_D[CAT],TA_25,D_D[EP],-1, D_D[LOC],$A15),0) -> 20 | R15: =IFERROR(SUMIFS(D_D[INV],D_D[MT],2,D_D[CAT],TA_26,D_D[EP],-1, D_D[LOC],$A15),0) -> 0 | S15: =IFERROR(SUMIFS(D_D[INV],D_D[MT],7,D_D[CAT],2,D_D[EP],TA_20, D_D[LOC],$A15),0) -> 1
A16: 326 | B16: Indianapolis | C16: =IFERROR(SUMIFS(D_D[INV],D_D[MT],1,D_D[CAT],TA_20,D_D[EP],-1, D_D[LOC],$A16),0) -> 5086 | D16: =IFERROR(SUMIFS(D_D[ADP],D_D[MT],1,D_D[CAT],D$1,D_D[EP],-1, D_D[LOC],$A16),0) -> 46.12 | E16: =IFERROR(SUMIFS(D_D[INV],D_D[MT],2,D_D[CAT],TA_21,D_D[EP],-1, D_D[LOC],$A16),0) -> 6004 | F16: =IFERROR(SUMIFS(D_D[BL],D_D[MT],2,D_D[CAT],TA_21,D_D[EP],-1, D_D[LOC],$A16),0) -> 1805 | G16: 0.3006329114 | H16: =IFERROR(SUMIFS(D_D[INV],D_D[MT],2,D_D[CAT],TA_22,D_D[EP],-1, D_D[LOC],$A16),0) -> 6134 | I16: =IFERROR(SUMIFS(D_D[BL],D_D[MT],2,D_D[CAT],TA_22,D_D[EP],-1, D_D[LOC],$A16),0) -> 543 | J16: 0.08852298663 | K16: =IFERROR(SUMIFS(D_D[INV],D_D[MT],2,D_D[CAT],TA_23,D_D[EP],-1, D_D[LOC],$A16),0) -> 81 | L16: =IFERROR(SUMIFS(D_D[BL],D_D[MT],2,D_D[CAT],TA_23,D_D[EP],-1, D_D[LOC],$A16),0) -> 3 | M16: 0.03703703704 | N16: =IFERROR(SUMIFS(D_D[INV],D_D[MT],2,D_D[CAT],TA_24,D_D[EP],-1, D_D[LOC],$A16),0) -> 367 | O16: =IFERROR(SUMIFS(D_D[BL],D_D[MT],2,D_D[CAT],TA_24,D_D[EP],-1, D_D[LOC],$A16),0) -> 228 | P16: 0.621253406 | Q16: =IFERROR(SUMIFS(D_D[INV],D_D[MT],2,D_D[CAT],TA_25,D_D[EP],-1, D_D[LOC],$A16),0) -> 48 | R16: =IFERROR(SUMIFS(D_D[INV],D_D[MT],2,D_D[CAT],TA_26,D_D[EP],-1, D_D[LOC],$A16),0) -> 11 | S16: =IFERROR(SUMIFS(D_D[INV],D_D[MT],7,D_D[CAT],2,D_D[EP],TA_20, D_D[LOC],$A16),0) -> 0
A17: 373 | B17: Manchester | C17: =IFERROR(SUMIFS(D_D[INV],D_D[MT],1,D_D[CAT],TA_20,D_D[EP],-1, D_D[LOC],$A17),0) -> 184 | D17: =IFERROR(SUMIFS(D_D[ADP],D_D[MT],1,D_D[CAT],D$1,D_D[EP],-1, D_D[LOC],$A17),0) -> 68.26 | E17: =IFERROR(SUMIFS(D_D[INV],D_D[MT],2,D_D[CAT],TA_21,D_D[EP],-1, D_D[LOC],$A17),0) -> 1137 | F17: =IFERROR(SUMIFS(D_D[BL],D_D[MT],2,D_D[CAT],TA_21,D_D[EP],-1, D_D[LOC],$A17),0) -> 358 | G17: 0.3148636763 | H17: =IFERROR(SUMIFS(D_D[INV],D_D[MT],2,D_D[CAT],TA_22,D_D[EP],-1, D_D[LOC],$A17),0) -> 431 | I17: =IFERROR(SUMIFS(D_D[BL],D_D[MT],2,D_D[CAT],TA_22,D_D[EP],-1, D_D[LOC],$A17),0) -> 76 | J17: 0.1763341067 | K17: =IFERROR(SUMIFS(D_D[INV],D_D[MT],2,D_D[CAT],TA_23,D_D[EP],-1, D_D[LOC],$A17),0) -> 18 | L17: =IFERROR(SUMIFS(D_D[BL],D_D[MT],2,D_D[CAT],TA_23,D_D[EP],-1, D_D[LOC],$A17),0) -> 0 | M17: 0 | N17: =IFERROR(SUMIFS(D_D[INV],D_D[MT],2,D_D[CAT],TA_24,D_D[EP],-1, D_D[LOC],$A17),0) -> 72 | O17: =IFERROR(SUMIFS(D_D[BL],D_D[MT],2,D_D[CAT],TA_24,D_D[EP],-1, D_D[LOC],$A17),0) -> 48 | P17: 0.6666666667 | Q17: =IFERROR(SUMIFS(D_D[INV],D_D[MT],2,D_D[CAT],TA_25,D_D[EP],-1, D_D[LOC],$A17),0) -> 12 | R17: =IFERROR(SUMIFS(D_D[INV],D_D[MT],2,D_D[CAT],TA_26,D_D[EP],-1, D_D[LOC],$A17),0) -> 1 | S17: =IFERROR(SUMIFS(D_D[INV],D_D[MT],7,D_D[CAT],2,D_D[EP],TA_20, D_D[LOC],$A17),0) -> 0
A18: 330 | B18: Milwaukee | C18: =IFERROR(SUMIFS(D_D[INV],D_D[MT],1,D_D[CAT],TA_20,D_D[EP],-1, D_D[LOC],$A18),0) -> 4941 | D18: =IFERROR(SUMIFS(D_D[ADP],D_D[MT],1,D_D[CAT],D$1,D_D[EP],-1, D_D[LOC],$A18),0) -> 55.62 | E18: =IFERROR(SUMIFS(D_D[INV],D_D[MT],2,D_D[CAT],TA_21,D_D[EP],-1, D_D[LOC],$A18),0) -> 6846 | F18: =IFERROR(SUMIFS(D_D[BL],D_D[MT],2,D_D[CAT],TA_21,D_D[EP],-1, D_D[LOC],$A18),0) -> 2253 | G18: 0.3290972831 | H18: =IFERROR(SUMIFS(D_D[INV],D_D[MT],2,D_D[CAT],TA_22,D_D[EP],-1, D_D[LOC],$A18),0) -> 15353 | I18: =IFERROR(SUMIFS(D_D[BL],D_D[MT],2,D_D[CAT],TA_22,D_D[EP],-1, D_D[LOC],$A18),0) -> 5625 | J18: 0.3663779066 | K18: =IFERROR(SUMIFS(D_D[INV],D_D[MT],2,D_D[CAT],TA_23,D_D[EP],-1, D_D[LOC],$A18),0) -> 182 | L18: =IFERROR(SUMIFS(D_D[BL],D_D[MT],2,D_D[CAT],TA_23,D_D[EP],-1, D_D[LOC],$A18),0) -> 6 | M18: 0.03296703297 | N18: =IFERROR(SUMIFS(D_D[INV],D_D[MT],2,D_D[CAT],TA_24,D_D[EP],-1, D_D[LOC],$A18),0) -> 1087 | O18: =IFERROR(SUMIFS(D_D[BL],D_D[MT],2,D_D[CAT],TA_24,D_D[EP],-1, D_D[LOC],$A18),0) -> 682 | P18: 0.6274149034 | Q18: =IFERROR(SUMIFS(D_D[INV],D_D[MT],2,D_D[CAT],TA_25,D_D[EP],-1, D_D[LOC],$A18),0) -> 746 | R18: =IFERROR(SUMIFS(D_D[INV],D_D[MT],2,D_D[CAT],TA_26,D_D[EP],-1, D_D[LOC],$A18),0) -> 0 | S18: =IFERROR(SUMIFS(D_D[INV],D_D[MT],7,D_D[CAT],2,D_D[EP],TA_20, D_D[LOC],$A18),0) -> 1
A19: 306 | B19: New York | C19: =IFERROR(SUMIFS(D_D[INV],D_D[MT],1,D_D[CAT],TA_20,D_D[EP],-1, D_D[LOC],$A19),0) -> 729 | D19: =IFERROR(SUMIFS(D_D[ADP],D_D[MT],1,D_D[CAT],D$1,D_D[EP],-1, D_D[LOC],$A19),0) -> 44.39 | E19: =IFERROR(SUMIFS(D_D[INV],D_D[MT],2,D_D[CAT],TA_21,D_D[EP],-1, D_D[LOC],$A19),0) -> 5404 | F19: =IFERROR(SUMIFS(D_D[BL],D_D[MT],2,D_D[CAT],TA_21,D_D[EP],-1, D_D[LOC],$A19),0) -> 1727 | G19: 0.3195780903 | H19: =IFERROR(SUMIFS(D_D[INV],D_D[MT],2,D_D[CAT],TA_22,D_D[EP],-1, D_D[LOC],$A19),0) -> 1785 | I19: =IFERROR(SUMIFS(D_D[BL],D_D[MT],2,D_D[CAT],TA_22,D_D[EP],-1, D_D[LOC],$A19),0) -> 255 | J19: 0.1428571429 | K19: =IFERROR(SUMIFS(D_D[INV],D_D[MT],2,D_D[CAT],TA_23,D_D[EP],-1, D_D[LOC],$A19),0) -> 67 | L19: =IFERROR(SUMIFS(D_D[BL],D_D[MT],2,D_D[CAT],TA_23,D_D[EP],-1, D_D[LOC],$A19),0) -> 5 | M19: 0.07462686567 | N19: =IFERROR(SUMIFS(D_D[INV],D_D[MT],2,D_D[CAT],TA_24,D_D[EP],-1, D_D[LOC],$A19),0) -> 380 | O19: =IFERROR(SUMIFS(D_D[BL],D_D[MT],2,D_D[CAT],TA_24,D_D[EP],-1, D_D[LOC],$A19),0) -> 155 | P19: 0.4078947368 | Q19: =IFERROR(SUMIFS(D_D[INV],D_D[MT],2,D_D[CAT],TA_25,D_D[EP],-1, D_D[LOC],$A19),0) -> 66 | R19: =IFERROR(SUMIFS(D_D[INV],D_D[MT],2,D_D[CAT],TA_26,D_D[EP],-1, D_D[LOC],$A19),0) -> 7 | S19: =IFERROR(SUMIFS(D_D[INV],D_D[MT],7,D_D[CAT],2,D_D[EP],TA_20, D_D[LOC],$A19),0) -> 1
A20: 309 | B20: Newark | C20: =IFERROR(SUMIFS(D_D[INV],D_D[MT],1,D_D[CAT],TA_20,D_D[EP],-1, D_D[LOC],$A20),0) -> 409 | D20: =IFERROR(SUMIFS(D_D[ADP],D_D[MT],1,D_D[CAT],D$1,D_D[EP],-1, D_D[LOC],$A20),0) -> 38.89 | E20: =IFERROR(SUMIFS(D_D[INV],D_D[MT],2,D_D[CAT],TA_21,D_D[EP],-1, D_D[LOC],$A20),0) -> 3414 | F20: =IFERROR(SUMIFS(D_D[BL],D_D[MT],2,D_D[CAT],TA_21,D_D[EP],-1, D_D[LOC],$A20),0) -> 1032 | G20: 0.30228471 | H20: =IFERROR(SUMIFS(D_D[INV],D_D[MT],2,D_D[CAT],TA_22,D_D[EP],-1, D_D[LOC],$A20),0) -> 985 | I20: =IFERROR(SUMIFS(D_D[BL],D_D[MT],2,D_D[CAT],TA_22,D_D[EP],-1, D_D[LOC],$A20),0) -> 134 | J20: 0.1360406091 | K20: =IFERROR(SUMIFS(D_D[INV],D_D[MT],2,D_D[CAT],TA_23,D_D[EP],-1, D_D[LOC],$A20),0) -> 37 | L20: =IFERROR(SUMIFS(D_D[BL],D_D[MT],2,D_D[CAT],TA_23,D_D[EP],-1, D_D[LOC],$A20),0) -> 0 | M20: 0 | N20: =IFERROR(SUMIFS(D_D[INV],D_D[MT],2,D_D[CAT],TA_24,D_D[EP],-1, D_D[LOC],$A20),0) -> 232 | O20: =IFERROR(SUMIFS(D_D[BL],D_D[MT],2,D_D[CAT],TA_24,D_D[EP],-1, D_D[LOC],$A20),0) -> 99 | P20: 0.4267241379 | Q20: =IFERROR(SUMIFS(D_D[INV],D_D[MT],2,D_D[CAT],TA_25,D_D[EP],-1, D_D[LOC],$A20),0) -> 23 | R20: =IFERROR(SUMIFS(D_D[INV],D_D[MT],2,D_D[CAT],TA_26,D_D[EP],-1, D_D[LOC],$A20),0) -> 7 | S20: =IFERROR(SUMIFS(D_D[INV],D_D[MT],7,D_D[CAT],2,D_D[EP],TA_20, D_D[LOC],$A20),0) -> 3
A21: 310 | B21: Philadelphia | C21: =IFERROR(SUMIFS(D_D[INV],D_D[MT],1,D_D[CAT],TA_20,D_D[EP],-1, D_D[LOC],$A21),0) -> 2846 | D21: =IFERROR(SUMIFS(D_D[ADP],D_D[MT],1,D_D[CAT],D$1,D_D[EP],-1, D_D[LOC],$A21),0) -> 39.46 | E21: =IFERROR(SUMIFS(D_D[INV],D_D[MT],2,D_D[CAT],TA_21,D_D[EP],-1, D_D[LOC],$A21),0) -> 9369 | F21: =IFERROR(SUMIFS(D_D[BL],D_D[MT],2,D_D[CAT],TA_21,D_D[EP],-1, D_D[LOC],$A21),0) -> 2943 | G21: 0.3141210375 | H21: =IFERROR(SUMIFS(D_D[INV],D_D[MT],2,D_D[CAT],TA_22,D_D[EP],-1, D_D[LOC],$A21),0) -> 8017 | I21: =IFERROR(SUMIFS(D_D[BL],D_D[MT],2,D_D[CAT],TA_22,D_D[EP],-1, D_D[LOC],$A21),0) -> 4032 | J21: 0.502931271 | K21: =IFERROR(SUMIFS(D_D[INV],D_D[MT],2,D_D[CAT],TA_23,D_D[EP],-1, D_D[LOC],$A21),0) -> 141 | L21: =IFERROR(SUMIFS(D_D[BL],D_D[MT],2,D_D[CAT],TA_23,D_D[EP],-1, D_D[LOC],$A21),0) -> 5 | M21: 0.03546099291 | N21: =IFERROR(SUMIFS(D_D[INV],D_D[MT],2,D_D[CAT],TA_24,D_D[EP],-1, D_D[LOC],$A21),0) -> 1397 | O21: =IFERROR(SUMIFS(D_D[BL],D_D[MT],2,D_D[CAT],TA_24,D_D[EP],-1, D_D[LOC],$A21),0) -> 974 | P21: 0.6972083035 | Q21: =IFERROR(SUMIFS(D_D[INV],D_D[MT],2,D_D[CAT],TA_25,D_D[EP],-1, D_D[LOC],$A21),0) -> 898 | R21: =IFERROR(SUMIFS(D_D[INV],D_D[MT],2,D_D[CAT],TA_26,D_D[EP],-1, D_D[LOC],$A21),0) -> 0 | S21: =IFERROR(SUMIFS(D_D[INV],D_D[MT],7,D_D[CAT],2,D_D[EP],TA_20, D_D[LOC],$A21),0) -> 8
A22: 311 | B22: Pittsburgh | C22: =IFERROR(SUMIFS(D_D[INV],D_D[MT],1,D_D[CAT],TA_20,D_D[EP],-1, D_D[LOC],$A22),0) -> 677 | D22: =IFERROR(SUMIFS(D_D[ADP],D_D[MT],1,D_D[CAT],D$1,D_D[EP],-1, D_D[LOC],$A22),0) -> 37.24 | E22: =IFERROR(SUMIFS(D_D[INV],D_D[MT],2,D_D[CAT],TA_21,D_D[EP],-1, D_D[LOC],$A22),0) -> 6206 | F22: =IFERROR(SUMIFS(D_D[BL],D_D[MT],2,D_D[CAT],TA_21,D_D[EP],-1, D_D[LOC],$A22),0) -> 2272 | G22: 0.3660973252 | H22: =IFERROR(SUMIFS(D_D[INV],D_D[MT],2,D_D[CAT],TA_22,D_D[EP],-1, D_D[LOC],$A22),0) -> 1633 | I22: =IFERROR(SUMIFS(D_D[BL],D_D[MT],2,D_D[CAT],TA_22,D_D[EP],-1, D_D[LOC],$A22),0) -> 178 | J22: 0.1090018371 | K22: =IFERROR(SUMIFS(D_D[INV],D_D[MT],2,D_D[CAT],TA_23,D_D[EP],-1, D_D[LOC],$A22),0) -> 59 | L22: =IFERROR(SUMIFS(D_D[BL],D_D[MT],2,D_D[CAT],TA_23,D_D[EP],-1, D_D[LOC],$A22),0) -> 3 | M22: 0.05084745763 | N22: =IFERROR(SUMIFS(D_D[INV],D_D[MT],2,D_D[CAT],TA_24,D_D[EP],-1, D_D[LOC],$A22),0) -> 366 | O22: =IFERROR(SUMIFS(D_D[BL],D_D[MT],2,D_D[CAT],TA_24,D_D[EP],-1, D_D[LOC],$A22),0) -> 196 | P22: 0.5355191257 | Q22: =IFERROR(SUMIFS(D_D[INV],D_D[MT],2,D_D[CAT],TA_25,D_D[EP],-1, D_D[LOC],$A22),0) -> 53 | R22: =IFERROR(SUMIFS(D_D[INV],D_D[MT],2,D_D[CAT],TA_26,D_D[EP],-1, D_D[LOC],$A22),0) -> 0 | S22: =IFERROR(SUMIFS(D_D[INV],D_D[MT],7,D_D[CAT],2,D_D[EP],TA_20, D_D[LOC],$A22),0) -> 163
A23: 304 | B23: Providence | C23: =IFERROR(SUMIFS(D_D[INV],D_D[MT],1,D_D[CAT],TA_20,D_D[EP],-1, D_D[LOC],$A23),0) -> 577 | D23: =IFERROR(SUMIFS(D_D[ADP],D_D[MT],1,D_D[CAT],D$1,D_D[EP],-1, D_D[LOC],$A23),0) -> 43.28 | E23: =IFERROR(SUMIFS(D_D[INV],D_D[MT],2,D_D[CAT],TA_21,D_D[EP],-1, D_D[LOC],$A23),0) -> 2330 | F23: =IFERROR(SUMIFS(D_D[BL],D_D[MT],2,D_D[CAT],TA_21,D_D[EP],-1, D_D[LOC],$A23),0) -> 607 | G23: 0.2605150215 | H23: =IFERROR(SUMIFS(D_D[INV],D_D[MT],2,D_D[CAT],TA_22,D_D[EP],-1, D_D[LOC],$A23),0) -> 1176 | I23: =IFERROR(SUMIFS(D_D[BL],D_D[MT],2,D_D[CAT],TA_22,D_D[EP],-1, D_D[LOC],$A23),0) -> 210 | J23: 0.1785714286 | K23: =IFERROR(SUMIFS(D_D[INV],D_D[MT],2,D_D[CAT],TA_23,D_D[EP],-1, D_D[LOC],$A23),0) -> 30 | L23: =IFERROR(SUMIFS(D_D[BL],D_D[MT],2,D_D[CAT],TA_23,D_D[EP],-1, D_D[LOC],$A23),0) -> 0 | M23: 0 | N23: =IFERROR(SUMIFS(D_D[INV],D_D[MT],2,D_D[CAT],TA_24,D_D[EP],-1, D_D[LOC],$A23),0) -> 194 | O23: =IFERROR(SUMIFS(D_D[BL],D_D[MT],2,D_D[CAT],TA_24,D_D[EP],-1, D_D[LOC],$A23),0) -> 112 | P23: 0.5773195876 | Q23: =IFERROR(SUMIFS(D_D[INV],D_D[MT],2,D_D[CAT],TA_25,D_D[EP],-1, D_D[LOC],$A23),0) -> 18 | R23: =IFERROR(SUMIFS(D_D[INV],D_D[MT],2,D_D[CAT],TA_26,D_D[EP],-1, D_D[LOC],$A23),0) -> 2 | S23: =IFERROR(SUMIFS(D_D[INV],D_D[MT],7,D_D[CAT],2,D_D[EP],TA_20, D_D[LOC],$A23),0) -> 3
A24: 376 | B24: St. Louis RMC | C24: =IFERROR(SUMIFS(D_D[INV],D_D[MT],1,D_D[CAT],TA_20,D_D[EP],-1, D_D[LOC],$A24),0) -> 2 | D24: =IFERROR(SUMIFS(D_D[ADP],D_D[MT],1,D_D[CAT],D$1,D_D[EP],-1, D_D[LOC],$A24),0) -> 241 | E24: =IFERROR(SUMIFS(D_D[INV],D_D[MT],2,D_D[CAT],TA_21,D_D[EP],-1, D_D[LOC],$A24),0) -> 203 | F24: =IFERROR(SUMIFS(D_D[BL],D_D[MT],2,D_D[CAT],TA_21,D_D[EP],-1, D_D[LOC],$A24),0) -> 202 | G24: 0.9950738916 | H24: =IFERROR(SUMIFS(D_D[INV],D_D[MT],2,D_D[CAT],TA_22,D_D[EP],-1, D_D[LOC],$A24),0) -> 2 | I24: =IFERROR(SUMIFS(D_D[BL],D_D[MT],2,D_D[CAT],TA_22,D_D[EP],-1, D_D[LOC],$A24),0) -> 1 | J24: 0.5 | K24: =IFERROR(SUMIFS(D_D[INV],D_D[MT],2,D_D[CAT],TA_23,D_D[EP],-1, D_D[LOC],$A24),0) -> 0 | L24: =IFERROR(SUMIFS(D_D[BL],D_D[MT],2,D_D[CAT],TA_23,D_D[EP],-1, D_D[LOC],$A24),0) -> 0 | M24: 0% | N24: =IFERROR(SUMIFS(D_D[INV],D_D[MT],2,D_D[CAT],TA_24,D_D[EP],-1, D_D[LOC],$A24),0) -> 17358 | O24: =IFERROR(SUMIFS(D_D[BL],D_D[MT],2,D_D[CAT],TA_24,D_D[EP],-1, D_D[LOC],$A24),0) -> 961 | P24: 0.05536352114 | Q24: =IFERROR(SUMIFS(D_D[INV],D_D[MT],2,D_D[CAT],TA_25,D_D[EP],-1, D_D[LOC],$A24),0) -> 1 | R24: =IFERROR(SUMIFS(D_D[INV],D_D[MT],2,D_D[CAT],TA_26,D_D[EP],-1, D_D[LOC],$A24),0) -> 0 | S24: =IFERROR(SUMIFS(D_D[INV],D_D[MT],7,D_D[CAT],2,D_D[EP],TA_20, D_D[LOC],$A24),0) -> 0
A25: 331 | B25: St. Louis | C25: =IFERROR(SUMIFS(D_D[INV],D_D[MT],1,D_D[CAT],TA_20,D_D[EP],-1, D_D[LOC],$A25),0) -> 1163 | D25: =IFERROR(SUMIFS(D_D[ADP],D_D[MT],1,D_D[CAT],D$1,D_D[EP],-1, D_D[LOC],$A25),0) -> 55.59 | E25: =IFERROR(SUMIFS(D_D[INV],D_D[MT],2,D_D[CAT],TA_21,D_D[EP],-1, D_D[LOC],$A25),0) -> 6862 | F25: =IFERROR(SUMIFS(D_D[BL],D_D[MT],2,D_D[CAT],TA_21,D_D[EP],-1, D_D[LOC],$A25),0) -> 2096 | G25: 0.305450306 | H25: =IFERROR(SUMIFS(D_D[INV],D_D[MT],2,D_D[CAT],TA_22,D_D[EP],-1, D_D[LOC],$A25),0) -> 2071 | I25: =IFERROR(SUMIFS(D_D[BL],D_D[MT],2,D_D[CAT],TA_22,D_D[EP],-1, D_D[LOC],$A25),0) -> 288 | J25: 0.1390632545 | K25: =IFERROR(SUMIFS(D_D[INV],D_D[MT],2,D_D[CAT],TA_23,D_D[EP],-1, D_D[LOC],$A25),0) -> 101 | L25: =IFERROR(SUMIFS(D_D[BL],D_D[MT],2,D_D[CAT],TA_23,D_D[EP],-1, D_D[LOC],$A25),0) -> 3 | M25: 0.0297029703 | N25: =IFERROR(SUMIFS(D_D[INV],D_D[MT],2,D_D[CAT],TA_24,D_D[EP],-1, D_D[LOC],$A25),0) -> 1025 | O25: =IFERROR(SUMIFS(D_D[BL],D_D[MT],2,D_D[CAT],TA_24,D_D[EP],-1, D_D[LOC],$A25),0) -> 765 | P25: 0.7463414634 | Q25: =IFERROR(SUMIFS(D_D[INV],D_D[MT],2,D_D[CAT],TA_25,D_D[EP],-1, D_D[LOC],$A25),0) -> 79 | R25: =IFERROR(SUMIFS(D_D[INV],D_D[MT],2,D_D[CAT],TA_26,D_D[EP],-1, D_D[LOC],$A25),0) -> 5 | S25: =IFERROR(SUMIFS(D_D[INV],D_D[MT],7,D_D[CAT],2,D_D[EP],TA_20, D_D[LOC],$A25),0) -> 5
A26: 402 | B26: Togus | C26: =IFERROR(SUMIFS(D_D[INV],D_D[MT],1,D_D[CAT],TA_20,D_D[EP],-1, D_D[LOC],$A26),0) -> 341 | D26: =IFERROR(SUMIFS(D_D[ADP],D_D[MT],1,D_D[CAT],D$1,D_D[EP],-1, D_D[LOC],$A26),0) -> 62.91 | E26: =IFERROR(SUMIFS(D_D[INV],D_D[MT],2,D_D[CAT],TA_21,D_D[EP],-1, D_D[LOC],$A26),0) -> 1635 | F26: =IFERROR(SUMIFS(D_D[BL],D_D[MT],2,D_D[CAT],TA_21,D_D[EP],-1, D_D[LOC],$A26),0) -> 542 | G26: 0.3314984709 | H26: =IFERROR(SUMIFS(D_D[INV],D_D[MT],2,D_D[CAT],TA_22,D_D[EP],-1, D_D[LOC],$A26),0) -> 702 | I26: =IFERROR(SUMIFS(D_D[BL],D_D[MT],2,D_D[CAT],TA_22,D_D[EP],-1, D_D[LOC],$A26),0) -> 119 | J26: 0.1695156695 | K26: =IFERROR(SUMIFS(D_D[INV],D_D[MT],2,D_D[CAT],TA_23,D_D[EP],-1, D_D[LOC],$A26),0) -> 25 | L26: =IFERROR(SUMIFS(D_D[BL],D_D[MT],2,D_D[CAT],TA_23,D_D[EP],-1, D_D[LOC],$A26),0) -> 1 | M26: 0.04 | N26: =IFERROR(SUMIFS(D_D[INV],D_D[MT],2,D_D[CAT],TA_24,D_D[EP],-1, D_D[LOC],$A26),0) -> 704 | O26: =IFERROR(SUMIFS(D_D[BL],D_D[MT],2,D_D[CAT],TA_24,D_D[EP],-1, D_D[LOC],$A26),0) -> 599 | P26: 0.8508522727 | Q26: =IFERROR(SUMIFS(D_D[INV],D_D[MT],2,D_D[CAT],TA_25,D_D[EP],-1, D_D[LOC],$A26),0) -> 311 | R26: =IFERROR(SUMIFS(D_D[INV],D_D[MT],2,D_D[CAT],TA_26,D_D[EP],-1, D_D[LOC],$A26),0) -> 1091 | S26: =IFERROR(SUMIFS(D_D[INV],D_D[MT],7,D_D[CAT],2,D_D[EP],TA_20, D_D[LOC],$A26),0) -> 0
A27: 372 | B27: Washington | C27: =IFERROR(SUMIFS(D_D[INV],D_D[MT],1,D_D[CAT],TA_20,D_D[EP],-1, D_D[LOC],$A27),0) -> 547 | D27: =IFERROR(SUMIFS(D_D[ADP],D_D[MT],1,D_D[CAT],D$1,D_D[EP],-1, D_D[LOC],$A27),0) -> 2436.96 | E27: =IFERROR(SUMIFS(D_D[INV],D_D[MT],2,D_D[CAT],TA_21,D_D[EP],-1, D_D[LOC],$A27),0) -> 217 | F27: =IFERROR(SUMIFS(D_D[BL],D_D[MT],2,D_D[CAT],TA_21,D_D[EP],-1, D_D[LOC],$A27),0) -> 55 | G27: 0.2534562212 | H27: =IFERROR(SUMIFS(D_D[INV],D_D[MT],2,D_D[CAT],TA_22,D_D[EP],-1, D_D[LOC],$A27),0) -> 594 | I27: =IFERROR(SUMIFS(D_D[BL],D_D[MT],2,D_D[CAT],TA_22,D_D[EP],-1, D_D[LOC],$A27),0) -> 14 | J27: 0.02356902357 | K27: =IFERROR(SUMIFS(D_D[INV],D_D[MT],2,D_D[CAT],TA_23,D_D[EP],-1, D_D[LOC],$A27),0) -> 4 | L27: =IFERROR(SUMIFS(D_D[BL],D_D[MT],2,D_D[CAT],TA_23,D_D[EP],-1, D_D[LOC],$A27),0) -> 0 | M27: 0 | N27: =IFERROR(SUMIFS(D_D[INV],D_D[MT],2,D_D[CAT],TA_24,D_D[EP],-1, D_D[LOC],$A27),0) -> 47 | O27: =IFERROR(SUMIFS(D_D[BL],D_D[MT],2,D_D[CAT],TA_24,D_D[EP],-1, D_D[LOC],$A27),0) -> 9 | P27: 0.1914893617 | Q27: =IFERROR(SUMIFS(D_D[INV],D_D[MT],2,D_D[CAT],TA_25,D_D[EP],-1, D_D[LOC],$A27),0) -> 1 | R27: =IFERROR(SUMIFS(D_D[INV],D_D[MT],2,D_D[CAT],TA_26,D_D[EP],-1, D_D[LOC],$A27),0) -> 0 | S27: =IFERROR(SUMIFS(D_D[INV],D_D[MT],7,D_D[CAT],2,D_D[EP],TA_20, D_D[LOC],$A27),0) -> 0
A28: 405 | B28: White River Junction | C28: =IFERROR(SUMIFS(D_D[INV],D_D[MT],1,D_D[CAT],TA_20,D_D[EP],-1, D_D[LOC],$A28),0) -> 61 | D28: =IFERROR(SUMIFS(D_D[ADP],D_D[MT],1,D_D[CAT],D$1,D_D[EP],-1, D_D[LOC],$A28),0) -> 36.1 | E28: =IFERROR(SUMIFS(D_D[INV],D_D[MT],2,D_D[CAT],TA_21,D_D[EP],-1, D_D[LOC],$A28),0) -> 397 | F28: =IFERROR(SUMIFS(D_D[BL],D_D[MT],2,D_D[CAT],TA_21,D_D[EP],-1, D_D[LOC],$A28),0) -> 129 | G28: 0.3249370277 | H28: =IFERROR(SUMIFS(D_D[INV],D_D[MT],2,D_D[CAT],TA_22,D_D[EP],-1, D_D[LOC],$A28),0) -> 177 | I28: =IFERROR(SUMIFS(D_D[BL],D_D[MT],2,D_D[CAT],TA_22,D_D[EP],-1, D_D[LOC],$A28),0) -> 25 | J28: 0.1412429379 | K28: =IFERROR(SUMIFS(D_D[INV],D_D[MT],2,D_D[CAT],TA_23,D_D[EP],-1, D_D[LOC],$A28),0) -> 3 | L28: =IFERROR(SUMIFS(D_D[BL],D_D[MT],2,D_D[CAT],TA_23,D_D[EP],-1, D_D[LOC],$A28),0) -> 0 | M28: 0 | N28: =IFERROR(SUMIFS(D_D[INV],D_D[MT],2,D_D[CAT],TA_24,D_D[EP],-1, D_D[LOC],$A28),0) -> 27 | O28: =IFERROR(SUMIFS(D_D[BL],D_D[MT],2,D_D[CAT],TA_24,D_D[EP],-1, D_D[LOC],$A28),0) -> 17 | P28: 0.6296296296 | Q28: =IFERROR(SUMIFS(D_D[INV],D_D[MT],2,D_D[CAT],TA_25,D_D[EP],-1, D_D[LOC],$A28),0) -> 3 | R28: =IFERROR(SUMIFS(D_D[INV],D_D[MT],2,D_D[CAT],TA_26,D_D[EP],-1, D_D[LOC],$A28),0) -> 2 | S28: =IFERROR(SUMIFS(D_D[INV],D_D[MT],7,D_D[CAT],2,D_D[EP],TA_20, D_D[LOC],$A28),0) -> 0
A29: 460 | B29: Wilmington | C29: =IFERROR(SUMIFS(D_D[INV],D_D[MT],1,D_D[CAT],TA_20,D_D[EP],-1, D_D[LOC],$A29),0) -> 123 | D29: =IFERROR(SUMIFS(D_D[ADP],D_D[MT],1,D_D[CAT],D$1,D_D[EP],-1, D_D[LOC],$A29),0) -> 28.62 | E29: =IFERROR(SUMIFS(D_D[INV],D_D[MT],2,D_D[CAT],TA_21,D_D[EP],-1, D_D[LOC],$A29),0) -> 981 | F29: =IFERROR(SUMIFS(D_D[BL],D_D[MT],2,D_D[CAT],TA_21,D_D[EP],-1, D_D[LOC],$A29),0) -> 260 | G29: 0.2650356779 | H29: =IFERROR(SUMIFS(D_D[INV],D_D[MT],2,D_D[CAT],TA_22,D_D[EP],-1, D_D[LOC],$A29),0) -> 276 | I29: =IFERROR(SUMIFS(D_D[BL],D_D[MT],2,D_D[CAT],TA_22,D_D[EP],-1, D_D[LOC],$A29),0) -> 22 | J29: 0.07971014493 | K29: =IFERROR(SUMIFS(D_D[INV],D_D[MT],2,D_D[CAT],TA_23,D_D[EP],-1, D_D[LOC],$A29),0) -> 14 | L29: =IFERROR(SUMIFS(D_D[BL],D_D[MT],2,D_D[CAT],TA_23,D_D[EP],-1, D_D[LOC],$A29),0) -> 1 | M29: 0.07142857143 | N29: =IFERROR(SUMIFS(D_D[INV],D_D[MT],2,D_D[CAT],TA_24,D_D[EP],-1, D_D[LOC],$A29),0) -> 45 | O29: =IFERROR(SUMIFS(D_D[BL],D_D[MT],2,D_D[CAT],TA_24,D_D[EP],-1, D_D[LOC],$A29),0) -> 30 | P29: 0.6666666667 | Q29: =IFERROR(SUMIFS(D_D[INV],D_D[MT],2,D_D[CAT],TA_25,D_D[EP],-1, D_D[LOC],$A29),0) -> 8 | R29: =IFERROR(SUMIFS(D_D[INV],D_D[MT],2,D_D[CAT],TA_26,D_D[EP],-1, D_D[LOC],$A29),0) -> 1 | S29: =IFERROR(SUMIFS(D_D[INV],D_D[MT],7,D_D[CAT],2,D_D[EP],TA_20, D_D[LOC],$A29),0) -> 0
A30: 393 | B30: Southeast | C30: =IFERROR(SUMIFS(D_D[INV],D_D[MT],1,D_D[CAT],TA_20,D_D[EP],-1, D_D[LOC],$A30),0) -> 25293 | D30: =IFERROR(SUMIFS(D_D[ADP],D_D[MT],1,D_D[CAT],D$1,D_D[EP],-1, D_D[LOC],$A30),0) -> 46.97 | E30: =IFERROR(SUMIFS(D_D[INV],D_D[MT],2,D_D[CAT],TA_21,D_D[EP],-1, D_D[LOC],$A30),0) -> 135124 | F30: =IFERROR(SUMIFS(D_D[BL],D_D[MT],2,D_D[CAT],TA_21,D_D[EP],-1, D_D[LOC],$A30),0) -> 37754 | G30: 0.2794026228 | H30: =IFERROR(SUMIFS(D_D[INV],D_D[MT],2,D_D[CAT],TA_22,D_D[EP],-1, D_D[LOC],$A30),0) -> 54577 | I30: =IFERROR(SUMIFS(D_D[BL],D_D[MT],2,D_D[CAT],TA_22,D_D[EP],-1, D_D[LOC],$A30),0) -> 8899 | J30: 0.1630540338 | K30: =IFERROR(SUMIFS(D_D[INV],D_D[MT],2,D_D[CAT],TA_23,D_D[EP],-1, D_D[LOC],$A30),0) -> 1841 | L30: =IFERROR(SUMIFS(D_D[BL],D_D[MT],2,D_D[CAT],TA_23,D_D[EP],-1, D_D[LOC],$A30),0) -> 229 | M30: 0.1243889191 | N30: =IFERROR(SUMIFS(D_D[INV],D_D[MT],2,D_D[CAT],TA_24,D_D[EP],-1, D_D[LOC],$A30),0) -> 13831 | O30: =IFERROR(SUMIFS(D_D[BL],D_D[MT],2,D_D[CAT],TA_24,D_D[EP],-1, D_D[LOC],$A30),0) -> 7224 | P30: 0.5223049671 | Q30: =IFERROR(SUMIFS(D_D[INV],D_D[MT],2,D_D[CAT],TA_25,D_D[EP],-1, D_D[LOC],$A30),0) -> 1194 | R30: =IFERROR(SUMIFS(D_D[INV],D_D[MT],2,D_D[CAT],TA_26,D_D[EP],-1, D_D[LOC],$A30),0) -> 495 | S30: =IFERROR(SUMIFS(D_D[INV],D_D[MT],7,D_D[CAT],2,D_D[EP],TA_20, D_D[LOC],$A30),0) -> 551
A31: 316 | B31: Atlanta | C31: =IFERROR(SUMIFS(D_D[INV],D_D[MT],1,D_D[CAT],TA_20,D_D[EP],-1, D_D[LOC],$A31),0) -> 2246 | D31: =IFERROR(SUMIFS(D_D[ADP],D_D[MT],1,D_D[CAT],D$1,D_D[EP],-1, D_D[LOC],$A31),0) -> 46.2 | E31: =IFERROR(SUMIFS(D_D[INV],D_D[MT],2,D_D[CAT],TA_21,D_D[EP],-1, D_D[LOC],$A31),0) -> 18700 | F31: =IFERROR(SUMIFS(D_D[BL],D_D[MT],2,D_D[CAT],TA_21,D_D[EP],-1, D_D[LOC],$A31),0) -> 4914 | G31: 0.2627807487 | H31: =IFERROR(SUMIFS(D_D[INV],D_D[MT],2,D_D[CAT],TA_22,D_D[EP],-1, D_D[LOC],$A31),0) -> 4249 | I31: =IFERROR(SUMIFS(D_D[BL],D_D[MT],2,D_D[CAT],TA_22,D_D[EP],-1, D_D[LOC],$A31),0) -> 531 | J31: 0.1249705813 | K31: =IFERROR(SUMIFS(D_D[INV],D_D[MT],2,D_D[CAT],TA_23,D_D[EP],-1, D_D[LOC],$A31),0) -> 136 | L31: =IFERROR(SUMIFS(D_D[BL],D_D[MT],2,D_D[CAT],TA_23,D_D[EP],-1, D_D[LOC],$A31),0) -> 2 | M31: 0.01470588235 | N31: =IFERROR(SUMIFS(D_D[INV],D_D[MT],2,D_D[CAT],TA_24,D_D[EP],-1, D_D[LOC],$A31),0) -> 1077 | O31: =IFERROR(SUMIFS(D_D[BL],D_D[MT],2,D_D[CAT],TA_24,D_D[EP],-1, D_D[LOC],$A31),0) -> 463 | P31: 0.4298978644 | Q31: =IFERROR(SUMIFS(D_D[INV],D_D[MT],2,D_D[CAT],TA_25,D_D[EP],-1, D_D[LOC],$A31),0) -> 107 | R31: =IFERROR(SUMIFS(D_D[INV],D_D[MT],2,D_D[CAT],TA_26,D_D[EP],-1, D_D[LOC],$A31),0) -> 1 | S31: =IFERROR(SUMIFS(D_D[INV],D_D[MT],7,D_D[CAT],2,D_D[EP],TA_20, D_D[LOC],$A31),0) -> 6
A32: 319 | B32: Columbia | C32: =IFERROR(SUMIFS(D_D[INV],D_D[MT],1,D_D[CAT],TA_20,D_D[EP],-1, D_D[LOC],$A32),0) -> 3742 | D32: =IFERROR(SUMIFS(D_D[ADP],D_D[MT],1,D_D[CAT],D$1,D_D[EP],-1, D_D[LOC],$A32),0) -> 47.17 | E32: =IFERROR(SUMIFS(D_D[INV],D_D[MT],2,D_D[CAT],TA_21,D_D[EP],-1, D_D[LOC],$A32),0) -> 9522 | F32: =IFERROR(SUMIFS(D_D[BL],D_D[MT],2,D_D[CAT],TA_21,D_D[EP],-1, D_D[LOC],$A32),0) -> 2576 | G32: =IFERROR(F32/E32,"0%") -> 0.270531401 | H32: =IFERROR(SUMIFS(D_D[INV],D_D[MT],2,D_D[CAT],TA_22,D_D[EP],-1, D_D[LOC],$A32),0) -> 5210 | I32: =IFERROR(SUMIFS(D_D[BL],D_D[MT],2,D_D[CAT],TA_22,D_D[EP],-1, D_D[LOC],$A32),0) -> 589 | J32: =IFERROR(I32/H32,"0%") -> 0.1130518234 | K32: =IFERROR(SUMIFS(D_D[INV],D_D[MT],2,D_D[CAT],TA_23,D_D[EP],-1, D_D[LOC],$A32),0) -> 126 | L32: =IFERROR(SUMIFS(D_D[BL],D_D[MT],2,D_D[CAT],TA_23,D_D[EP],-1, D_D[LOC],$A32),0) -> 3 | M32: =IFERROR(L32/K32,"0%") -> 0.02380952381 | N32: =IFERROR(SUMIFS(D_D[INV],D_D[MT],2,D_D[CAT],TA_24,D_D[EP],-1, D_D[LOC],$A32),0) -> 894 | O32: =IFERROR(SUMIFS(D_D[BL],D_D[MT],2,D_D[CAT],TA_24,D_D[EP],-1, D_D[LOC],$A32),0) -> 318 | P32: =IFERROR(O32/N32,"0%") -> 0.355704698 | Q32: =IFERROR(SUMIFS(D_D[INV],D_D[MT],2,D_D[CAT],TA_25,D_D[EP],-1, D_D[LOC],$A32),0) -> 68 | R32: =IFERROR(SUMIFS(D_D[INV],D_D[MT],2,D_D[CAT],TA_26,D_D[EP],-1, D_D[LOC],$A32),0) -> 8 | S32: =IFERROR(SUMIFS(D_D[INV],D_D[MT],7,D_D[CAT],2,D_D[EP],TA_20, D_D[LOC],$A32),0) -> 3
A33: 315 | B33: Huntington | C33: =IFERROR(SUMIFS(D_D[INV],D_D[MT],1,D_D[CAT],TA_20,D_D[EP],-1, D_D[LOC],$A33),0) -> 358 | D33: =IFERROR(SUMIFS(D_D[ADP],D_D[MT],1,D_D[CAT],D$1,D_D[EP],-1, D_D[LOC],$A33),0) -> 50.78 | E33: =IFERROR(SUMIFS(D_D[INV],D_D[MT],2,D_D[CAT],TA_21,D_D[EP],-1, D_D[LOC],$A33),0) -> 2283 | F33: =IFERROR(SUMIFS(D_D[BL],D_D[MT],2,D_D[CAT],TA_21,D_D[EP],-1, D_D[LOC],$A33),0) -> 673 | G33: 0.2947875602 | H33: =IFERROR(SUMIFS(D_D[INV],D_D[MT],2,D_D[CAT],TA_22,D_D[EP],-1, D_D[LOC],$A33),0) -> 763 | I33: =IFERROR(SUMIFS(D_D[BL],D_D[MT],2,D_D[CAT],TA_22,D_D[EP],-1, D_D[LOC],$A33),0) -> 129 | J33: 0.1690694626 | K33: =IFERROR(SUMIFS(D_D[INV],D_D[MT],2,D_D[CAT],TA_23,D_D[EP],-1, D_D[LOC],$A33),0) -> 45 | L33: =IFERROR(SUMIFS(D_D[BL],D_D[MT],2,D_D[CAT],TA_23,D_D[EP],-1, D_D[LOC],$A33),0) -> 1 | M33: 0.02222222222 | N33: =IFERROR(SUMIFS(D_D[INV],D_D[MT],2,D_D[CAT],TA_24,D_D[EP],-1, D_D[LOC],$A33),0) -> 661 | O33: =IFERROR(SUMIFS(D_D[BL],D_D[MT],2,D_D[CAT],TA_24,D_D[EP],-1, D_D[LOC],$A33),0) -> 590 | P33: 0.8925869894 | Q33: =IFERROR(SUMIFS(D_D[INV],D_D[MT],2,D_D[CAT],TA_25,D_D[EP],-1, D_D[LOC],$A33),0) -> 68 | R33: =IFERROR(SUMIFS(D_D[INV],D_D[MT],2,D_D[CAT],TA_26,D_D[EP],-1, D_D[LOC],$A33),0) -> 399 | S33: =IFERROR(SUMIFS(D_D[INV],D_D[MT],7,D_D[CAT],2,D_D[EP],TA_20, D_D[LOC],$A33),0) -> 2
A34: 323 | B34: Jackson | C34: =IFERROR(SUMIFS(D_D[INV],D_D[MT],1,D_D[CAT],TA_20,D_D[EP],-1, D_D[LOC],$A34),0) -> 803 | D34: =IFERROR(SUMIFS(D_D[ADP],D_D[MT],1,D_D[CAT],D$1,D_D[EP],-1, D_D[LOC],$A34),0) -> 52.62 | E34: =IFERROR(SUMIFS(D_D[INV],D_D[MT],2,D_D[CAT],TA_21,D_D[EP],-1, D_D[LOC],$A34),0) -> 4747 | F34: =IFERROR(SUMIFS(D_D[BL],D_D[MT],2,D_D[CAT],TA_21,D_D[EP],-1, D_D[LOC],$A34),0) -> 1328 | G34: 0.2797556351 | H34: =IFERROR(SUMIFS(D_D[INV],D_D[MT],2,D_D[CAT],TA_22,D_D[EP],-1, D_D[LOC],$A34),0) -> 1550 | I34: =IFERROR(SUMIFS(D_D[BL],D_D[MT],2,D_D[CAT],TA_22,D_D[EP],-1, D_D[LOC],$A34),0) -> 181 | J34: 0.1167741935 | K34: =IFERROR(SUMIFS(D_D[INV],D_D[MT],2,D_D[CAT],TA_23,D_D[EP],-1, D_D[LOC],$A34),0) -> 35 | L34: =IFERROR(SUMIFS(D_D[BL],D_D[MT],2,D_D[CAT],TA_23,D_D[EP],-1, D_D[LOC],$A34),0) -> 2 | M34: 0.05714285714 | N34: =IFERROR(SUMIFS(D_D[INV],D_D[MT],2,D_D[CAT],TA_24,D_D[EP],-1, D_D[LOC],$A34),0) -> 393 | O34: =IFERROR(SUMIFS(D_D[BL],D_D[MT],2,D_D[CAT],TA_24,D_D[EP],-1, D_D[LOC],$A34),0) -> 149 | P34: 0.3791348601 | Q34: =IFERROR(SUMIFS(D_D[INV],D_D[MT],2,D_D[CAT],TA_25,D_D[EP],-1, D_D[LOC],$A34),0) -> 42 | R34: =IFERROR(SUMIFS(D_D[INV],D_D[MT],2,D_D[CAT],TA_26,D_D[EP],-1, D_D[LOC],$A34),0) -> 1 | S34: =IFERROR(SUMIFS(D_D[INV],D_D[MT],7,D_D[CAT],2,D_D[EP],TA_20, D_D[LOC],$A34),0) -> 226
A35: 350 | B35: Little Rock | C35: =IFERROR(SUMIFS(D_D[INV],D_D[MT],1,D_D[CAT],TA_20,D_D[EP],-1, D_D[LOC],$A35),0) -> 812 | D35: =IFERROR(SUMIFS(D_D[ADP],D_D[MT],1,D_D[CAT],D$1,D_D[EP],-1, D_D[LOC],$A35),0) -> 61.39 | E35: =IFERROR(SUMIFS(D_D[INV],D_D[MT],2,D_D[CAT],TA_21,D_D[EP],-1, D_D[LOC],$A35),0) -> 4114 | F35: =IFERROR(SUMIFS(D_D[BL],D_D[MT],2,D_D[CAT],TA_21,D_D[EP],-1, D_D[LOC],$A35),0) -> 1267 | G35: 0.3079727759 | H35: =IFERROR(SUMIFS(D_D[INV],D_D[MT],2,D_D[CAT],TA_22,D_D[EP],-1, D_D[LOC],$A35),0) -> 2969 | I35: =IFERROR(SUMIFS(D_D[BL],D_D[MT],2,D_D[CAT],TA_22,D_D[EP],-1, D_D[LOC],$A35),0) -> 788 | J35: 0.2654092287 | K35: =IFERROR(SUMIFS(D_D[INV],D_D[MT],2,D_D[CAT],TA_23,D_D[EP],-1, D_D[LOC],$A35),0) -> 66 | L35: =IFERROR(SUMIFS(D_D[BL],D_D[MT],2,D_D[CAT],TA_23,D_D[EP],-1, D_D[LOC],$A35),0) -> 5 | M35: 0.07575757576 | N35: =IFERROR(SUMIFS(D_D[INV],D_D[MT],2,D_D[CAT],TA_24,D_D[EP],-1, D_D[LOC],$A35),0) -> 435 | O35: =IFERROR(SUMIFS(D_D[BL],D_D[MT],2,D_D[CAT],TA_24,D_D[EP],-1, D_D[LOC],$A35),0) -> 233 | P35: 0.5356321839 | Q35: =IFERROR(SUMIFS(D_D[INV],D_D[MT],2,D_D[CAT],TA_25,D_D[EP],-1, D_D[LOC],$A35),0) -> 47 | R35: =IFERROR(SUMIFS(D_D[INV],D_D[MT],2,D_D[CAT],TA_26,D_D[EP],-1, D_D[LOC],$A35),0) -> 3 | S35: =IFERROR(SUMIFS(D_D[INV],D_D[MT],7,D_D[CAT],2,D_D[EP],TA_20, D_D[LOC],$A35),0) -> 2
